Workbook

Sheet Cover
B6: Capex Model - Power and Water Corporation (PWC)
C14: Model Developer: | F14: PWC
C16: Purpose of the Model:
C17: The purpose of this model is to provide capex outputs which are required as part of the Power and Water Corporation - Determination 2019-24.
C19: Model Legend:
D22: Assumptions | F22: Cells containing assumptions intended to be manipulated by model users
D23: Drop Down | F23: Cells containing a drop down list for users to select inputs
D24: Input | F24: Cells containing input texts/numbers NOT intended to be changed by model users
D25: Output | F25: Cells containing formulae NOT intended to be changed by model users
D26: Heading 1 | F26: Level 1 heading NOT intended to be changed by model users
D27: Heading 2 | F27: Level 2 heading NOT intended to be changed by model users
F28: Cells where inputs or outputs are not applicable
D29: Hyperlink | F29: Cells containing a hyperlink to another part of the workbook
D30: Error | F30: Cells representing there is an error in the nominated area of the workbook
D31: Ok | F31: Cells representing there are no errors in the nominated area of the workbook
F32: Cells containing a link from external workbooks
C35: Disclaimer:
C36: This model is confidential information of, and is owned by, Power and Water Corporation ABN 15 947 352 360 (PWC). It may not be disclosed to, or used or relied on by, any person without the consent of PWC. PWC has not verified the inputs or the outputs of this model and makes no representation or warranty as to the completeness, accuracy, reliability or appropriateness of the model, its inputs and outputs (including any forward looking statements) or how it functions. To the extent permitted by law, any person using or relying on this model or its outputs does so at their own risk and agrees that PWC will not be liable to any person for any loss or damage of any kind arising out of or in any way connected with the use of this model (including negligence). The references to PWC in this disclaimer includes their respective directors, officers, employees, contractors, advisers or agents.

Sheet TOC
B1: Table of Contents
B2: =Checks!B2 -> No Errors Found
B4: =B1 -> Table of Contents
C6: Model Outputs
D8: Project List
D9: ='Total by category'!$B$1 -> Consolidated Capital Expenditure Forecast
C11: SCS Outputs
D13: ='SCS total'!$B$1 -> Consolidated Capital Expenditure Forecast - SCS
D14: =Augex!B1 -> Augmentation Expenditure
D15: =Repex!B1 -> Replacement Expenditure
D16: =Connections!B1 -> Connection Capital Expenditure
D17: =IT!B1 -> Information Technology Capital Expenditure
D18: =Escalation!B1 -> Escalation on Direct Capex Forecasts - SCS
D19: ='Capitalised OH'!B1 -> Capitalised Overheads Forecast - SCS
C21: ACS Metering Outputs
D23: ='Metering total'!B1 -> Consolidated Capital Expenditure Forecast - Metering
D24: =Metering!B1 -> Metering Capital Expenditure
D25: ='Metering | Escalation'!B1 -> Escalation on Direct Capex Forecasts - Metering
D26: ='Metering | Capitalised OH'!B1 -> Capitalised Overheads Forecast - Metering
C28: Detailed Project Forecasts
D30: ='Repex -->'!B8&" Section Cover" -> Repex Section Cover
D31: ='Augex -->'!B8&" Section Cover" -> Augex Section Cover
B33: End

Sheet Project list
E1: COMMERCIAL IN CONFIDENCE | G1: Subtotal ($'M, real FY18): | H1: =SUBTOTAL(9,H3:H100) -> 0 | I1: 0 | J1: 0 | K1: 0 | L1: 0 | M1: 0 | N1: 0 | O1: =SUBTOTAL(9,O3:O100) -> 0
A2: Tab Name | B2: RIN category | C2: Project / Program number | D2: Exp category | E2: Sub-category1 | F2: Sub-category2 | G2: Project / program description | H2: RY18 | I2: RY19 | J2: RY20 | K2: RY21 | L2: RY22 | M2: RY23 | N2: RY24 | O2: Total RY20 - RY24
A3: BNI 1 | B3: Distribution Lines | C3: PRA34420 | D3: repex | E3: Condition and risk | F3: Alice Springs Corroded Poles | G3: ='BNI 1'!$E$10 -> Alice Springs Corroded Poles | H3: c-i-c | I3: c-i-c | J3: c-i-c | K3: c-i-c | L3: c-i-c | M3: c-i-c | N3: c-i-c | O3: c-i-c | P3: Confirmed for v18
A4: BNI 2 | B4: Substations | C4: PRD30402 | D4: repex | E4: Condition and risk | F4: Replace Berrimah ZSS | G4: ='BNI 2'!$E$10 -> Darwin - Replace Berrimah ZSS | H4: c-i-c | I4: c-i-c | J4: c-i-c | K4: c-i-c | L4: c-i-c | M4: c-i-c | N4: c-i-c | O4: c-i-c | P4: Confirmed for v18
A5: BNI 3 | B5: Protection and SCADA | C5: PRD32117 | D5: repex | E5: Condition and risk | F5: Various protection & control replacement | G5: ='BNI 3'!$E$10 -> Darwin - Upgrade DKTL Secondary Systems | H5: c-i-c | I5: c-i-c | J5: c-i-c | K5: c-i-c | L5: c-i-c | M5: c-i-c | N5: c-i-c | O5: c-i-c | P5: Confirmed for v18
A6: BNI 4 | B6: Substations | C6: PRD33003 | D6: repex | E6: Condition and risk | F6: Various power transformer replacements | G6: ='BNI 4'!$E$10 -> Darwin - Replace Cosmo Howley Transformers | H6: c-i-c | I6: c-i-c | J6: c-i-c | K6: c-i-c | L6: c-i-c | M6: c-i-c | N6: c-i-c | O6: c-i-c | P6: Confirmed for v18
A7: BNI 5 | B7: Distribution Lines | C7: PRD33006 | D7: repex | E7: Condition and risk | F7: Various cable replacements | G7: ='BNI 5'!$E$10 -> Darwin - Replace Port Feeder | H7: c-i-c | I7: c-i-c | J7: c-i-c | K7: c-i-c | L7: c-i-c | M7: c-i-c | N7: c-i-c | O7: c-i-c | P7: Confirmed for v18
A8: BNI 6 | D8: repex | G8: ='BNI 6'!$E$10 -> [deleted] | H8: c-i-c | I8: c-i-c | J8: c-i-c | K8: c-i-c | L8: c-i-c | M8: c-i-c | N8: c-i-c | O8: c-i-c | P8: NA
A9: BNI 7 | B9: Substations | C9: PRD33125 | D9: repex | E9: Condition and risk | F9: Various power transformer replacements | G9: ='BNI 7'!$E$10 -> Darwin Replace 66/11kV Centreyard ZSS | H9: c-i-c | I9: c-i-c | J9: c-i-c | K9: c-i-c | L9: c-i-c | M9: c-i-c | N9: c-i-c | O9: c-i-c | P9: Confirmed for v18
A10: BNI 8 | D10: repex | G10: ='BNI 8'!$E$10 -> [deleted] | H10: c-i-c | I10: c-i-c | J10: c-i-c | K10: c-i-c | L10: c-i-c | M10: c-i-c | N10: c-i-c | O10: c-i-c | P10: NA
A11: BNI 9 | D11: repex | G11: ='BNI 9'!$E$10 -> [deleted] | H11: c-i-c | I11: c-i-c | J11: c-i-c | K11: c-i-c | L11: c-i-c | M11: c-i-c | N11: c-i-c | O11: c-i-c | P11: NA
A12: BNI 10 | B12: Substations | C12: PRD30401 | D12: repex | E12: Condition and risk | F12: Various power transformer replacements | G12: ='BNI 10'!$E$10 -> Darwin - Replace Humpty Doo ZSS | H12: c-i-c | I12: c-i-c | J12: c-i-c | K12: c-i-c | L12: c-i-c | M12: c-i-c | N12: c-i-c | O12: c-i-c | P12: Confirmed for v18
A13: BNI 11 | D13: repex | G13: ='BNI 11'!$E$10 -> [deleted] | H13: c-i-c | I13: c-i-c | J13: c-i-c | K13: c-i-c | L13: c-i-c | M13: c-i-c | N13: c-i-c | O13: c-i-c | P13: NA
A14: BNI 12 | B14: IT and Communications | C14: PRD33134 | D14: repex | E14: Condition and risk | F14: Various SCADA and Communications’ replacement | G14: ='BNI 12'!$E$10 -> Darwin - Energy Management System Upgrade | H14: c-i-c | I14: c-i-c | J14: c-i-c | K14: c-i-c | L14: c-i-c | M14: c-i-c | N14: c-i-c | O14: c-i-c | P14: Confirmed for v18
A15: BNI 13 | D15: repex | G15: ='BNI 13'!$E$10 -> [deleted] | H15: c-i-c | I15: c-i-c | J15: c-i-c | K15: c-i-c | L15: c-i-c | M15: c-i-c | N15: c-i-c | O15: c-i-c | P15: NA
A16: BNI 14 | B16: Substations | C16: NMP3 | D16: repex | E16: Condition and risk | F16: Other minor projects | G16: ='BNI 14'!$E$10 -> 66kV HLC Circuit Breaker Replacement Program | H16: c-i-c | I16: c-i-c | J16: c-i-c | K16: c-i-c | L16: c-i-c | M16: c-i-c | N16: c-i-c | O16: c-i-c | P16: Confirmed for v18
A17: BNI 15 | B17: Property | C17: NMP14 | D17: repex | E17: Condition and risk | F17: Other minor projects | G17: ='BNI 15'!$E$10 -> Substation Fire Protection Equipment Replacement Program | H17: c-i-c | I17: c-i-c | J17: c-i-c | K17: c-i-c | L17: c-i-c | M17: c-i-c | N17: c-i-c | O17: c-i-c | P17: Confirmed for v18
A18: BNI 16 | B18: SCADA and Communications | C18: NMSC1 | D18: repex | E18: Condition and risk | F18: Various SCADA and Communications’ replacement | G18: ='BNI 16'!$E$10 -> SCADA and Communications Obsolete Asset Replacement Program | H18: c-i-c | I18: c-i-c | J18: c-i-c | K18: c-i-c | L18: c-i-c | M18: c-i-c | N18: c-i-c | O18: c-i-c | P18: Confirmed for v18
A19: BNI 17 | B19: Communications | C19: NMSC2 | D19: repex | E19: Condition and risk | F19: Various SCADA and Communications’ replacement | G19: ='BNI 17'!$E$10 -> SCADA and Communications Battery Replacement Program | H19: c-i-c | I19: c-i-c | J19: c-i-c | K19: c-i-c | L19: c-i-c | M19: c-i-c | N19: c-i-c | O19: c-i-c | P19: Confirmed for v18
A20: BNI 18 | B20: Communications | C20: NMSC4 | D20: repex | E20: Compliance | F20: SCADA and Comms | G20: ='BNI 18'!$E$10 -> SCADA and Communications Compliance and Safety Program | H20: c-i-c | I20: c-i-c | J20: c-i-c | K20: c-i-c | L20: c-i-c | M20: c-i-c | N20: c-i-c | O20: c-i-c | P20: Confirmed for v18
A21: BNI 19 | B21: Protection | C21: NPR | D21: repex | E21: Condition and risk | F21: Various protection & control replacement | G21: ='BNI 19'!$E$10 -> Protection Relay Replacement Program | H21: c-i-c | I21: c-i-c | J21: c-i-c | K21: c-i-c | L21: c-i-c | M21: c-i-c | N21: c-i-c | O21: c-i-c | P21: Confirmed for v18
A22: BNI 20 | B22: Distribution Lines | C22: NMP1 | D22: repex | E22: Condition and risk | F22: Various cable replacements | G22: ='BNI 20'!$E$10 -> Darwin Northern Suburbs High Voltage Cable Replacement Program | H22: c-i-c | I22: c-i-c | J22: c-i-c | K22: c-i-c | L22: c-i-c | M22: c-i-c | N22: c-i-c | O22: c-i-c | P22: Confirmed for v18
A23: BNI 21 | B23: Distribution Lines | C23: NMP2 | D23: repex | E23: Condition and risk | F23: Various cable replacements | G23: ='BNI 21'!$E$10 -> Darwin Cullen Bay and Bayview Low Voltage Cable Replacement Program | H23: c-i-c | I23: c-i-c | J23: c-i-c | K23: c-i-c | L23: c-i-c | M23: c-i-c | N23: c-i-c | O23: c-i-c | P23: Confirmed for v18
A24: BNI 22 | B24: Distribution Lines | C24: NMP5 | D24: repex | E24: Compliance | F24: Conductor clearance | G24: ='BNI 22'!$E$10 -> Darwin Lake Bennett Conductor Clearance Rectification Program | H24: c-i-c | I24: c-i-c | J24: c-i-c | K24: c-i-c | L24: c-i-c | M24: c-i-c | N24: c-i-c | O24: c-i-c | P24: Confirmed for v18
A25: BNI 23 | D25: repex | G25: ='BNI 23'!$E$10 -> [deleted] | H25: c-i-c | I25: c-i-c | J25: c-i-c | K25: c-i-c | L25: c-i-c | M25: c-i-c | N25: c-i-c | O25: c-i-c | P25: NA
A26: BNI 24 | B26: Distribution Substations | C26: NMP17 | D26: repex | E26: Condition and risk | F26: Other minor projects | G26: ='BNI 24'!$E$10 -> Single Phase Substation Refurbishment Program | H26: c-i-c | I26: c-i-c | J26: c-i-c | K26: c-i-c | L26: c-i-c | M26: c-i-c | N26: c-i-c | O26: c-i-c | P26: Confirmed for v18
A27: BNI 25 | B27: Distribution assets | C27: NMCFR / PRD33437 | D27: repex | E27: Condition and risk | F27: Condition and Failure Based Replacement Pooled Forecast | G27: ='BNI 25'!$E$10 -> All Regions Condition and Failure Based Replacement Pooled Forecast | H27: c-i-c | I27: c-i-c | J27: c-i-c | K27: c-i-c | L27: c-i-c | M27: c-i-c | N27: c-i-c | O27: c-i-c | P27: Confirmed for v18
A28: BNI 26 | B28: Distribution Lines | C28: NMP18 | D28: repex | E28: Condition and risk | F28: Various pole and tower refurbishment | G28: ='BNI 26'!$E$10 -> Darwin Coastal Pole Top Corrosion Replacement Program | H28: c-i-c | I28: c-i-c | J28: c-i-c | K28: c-i-c | L28: c-i-c | M28: c-i-c | N28: c-i-c | O28: c-i-c | P28: Confirmed for v18
A29: BNI 27 | B29: Substations | C29: NMP16 | D29: repex | E29: Condition and risk | F29: Other minor projects | G29: ='BNI 27'!$E$10 -> Substation DC System Replacement Program | H29: c-i-c | I29: c-i-c | J29: c-i-c | K29: c-i-c | L29: c-i-c | M29: c-i-c | N29: c-i-c | O29: c-i-c | P29: Confirmed for v18
A30: BNI 28 | B30: Distribution Lines | C30: NMF | D30: repex | E30: Reliability and Quality of Supply | F30: Reliability and Quality of Supply | G30: ='BNI 28'!$E$10 -> All Regions Poorly Performing Feeder Improvement Program (REPEX Component) | H30: c-i-c | I30: c-i-c | J30: c-i-c | K30: c-i-c | L30: c-i-c | M30: c-i-c | N30: c-i-c | O30: c-i-c | P30: Confirmed for v18
A31: BNI 29 | D31: repex | G31: ='BNI 29'!$E$10 -> [deleted] | H31: c-i-c | I31: c-i-c | J31: c-i-c | K31: c-i-c | L31: c-i-c | M31: c-i-c | N31: c-i-c | O31: c-i-c | P31: NA
A32: BNI 30 | B32: All | C32: Budget/SCI | D32: repex | G32: ='BNI 30'!$E$10 -> FY18 budget and FY19 budget for Repex | H32: c-i-c | I32: c-i-c | J32: c-i-c | K32: c-i-c | L32: c-i-c | M32: c-i-c | N32: c-i-c | O32: c-i-c | P32: Confirmed for v18
A33: BNI 31 | B33: Transmission Lines | C33: NMP20 | D33: repex | E33: Condition and risk | F33: Various pole and tower refurbishment | G33: ='BNI 31'!$E$10 -> Transmission Line Pole Top Corrosion Replacement Program | H33: c-i-c | I33: c-i-c | J33: c-i-c | K33: c-i-c | L33: c-i-c | M33: c-i-c | N33: c-i-c | O33: c-i-c | P33: Confirmed for v18
A34: BNI 32 | B34: Transmission Lines | C34: NMP11 | D34: repex | E34: Condition and risk | F34: Various pole and tower refurbishment | G34: ='BNI 32'!$E$10 -> Transmission Tower Earthing System Refurbishment Program | H34: c-i-c | I34: c-i-c | J34: c-i-c | K34: c-i-c | L34: c-i-c | M34: c-i-c | N34: c-i-c | O34: c-i-c | P34: Confirmed for v18
A35: BNI 33 | B35: Substations | C35: PRK31580 | D35: repex | E35: Condition and risk | F35: Various power transformer replacements | G35: ='BNI 33'!$E$10 -> Pine Creek 132kV Transformer Replacement | H35: c-i-c | I35: c-i-c | J35: c-i-c | K35: c-i-c | L35: c-i-c | M35: c-i-c | N35: c-i-c | O35: c-i-c | P35: Confirmed for v18
A36: BNI 34 | D36: repex | G36: ='BNI 34'!$E$10 -> [deleted] | H36: c-i-c | I36: c-i-c | J36: c-i-c | K36: c-i-c | L36: c-i-c | M36: c-i-c | N36: c-i-c | O36: c-i-c | P36: NA
A37: BNI 35 | B37: Transmission Lines | C37: NMP9 | D37: repex | E37: Condition and risk | F37: Various pole and tower refurbishment | G37: ='BNI 35'!$E$10 -> Transmission Tower Corrosion Protection Life Extension Program | H37: c-i-c | I37: c-i-c | J37: c-i-c | K37: c-i-c | L37: c-i-c | M37: c-i-c | N37: c-i-c | O37: c-i-c | P37: Confirmed for v18
A38: A-BNI 1 | B38: Substations | C38: PRD33001 | D38: augex | E38: Demand driven | G38: ='A-BNI 1'!$E$10 -> Darwin - Construct Wishart Zone Substation | H38: c-i-c | I38: c-i-c | J38: c-i-c | K38: c-i-c | L38: c-i-c | M38: c-i-c | N38: c-i-c | O38: c-i-c | P38: Confirmed for v18
A39: A-BNI 2 | B39: Substations | C39: PRD33002 | D39: augex | E39: Demand driven | G39: ='A-BNI 2'!$E$10 -> Darwin - Archer ZSS Augmentation | H39: c-i-c | I39: c-i-c | J39: c-i-c | K39: c-i-c | L39: c-i-c | M39: c-i-c | N39: c-i-c | O39: c-i-c | P39: Confirmed for v18
A40: A-BNI 3 | B40: Substations | C40: PRK31430 | D40: augex | E40: Reliability and Quality of Supply | G40: ='A-BNI 3'!$E$10 -> Katherine Voltage Rectification | H40: c-i-c | I40: c-i-c | J40: c-i-c | K40: c-i-c | L40: c-i-c | M40: c-i-c | N40: c-i-c | O40: c-i-c | P40: Confirmed for v18
A41: A-BNI 4 | B41: Transmission Lines | C41: PRD33005 | D41: augex | E41: Compliance | G41: ='A-BNI 4'!$E$10 -> Darwin - Transmission Line Uprating | H41: c-i-c | I41: c-i-c | J41: c-i-c | K41: c-i-c | L41: c-i-c | M41: c-i-c | N41: c-i-c | O41: c-i-c | P41: Confirmed for v18
A42: A-BNI 5 | B42: Substations | C42: NPQ | D42: augex | E42: Reliability and Quality of Supply | G42: ='A-BNI 5'!$E$10 -> Power quality compliance program | H42: c-i-c | I42: c-i-c | J42: c-i-c | K42: c-i-c | L42: c-i-c | M42: c-i-c | N42: c-i-c | O42: c-i-c | P42: Confirmed for v18
A43: A-BNI 6 | D43: augex | G43: ='A-BNI 6'!$E$10 -> [deleted] | H43: c-i-c | I43: c-i-c | J43: c-i-c | K43: c-i-c | L43: c-i-c | M43: c-i-c | N43: c-i-c | O43: c-i-c | P43: NA
A44: A-BNI 7 | B44: Substations | C44: PRD33230 | D44: augex | E44: Compliance | G44: ='A-BNI 7'!$E$10 -> Darwin - Hudson Creek Spare 132kV Transformer | H44: c-i-c | I44: c-i-c | J44: c-i-c | K44: c-i-c | L44: c-i-c | M44: c-i-c | N44: c-i-c | O44: c-i-c | P44: Confirmed for v18
A45: A-BNI 8 | B45: Distribution Lines | C45: NFO | D45: augex | E45: Demand driven | G45: ='A-BNI 8'!$E$10 -> Overloaded Feeders / Distribution Augmentation Program | H45: c-i-c | I45: c-i-c | J45: c-i-c | K45: c-i-c | L45: c-i-c | M45: c-i-c | N45: c-i-c | O45: c-i-c | P45: Confirmed for v18
A46: A-BNI 9 | B46: Distribution Switchgear | C46: NMP7 | D46: augex | E46: Compliance | G46: ='A-BNI 9'!$E$10 -> Darwin Distribution Substation Fault Level Replacement Program | H46: c-i-c | I46: c-i-c | J46: c-i-c | K46: c-i-c | L46: c-i-c | M46: c-i-c | N46: c-i-c | O46: c-i-c | P46: Confirmed for v18
A47: A-BNI 10 | D47: augex | G47: ='A-BNI 10'!$E$10 -> [deleted] | H47: c-i-c | I47: c-i-c | J47: c-i-c | K47: c-i-c | L47: c-i-c | M47: c-i-c | N47: c-i-c | O47: c-i-c | P47: NA
A48: A-BNI 11 | B48: Substations | C48: TBA | D48: augex | E48: Demand driven | G48: ='A-BNI 11'!$E$10 -> Tennant Creek - Upgrade Tennant Creek 22/11kV Transformers | H48: c-i-c | I48: c-i-c | J48: c-i-c | K48: c-i-c | L48: c-i-c | M48: c-i-c | N48: c-i-c | O48: c-i-c | P48: Confirmed for v18
A49: A-BNI 12 | B49: Communications | C49: NMSC3 | D49: augex | E49: Compliance | G49: ='A-BNI 12'!$E$10 -> SCADA and Communications Optus Cable Extension Program | H49: c-i-c | I49: c-i-c | J49: c-i-c | K49: c-i-c | L49: c-i-c | M49: c-i-c | N49: c-i-c | O49: c-i-c | P49: Confirmed for v18
A50: A-BNI 13 | B50: Distribution Switchgear | C50: NMF | D50: augex | E50: Reliability and Quality of Supply | G50: ='A-BNI 13'!$E$10 -> All Regions Poorly Performing Feeder Improvement Program AUGEX Component) | H50: c-i-c | I50: c-i-c | J50: c-i-c | K50: c-i-c | L50: c-i-c | M50: c-i-c | N50: c-i-c | O50: c-i-c | P50: Confirmed for v18
A51: A-BNI 14 | B51: All | C51: Budget/SCI | D51: augex | G51: ='A-BNI 14'!$E$10 -> FY18 budget and FY19 budget for Augex | H51: c-i-c | I51: c-i-c | J51: c-i-c | K51: c-i-c | L51: c-i-c | M51: c-i-c | N51: c-i-c | O51: c-i-c | P51: Confirmed for v18
A52: A-BNI 15 | B52: Substation | C52: NMP12 | D52: augex | E52: Compliance | G52: ='A-BNI 15'!$E$10 -> Power Transformer Online Moisture Treatment | H52: c-i-c | I52: c-i-c | J52: c-i-c | K52: c-i-c | L52: c-i-c | M52: c-i-c | N52: c-i-c | O52: c-i-c | P52: Confirmed for v18
A53: I-BNI 1 | B53: IT and Communications | G53: ='I-BNI 1'!$E$10 -> ICT capital expenditure plan (KPMG) | H53: c-i-c | I53: c-i-c | J53: c-i-c | K53: c-i-c | L53: c-i-c | M53: c-i-c | N53: c-i-c | O53: c-i-c | P53: Confirmed for v18
A54: N-BNI 1 | B54: Motor Vehicles | C54: PRD33455 | G54: ='N-BNI 1'!$E$10 -> Vehicle Fleet Program | H54: c-i-c | I54: c-i-c | J54: c-i-c | K54: c-i-c | L54: c-i-c | M54: c-i-c | N54: c-i-c | O54: c-i-c | P54: Confirmed for v18
A55: N-BNI 2 | B55: Property | C55: PRD33456 | G55: ='N-BNI 2'!$E$10 -> Property Program | H55: c-i-c | I55: c-i-c | J55: c-i-c | K55: c-i-c | L55: c-i-c | M55: c-i-c | N55: c-i-c | O55: c-i-c | P55: Confirmed for v18
A56: N-BNI 3 | B56: Plant and Equipment | C56: PRD33407 | G56: ='N-BNI 3'!$E$10 -> Capex – Tools and Equipment | H56: c-i-c | I56: c-i-c | J56: c-i-c | K56: c-i-c | L56: c-i-c | M56: c-i-c | N56: c-i-c | O56: c-i-c | P56: Confirmed for v18
A57: N-BNI 4 | B57: Property | G57: ='N-BNI 4'!$E$10 -> Upgrade 19 Mile Depot | H57: c-i-c | I57: c-i-c | J57: c-i-c | K57: c-i-c | L57: c-i-c | M57: c-i-c | N57: c-i-c | O57: c-i-c | P57: Confirmed for v18
A58: N-BNI 5 | B58: Property | C58: PRD33462 | G58: ='N-BNI 5'!$E$10 -> Property leases | H58: c-i-c | I58: c-i-c | J58: c-i-c | K58: c-i-c | L58: c-i-c | M58: c-i-c | N58: c-i-c | O58: c-i-c | P58: Confirmed for v18
A59: N-BNI 6 | B59: IT and Communications | C59: PRD33454 | G59: ='N-BNI 6'!$E$10 -> Minor Capex | H59: c-i-c | I59: c-i-c | J59: c-i-c | K59: c-i-c | L59: c-i-c | M59: c-i-c | N59: c-i-c | O59: c-i-c

Sheet Total by category
A1: =IF(SUM($A2:$A39)>0,1,0) -> 0 | B1: Consolidated Capital Expenditure Forecast
B3: Capex Forecasts
C5: Direct Costs by category - unescalated
C7: Ref. | D7: Capex Purpose | E7: Unit | F7: Basis | G7: Timing | H7: RY18 | I7: RY19 | J7: RY20 | K7: RY21 | L7: RY22 | M7: RY23 | N7: RY24 | P7: Total FY20 to FY24 | Q7: Check
C8: =N(C7)+1 -> 1 | D8: Augex | E8: Dollars | F8: Real $2018 | G8: End_Year | H8: =Augex!H25 -> 14.13905251 | I8: =Augex!I25 -> 3.917967 | J8: =Augex!J25 -> 6.92427142 | K8: =Augex!K25 -> 5.310862375 | L8: =Augex!L25 -> 5.56263569 | M8: =Augex!M25 -> 6.473971843 | N8: =Augex!N25 -> 10.59970638 | P8: =SUM(J8:N8) -> 34.87144771 | Q8: =IF(ROUND(P8-Augex!$P$25,4)=0,0,1) -> 0
C9: =N(C8)+1 -> 2 | D9: Repex | E9: Dollars | F9: Real $2018 | G9: End_Year | H9: =Repex!H25 -> 20.74857309 | I9: =Repex!I25 -> 30.15795649 | J9: =Repex!J25 -> 28.08916617 | K9: =Repex!K25 -> 32.73801818 | L9: =Repex!L25 -> 29.36036444 | M9: =Repex!M25 -> 18.78944648 | N9: =Repex!N25 -> 16.39405079 | P9: =SUM(J9:N9) -> 125.3710461 | Q9: =IF(ROUND(P9-Repex!$P$25,4)=0,0,1) -> 0
C10: 3 | D10: Connections | E10: Dollars | F10: Real $2018 | G10: End_Year | H10: =Connections!H25 -> 10.80165818 | I10: =Connections!I25 -> 11.25346747 | J10: =Connections!J25 -> 12.22308066 | K10: =Connections!K25 -> 12.85256776 | L10: =Connections!L25 -> 12.93886841 | M10: =Connections!M25 -> 10.87780581 | N10: =Connections!N25 -> 10.89811185 | P10: 59.79043448 | Q10: =IF(ROUND(P10-Connections!$P$25,4)=0,0,1) -> 0
C11: 4 | D11: Non-Network | E11: Dollars | F11: Real $2018 | G11: End_Year | H11: ='Non-Network'!H25 -> 0.544 | I11: ='Non-Network'!I25 -> 0.544 | J11: ='Non-Network'!J25 -> 18.95319064 | K11: ='Non-Network'!K25 -> 5.046488641 | L11: ='Non-Network'!L25 -> 19.36503779 | M11: ='Non-Network'!M25 -> 5.001217901 | N11: ='Non-Network'!N25 -> 4.847204059 | P11: 53.21313903 | Q11: =IF(ROUND(P11-'Non-Network'!$P$25,4)=0,0,1) -> 0
C12: 5 | D12: IT | E12: Dollars | F12: Real $2018 | G12: End_Year | H12: =IT!H25 -> 4.486012245 | I12: =IT!I25 -> 4.676094245 | J12: =IT!J25 -> 5 | K12: =IT!K25 -> 5 | L12: =IT!L25 -> 5 | M12: =IT!M25 -> 5 | N12: =IT!N25 -> 5 | P12: 25 | Q12: =IF(ROUND(P12-IT!$P$25,4)=0,0,1) -> 0
C13: 6 | D13: Escalation | E13: Dollars | F13: Real $2018 | G13: End_Year | H13: =Escalation!H25 -> 0.1211176789 | I13: =Escalation!I25 -> 0.3328034545 | J13: =Escalation!J25 -> 0.3698642427 | K13: =Escalation!K25 -> 0.2395779878 | L13: =Escalation!L25 -> 0.4097838645 | M13: =Escalation!M25 -> 0.4091788256 | N13: =Escalation!N25 -> 0.5910939933 | P13: 2.019498914 | Q13: =IF(ROUND(P13-Escalation!$P$25,4)=0,0,1) -> 0
C14: 7 | D14: Capitalised OH | E14: Dollars | F14: Real $2018 | G14: End_Year | H14: ='Capitalised OH'!H25 -> 0 | I14: ='Capitalised OH'!I25 -> 0 | J14: ='Capitalised OH'!J25 -> 11.26958955 | K14: ='Capitalised OH'!K25 -> 11.33131635 | L14: ='Capitalised OH'!L25 -> 11.43364129 | M14: ='Capitalised OH'!M25 -> 11.51927061 | N14: ='Capitalised OH'!N25 -> 11.60765266 | P14: 57.16147046 | Q14: =IF(ROUND(P14-'Capitalised OH'!$P$25,4)=0,0,1) -> 0
C15: 8 | D15: Metering | E15: Dollars | F15: Real $2018 | G15: End_Year | H15: ='Metering total'!H18/(1+$I$22) -> 1.993164968 | I15: ='Metering total'!I18/(1+$I$22) -> 4.216386756 | J15: ='Metering total'!J18/(1+$I$22) -> 6.457092972 | K15: ='Metering total'!K18/(1+$I$22) -> 3.615818423 | L15: ='Metering total'!L18/(1+$I$22) -> 3.639558209 | M15: ='Metering total'!M18/(1+$I$22) -> 7.136954004 | N15: ='Metering total'!N18/(1+$I$22) -> 3.512239807 | P15: 24.36166341 | Q15: =IF(ROUND(P15-'Metering total'!$P$18/(1+$I$22),4)=0,0,1) -> 0
A17: =IF(SUM($Q17)>0,1,0) -> 0 | D17: Total | E17: =E8 -> Dollars | F17: Real $2019 | G17: End_Year | H17: =SUM(H8:H15) -> 52.83357868 | I17: 55.09867541 | J17: 89.28625565 | K17: 76.13464971 | L17: 87.70988969 | M17: 65.20784548 | N17: 63.45005954 | P17: 381.7887001 | Q17: =IF(SUM(Q8:Q15)=0,0,1) -> 0
C20: Direct Costs by category - escalated
G21: RY17 | H21: =H24 -> RY18 | I21: =I24 -> RY19
D22: Forecast inflation (End Year) | E22: Per cent | F22: Nominal | G22: =[1]Input_Data!$L$18 -> 0.01933701657 | H22: =[1]Input_Data!M19 -> 0.02 | I22: =[1]Input_Data!N19 -> 0.0225
C24: Ref. | D24: Capex Purpose | E24: Unit | F24: Basis | G24: Timing | H24: RY18 | I24: RY19 | J24: RY20 | K24: RY21 | L24: RY22 | M24: RY23 | N24: RY24 | P24: Total FY20 to FY24 | S24: RY18 | T24: RY19 | U24: RY20 | V24: RY21 | W24: RY22 | X24: RY23 | Y24: RY24 | AA24: Total FY20 to FY24
C25: =N(C24)+1 -> 1 | D25: Augex | E25: Dollars | F25: Real $2019 | G25: End_Year | H25: =H8*(1+$I$22) -> 14.45718119 | I25: 4.006121258 | J25: 7.080067527 | K25: 5.430356778 | L25: 5.687794993 | M25: 6.61963621 | N25: 10.83819978 | P25: =SUM(J25:N25) -> 35.65605529 | S25: =H25+(H25/SUM(H$25:H$29))*H$30 -> 14.49170494 | T25: =I25+(I25/SUM(I$25:I$29))*I$30 -> 4.032496422 | U25: =J25+(J25/SUM(J$25:J$29))*J$30 -> 7.11685183 | V25: 5.451702766 | W25: 5.720065053 | X25: 6.678337372 | Y25: 10.97239582 | AA25: =SUM(U25:Y25) -> 35.93935284
C26: =N(C25)+1 -> 2 | D26: Repex | E26: Dollars | F26: Real $2019 | G26: End_Year | H26: 21.21541599 | I26: 30.83651051 | J26: 28.72117241 | K26: 33.47462358 | L26: 30.02097264 | M26: 19.21220903 | N26: 16.76291693 | P26: =SUM(J26:N26) -> 128.1918946 | S26: 21.2660784 | T26: 31.03952933 | U26: 28.87039249 | V26: 33.60620774 | W26: 30.19129851 | X26: 19.38257775 | Y26: 16.97047143 | AA26: =SUM(U26:Y26) -> 129.0209479
C27: 3 | D27: Connections | E27: Dollars | F27: Real $2019 | G27: End_Year | H27: 11.04469549 | I27: 11.50667049 | J27: 12.49809997 | K27: 13.14175053 | L27: 13.22999294 | M27: 11.12255644 | N27: 11.14331937 | P27: 61.13571926 | S27: 11.07107022 | T27: 11.58242714 | U27: 12.56303352 | V27: 13.19340895 | W27: 13.30505414 | X27: 11.2211883 | Y27: 11.28129333 | AA27: 61.56397823
C28: 4 | D28: Non-Network | E28: Dollars | F28: Real $2019 | G28: End_Year | H28: 0.55624 | I28: 0.55624 | J28: 19.37963743 | K28: 5.160034636 | L28: 19.80075114 | M28: 5.113745304 | N28: 4.95626615 | P28: 54.41043466 | S28: 0.5575683011 | T28: 0.5599021262 | U28: 19.48032382 | V28: 5.180318025 | W28: 19.91309194 | X28: 5.159092629 | Y28: 5.017633474 | AA28: 54.75045989
C29: 5 | D29: IT | E29: Dollars | F29: Real $2019 | G29: End_Year | H29: 4.586947521 | I29: 4.781306366 | J29: 5.1125 | K29: 5.1125 | L29: 5.1125 | M29: 5.1125 | N29: 5.1125 | P29: 25.5625 | S29: =H29+(H29/SUM(H$25:H$29))*H$30 -> 4.597901152 | T29: 4.812785129 | U29: 5.139061858 | V29: 5.132596537 | W29: 5.141506088 | X29: 5.157836282 | Y29: 5.175801775 | AA29: 25.74680254
C30: 6 | D30: Escalation | E30: Dollars | F30: Real $2019 | G30: End_Year | H30: 0.1238428267 | I30: 0.3402915322 | J30: 0.3781861881 | K30: 0.2449684925 | L30: 0.4190040014 | M30: 0.4183853492 | N30: 0.6043936081 | P30: 2.064937639 | S30: 0 | T30: 0 | U30: 0 | V30: 0 | W30: 0 | X30: 0 | Y30: 0 | AA30: 0
C31: 7 | D31: Capitalised OH | E31: Dollars | F31: Real $2019 | G31: End_Year | H31: 0 | I31: 0 | J31: 11.52315531 | K31: 11.58627097 | L31: 11.69089821 | M31: 11.7784542 | N31: 11.86882485 | P31: 58.44760354 | S31: =H31 -> 0 | T31: =I31 -> 0 | U31: 11.52315531 | V31: 11.58627097 | W31: 11.69089821 | X31: 11.7784542 | Y31: 11.86882485 | AA31: 58.44760354
C32: 8 | D32: Metering | E32: Dollars | F32: Real $2019 | G32: End_Year | H32: 2.03801118 | I32: 4.311255458 | J32: 6.602377563 | K32: 3.697174337 | L32: 3.721448268 | M32: 7.297535469 | N32: 3.591265203 | P32: 24.90980084 | S32: =H32 -> 2.03801118 | T32: 4.311255458 | U32: 6.602377563 | V32: 3.697174337 | W32: 3.721448268 | X32: 7.297535469 | Y32: 3.591265203 | AA32: 24.90980084
D34: Total | E34: =E25 -> Dollars | F34: Real $2019 | G34: End_Year | H34: =SUM(H25:H32) -> 54.0223342 | I34: 56.33839561 | J34: 91.2951964 | K34: 77.84767932 | L34: 89.6833622 | M34: 66.67502201 | N34: 64.87768588 | P34: =SUM(J34:N34) -> 390.3789458 | S34: =SUM(S25:S32) -> 54.0223342 | T34: 56.33839561 | U34: 91.2951964 | V34: 77.84767932 | W34: 89.6833622 | X34: 66.67502201 | Y34: 64.87768588 | AA34: =SUM(U34:Y34) -> 390.3789458
D36: Check - Value | E36: Dollars | F36: Real $2019 | G36: End_Year | H36: ='SCS total'!H27+'Metering total'!H18 -> 54.0223342 | I36: ='SCS total'!I27+'Metering total'!I18 -> 56.33839561 | J36: ='SCS total'!J27+'Metering total'!J18 -> 91.2951964 | K36: ='SCS total'!K27+'Metering total'!K18 -> 77.84767932 | L36: ='SCS total'!L27+'Metering total'!L18 -> 89.6833622 | M36: ='SCS total'!M27+'Metering total'!M18 -> 66.67502201 | N36: ='SCS total'!N27+'Metering total'!N18 -> 64.87768588 | P36: =SUM(J36:N36) -> 390.3789458 | S36: =H34 -> 54.0223342 | T36: =I34 -> 56.33839561 | U36: 91.2951964 | V36: 77.84767932 | W36: 89.6833622 | X36: 66.67502201 | Y36: 64.87768588 | AA36: 390.3789458
A37: =IF(SUM($H37:$P37)>0,1,0) -> 0 | D37: Check - Flag | H37: =IF(ROUND(H34-H36,4)=0,0,1) -> 0 | I37: =IF(ROUND(I34-I36,4)=0,0,1) -> 0 | J37: 0 | K37: 0 | L37: 0 | M37: 0 | N37: 0 | P37: 0 | S37: =IF(ROUND(S34-S36,4)=0,0,1) -> 0 | T37: =IF(ROUND(T34-T36,4)=0,0,1) -> 0 | U37: 0 | V37: 0 | W37: 0 | X37: 0 | Y37: 0 | AA37: 0
B39: End

Sheet SCS -->
B8: SCS

Sheet SCS total
A1: =IF(SUM($A2:$A32)>0,1,0) -> 0 | B1: Consolidated Capital Expenditure Forecast - SCS
B3: Capex Forecasts - SCS
C5: Direct Costs including Cost Escalation and Capitalised Overheads
D7: Forecast inflation | E7: Per cent | F7: Nominal | G7: End_Year | I7: ='Total by category'!$I$22 -> 0.0225
C9: Ref. | D9: Regulatory Asset Class | E9: Unit | F9: Basis | G9: Timing | H9: RY18 | I9: RY19 | J9: RY20 | K9: RY21 | L9: RY22 | M9: RY23 | N9: RY24 | P9: Total FY20 to FY24
C10: =N(C9)+1 -> 1 | D10: Substations | E10: Dollars | F10: Real $2019 | G10: End_Year | H10: =(Augex!H8+Repex!H8+Connections!H8+'Non-Network'!H8+IT!H8+Escalation!H8+'Capitalised OH'!H8)*(1+$I$7) -> 8.101899682 | I10: =(Augex!I8+Repex!I8+Connections!I8+'Non-Network'!I8+IT!I8+Escalation!I8+'Capitalised OH'!I8)*(1+$I$7) -> 13.23804798 | J10: =(Augex!J8+Repex!J8+Connections!J8+'Non-Network'!J8+IT!J8+Escalation!J8+'Capitalised OH'!J8)*(1+$I$7) -> 9.441125728 | K10: =(Augex!K8+Repex!K8+Connections!K8+'Non-Network'!K8+IT!K8+Escalation!K8+'Capitalised OH'!K8)*(1+$I$7) -> 8.825203417 | L10: =(Augex!L8+Repex!L8+Connections!L8+'Non-Network'!L8+IT!L8+Escalation!L8+'Capitalised OH'!L8)*(1+$I$7) -> 6.224561354 | M10: =(Augex!M8+Repex!M8+Connections!M8+'Non-Network'!M8+IT!M8+Escalation!M8+'Capitalised OH'!M8)*(1+$I$7) -> 4.783147742 | N10: =(Augex!N8+Repex!N8+Connections!N8+'Non-Network'!N8+IT!N8+Escalation!N8+'Capitalised OH'!N8)*(1+$I$7) -> 6.571522186 | P10: =SUM(J10:N10) -> 35.84556043
C11: =N(C10)+1 -> 2 | D11: Distribution Lines | E11: Dollars | F11: Real $2019 | G11: End_Year | H11: =(Augex!H9+Repex!H9+Connections!H9+'Non-Network'!H9+IT!H9+Escalation!H9+'Capitalised OH'!H9)*(1+$I$7) -> 13.27329953 | I11: =(Augex!I9+Repex!I9+Connections!I9+'Non-Network'!I9+IT!I9+Escalation!I9+'Capitalised OH'!I9)*(1+$I$7) -> 16.47560796 | J11: =(Augex!J9+Repex!J9+Connections!J9+'Non-Network'!J9+IT!J9+Escalation!J9+'Capitalised OH'!J9)*(1+$I$7) -> 23.4950778 | K11: =(Augex!K9+Repex!K9+Connections!K9+'Non-Network'!K9+IT!K9+Escalation!K9+'Capitalised OH'!K9)*(1+$I$7) -> 27.14543287 | L11: =(Augex!L9+Repex!L9+Connections!L9+'Non-Network'!L9+IT!L9+Escalation!L9+'Capitalised OH'!L9)*(1+$I$7) -> 21.8643801 | M11: =(Augex!M9+Repex!M9+Connections!M9+'Non-Network'!M9+IT!M9+Escalation!M9+'Capitalised OH'!M9)*(1+$I$7) -> 19.15338631 | N11: =(Augex!N9+Repex!N9+Connections!N9+'Non-Network'!N9+IT!N9+Escalation!N9+'Capitalised OH'!N9)*(1+$I$7) -> 20.18178062 | P11: =SUM(J11:N11) -> 111.8400577
C12: 3 | D12: Transmission Lines | E12: Dollars | F12: Real $2019 | G12: End_Year | H12: =(Augex!H10+Repex!H10+Connections!H10+'Non-Network'!H10+IT!H10+Escalation!H10+'Capitalised OH'!H10)*(1+$I$7) -> 8.558708864 | I12: =(Augex!I10+Repex!I10+Connections!I10+'Non-Network'!I10+IT!I10+Escalation!I10+'Capitalised OH'!I10)*(1+$I$7) -> 0.2367233254 | J12: =(Augex!J10+Repex!J10+Connections!J10+'Non-Network'!J10+IT!J10+Escalation!J10+'Capitalised OH'!J10)*(1+$I$7) -> 2.914710699 | K12: =(Augex!K10+Repex!K10+Connections!K10+'Non-Network'!K10+IT!K10+Escalation!K10+'Capitalised OH'!K10)*(1+$I$7) -> 2.759295125 | L12: =(Augex!L10+Repex!L10+Connections!L10+'Non-Network'!L10+IT!L10+Escalation!L10+'Capitalised OH'!L10)*(1+$I$7) -> 2.699293528 | M12: =(Augex!M10+Repex!M10+Connections!M10+'Non-Network'!M10+IT!M10+Escalation!M10+'Capitalised OH'!M10)*(1+$I$7) -> 2.918530826 | N12: =(Augex!N10+Repex!N10+Connections!N10+'Non-Network'!N10+IT!N10+Escalation!N10+'Capitalised OH'!N10)*(1+$I$7) -> 2.874381236 | P12: 14.16621141
C13: 4 | D13: LV Services | E13: Dollars | F13: Real $2019 | G13: End_Year | H13: =(Augex!H11+Repex!H11+Connections!H11+'Non-Network'!H11+IT!H11+Escalation!H11+'Capitalised OH'!H11)*(1+$I$7) -> 0.7475587534 | I13: =(Augex!I11+Repex!I11+Connections!I11+'Non-Network'!I11+IT!I11+Escalation!I11+'Capitalised OH'!I11)*(1+$I$7) -> 0.9640689639 | J13: =(Augex!J11+Repex!J11+Connections!J11+'Non-Network'!J11+IT!J11+Escalation!J11+'Capitalised OH'!J11)*(1+$I$7) -> 1.567540497 | K13: =(Augex!K11+Repex!K11+Connections!K11+'Non-Network'!K11+IT!K11+Escalation!K11+'Capitalised OH'!K11)*(1+$I$7) -> 1.89032825 | L13: =(Augex!L11+Repex!L11+Connections!L11+'Non-Network'!L11+IT!L11+Escalation!L11+'Capitalised OH'!L11)*(1+$I$7) -> 1.887752322 | M13: =(Augex!M11+Repex!M11+Connections!M11+'Non-Network'!M11+IT!M11+Escalation!M11+'Capitalised OH'!M11)*(1+$I$7) -> 1.046157451 | N13: =(Augex!N11+Repex!N11+Connections!N11+'Non-Network'!N11+IT!N11+Escalation!N11+'Capitalised OH'!N11)*(1+$I$7) -> 1.053455866 | P13: 7.445234388
C14: 5 | D14: Distribution Substations | E14: Dollars | F14: Real $2019 | G14: End_Year | H14: =(Augex!H12+Repex!H12+Connections!H12+'Non-Network'!H12+IT!H12+Escalation!H12+'Capitalised OH'!H12)*(1+$I$7) -> 4.203495461 | I14: =(Augex!I12+Repex!I12+Connections!I12+'Non-Network'!I12+IT!I12+Escalation!I12+'Capitalised OH'!I12)*(1+$I$7) -> 6.076270924 | J14: =(Augex!J12+Repex!J12+Connections!J12+'Non-Network'!J12+IT!J12+Escalation!J12+'Capitalised OH'!J12)*(1+$I$7) -> 6.55172965 | K14: =(Augex!K12+Repex!K12+Connections!K12+'Non-Network'!K12+IT!K12+Escalation!K12+'Capitalised OH'!K12)*(1+$I$7) -> 6.995745188 | L14: =(Augex!L12+Repex!L12+Connections!L12+'Non-Network'!L12+IT!L12+Escalation!L12+'Capitalised OH'!L12)*(1+$I$7) -> 7.114978422 | M14: =(Augex!M12+Repex!M12+Connections!M12+'Non-Network'!M12+IT!M12+Escalation!M12+'Capitalised OH'!M12)*(1+$I$7) -> 7.919340865 | N14: =(Augex!N12+Repex!N12+Connections!N12+'Non-Network'!N12+IT!N12+Escalation!N12+'Capitalised OH'!N12)*(1+$I$7) -> 7.998130877 | P14: 36.579925
C15: 6 | D15: Distribution Switchgear | E15: Dollars | F15: Real $2019 | G15: End_Year | H15: =(Augex!H13+Repex!H13+Connections!H13+'Non-Network'!H13+IT!H13+Escalation!H13+'Capitalised OH'!H13)*(1+$I$7) -> 5.189429702 | I15: =(Augex!I13+Repex!I13+Connections!I13+'Non-Network'!I13+IT!I13+Escalation!I13+'Capitalised OH'!I13)*(1+$I$7) -> 4.113944753 | J15: =(Augex!J13+Repex!J13+Connections!J13+'Non-Network'!J13+IT!J13+Escalation!J13+'Capitalised OH'!J13)*(1+$I$7) -> 5.383464787 | K15: =(Augex!K13+Repex!K13+Connections!K13+'Non-Network'!K13+IT!K13+Escalation!K13+'Capitalised OH'!K13)*(1+$I$7) -> 5.56571728 | L15: =(Augex!L13+Repex!L13+Connections!L13+'Non-Network'!L13+IT!L13+Escalation!L13+'Capitalised OH'!L13)*(1+$I$7) -> 5.349206329 | M15: =(Augex!M13+Repex!M13+Connections!M13+'Non-Network'!M13+IT!M13+Escalation!M13+'Capitalised OH'!M13)*(1+$I$7) -> 5.823994516 | N15: =(Augex!N13+Repex!N13+Connections!N13+'Non-Network'!N13+IT!N13+Escalation!N13+'Capitalised OH'!N13)*(1+$I$7) -> 5.868898548 | P15: 27.99128146
C16: 7 | D16: Protection | E16: Dollars | F16: Real $2019 | G16: End_Year | H16: =(Augex!H14+Repex!H14+Connections!H14+'Non-Network'!H14+IT!H14+Escalation!H14+'Capitalised OH'!H14)*(1+$I$7) -> 1.003166074 | I16: =(Augex!I14+Repex!I14+Connections!I14+'Non-Network'!I14+IT!I14+Escalation!I14+'Capitalised OH'!I14)*(1+$I$7) -> 2.521017989 | J16: =(Augex!J14+Repex!J14+Connections!J14+'Non-Network'!J14+IT!J14+Escalation!J14+'Capitalised OH'!J14)*(1+$I$7) -> 3.311538628 | K16: =(Augex!K14+Repex!K14+Connections!K14+'Non-Network'!K14+IT!K14+Escalation!K14+'Capitalised OH'!K14)*(1+$I$7) -> 3.796536002 | L16: =(Augex!L14+Repex!L14+Connections!L14+'Non-Network'!L14+IT!L14+Escalation!L14+'Capitalised OH'!L14)*(1+$I$7) -> 1.511509163 | M16: =(Augex!M14+Repex!M14+Connections!M14+'Non-Network'!M14+IT!M14+Escalation!M14+'Capitalised OH'!M14)*(1+$I$7) -> 1.388489754 | N16: =(Augex!N14+Repex!N14+Connections!N14+'Non-Network'!N14+IT!N14+Escalation!N14+'Capitalised OH'!N14)*(1+$I$7) -> 1.702488491 | P16: 11.71056204
C17: 8 | D17: SCADA | E17: Dollars | F17: Real $2019 | G17: End_Year | H17: =(Augex!H15+Repex!H15+Connections!H15+'Non-Network'!H15+IT!H15+Escalation!H15+'Capitalised OH'!H15)*(1+$I$7) -> 0.4782009133 | I17: =(Augex!I15+Repex!I15+Connections!I15+'Non-Network'!I15+IT!I15+Escalation!I15+'Capitalised OH'!I15)*(1+$I$7) -> 1.19087477 | J17: =(Augex!J15+Repex!J15+Connections!J15+'Non-Network'!J15+IT!J15+Escalation!J15+'Capitalised OH'!J15)*(1+$I$7) -> 0.8705903622 | K17: =(Augex!K15+Repex!K15+Connections!K15+'Non-Network'!K15+IT!K15+Escalation!K15+'Capitalised OH'!K15)*(1+$I$7) -> 1.165262806 | L17: =(Augex!L15+Repex!L15+Connections!L15+'Non-Network'!L15+IT!L15+Escalation!L15+'Capitalised OH'!L15)*(1+$I$7) -> 0.7164791463 | M17: =(Augex!M15+Repex!M15+Connections!M15+'Non-Network'!M15+IT!M15+Escalation!M15+'Capitalised OH'!M15)*(1+$I$7) -> 0.3744675795 | N17: =(Augex!N15+Repex!N15+Connections!N15+'Non-Network'!N15+IT!N15+Escalation!N15+'Capitalised OH'!N15)*(1+$I$7) -> 0.5205449634 | P17: 3.647344857
C18: 9 | D18: Communications | E18: Dollars | F18: Real $2019 | G18: End_Year | H18: =(Augex!H16+Repex!H16+Connections!H16+'Non-Network'!H16+IT!H16+Escalation!H16+'Capitalised OH'!H16)*(1+$I$7) -> 5.273094589 | I18: =(Augex!I16+Repex!I16+Connections!I16+'Non-Network'!I16+IT!I16+Escalation!I16+'Capitalised OH'!I16)*(1+$I$7) -> 1.837896226 | J18: =(Augex!J16+Repex!J16+Connections!J16+'Non-Network'!J16+IT!J16+Escalation!J16+'Capitalised OH'!J16)*(1+$I$7) -> 2.63131356 | K18: =(Augex!K16+Repex!K16+Connections!K16+'Non-Network'!K16+IT!K16+Escalation!K16+'Capitalised OH'!K16)*(1+$I$7) -> 2.889213949 | L18: =(Augex!L16+Repex!L16+Connections!L16+'Non-Network'!L16+IT!L16+Escalation!L16+'Capitalised OH'!L16)*(1+$I$7) -> 2.37794906 | M18: =(Augex!M16+Repex!M16+Connections!M16+'Non-Network'!M16+IT!M16+Escalation!M16+'Capitalised OH'!M16)*(1+$I$7) -> 2.016462877 | N18: =(Augex!N16+Repex!N16+Connections!N16+'Non-Network'!N16+IT!N16+Escalation!N16+'Capitalised OH'!N16)*(1+$I$7) -> 1.840269801 | P18: 11.75520925
C19: 10 | D19: Land and Easements | E19: Dollars | F19: Real $2019 | G19: End_Year | H19: =(Augex!H17+Repex!H17+Connections!H17+'Non-Network'!H17+IT!H17+Escalation!H17+'Capitalised OH'!H17)*(1+$I$7) -> 0 | I19: =(Augex!I17+Repex!I17+Connections!I17+'Non-Network'!I17+IT!I17+Escalation!I17+'Capitalised OH'!I17)*(1+$I$7) -> 0 | J19: =(Augex!J17+Repex!J17+Connections!J17+'Non-Network'!J17+IT!J17+Escalation!J17+'Capitalised OH'!J17)*(1+$I$7) -> 0 | K19: =(Augex!K17+Repex!K17+Connections!K17+'Non-Network'!K17+IT!K17+Escalation!K17+'Capitalised OH'!K17)*(1+$I$7) -> 0 | L19: =(Augex!L17+Repex!L17+Connections!L17+'Non-Network'!L17+IT!L17+Escalation!L17+'Capitalised OH'!L17)*(1+$I$7) -> 0 | M19: =(Augex!M17+Repex!M17+Connections!M17+'Non-Network'!M17+IT!M17+Escalation!M17+'Capitalised OH'!M17)*(1+$I$7) -> 0 | N19: =(Augex!N17+Repex!N17+Connections!N17+'Non-Network'!N17+IT!N17+Escalation!N17+'Capitalised OH'!N17)*(1+$I$7) -> 0 | P19: 0
C20: 11 | D20: Property | E20: Dollars | F20: Real $2019 | G20: End_Year | H20: =(Augex!H18+Repex!H18+Connections!H18+'Non-Network'!H18+IT!H18+Escalation!H18+'Capitalised OH'!H18)*(1+$I$7) -> 0 | I20: =(Augex!I18+Repex!I18+Connections!I18+'Non-Network'!I18+IT!I18+Escalation!I18+'Capitalised OH'!I18)*(1+$I$7) -> 0 | J20: =(Augex!J18+Repex!J18+Connections!J18+'Non-Network'!J18+IT!J18+Escalation!J18+'Capitalised OH'!J18)*(1+$I$7) -> 0.8393177135 | K20: =(Augex!K18+Repex!K18+Connections!K18+'Non-Network'!K18+IT!K18+Escalation!K18+'Capitalised OH'!K18)*(1+$I$7) -> 0.9935530706 | L20: =(Augex!L18+Repex!L18+Connections!L18+'Non-Network'!L18+IT!L18+Escalation!L18+'Capitalised OH'!L18)*(1+$I$7) -> 1.0059272 | M20: =(Augex!M18+Repex!M18+Connections!M18+'Non-Network'!M18+IT!M18+Escalation!M18+'Capitalised OH'!M18)*(1+$I$7) -> 0.930506896 | N20: =(Augex!N18+Repex!N18+Connections!N18+'Non-Network'!N18+IT!N18+Escalation!N18+'Capitalised OH'!N18)*(1+$I$7) -> 0.9075675816 | P20: 4.676872462
C21: 12 | D21: IT and Communications | E21: Dollars | F21: Real $2019 | G21: End_Year | H21: =(Augex!H19+Repex!H19+Connections!H19+'Non-Network'!H19+IT!H19+Escalation!H19+'Capitalised OH'!H19)*(1+$I$7) -> 4.597901152 | I21: =(Augex!I19+Repex!I19+Connections!I19+'Non-Network'!I19+IT!I19+Escalation!I19+'Capitalised OH'!I19)*(1+$I$7) -> 4.812785129 | J21: =(Augex!J19+Repex!J19+Connections!J19+'Non-Network'!J19+IT!J19+Escalation!J19+'Capitalised OH'!J19)*(1+$I$7) -> 5.948389181 | K21: =(Augex!K19+Repex!K19+Connections!K19+'Non-Network'!K19+IT!K19+Escalation!K19+'Capitalised OH'!K19)*(1+$I$7) -> 6.813074383 | L21: =(Augex!L19+Repex!L19+Connections!L19+'Non-Network'!L19+IT!L19+Escalation!L19+'Capitalised OH'!L19)*(1+$I$7) -> 12.97279517 | M21: =(Augex!M19+Repex!M19+Connections!M19+'Non-Network'!M19+IT!M19+Escalation!M19+'Capitalised OH'!M19)*(1+$I$7) -> 7.463614986 | N21: =(Augex!N19+Repex!N19+Connections!N19+'Non-Network'!N19+IT!N19+Escalation!N19+'Capitalised OH'!N19)*(1+$I$7) -> 6.418895124 | P21: 39.61676885
C22: 13 | D22: Motor Vehicles | E22: Dollars | F22: Real $2019 | G22: End_Year | H22: =(Augex!H20+Repex!H20+Connections!H20+'Non-Network'!H20+IT!H20+Escalation!H20+'Capitalised OH'!H20)*(1+$I$7) -> 0 | I22: =(Augex!I20+Repex!I20+Connections!I20+'Non-Network'!I20+IT!I20+Escalation!I20+'Capitalised OH'!I20)*(1+$I$7) -> 0 | J22: =(Augex!J20+Repex!J20+Connections!J20+'Non-Network'!J20+IT!J20+Escalation!J20+'Capitalised OH'!J20)*(1+$I$7) -> 0 | K22: =(Augex!K20+Repex!K20+Connections!K20+'Non-Network'!K20+IT!K20+Escalation!K20+'Capitalised OH'!K20)*(1+$I$7) -> 0 | L22: =(Augex!L20+Repex!L20+Connections!L20+'Non-Network'!L20+IT!L20+Escalation!L20+'Capitalised OH'!L20)*(1+$I$7) -> 0 | M22: =(Augex!M20+Repex!M20+Connections!M20+'Non-Network'!M20+IT!M20+Escalation!M20+'Capitalised OH'!M20)*(1+$I$7) -> 0 | N22: =(Augex!N20+Repex!N20+Connections!N20+'Non-Network'!N20+IT!N20+Escalation!N20+'Capitalised OH'!N20)*(1+$I$7) -> 0 | P22: 0
C23: 14 | D23: Plant and Equipment | E23: Dollars | F23: Real $2019 | G23: End_Year | H23: =(Augex!H21+Repex!H21+Connections!H21+'Non-Network'!H21+IT!H21+Escalation!H21+'Capitalised OH'!H21)*(1+$I$7) -> 0.5575683011 | I23: =(Augex!I21+Repex!I21+Connections!I21+'Non-Network'!I21+IT!I21+Escalation!I21+'Capitalised OH'!I21)*(1+$I$7) -> 0.5599021262 | J23: =(Augex!J21+Repex!J21+Connections!J21+'Non-Network'!J21+IT!J21+Escalation!J21+'Capitalised OH'!J21)*(1+$I$7) -> 1.212281715 | K23: =(Augex!K21+Repex!K21+Connections!K21+'Non-Network'!K21+IT!K21+Escalation!K21+'Capitalised OH'!K21)*(1+$I$7) -> 1.239736214 | L23: =(Augex!L21+Repex!L21+Connections!L21+'Non-Network'!L21+IT!L21+Escalation!L21+'Capitalised OH'!L21)*(1+$I$7) -> 1.212777824 | M23: =(Augex!M21+Repex!M21+Connections!M21+'Non-Network'!M21+IT!M21+Escalation!M21+'Capitalised OH'!M21)*(1+$I$7) -> 1.311279943 | N23: =(Augex!N21+Repex!N21+Connections!N21+'Non-Network'!N21+IT!N21+Escalation!N21+'Capitalised OH'!N21)*(1+$I$7) -> 1.308170826 | P23: 6.284246523
C24: 15 | D24: Property Leases | E24: Dollars | F24: Real $2019 | G24: End_Year | H24: =(Augex!H22+Repex!H22+Connections!H22+'Non-Network'!H22+IT!H22+Escalation!H22+'Capitalised OH'!H22)*(1+$I$7) -> 0 | I24: =(Augex!I22+Repex!I22+Connections!I22+'Non-Network'!I22+IT!I22+Escalation!I22+'Capitalised OH'!I22)*(1+$I$7) -> 0 | J24: =(Augex!J22+Repex!J22+Connections!J22+'Non-Network'!J22+IT!J22+Escalation!J22+'Capitalised OH'!J22)*(1+$I$7) -> 5.103846173 | K24: =(Augex!K22+Repex!K22+Connections!K22+'Non-Network'!K22+IT!K22+Escalation!K22+'Capitalised OH'!K22)*(1+$I$7) -> 0.06610945268 | L24: =(Augex!L22+Repex!L22+Connections!L22+'Non-Network'!L22+IT!L22+Escalation!L22+'Capitalised OH'!L22)*(1+$I$7) -> 17.58651997 | M24: =(Augex!M22+Repex!M22+Connections!M22+'Non-Network'!M22+IT!M22+Escalation!M22+'Capitalised OH'!M22)*(1+$I$7) -> 0.06992455202 | N24: =(Augex!N22+Repex!N22+Connections!N22+'Non-Network'!N22+IT!N22+Escalation!N22+'Capitalised OH'!N22)*(1+$I$7) -> 0.6453054589 | P24: =SUM(J24:N24) -> 23.47170561
C25: 16 | D25: Fleet Leases | E25: Dollars | F25: Real $2019 | G25: End_Year | H25: =(Augex!H23+Repex!H23+Connections!H23+'Non-Network'!H23+IT!H23+Escalation!H23+'Capitalised OH'!H23)*(1+$I$7) -> 0 | I25: =(Augex!I23+Repex!I23+Connections!I23+'Non-Network'!I23+IT!I23+Escalation!I23+'Capitalised OH'!I23)*(1+$I$7) -> 0 | J25: =(Augex!J23+Repex!J23+Connections!J23+'Non-Network'!J23+IT!J23+Escalation!J23+'Capitalised OH'!J23)*(1+$I$7) -> 15.42189234 | K25: =(Augex!K23+Repex!K23+Connections!K23+'Non-Network'!K23+IT!K23+Escalation!K23+'Capitalised OH'!K23)*(1+$I$7) -> 4.005296983 | L25: =(Augex!L23+Repex!L23+Connections!L23+'Non-Network'!L23+IT!L23+Escalation!L23+'Capitalised OH'!L23)*(1+$I$7) -> 3.437784341 | M25: =(Augex!M23+Repex!M23+Connections!M23+'Non-Network'!M23+IT!M23+Escalation!M23+'Capitalised OH'!M23)*(1+$I$7) -> 4.178182242 | N25: =(Augex!N23+Repex!N23+Connections!N23+'Non-Network'!N23+IT!N23+Escalation!N23+'Capitalised OH'!N23)*(1+$I$7) -> 3.395009099 | P25: 30.438165
D27: Total | E27: =E10 -> Dollars | F27: Real $2019 | G27: End_Year | H27: =SUM(H10:H25) -> 51.98432302 | I27: =SUM(I10:I25) -> 52.02714015 | J27: 84.69281884 | K27: 74.15050499 | L27: 85.96191394 | M27: 59.37748654 | N27: 61.28642068 | P27: 365.469145
D29: Check - Value | E29: Dollars | F29: Real $2019 | G29: End_Year | H29: =SUM('Augex:Capitalised OH'!H25)*(1+$I$7) -> 51.98432302 | I29: =SUM('Augex:Capitalised OH'!I25)*(1+$I$7) -> 52.02714015 | J29: =SUM('Augex:Capitalised OH'!J25)*(1+$I$7) -> 84.69281884 | K29: =SUM('Augex:Capitalised OH'!K25)*(1+$I$7) -> 74.15050499 | L29: =SUM('Augex:Capitalised OH'!L25)*(1+$I$7) -> 85.96191394 | M29: =SUM('Augex:Capitalised OH'!M25)*(1+$I$7) -> 59.37748654 | N29: =SUM('Augex:Capitalised OH'!N25)*(1+$I$7) -> 61.28642068 | P29: =SUM(J29:N29) -> 365.469145
A30: =IF(SUM($H30:$P30)>0,1,0) -> 0 | D30: Check - Flag | H30: =IF(ROUND(H27-H29,4)=0,0,1) -> 0 | I30: =IF(ROUND(I27-I29,4)=0,0,1) -> 0 | J30: 0 | K30: 0 | L30: 0 | M30: 0 | N30: 0 | P30: 0
B32: End

Sheet SCS CapCon
A1: =IF(SUM($A2:$A32)>0,1,0) -> 0 | B1: Consolidated Capital Expenditure Forecast - SCS
B3: Capital Contribution Forecasts - SCS
C5: Direct Costs including Cost Escalation
D7: Forecast inflation | E7: Per cent | F7: Nominal | G7: End_Year | I7: ='Total by category'!$I$22 -> 0.0225
C9: Ref. | D9: Regulatory Asset Class | E9: Unit | F9: Basis | G9: Timing | H9: RY18 | I9: RY19 | J9: RY20 | K9: RY21 | L9: RY22 | M9: RY23 | N9: RY24 | P9: Total FY20 to FY24
C10: =N(C9)+1 -> 1 | D10: Substations | E10: Dollars | F10: Real $2019 | G10: End_Year | H10: ='Capital Contributions'!H8*Escalation!H$52*(1+$I$7) -> 0 | I10: ='Capital Contributions'!I8*Escalation!I$52*(1+$I$7) -> 0 | J10: ='Capital Contributions'!J8*Escalation!J$52*(1+$I$7) -> 0 | K10: ='Capital Contributions'!K8*Escalation!K$52*(1+$I$7) -> 0 | L10: ='Capital Contributions'!L8*Escalation!L$52*(1+$I$7) -> 0 | M10: ='Capital Contributions'!M8*Escalation!M$52*(1+$I$7) -> 0 | N10: ='Capital Contributions'!N8*Escalation!N$52*(1+$I$7) -> 0 | P10: =SUM(J10:N10) -> 0
C11: =N(C10)+1 -> 2 | D11: Distribution Lines | E11: Dollars | F11: Real $2019 | G11: End_Year | H11: ='Capital Contributions'!H9*Escalation!H$52*(1+$I$7) -> 6.348681652 | I11: ='Capital Contributions'!I9*Escalation!I$52*(1+$I$7) -> 6.433370968 | J11: ='Capital Contributions'!J9*Escalation!J$52*(1+$I$7) -> 6.549046094 | K11: ='Capital Contributions'!K9*Escalation!K$52*(1+$I$7) -> 6.621563434 | L11: ='Capital Contributions'!L9*Escalation!L$52*(1+$I$7) -> 6.644148325 | M11: ='Capital Contributions'!M9*Escalation!M$52*(1+$I$7) -> 6.39953838 | N11: ='Capital Contributions'!N9*Escalation!N$52*(1+$I$7) -> 6.42445588 | P11: =SUM(J11:N11) -> 32.63875211
C12: 3 | D12: Transmission Lines | E12: Dollars | F12: Real $2019 | G12: End_Year | H12: ='Capital Contributions'!H10*Escalation!H$52*(1+$I$7) -> 0 | I12: ='Capital Contributions'!I10*Escalation!I$52*(1+$I$7) -> 0 | J12: ='Capital Contributions'!J10*Escalation!J$52*(1+$I$7) -> 0 | K12: ='Capital Contributions'!K10*Escalation!K$52*(1+$I$7) -> 0 | L12: ='Capital Contributions'!L10*Escalation!L$52*(1+$I$7) -> 0 | M12: ='Capital Contributions'!M10*Escalation!M$52*(1+$I$7) -> 0 | N12: ='Capital Contributions'!N10*Escalation!N$52*(1+$I$7) -> 0 | P12: 0
C13: 4 | D13: LV Services | E13: Dollars | F13: Real $2019 | G13: End_Year | H13: ='Capital Contributions'!H11*Escalation!H$52*(1+$I$7) -> 0.1452153038 | I13: ='Capital Contributions'!I11*Escalation!I$52*(1+$I$7) -> 0.1807109274 | J13: ='Capital Contributions'!J11*Escalation!J$52*(1+$I$7) -> 0.2552299933 | K13: ='Capital Contributions'!K11*Escalation!K$52*(1+$I$7) -> 0.3033885008 | L13: ='Capital Contributions'!L11*Escalation!L$52*(1+$I$7) -> 0.3105730805 | M13: ='Capital Contributions'!M11*Escalation!M$52*(1+$I$7) -> 0.1520473257 | N13: ='Capital Contributions'!N11*Escalation!N$52*(1+$I$7) -> 0.1541539511 | P13: 1.175392851
C14: 5 | D14: Distribution Substations | E14: Dollars | F14: Real $2019 | G14: End_Year | H14: ='Capital Contributions'!H12*Escalation!H$52*(1+$I$7) -> 2.343166533 | I14: ='Capital Contributions'!I12*Escalation!I$52*(1+$I$7) -> 2.352974373 | J14: ='Capital Contributions'!J12*Escalation!J$52*(1+$I$7) -> 2.349729239 | K14: ='Capital Contributions'!K12*Escalation!K$52*(1+$I$7) -> 2.346773105 | L14: ='Capital Contributions'!L12*Escalation!L$52*(1+$I$7) -> 2.350846812 | M14: ='Capital Contributions'!M12*Escalation!M$52*(1+$I$7) -> 2.358313454 | N14: ='Capital Contributions'!N12*Escalation!N$52*(1+$I$7) -> 2.366527802 | P14: 11.77219041
C15: 6 | D15: Distribution Switchgear | E15: Dollars | F15: Real $2019 | G15: End_Year | H15: ='Capital Contributions'!H13*Escalation!H$52*(1+$I$7) -> 0.685556508 | I15: ='Capital Contributions'!I13*Escalation!I$52*(1+$I$7) -> 0.688426056 | J15: ='Capital Contributions'!J13*Escalation!J$52*(1+$I$7) -> 0.6874766045 | K15: ='Capital Contributions'!K13*Escalation!K$52*(1+$I$7) -> 0.686611708 | L15: ='Capital Contributions'!L13*Escalation!L$52*(1+$I$7) -> 0.6878035808 | M15: ='Capital Contributions'!M13*Escalation!M$52*(1+$I$7) -> 0.689988148 | N15: ='Capital Contributions'!N13*Escalation!N$52*(1+$I$7) -> 0.6923914769 | P15: 3.444271518
C16: 7 | D16: Protection | E16: Dollars | F16: Real $2019 | G16: End_Year | H16: ='Capital Contributions'!H14*Escalation!H$52*(1+$I$7) -> 0 | I16: ='Capital Contributions'!I14*Escalation!I$52*(1+$I$7) -> 0 | J16: ='Capital Contributions'!J14*Escalation!J$52*(1+$I$7) -> 0 | K16: ='Capital Contributions'!K14*Escalation!K$52*(1+$I$7) -> 0 | L16: ='Capital Contributions'!L14*Escalation!L$52*(1+$I$7) -> 0 | M16: ='Capital Contributions'!M14*Escalation!M$52*(1+$I$7) -> 0 | N16: ='Capital Contributions'!N14*Escalation!N$52*(1+$I$7) -> 0 | P16: 0
C17: 8 | D17: SCADA | E17: Dollars | F17: Real $2019 | G17: End_Year | H17: ='Capital Contributions'!H15*Escalation!H$52*(1+$I$7) -> 0 | I17: ='Capital Contributions'!I15*Escalation!I$52*(1+$I$7) -> 0 | J17: ='Capital Contributions'!J15*Escalation!J$52*(1+$I$7) -> 0 | K17: ='Capital Contributions'!K15*Escalation!K$52*(1+$I$7) -> 0 | L17: ='Capital Contributions'!L15*Escalation!L$52*(1+$I$7) -> 0 | M17: ='Capital Contributions'!M15*Escalation!M$52*(1+$I$7) -> 0 | N17: ='Capital Contributions'!N15*Escalation!N$52*(1+$I$7) -> 0 | P17: 0
C18: 9 | D18: Communications | E18: Dollars | F18: Real $2019 | G18: End_Year | H18: ='Capital Contributions'!H16*Escalation!H$52*(1+$I$7) -> 0 | I18: ='Capital Contributions'!I16*Escalation!I$52*(1+$I$7) -> 0 | J18: ='Capital Contributions'!J16*Escalation!J$52*(1+$I$7) -> 0 | K18: ='Capital Contributions'!K16*Escalation!K$52*(1+$I$7) -> 0 | L18: ='Capital Contributions'!L16*Escalation!L$52*(1+$I$7) -> 0 | M18: ='Capital Contributions'!M16*Escalation!M$52*(1+$I$7) -> 0 | N18: ='Capital Contributions'!N16*Escalation!N$52*(1+$I$7) -> 0 | P18: 0
C19: 10 | D19: Land and Easements | E19: Dollars | F19: Real $2019 | G19: End_Year | H19: ='Capital Contributions'!H17*Escalation!H$52*(1+$I$7) -> 0 | I19: ='Capital Contributions'!I17*Escalation!I$52*(1+$I$7) -> 0 | J19: ='Capital Contributions'!J17*Escalation!J$52*(1+$I$7) -> 0 | K19: ='Capital Contributions'!K17*Escalation!K$52*(1+$I$7) -> 0 | L19: ='Capital Contributions'!L17*Escalation!L$52*(1+$I$7) -> 0 | M19: ='Capital Contributions'!M17*Escalation!M$52*(1+$I$7) -> 0 | N19: ='Capital Contributions'!N17*Escalation!N$52*(1+$I$7) -> 0 | P19: 0
C20: 11 | D20: Property | E20: Dollars | F20: Real $2019 | G20: End_Year | H20: ='Capital Contributions'!H18*Escalation!H$52*(1+$I$7) -> 0 | I20: ='Capital Contributions'!I18*Escalation!I$52*(1+$I$7) -> 0 | J20: ='Capital Contributions'!J18*Escalation!J$52*(1+$I$7) -> 0 | K20: ='Capital Contributions'!K18*Escalation!K$52*(1+$I$7) -> 0 | L20: ='Capital Contributions'!L18*Escalation!L$52*(1+$I$7) -> 0 | M20: ='Capital Contributions'!M18*Escalation!M$52*(1+$I$7) -> 0 | N20: ='Capital Contributions'!N18*Escalation!N$52*(1+$I$7) -> 0 | P20: 0
C21: 12 | D21: IT and Communications | E21: Dollars | F21: Real $2019 | G21: End_Year | H21: ='Capital Contributions'!H19*Escalation!H$52*(1+$I$7) -> 0 | I21: ='Capital Contributions'!I19*Escalation!I$52*(1+$I$7) -> 0 | J21: ='Capital Contributions'!J19*Escalation!J$52*(1+$I$7) -> 0 | K21: ='Capital Contributions'!K19*Escalation!K$52*(1+$I$7) -> 0 | L21: ='Capital Contributions'!L19*Escalation!L$52*(1+$I$7) -> 0 | M21: ='Capital Contributions'!M19*Escalation!M$52*(1+$I$7) -> 0 | N21: ='Capital Contributions'!N19*Escalation!N$52*(1+$I$7) -> 0 | P21: 0
C22: 13 | D22: Motor Vehicles | E22: Dollars | F22: Real $2019 | G22: End_Year | H22: ='Capital Contributions'!H20*Escalation!H$52*(1+$I$7) -> 0 | I22: ='Capital Contributions'!I20*Escalation!I$52*(1+$I$7) -> 0 | J22: ='Capital Contributions'!J20*Escalation!J$52*(1+$I$7) -> 0 | K22: ='Capital Contributions'!K20*Escalation!K$52*(1+$I$7) -> 0 | L22: ='Capital Contributions'!L20*Escalation!L$52*(1+$I$7) -> 0 | M22: ='Capital Contributions'!M20*Escalation!M$52*(1+$I$7) -> 0 | N22: ='Capital Contributions'!N20*Escalation!N$52*(1+$I$7) -> 0 | P22: 0
C23: 14 | D23: Plant and Equipment | E23: Dollars | F23: Real $2019 | G23: End_Year | H23: ='Capital Contributions'!H21*Escalation!H$52*(1+$I$7) -> 0 | I23: ='Capital Contributions'!I21*Escalation!I$52*(1+$I$7) -> 0 | J23: ='Capital Contributions'!J21*Escalation!J$52*(1+$I$7) -> 0 | K23: ='Capital Contributions'!K21*Escalation!K$52*(1+$I$7) -> 0 | L23: ='Capital Contributions'!L21*Escalation!L$52*(1+$I$7) -> 0 | M23: ='Capital Contributions'!M21*Escalation!M$52*(1+$I$7) -> 0 | N23: ='Capital Contributions'!N21*Escalation!N$52*(1+$I$7) -> 0 | P23: 0
C24: 15 | D24: Property Leases | E24: Dollars | F24: Real $2019 | G24: End_Year | H24: ='Capital Contributions'!H22*Escalation!H$52*(1+$I$7) -> 0 | I24: ='Capital Contributions'!I22*Escalation!I$52*(1+$I$7) -> 0 | J24: ='Capital Contributions'!J22*Escalation!J$52*(1+$I$7) -> 0 | K24: ='Capital Contributions'!K22*Escalation!K$52*(1+$I$7) -> 0 | L24: ='Capital Contributions'!L22*Escalation!L$52*(1+$I$7) -> 0 | M24: ='Capital Contributions'!M22*Escalation!M$52*(1+$I$7) -> 0 | N24: ='Capital Contributions'!N22*Escalation!N$52*(1+$I$7) -> 0 | P24: =SUM(J24:N24) -> 0
C25: 16 | D25: Fleet Leases | E25: Dollars | F25: Real $2019 | G25: End_Year | H25: ='Capital Contributions'!H23*Escalation!H$52*(1+$I$7) -> 0 | I25: ='Capital Contributions'!I23*Escalation!I$52*(1+$I$7) -> 0 | J25: ='Capital Contributions'!J23*Escalation!J$52*(1+$I$7) -> 0 | K25: ='Capital Contributions'!K23*Escalation!K$52*(1+$I$7) -> 0 | L25: ='Capital Contributions'!L23*Escalation!L$52*(1+$I$7) -> 0 | M25: ='Capital Contributions'!M23*Escalation!M$52*(1+$I$7) -> 0 | N25: ='Capital Contributions'!N23*Escalation!N$52*(1+$I$7) -> 0 | P25: 0
D27: Total | E27: =E10 -> Dollars | F27: Real $2019 | G27: End_Year | H27: =SUM(H10:H25) -> 9.522619997 | I27: =SUM(I10:I25) -> 9.655482324 | J27: 9.841481931 | K27: 9.958336748 | L27: 9.993371799 | M27: 9.599887308 | N27: 9.63752911 | P27: 49.0306069
D29: Check - Value | E29: Dollars | F29: Real $2019 | G29: End_Year | H29: ='Capital Contributions'!H25*Escalation!H$52*(1+$I$7) -> 9.522619997 | I29: ='Capital Contributions'!I25*Escalation!I$52*(1+$I$7) -> 9.655482324 | J29: ='Capital Contributions'!J25*Escalation!J$52*(1+$I$7) -> 9.841481931 | K29: ='Capital Contributions'!K25*Escalation!K$52*(1+$I$7) -> 9.958336748 | L29: ='Capital Contributions'!L25*Escalation!L$52*(1+$I$7) -> 9.993371799 | M29: ='Capital Contributions'!M25*Escalation!M$52*(1+$I$7) -> 9.599887308 | N29: ='Capital Contributions'!N25*Escalation!N$52*(1+$I$7) -> 9.63752911 | P29: =SUM(J29:N29) -> 49.0306069
A30: =IF(SUM($H30:$P30)>0,1,0) -> 0 | D30: Check - Flag | H30: =IF(ROUND(H27-H29,4)=0,0,1) -> 0 | I30: =IF(ROUND(I27-I29,4)=0,0,1) -> 0 | J30: 0 | K30: 0 | L30: 0 | M30: 0 | N30: 0 | P30: 0
B32: End

Sheet Augex
A1: =IF(SUM($A2:$A32)>0,1,0) -> 0 | B1: Augmentation Expenditure
B3: Direct Capex Forecasts
C5: Direct Costs (Excluding Capitalised Overheads and Cost Escalation)
C7: Ref. | D7: Regulatory Asset Class | E7: Unit | F7: Basis | G7: Timing | H7: RY18 | I7: RY19 | J7: RY20 | K7: RY21 | L7: RY22 | M7: RY23 | N7: RY24 | P7: Total FY20 to FY24
C8: =N(C7)+1 -> 1 | D8: ='SCS total'!$D$10 -> Substations | E8: Dollars | F8: Real $2018 | G8: End_Year | H8: 4.484136682 | I8: 1.999999 | J8: 2.1 | K8: 0.5 | L8: 0.7 | M8: 1.85 | N8: 4.968888889 | P8: 10.11888889
C9: =N(C8)+1 -> 2 | D9: ='SCS total'!$D$11 -> Distribution Lines | E9: Dollars | F9: Real $2018 | G9: End_Year | H9: 0.44487 | I9: 0.92003 | J9: 1.5 | K9: 1.5 | L9: 1.5 | M9: 1.5 | N9: 1.5 | P9: 7.5
C10: 3 | D10: ='SCS total'!$D$12 -> Transmission Lines | E10: Dollars | F10: Real $2018 | G10: End_Year | H10: 7.560934579 | I10: 0 | J10: 0.8 | K10: 0.8 | L10: 0.8 | M10: 0.8 | N10: 0.8 | P10: 4
C11: 4 | D11: ='SCS total'!$D$13 -> LV Services | E11: Dollars | F11: Real $2018 | G11: End_Year | H11: 0 | I11: 0 | J11: 0 | K11: 0 | L11: 0 | M11: 0 | N11: 0 | P11: 0
C12: 5 | D12: ='SCS total'!$D$14 -> Distribution Substations | E12: Dollars | F12: Real $2018 | G12: End_Year | H12: 0 | I12: 0 | J12: 0.3 | K12: 0.3 | L12: 0.3 | M12: 0.3 | N12: 0.3 | P12: 1.5
C13: 6 | D13: ='SCS total'!$D$15 -> Distribution Switchgear | E13: Dollars | F13: Real $2018 | G13: End_Year | H13: 0.546345 | I13: 0.44897 | J13: 1.69427142 | K13: 1.680862375 | L13: 1.53263569 | M13: 1.493971843 | N13: 1.469706384 | P13: 7.871447712
C14: 7 | D14: ='SCS total'!$D$16 -> Protection | E14: Dollars | F14: Real $2018 | G14: End_Year | H14: 0.08823225 | I14: 0 | J14: 0 | K14: 0 | L14: 0.1 | M14: 0 | N14: 0.5661538462 | P14: 0.6661538462
C15: 8 | D15: ='SCS total'!$D$17 -> SCADA | E15: Dollars | F15: Real $2018 | G15: End_Year | H15: 0 | I15: 0 | J15: 0 | K15: 0 | L15: 0.05 | M15: 0 | N15: 0.2324786325 | P15: 0.2824786325
C16: 9 | D16: ='SCS total'!$D$18 -> Communications | E16: Dollars | F16: Real $2018 | G16: End_Year | H16: 1.014534 | I16: 0.548968 | J16: 0.53 | K16: 0.53 | L16: 0.58 | M16: 0.53 | N16: 0.7624786325 | P16: 2.932478632
C17: 10 | D17: ='SCS total'!$D$19 -> Land and Easements | E17: Dollars | F17: Real $2018 | G17: End_Year | H17: 0 | I17: 0 | J17: 0 | K17: 0 | L17: 0 | M17: 0 | N17: 0 | P17: 0
C18: 11 | D18: ='SCS total'!$D$20 -> Property | E18: Dollars | F18: Real $2018 | G18: End_Year | H18: 0 | I18: 0 | J18: 0 | K18: 0 | L18: 0 | M18: 0 | N18: 0 | P18: 0
C19: 12 | D19: ='SCS total'!$D$21 -> IT and Communications | E19: Dollars | F19: Real $2018 | G19: End_Year | H19: 0 | I19: 0 | J19: 0 | K19: 0 | L19: 0 | M19: 0 | N19: 0 | P19: 0
C20: 13 | D20: ='SCS total'!$D$22 -> Motor Vehicles | E20: Dollars | F20: Real $2018 | G20: End_Year | H20: 0 | I20: 0 | J20: 0 | K20: 0 | L20: 0 | M20: 0 | N20: 0 | P20: 0
C21: 14 | D21: ='SCS total'!$D$23 -> Plant and Equipment | E21: Dollars | F21: Real $2018 | G21: End_Year | H21: 0 | I21: 0 | J21: 0 | K21: 0 | L21: 0 | M21: 0 | N21: 0 | P21: 0
C22: 15 | D22: ='SCS total'!$D$24 -> Property Leases | E22: Dollars | F22: Real $2018 | G22: End_Year | H22: 0 | I22: 0 | J22: 0 | K22: 0 | L22: 0 | M22: 0 | N22: 0 | P22: 0
C23: 16 | D23: ='SCS total'!$D$25 -> Fleet Leases | E23: Dollars | F23: Real $2018 | G23: End_Year | H23: 0 | I23: 0 | J23: 0 | K23: 0 | L23: 0 | M23: 0 | N23: 0 | P23: 0
D25: Total | E25: =E8 -> Dollars | F25: Real $2018 | G25: End_Year | H25: 14.13905251 | I25: 3.917967 | J25: 6.92427142 | K25: 5.310862375 | L25: 5.56263569 | M25: 6.473971843 | N25: 10.59970638 | P25: 34.87144771
D27: Check - Value | E27: Dollars | F27: Real $2018 | G27: End_Year | H27: 14.13905251 | I27: 3.917967 | J27: 6.92427142 | K27: 5.310862375 | L27: 5.56263569 | M27: 6.473971843 | N27: 10.59970638 | P27: 34.87144771
A28: =IF(SUM($H28:$P28)>0,1,0) -> 0 | D28: Check - Flag | H28: =IF(ROUND(H25-H27,4)=0,0,1) -> 0 | I28: =IF(ROUND(I25-I27,4)=0,0,1) -> 0 | J28: 0 | K28: 0 | L28: 0 | M28: 0 | N28: 0 | P28: 0
B30: End

Sheet Repex
A1: =IF(SUM($A2:$A32)>0,1,0) -> 0 | B1: Replacement Expenditure
B3: Direct Capex Forecasts
C5: Direct Costs (Excluding Capitalised Overheads and Cost Escalation)
C7: Ref. | D7: Regulatory Asset Class | E7: Unit | F7: Basis | G7: Timing | H7: RY18 | I7: RY19 | J7: RY20 | K7: RY21 | L7: RY22 | M7: RY23 | N7: RY24 | P7: Total FY20 to FY24
C8: =N(C7)+1 -> 1 | D8: ='SCS total'!$D$10 -> Substations | E8: Dollars | F8: Real $2018 | G8: End_Year | H8: 3.420605065 | I8: 10.862067 | J8: 5.835867543 | K8: 6.753867543 | L8: 4.53 | M8: 1.867 | N8: 0.15 | P8: 19.13673509
C9: =N(C8)+1 -> 2 | D9: ='SCS total'!$D$11 -> Distribution Lines | E9: Dollars | F9: Real $2018 | G9: End_Year | H9: 5.367195885 | I9: 7.667088535 | J9: 10.22266617 | K9: 12.39236818 | L9: 8.397164443 | M9: 6.198346481 | N9: 7.022100788 | P9: 44.23264605
C10: 3 | D10: ='SCS total'!$D$12 -> Transmission Lines | E10: Dollars | F10: Real $2018 | G10: End_Year | H10: 0.7895 | I10: 0.23 | J10: 1.65 | K10: 1.468 | L10: 1.468 | M10: 1.468 | N10: 1.439 | P10: 7.493
C11: 4 | D11: ='SCS total'!$D$13 -> LV Services | E11: Dollars | F11: Real $2018 | G11: End_Year | H11: 0.02095946883 | I11: 0.05879562188 | J11: 0.076 | K11: 0.076 | L11: 0.076 | M11: 0.076 | N11: 0.076 | P11: 0.38
C12: 5 | D12: ='SCS total'!$D$14 -> Distribution Substations | E12: Dollars | F12: Real $2018 | G12: End_Year | H12: 1.815058236 | I12: 3.617548905 | J12: 2.921 | K12: 3.164 | L12: 3.392 | M12: 3.568 | N12: 3.644 | P12: 16.689
C13: 6 | D13: ='SCS total'!$D$15 -> Distribution Switchgear | E13: Dollars | F13: Real $2018 | G13: End_Year | H13: 3.847927437 | I13: 2.879258424 | J13: 2.162 | K13: 2.225 | L13: 2.293 | M13: 2.363 | N13: 2.433 | P13: 11.476
C14: 7 | D14: ='SCS total'!$D$16 -> Protection | E14: Dollars | F14: Real $2018 | G14: End_Year | H14: 0.890522 | I14: 2.449417 | J14: 2.783559151 | K14: 3.120559151 | L14: 1.17 | M14: 1.079 | N14: 0.76 | P14: 8.913118301
C15: 8 | D15: ='SCS total'!$D$17 -> SCADA | E15: Dollars | F15: Real $2018 | G15: End_Year | H15: 0.466564 | I15: 1.157052 | J15: 0.7317866532 | K15: 0.9577866532 | L15: 0.552 | M15: 0.291 | N15: 0.173 | P15: 2.705573306
C16: 9 | D16: ='SCS total'!$D$18 -> Communications | E16: Dollars | F16: Real $2018 | G16: End_Year | H16: 4.130241 | I16: 1.236729 | J16: 1.681786653 | K16: 1.844786653 | L16: 1.418 | M16: 1.037 | N16: 0.671 | P16: 6.652573306
C17: 10 | D17: ='SCS total'!$D$19 -> Land and Easements | E17: Dollars | F17: Real $2018 | G17: End_Year | H17: 0 | I17: 0 | J17: 0 | K17: 0 | L17: 0 | M17: 0 | N17: 0 | P17: 0
C18: 11 | D18: ='SCS total'!$D$20 -> Property | E18: Dollars | F18: Real $2018 | G18: End_Year | H18: 0 | I18: 0 | J18: 0.0245 | K18: 0.13565 | L18: 0.1642 | M18: 0.0421 | N18: 0.02595 | P18: 0.3924
C19: 12 | D19: ='SCS total'!$D$21 -> IT and Communications | E19: Dollars | F19: Real $2018 | G19: End_Year | H19: 0 | I19: 0 | J19: 0 | K19: 0.6 | L19: 5.9 | M19: 0.8 | N19: 0 | P19: 7.3
C20: 13 | D20: ='SCS total'!$D$22 -> Motor Vehicles | E20: Dollars | F20: Real $2018 | G20: End_Year | H20: 0 | I20: 0 | J20: 0 | K20: 0 | L20: 0 | M20: 0 | N20: 0 | P20: 0
C21: 14 | D21: ='SCS total'!$D$23 -> Plant and Equipment | E21: Dollars | F21: Real $2018 | G21: End_Year | H21: 0 | I21: 0 | J21: 0 | K21: 0 | L21: 0 | M21: 0 | N21: 0 | P21: 0
C22: 15 | D22: ='SCS total'!$D$24 -> Property Leases | E22: Dollars | F22: Real $2018 | G22: End_Year | H22: 0 | I22: 0 | J22: 0 | K22: 0 | L22: 0 | M22: 0 | N22: 0 | P22: 0
C23: 16 | D23: ='SCS total'!$D$25 -> Fleet Leases | E23: Dollars | F23: Real $2018 | G23: End_Year | H23: 0 | I23: 0 | J23: 0 | K23: 0 | L23: 0 | M23: 0 | N23: 0 | P23: 0
D25: Total | E25: =E8 -> Dollars | F25: Real $2018 | G25: End_Year | H25: 20.74857309 | I25: 30.15795649 | J25: 28.08916617 | K25: 32.73801818 | L25: 29.36036444 | M25: 18.78944648 | N25: 16.39405079 | P25: 125.3710461
D27: Check - Value | E27: Dollars | F27: Real $2018 | G27: End_Year | H27: 20.74857309 | I27: 30.15795649 | J27: 28.08916617 | K27: 32.73801818 | L27: 29.36036444 | M27: 18.78944648 | N27: 16.39405079 | P27: 125.3710461
A28: =IF(SUM($H28:$P28)>0,1,0) -> 0 | D28: Check - Flag | H28: =IF(ROUND(H25-H27,4)=0,0,1) -> 0 | I28: =IF(ROUND(I25-I27,4)=0,0,1) -> 0 | J28: =IF(ROUND(J25-J27,4)=0,0,1) -> 0 | K28: 0 | L28: 0 | M28: 0 | N28: 0 | P28: 0
B30: End

Sheet Connections
B1: Connection Capital Expenditure
B3: Direct Capex Forecasts
C5: Direct Costs (Excluding Capitalised Overheads and Cost Escalation)
C7: Ref. | D7: Regulatory Asset Class | E7: Unit | F7: Basis | G7: Timing | H7: RY18 | I7: RY19 | J7: RY20 | K7: RY21 | L7: RY22 | M7: RY23 | N7: RY24 | P7: Total FY20 to FY24
C8: =N(C7)+1 -> 1 | D8: ='SCS total'!$D$10 -> Substations | E8: Dollars | F8: Real $2018 | G8: End_Year | H8: 0 | I8: 0 | J8: 0 | K8: 0 | L8: 0 | M8: 0 | N8: 0 | P8: 0
C9: =N(C8)+1 -> 2 | D9: ='SCS total'!$D$11 -> Distribution Lines | E9: Dollars | F9: Real $2018 | G9: End_Year | H9: 7.138230837 | I9: 7.420555508 | J9: 8.026443286 | K9: 8.419794514 | L9: 8.473721699 | M9: 7.185813646 | N9: 7.198502396 | P9: 39.30427554
C10: 3 | D10: ='SCS total'!$D$12 -> Transmission Lines | E10: Dollars | F10: Real $2018 | G10: End_Year | H10: 0 | I10: 0 | J10: 0 | K10: 0 | L10: 0 | M10: 0 | N10: 0 | P10: 0
C11: 4 | D11: ='SCS total'!$D$13 -> LV Services | E11: Dollars | F11: Real $2018 | G11: End_Year | H11: 0.7084076079 | I11: 0.8778922238 | J11: 1.241617635 | K11: 1.477753505 | L11: 1.510126971 | M11: 0.7369724308 | N11: 0.7445897169 | P11: 5.711060258
C12: 5 | D12: ='SCS total'!$D$14 -> Distribution Substations | E12: Dollars | F12: Real $2018 | G12: End_Year | H12: 2.286146094 | I12: 2.286146094 | J12: 2.286146094 | K12: 2.286146094 | L12: 2.286146094 | M12: 2.286146094 | N12: 2.286146094 | P12: 11.43073047
C13: 6 | D13: ='SCS total'!$D$15 -> Distribution Switchgear | E13: Dollars | F13: Real $2018 | G13: End_Year | H13: 0.6688736422 | I13: 0.6688736422 | J13: 0.6688736422 | K13: 0.6688736422 | L13: 0.6688736422 | M13: 0.6688736422 | N13: 0.6688736422 | P13: 3.344368211
C14: 7 | D14: ='SCS total'!$D$16 -> Protection | E14: Dollars | F14: Real $2018 | G14: End_Year | H14: 0 | I14: 0 | J14: 0 | K14: 0 | L14: 0 | M14: 0 | N14: 0 | P14: 0
C15: 8 | D15: ='SCS total'!$D$17 -> SCADA | E15: Dollars | F15: Real $2018 | G15: End_Year | H15: 0 | I15: 0 | J15: 0 | K15: 0 | L15: 0 | M15: 0 | N15: 0 | P15: 0
C16: 9 | D16: ='SCS total'!$D$18 -> Communications | E16: Dollars | F16: Real $2018 | G16: End_Year | H16: 0 | I16: 0 | J16: 0 | K16: 0 | L16: 0 | M16: 0 | N16: 0 | P16: 0
C17: 10 | D17: ='SCS total'!$D$19 -> Land and Easements | E17: Dollars | F17: Real $2018 | G17: End_Year | H17: 0 | I17: 0 | J17: 0 | K17: 0 | L17: 0 | M17: 0 | N17: 0 | P17: 0
C18: 11 | D18: ='SCS total'!$D$20 -> Property | E18: Dollars | F18: Real $2018 | G18: End_Year | H18: 0 | I18: 0 | J18: 0 | K18: 0 | L18: 0 | M18: 0 | N18: 0 | P18: 0
C19: 12 | D19: ='SCS total'!$D$21 -> IT and Communications | E19: Dollars | F19: Real $2018 | G19: End_Year | H19: 0 | I19: 0 | J19: 0 | K19: 0 | L19: 0 | M19: 0 | N19: 0 | P19: 0
C20: 13 | D20: ='SCS total'!$D$22 -> Motor Vehicles | E20: Dollars | F20: Real $2018 | G20: End_Year | H20: 0 | I20: 0 | J20: 0 | K20: 0 | L20: 0 | M20: 0 | N20: 0 | P20: 0
C21: 14 | D21: ='SCS total'!$D$23 -> Plant and Equipment | E21: Dollars | F21: Real $2018 | G21: End_Year | H21: 0 | I21: 0 | J21: 0 | K21: 0 | L21: 0 | M21: 0 | N21: 0 | P21: 0
C22: 15 | D22: ='SCS total'!$D$24 -> Property Leases | E22: Dollars | F22: Real $2018 | G22: End_Year | H22: 0 | I22: 0 | J22: 0 | K22: 0 | L22: 0 | M22: 0 | N22: 0 | P22: 0
C23: 16 | D23: ='SCS total'!$D$25 -> Fleet Leases | E23: Dollars | F23: Real $2018 | G23: End_Year | H23: 0 | I23: 0 | J23: 0 | K23: 0 | L23: 0 | M23: 0 | N23: 0 | P23: 0
D25: Total | E25: =E8 -> Dollars | F25: Real $2018 | G25: End_Year | H25: 10.80165818 | I25: 11.25346747 | J25: 12.22308066 | K25: 12.85256776 | L25: 12.93886841 | M25: 10.87780581 | N25: 10.89811185 | P25: 59.79043448
B27: End

Sheet Non-Network
A1: =IF(SUM($A2:$A35)>0,1,0) -> 0 | B1: Non-Network Capital Expenditure
B3: Direct Capex Forecasts
C5: Direct Costs (Excluding Capitalised Overheads and Cost Escalation)
C7: Ref. | D7: Regulatory Asset Class | E7: Unit | F7: Basis | G7: Timing | H7: RY18 | I7: RY19 | J7: RY20 | K7: RY21 | L7: RY22 | M7: RY23 | N7: RY24 | P7: Total FY20 to FY24
C8: =N(C7)+1 -> 1 | D8: ='SCS total'!$D$10 -> Substations | E8: Dollars | F8: Real $2018 | G8: End_Year | H8: 0 | I8: 0 | J8: 0 | K8: 0 | L8: 0 | M8: 0 | N8: 0 | P8: 0
C9: =N(C8)+1 -> 2 | D9: ='SCS total'!$D$11 -> Distribution Lines | E9: Dollars | F9: Real $2018 | G9: End_Year | H9: 0 | I9: 0 | J9: 0 | K9: 0 | L9: 0 | M9: 0 | N9: 0 | P9: 0
C10: 3 | D10: ='SCS total'!$D$12 -> Transmission Lines | E10: Dollars | F10: Real $2018 | G10: End_Year | H10: 0 | I10: 0 | J10: 0 | K10: 0 | L10: 0 | M10: 0 | N10: 0 | P10: 0
C11: 4 | D11: ='SCS total'!$D$13 -> LV Services | E11: Dollars | F11: Real $2018 | G11: End_Year | H11: 0 | I11: 0 | J11: 0 | K11: 0 | L11: 0 | M11: 0 | N11: 0 | P11: 0
C12: 5 | D12: ='SCS total'!$D$14 -> Distribution Substations | E12: Dollars | F12: Real $2018 | G12: End_Year | H12: 0 | I12: 0 | J12: 0 | K12: 0 | L12: 0 | M12: 0 | N12: 0 | P12: 0
C13: 6 | D13: ='SCS total'!$D$15 -> Distribution Switchgear | E13: Dollars | F13: Real $2018 | G13: End_Year | H13: 0 | I13: 0 | J13: 0 | K13: 0 | L13: 0 | M13: 0 | N13: 0 | P13: 0
C14: 7 | D14: ='SCS total'!$D$16 -> Protection | E14: Dollars | F14: Real $2018 | G14: End_Year | H14: 0 | I14: 0 | J14: 0 | K14: 0 | L14: 0 | M14: 0 | N14: 0 | P14: 0
C15: 8 | D15: ='SCS total'!$D$17 -> SCADA | E15: Dollars | F15: Real $2018 | G15: End_Year | H15: 0 | I15: 0 | J15: 0 | K15: 0 | L15: 0 | M15: 0 | N15: 0 | P15: 0
C16: 9 | D16: ='SCS total'!$D$18 -> Communications | E16: Dollars | F16: Real $2018 | G16: End_Year | H16: 0 | I16: 0 | J16: 0 | K16: 0 | L16: 0 | M16: 0 | N16: 0 | P16: 0
C17: 10 | D17: ='SCS total'!$D$19 -> Land and Easements | E17: Dollars | F17: Real $2018 | G17: End_Year | H17: 0 | I17: 0 | J17: 0 | K17: 0 | L17: 0 | M17: 0 | N17: 0 | P17: 0
C18: 11 | D18: ='SCS total'!$D$20 -> Property | E18: Dollars | F18: Real $2018 | G18: End_Year | H18: 0 | I18: 0 | J18: 0.681 | K18: 0.681 | L18: 0.681 | M18: 0.681 | N18: 0.681 | P18: 3.405
C19: 12 | D19: ='SCS total'!$D$21 -> IT and Communications | E19: Dollars | F19: Real $2018 | G19: End_Year | H19: 0 | I19: 0 | J19: 0 | K19: 0 | L19: 0 | M19: 0 | N19: 0 | P19: 0
C20: 13 | D20: ='SCS total'!$D$22 -> Motor Vehicles | E20: Dollars | F20: Real $2018 | G20: End_Year | H20: 0 | I20: 0 | J20: 0 | K20: 0 | L20: 0 | M20: 0 | N20: 0 | P20: 0
C21: 14 | D21: ='SCS total'!$D$23 -> Plant and Equipment | E21: Dollars | F21: Real $2018 | G21: End_Year | H21: 0.544 | I21: 0.544 | J21: 1.019 | K21: 1.019 | L21: 1.019 | M21: 1.019 | N21: 1.019 | P21: 5.095
C22: 15 | D22: ='SCS total'!$D$24 -> Property Leases | E22: Dollars | F22: Real $2018 | G22: End_Year | H22: 0 | I22: 0 | J22: 4.290107807 | K22: 0.05433860166 | L22: 14.77654315 | M22: 0.05433860166 | N22: 0.5026608524 | P22: 19.67798901
C23: 16 | D23: ='SCS total'!$D$25 -> Fleet Leases | E23: Dollars | F23: Real $2018 | G23: End_Year | H23: 0 | I23: 0 | J23: 12.96308284 | K23: 3.29215004 | L23: 2.888494639 | M23: 3.2468793 | N23: 2.644543207 | P23: 25.03515002
D25: Total | E25: =E8 -> Dollars | F25: Real $2018 | G25: End_Year | H25: 0.544 | I25: 0.544 | J25: 18.95319064 | K25: 5.046488641 | L25: 19.36503779 | M25: 5.001217901 | N25: 4.847204059 | P25: 53.21313903
D27: Check - Value | E27: Dollars | F27: Real $2018 | G27: End_Year | H27: 0.544 | I27: 0.544 | J27: 18.95319064 | K27: 5.046488641 | L27: 19.36503779 | M27: 5.001217901 | N27: 4.847204059 | P27: 53.21313903
A28: =IF(SUM($H28:$P28)>0,1,0) -> 0 | D28: Check - Flag | H28: =IF(ROUND(H25-H27,4)=0,0,1) -> 0 | I28: =IF(ROUND(I25-I27,4)=0,0,1) -> 0 | J28: 0 | K28: 0 | L28: 0 | M28: 0 | N28: 0 | P28: 0
B30: End

Sheet IT
A1: =IF(SUM($A2:$A32)>0,1,0) -> 0 | B1: Information Technology Capital Expenditure
B3: Direct Capex Forecasts
C5: Direct Costs (Excluding Capitalised Overheads and Cost Escalation)
C7: Ref. | D7: Regulatory Asset Class | E7: Unit | F7: Basis | G7: Timing | H7: RY18 | I7: RY19 | J7: RY20 | K7: RY21 | L7: RY22 | M7: RY23 | N7: RY24 | P7: Total FY20 to FY24
C8: =N(C7)+1 -> 1 | D8: ='SCS total'!$D$10 -> Substations | E8: Dollars | F8: Real $2018 | G8: End_Year | H8: 0 | I8: 0 | J8: 0 | K8: 0 | L8: 0 | M8: 0 | N8: 0 | P8: 0
C9: =N(C8)+1 -> 2 | D9: ='SCS total'!$D$11 -> Distribution Lines | E9: Dollars | F9: Real $2018 | G9: End_Year | H9: 0 | I9: 0 | J9: 0 | K9: 0 | L9: 0 | M9: 0 | N9: 0 | P9: 0
C10: 3 | D10: ='SCS total'!$D$12 -> Transmission Lines | E10: Dollars | F10: Real $2018 | G10: End_Year | H10: 0 | I10: 0 | J10: 0 | K10: 0 | L10: 0 | M10: 0 | N10: 0 | P10: 0
C11: 4 | D11: ='SCS total'!$D$13 -> LV Services | E11: Dollars | F11: Real $2018 | G11: End_Year | H11: 0 | I11: 0 | J11: 0 | K11: 0 | L11: 0 | M11: 0 | N11: 0 | P11: 0
C12: 5 | D12: ='SCS total'!$D$14 -> Distribution Substations | E12: Dollars | F12: Real $2018 | G12: End_Year | H12: 0 | I12: 0 | J12: 0 | K12: 0 | L12: 0 | M12: 0 | N12: 0 | P12: 0
C13: 6 | D13: ='SCS total'!$D$15 -> Distribution Switchgear | E13: Dollars | F13: Real $2018 | G13: End_Year | H13: 0 | I13: 0 | J13: 0 | K13: 0 | L13: 0 | M13: 0 | N13: 0 | P13: 0
C14: 7 | D14: ='SCS total'!$D$16 -> Protection | E14: Dollars | F14: Real $2018 | G14: End_Year | H14: 0 | I14: 0 | J14: 0 | K14: 0 | L14: 0 | M14: 0 | N14: 0 | P14: 0
C15: 8 | D15: ='SCS total'!$D$17 -> SCADA | E15: Dollars | F15: Real $2018 | G15: End_Year | H15: 0 | I15: 0 | J15: 0 | K15: 0 | L15: 0 | M15: 0 | N15: 0 | P15: 0
C16: 9 | D16: ='SCS total'!$D$18 -> Communications | E16: Dollars | F16: Real $2018 | G16: End_Year | H16: 0 | I16: 0 | J16: 0 | K16: 0 | L16: 0 | M16: 0 | N16: 0 | P16: 0
C17: 10 | D17: ='SCS total'!$D$19 -> Land and Easements | E17: Dollars | F17: Real $2018 | G17: End_Year | H17: 0 | I17: 0 | J17: 0 | K17: 0 | L17: 0 | M17: 0 | N17: 0 | P17: 0
C18: 11 | D18: ='SCS total'!$D$20 -> Property | E18: Dollars | F18: Real $2018 | G18: End_Year | H18: 0 | I18: 0 | J18: 0 | K18: 0 | L18: 0 | M18: 0 | N18: 0 | P18: 0
C19: 12 | D19: ='SCS total'!$D$21 -> IT and Communications | E19: Dollars | F19: Real $2018 | G19: End_Year | H19: 4.486012245 | I19: 4.676094245 | J19: 5 | K19: 5 | L19: 5 | M19: 5 | N19: 5 | P19: 25
C20: 13 | D20: ='SCS total'!$D$22 -> Motor Vehicles | E20: Dollars | F20: Real $2018 | G20: End_Year | H20: 0 | I20: 0 | J20: 0 | K20: 0 | L20: 0 | M20: 0 | N20: 0 | P20: 0
C21: 14 | D21: ='SCS total'!$D$23 -> Plant and Equipment | E21: Dollars | F21: Real $2018 | G21: End_Year | H21: 0 | I21: 0 | J21: 0 | K21: 0 | L21: 0 | M21: 0 | N21: 0 | P21: 0
C22: 15 | D22: ='SCS total'!$D$24 -> Property Leases | E22: Dollars | F22: Real $2018 | G22: End_Year | H22: 0 | I22: 0 | J22: 0 | K22: 0 | L22: 0 | M22: 0 | N22: 0 | P22: 0
C23: 16 | D23: ='SCS total'!$D$25 -> Fleet Leases | E23: Dollars | F23: Real $2018 | G23: End_Year | H23: 0 | I23: 0 | J23: 0 | K23: 0 | L23: 0 | M23: 0 | N23: 0 | P23: 0
D25: Total | E25: =E8 -> Dollars | F25: Real $2018 | G25: End_Year | H25: 4.486012245 | I25: 4.676094245 | J25: 5 | K25: 5 | L25: 5 | M25: 5 | N25: 5 | P25: 25
D27: Check - Value | E27: Dollars | F27: Real $2018 | G27: End_Year | H27: 4.486012245 | I27: 4.676094245 | J27: 5 | K27: 5 | L27: 5 | M27: 5 | N27: 5 | P27: 25
A28: =IF(SUM($H28:$P28)>0,1,0) -> 0 | D28: Check - Flag | H28: =IF(ROUND(H25-H27,4)=0,0,1) -> 0 | I28: =IF(ROUND(I25-I27,4)=0,0,1) -> 0 | J28: 0 | K28: 0 | L28: 0 | M28: 0 | N28: 0 | P28: 0
B30: End

Sheet Escalation
B1: Escalation on Direct Capex Forecasts - SCS
B3: Escalation Forecasts
C5: Cost Escalation on Direct Costs
C7: Ref. | D7: Regulatory Asset Class | E7: Unit | F7: Basis | G7: Timing | H7: RY18 | I7: RY19 | J7: RY20 | K7: RY21 | L7: RY22 | M7: RY23 | N7: RY24 | P7: Total FY20 to FY24
C8: =N(C7)+1 -> 1 | D8: ='SCS total'!$D$10 -> Substations | E8: Dollars | F8: Real $2018 | G8: End_Year | H8: =H30*H$52-H30 -> 0.01887652329 | I8: =I30*I$52-I30 -> 0.08468018972 | J8: 0.04123058915 | K8: 0.02851395923 | L8: 0.02967273167 | M8: 0.03296136112 | N8: 0.06338088026 | P8: =SUM(J8:N8) -> 0.1957595214
C9: 2 | D9: ='SCS total'!$D$11 -> Distribution Lines | E9: Dollars | F9: Real $2018 | G9: End_Year | H9: =H31*H$52-H31 -> 0.03092530857 | I9: =I31*I$52-I31 -> 0.1053899797 | J9: 0.1026059739 | K9: 0.08770605385 | L9: 0.10422837 | M9: 0.1319887481 | N9: 0.1946488173 | P9: 0.6211779632
C10: 3 | D10: ='SCS total'!$D$12 -> Transmission Lines | E10: Dollars | F10: Real $2018 | G10: End_Year | H10: =H32*H$52-H32 -> 0.01994083778 | I10: 0.00151425468 | J10: 0.01272890996 | K10: 0.008915197191 | L10: 0.01286763966 | M10: 0.02011201695 | N10: 0.02772277226 | P10: 0.08234653603
C11: 4 | D11: ='SCS total'!$D$13 -> LV Services | E11: Dollars | F11: Real $2018 | G11: End_Year | H11: =H33*H$52-H33 -> 0.001741728579 | I11: 0.006166886756 | J11: 0.006845647446 | K11: 0.006107592099 | L11: 0.00899899044 | M11: 0.007209221918 | N11: 0.01016034919 | P11: 0.03932180109
C12: 5 | D12: ='SCS total'!$D$14 -> Distribution Substations | E12: Dollars | F12: Real $2018 | G12: End_Year | H12: =H34*H$52-H34 -> 0.009793675941 | I12: 0.03886825123 | J12: 0.02861223134 | K12: 0.02260303629 | L12: 0.03391738527 | M12: 0.05457332036 | N12: 0.07714020604 | P12: 0.2168461793
C13: 6 | D13: ='SCS total'!$D$15 -> Distribution Switchgear | E13: Dollars | F13: Real $2018 | G13: End_Year | H13: =H35*H$52-H35 -> 0.01209079284 | I13: 0.02631578483 | J13: 0.02351027104 | K13: 0.01798266036 | L13: 0.02549987943 | M13: 0.04013398639 | N13: 0.05660423043 | P13: 0.1637310277
C14: 7 | D14: ='SCS total'!$D$16 -> Protection | E14: Dollars | F14: Real $2018 | G14: End_Year | H14: =H36*H$52-H36 -> 0.002337265149 | I14: 0.01612626589 | J14: 0.01446190767 | K14: 0.01226649038 | L14: 0.007205424326 | M14: 0.009568283198 | N14: 0.01642012553 | P14: 0.0599222311
C15: 8 | D15: ='SCS total'!$D$17 -> SCADA | E15: Dollars | F15: Real $2018 | G15: End_Year | H15: =H37*H$52-H37 -> 0.001114154832 | I15: 0.007617701765 | J15: 0.00380197813 | K15: 0.003764928078 | L15: 0.003415484602 | M15: 0.002580510112 | N15: 0.005020541217 | P15: 0.01858344214
C16: 9 | D16: ='SCS total'!$D$18 -> Communications | E16: Dollars | F16: Real $2018 | G16: End_Year | H16: =H38*H$52-H38 -> 0.0122857227 | I16: 0.01175652191 | J16: 0.01149127884 | K16: 0.00933496089 | L16: 0.0113357778 | M16: 0.01389573658 | N16: 0.01774899583 | P16: 0.06380674994
C17: 10 | D17: ='SCS total'!$D$19 -> Land and Easements | E17: Dollars | F17: Real $2018 | G17: End_Year | H17: =H39*H$52-H39 -> 0 | I17: 0 | J17: 0 | K17: 0 | L17: 0 | M17: 0 | N17: 0 | P17: 0
C18: 11 | D18: ='SCS total'!$D$20 -> Property | E18: Dollars | F18: Real $2018 | G18: End_Year | H18: =H40*H$52-H40 -> 0 | I18: 0 | J18: 0.003665406521 | K18: 0.003210139235 | L18: 0.004795294992 | M18: 0.006412257257 | N18: 0.008753288901 | P18: 0.02683638691
C19: 12 | D19: ='SCS total'!$D$21 -> IT and Communications | E19: Dollars | F19: Real $2018 | G19: End_Year | H19: =H41*H$52-H41 -> 0.01071259724 | I19: 0.0307860765 | J19: 0.02597736727 | K19: 0.02201283257 | L19: 0.06184183083 | M19: 0.05143284759 | N19: 0.06190882595 | P19: 0.2231737042
C20: 13 | D20: ='SCS total'!$D$22 -> Motor Vehicles | E20: Dollars | F20: Real $2018 | G20: End_Year | H20: =H42*H$52-H42 -> 0 | I20: 0 | J20: 0 | K20: 0 | L20: 0 | M20: 0 | N20: 0 | P20: 0
C21: 14 | D21: ='SCS total'!$D$23 -> Plant and Equipment | E21: Dollars | F21: Real $2018 | G21: End_Year | H21: =H43*H$52-H43 -> 0.001299072 | I21: 0.003581541504 | J21: 0.005294187449 | K21: 0.004005549355 | L21: 0.005781360148 | M21: 0.009036219257 | N21: 0.01261701873 | P21: 0.03673433494
C22: 15 | D22: ='SCS total'!$D$24 -> Property Leases | E22: Dollars | F22: Real $2018 | G22: End_Year | H22: =H44*H$52-H44 -> 0 | I22: 0 | J22: 0.02228914122 | K22: 0.0002135975965 | L22: 0.08383564053 | M22: 0.0004818601754 | N22: 0.006223828645 | P22: =SUM(J22:N22) -> 0.1130440682
C23: 16 | D23: ='SCS total'!$D$25 -> Fleet Leases | E23: Dollars | F23: Real $2018 | G23: End_Year | H23: =H45*H$52-H45 -> 0 | I23: 0 | J23: 0.06734935274 | K23: 0.01294099065 | L23: 0.01638805475 | M23: 0.02879245658 | N23: 0.03274411302 | P23: 0.1582149677
D25: Total | E25: =E8 -> Dollars | F25: Real $2018 | G25: End_Year | H25: =SUM(H8:H23) -> 0.1211176789 | I25: =SUM(I8:I23) -> 0.3328034545 | J25: 0.3698642427 | K25: 0.2395779878 | L25: 0.4097838645 | M25: 0.4091788256 | N25: 0.5910939933 | P25: 2.019498914
B27: Workings - Total Direct Costs Requiring Escalation
C29: Ref. | D29: Regulatory Asset Class | E29: Unit | F29: Basis | G29: Timing | H29: RY18 | I29: RY19 | J29: RY20 | K29: RY21 | L29: RY22 | M29: RY23 | N29: RY24
C30: 1 | D30: ='SCS total'!$D$10 -> Substations | E30: Dollars | F30: Real $2018 | G30: End_Year | H30: =Augex!H8+Repex!H8+Connections!H8+'Non-Network'!H8+IT!H8 -> 7.904741748 | I30: =Augex!I8+Repex!I8+Connections!I8+'Non-Network'!I8+IT!I8 -> 12.862066 | J30: =Augex!J8+Repex!J8+Connections!J8+'Non-Network'!J8+IT!J8 -> 7.935867543 | K30: =Augex!K8+Repex!K8+Connections!K8+'Non-Network'!K8+IT!K8 -> 7.253867543 | L30: =Augex!L8+Repex!L8+Connections!L8+'Non-Network'!L8+IT!L8 -> 5.23 | M30: =Augex!M8+Repex!M8+Connections!M8+'Non-Network'!M8+IT!M8 -> 3.717 | N30: =Augex!N8+Repex!N8+Connections!N8+'Non-Network'!N8+IT!N8 -> 5.118888889
C31: 2 | D31: ='SCS total'!$D$11 -> Distribution Lines | E31: Dollars | F31: Real $2018 | G31: End_Year | H31: =Augex!H9+Repex!H9+Connections!H9+'Non-Network'!H9+IT!H9 -> 12.95029672 | I31: =Augex!I9+Repex!I9+Connections!I9+'Non-Network'!I9+IT!I9 -> 16.00767404 | J31: =Augex!J9+Repex!J9+Connections!J9+'Non-Network'!J9+IT!J9 -> 19.74910945 | K31: =Augex!K9+Repex!K9+Connections!K9+'Non-Network'!K9+IT!K9 -> 22.31216269 | L31: =Augex!L9+Repex!L9+Connections!L9+'Non-Network'!L9+IT!L9 -> 18.37088614 | M31: =Augex!M9+Repex!M9+Connections!M9+'Non-Network'!M9+IT!M9 -> 14.88416013 | N31: =Augex!N9+Repex!N9+Connections!N9+'Non-Network'!N9+IT!N9 -> 15.72060318
C32: 3 | D32: ='SCS total'!$D$12 -> Transmission Lines | E32: Dollars | F32: Real $2018 | G32: End_Year | H32: =Augex!H10+Repex!H10+Connections!H10+'Non-Network'!H10+IT!H10 -> 8.350434579 | I32: =Augex!I10+Repex!I10+Connections!I10+'Non-Network'!I10+IT!I10 -> 0.23 | J32: =Augex!J10+Repex!J10+Connections!J10+'Non-Network'!J10+IT!J10 -> 2.45 | K32: =Augex!K10+Repex!K10+Connections!K10+'Non-Network'!K10+IT!K10 -> 2.268 | L32: =Augex!L10+Repex!L10+Connections!L10+'Non-Network'!L10+IT!L10 -> 2.268 | M32: =Augex!M10+Repex!M10+Connections!M10+'Non-Network'!M10+IT!M10 -> 2.268 | N32: =Augex!N10+Repex!N10+Connections!N10+'Non-Network'!N10+IT!N10 -> 2.239
C33: 4 | D33: ='SCS total'!$D$13 -> LV Services | E33: Dollars | F33: Real $2018 | G33: End_Year | H33: =Augex!H11+Repex!H11+Connections!H11+'Non-Network'!H11+IT!H11 -> 0.7293670767 | I33: =Augex!I11+Repex!I11+Connections!I11+'Non-Network'!I11+IT!I11 -> 0.9366878456 | J33: =Augex!J11+Repex!J11+Connections!J11+'Non-Network'!J11+IT!J11 -> 1.317617635 | K33: =Augex!K11+Repex!K11+Connections!K11+'Non-Network'!K11+IT!K11 -> 1.553753505 | L33: =Augex!L11+Repex!L11+Connections!L11+'Non-Network'!L11+IT!L11 -> 1.586126971 | M33: =Augex!M11+Repex!M11+Connections!M11+'Non-Network'!M11+IT!M11 -> 0.8129724308 | N33: =Augex!N11+Repex!N11+Connections!N11+'Non-Network'!N11+IT!N11 -> 0.8205897169
C34: 5 | D34: ='SCS total'!$D$14 -> Distribution Substations | E34: Dollars | F34: Real $2018 | G34: End_Year | H34: =Augex!H12+Repex!H12+Connections!H12+'Non-Network'!H12+IT!H12 -> 4.10120433 | I34: =Augex!I12+Repex!I12+Connections!I12+'Non-Network'!I12+IT!I12 -> 5.903694999 | J34: =Augex!J12+Repex!J12+Connections!J12+'Non-Network'!J12+IT!J12 -> 5.507146094 | K34: =Augex!K12+Repex!K12+Connections!K12+'Non-Network'!K12+IT!K12 -> 5.750146094 | L34: =Augex!L12+Repex!L12+Connections!L12+'Non-Network'!L12+IT!L12 -> 5.978146094 | M34: =Augex!M12+Repex!M12+Connections!M12+'Non-Network'!M12+IT!M12 -> 6.154146094 | N34: =Augex!N12+Repex!N12+Connections!N12+'Non-Network'!N12+IT!N12 -> 6.230146094
C35: 6 | D35: ='SCS total'!$D$15 -> Distribution Switchgear | E35: Dollars | F35: Real $2018 | G35: End_Year | H35: =Augex!H13+Repex!H13+Connections!H13+'Non-Network'!H13+IT!H13 -> 5.063146079 | I35: =Augex!I13+Repex!I13+Connections!I13+'Non-Network'!I13+IT!I13 -> 3.997102066 | J35: =Augex!J13+Repex!J13+Connections!J13+'Non-Network'!J13+IT!J13 -> 4.525145062 | K35: =Augex!K13+Repex!K13+Connections!K13+'Non-Network'!K13+IT!K13 -> 4.574736017 | L35: =Augex!L13+Repex!L13+Connections!L13+'Non-Network'!L13+IT!L13 -> 4.494509333 | M35: =Augex!M13+Repex!M13+Connections!M13+'Non-Network'!M13+IT!M13 -> 4.525845485 | N35: =Augex!N13+Repex!N13+Connections!N13+'Non-Network'!N13+IT!N13 -> 4.571580026
C36: 7 | D36: ='SCS total'!$D$16 -> Protection | E36: Dollars | F36: Real $2018 | G36: End_Year | H36: =Augex!H14+Repex!H14+Connections!H14+'Non-Network'!H14+IT!H14 -> 0.97875425 | I36: =Augex!I14+Repex!I14+Connections!I14+'Non-Network'!I14+IT!I14 -> 2.449417 | J36: =Augex!J14+Repex!J14+Connections!J14+'Non-Network'!J14+IT!J14 -> 2.783559151 | K36: =Augex!K14+Repex!K14+Connections!K14+'Non-Network'!K14+IT!K14 -> 3.120559151 | L36: =Augex!L14+Repex!L14+Connections!L14+'Non-Network'!L14+IT!L14 -> 1.27 | M36: =Augex!M14+Repex!M14+Connections!M14+'Non-Network'!M14+IT!M14 -> 1.079 | N36: =Augex!N14+Repex!N14+Connections!N14+'Non-Network'!N14+IT!N14 -> 1.326153846
C37: 8 | D37: ='SCS total'!$D$17 -> SCADA | E37: Dollars | F37: Real $2018 | G37: End_Year | H37: =Augex!H15+Repex!H15+Connections!H15+'Non-Network'!H15+IT!H15 -> 0.466564 | I37: =Augex!I15+Repex!I15+Connections!I15+'Non-Network'!I15+IT!I15 -> 1.157052 | J37: =Augex!J15+Repex!J15+Connections!J15+'Non-Network'!J15+IT!J15 -> 0.7317866532 | K37: =Augex!K15+Repex!K15+Connections!K15+'Non-Network'!K15+IT!K15 -> 0.9577866532 | L37: =Augex!L15+Repex!L15+Connections!L15+'Non-Network'!L15+IT!L15 -> 0.602 | M37: =Augex!M15+Repex!M15+Connections!M15+'Non-Network'!M15+IT!M15 -> 0.291 | N37: =Augex!N15+Repex!N15+Connections!N15+'Non-Network'!N15+IT!N15 -> 0.4054786325
C38: 9 | D38: ='SCS total'!$D$18 -> Communications | E38: Dollars | F38: Real $2018 | G38: End_Year | H38: =Augex!H16+Repex!H16+Connections!H16+'Non-Network'!H16+IT!H16 -> 5.144775 | I38: =Augex!I16+Repex!I16+Connections!I16+'Non-Network'!I16+IT!I16 -> 1.785697 | J38: =Augex!J16+Repex!J16+Connections!J16+'Non-Network'!J16+IT!J16 -> 2.211786653 | K38: =Augex!K16+Repex!K16+Connections!K16+'Non-Network'!K16+IT!K16 -> 2.374786653 | L38: =Augex!L16+Repex!L16+Connections!L16+'Non-Network'!L16+IT!L16 -> 1.998 | M38: =Augex!M16+Repex!M16+Connections!M16+'Non-Network'!M16+IT!M16 -> 1.567 | N38: =Augex!N16+Repex!N16+Connections!N16+'Non-Network'!N16+IT!N16 -> 1.433478632
C39: 10 | D39: ='SCS total'!$D$19 -> Land and Easements | E39: Dollars | F39: Real $2018 | G39: End_Year | H39: =Augex!H17+Repex!H17+Connections!H17+'Non-Network'!H17+IT!H17 -> 0 | I39: =Augex!I17+Repex!I17+Connections!I17+'Non-Network'!I17+IT!I17 -> 0 | J39: =Augex!J17+Repex!J17+Connections!J17+'Non-Network'!J17+IT!J17 -> 0 | K39: =Augex!K17+Repex!K17+Connections!K17+'Non-Network'!K17+IT!K17 -> 0 | L39: =Augex!L17+Repex!L17+Connections!L17+'Non-Network'!L17+IT!L17 -> 0 | M39: =Augex!M17+Repex!M17+Connections!M17+'Non-Network'!M17+IT!M17 -> 0 | N39: =Augex!N17+Repex!N17+Connections!N17+'Non-Network'!N17+IT!N17 -> 0
C40: 11 | D40: ='SCS total'!$D$20 -> Property | E40: Dollars | F40: Real $2018 | G40: End_Year | H40: =Augex!H18+Repex!H18+Connections!H18+'Non-Network'!H18+IT!H18 -> 0 | I40: =Augex!I18+Repex!I18+Connections!I18+'Non-Network'!I18+IT!I18 -> 0 | J40: =Augex!J18+Repex!J18+Connections!J18+'Non-Network'!J18+IT!J18 -> 0.7055 | K40: =Augex!K18+Repex!K18+Connections!K18+'Non-Network'!K18+IT!K18 -> 0.81665 | L40: =Augex!L18+Repex!L18+Connections!L18+'Non-Network'!L18+IT!L18 -> 0.8452 | M40: =Augex!M18+Repex!M18+Connections!M18+'Non-Network'!M18+IT!M18 -> 0.7231 | N40: =Augex!N18+Repex!N18+Connections!N18+'Non-Network'!N18+IT!N18 -> 0.70695
C41: 12 | D41: ='SCS total'!$D$21 -> IT and Communications | E41: Dollars | F41: Real $2018 | G41: End_Year | H41: =Augex!H19+Repex!H19+Connections!H19+'Non-Network'!H19+IT!H19 -> 4.486012245 | I41: =Augex!I19+Repex!I19+Connections!I19+'Non-Network'!I19+IT!I19 -> 4.676094245 | J41: =Augex!J19+Repex!J19+Connections!J19+'Non-Network'!J19+IT!J19 -> 5 | K41: =Augex!K19+Repex!K19+Connections!K19+'Non-Network'!K19+IT!K19 -> 5.6 | L41: =Augex!L19+Repex!L19+Connections!L19+'Non-Network'!L19+IT!L19 -> 10.9 | M41: =Augex!M19+Repex!M19+Connections!M19+'Non-Network'!M19+IT!M19 -> 5.8 | N41: =Augex!N19+Repex!N19+Connections!N19+'Non-Network'!N19+IT!N19 -> 5
C42: 13 | D42: ='SCS total'!$D$22 -> Motor Vehicles | E42: Dollars | F42: Real $2018 | G42: End_Year | H42: =Augex!H20+Repex!H20+Connections!H20+'Non-Network'!H20+IT!H20 -> 0 | I42: =Augex!I20+Repex!I20+Connections!I20+'Non-Network'!I20+IT!I20 -> 0 | J42: =Augex!J20+Repex!J20+Connections!J20+'Non-Network'!J20+IT!J20 -> 0 | K42: =Augex!K20+Repex!K20+Connections!K20+'Non-Network'!K20+IT!K20 -> 0 | L42: =Augex!L20+Repex!L20+Connections!L20+'Non-Network'!L20+IT!L20 -> 0 | M42: =Augex!M20+Repex!M20+Connections!M20+'Non-Network'!M20+IT!M20 -> 0 | N42: =Augex!N20+Repex!N20+Connections!N20+'Non-Network'!N20+IT!N20 -> 0
C43: 14 | D43: ='SCS total'!$D$23 -> Plant and Equipment | E43: Dollars | F43: Real $2018 | G43: End_Year | H43: =Augex!H21+Repex!H21+Connections!H21+'Non-Network'!H21+IT!H21 -> 0.544 | I43: =Augex!I21+Repex!I21+Connections!I21+'Non-Network'!I21+IT!I21 -> 0.544 | J43: =Augex!J21+Repex!J21+Connections!J21+'Non-Network'!J21+IT!J21 -> 1.019 | K43: =Augex!K21+Repex!K21+Connections!K21+'Non-Network'!K21+IT!K21 -> 1.019 | L43: =Augex!L21+Repex!L21+Connections!L21+'Non-Network'!L21+IT!L21 -> 1.019 | M43: =Augex!M21+Repex!M21+Connections!M21+'Non-Network'!M21+IT!M21 -> 1.019 | N43: =Augex!N21+Repex!N21+Connections!N21+'Non-Network'!N21+IT!N21 -> 1.019
C44: 14 | D44: ='SCS total'!$D$24 -> Property Leases | E44: Dollars | F44: Real $2018 | G44: End_Year | H44: =Augex!H22+Repex!H22+Connections!H22+'Non-Network'!H22+IT!H22 -> 0 | I44: =Augex!I22+Repex!I22+Connections!I22+'Non-Network'!I22+IT!I22 -> 0 | J44: =Augex!J22+Repex!J22+Connections!J22+'Non-Network'!J22+IT!J22 -> 4.290107807 | K44: =Augex!K22+Repex!K22+Connections!K22+'Non-Network'!K22+IT!K22 -> 0.05433860166 | L44: =Augex!L22+Repex!L22+Connections!L22+'Non-Network'!L22+IT!L22 -> 14.77654315 | M44: =Augex!M22+Repex!M22+Connections!M22+'Non-Network'!M22+IT!M22 -> 0.05433860166 | N44: =Augex!N22+Repex!N22+Connections!N22+'Non-Network'!N22+IT!N22 -> 0.5026608524
C45: 14 | D45: ='SCS total'!$D$25 -> Fleet Leases | E45: Dollars | F45: Real $2018 | G45: End_Year | H45: =Augex!H23+Repex!H23+Connections!H23+'Non-Network'!H23+IT!H23 -> 0 | I45: =Augex!I23+Repex!I23+Connections!I23+'Non-Network'!I23+IT!I23 -> 0 | J45: =Augex!J23+Repex!J23+Connections!J23+'Non-Network'!J23+IT!J23 -> 12.96308284 | K45: =Augex!K23+Repex!K23+Connections!K23+'Non-Network'!K23+IT!K23 -> 3.29215004 | L45: =Augex!L23+Repex!L23+Connections!L23+'Non-Network'!L23+IT!L23 -> 2.888494639 | M45: =Augex!M23+Repex!M23+Connections!M23+'Non-Network'!M23+IT!M23 -> 3.2468793 | N45: =Augex!N23+Repex!N23+Connections!N23+'Non-Network'!N23+IT!N23 -> 2.644543207
D47: Total | E47: Dollars | F47: Real $2018 | G47: End_Year | H47: =SUM(H30:H45) -> 50.71929603 | I47: =SUM(I30:I45) -> 50.5494852 | J47: 71.18970889 | K47: 60.94793695 | L47: 72.22690633 | M47: 46.14244204 | N47: 47.73907308
D49: Labour weight | H49: ='[2]Input|Rate of change'!$P$49 -> 0.597 | R49: Note: Sourced from SCS Opex Model
D50: CPI weight | H50: =1-H49 -> 0.403
D51: Real labour escalation rate | H51: 0.004 | I51: 0.007 | J51: -0.0023 | K51: -0.0021 | L51: 0.0029 | M51: 0.0053 | N51: 0.0058 | R51: Note: Sourced from SCS Opex Model and the DAE LPI values for RY18 and RY19 from its Feb 2017 report for SA (Table 7.1)
D52: Applied Escalation Profile | E52: Factor | F52: N/A | G52: N/A | H52: 1.002388 | I52: 1.006583716 | J52: 1.005195473 | K52: 1.003930863 | L52: 1.005673562 | M52: 1.008867732 | N52: 1.012381765
B55: End

Sheet Capitalised OH
B1: Capitalised Overheads Forecast - SCS
B3: =B1 -> Capitalised Overheads Forecast - SCS
C5: Escalated Capitalised Overheads
C7: Ref. | D7: Regulatory Asset Class | E7: Unit | F7: Basis | G7: Timing | H7: RY18 | I7: RY19 | J7: RY20 | K7: RY21 | L7: RY22 | M7: RY23 | N7: RY24 | P7: Total FY20 to FY24
C8: =N(C7)+1 -> 1 | D8: ='SCS total'!$D$10 -> Substations | E8: Dollars | F8: Real $2018 | G8: End_Year | H8: 0 | I8: 0 | J8: =IF(OR($P37="No",SUMIF($P$37:$P$52,"Yes",J$37:J$52)=0),0,J37/SUMIF($P$37:$P$52,"Yes",J$37:J$52))*J$32 -> 1.256276663 | K8: =IF(OR($P37="No",SUMIF($P$37:$P$52,"Yes",K$37:K$52)=0),0,K37/SUMIF($P$37:$P$52,"Yes",K$37:K$52))*K$32 -> 1.348624285 | L8: 0.8279178351 | M8: 0.9279337413 | N8: 1.244646794 | P8: =SUM(J8:N8) -> 5.605399318
C9: =N(C8)+1 -> 2 | D9: ='SCS total'!$D$11 -> Distribution Lines | E9: Dollars | F9: Real $2018 | G9: End_Year | H9: 0 | I9: 0 | J9: =IF(OR($P38="No",SUMIF($P$37:$P$52,"Yes",J$37:J$52)=0),0,J38/SUMIF($P$37:$P$52,"Yes",J$37:J$52))*J$32 -> 3.126355774 | K9: 4.14823186 | L9: 2.90814231 | M9: 3.715769274 | N9: 3.822430761 | P9: 17.72092998
C10: 3 | D10: ='SCS total'!$D$12 -> Transmission Lines | E10: Dollars | F10: Real $2018 | G10: End_Year | H10: 0 | I10: 0 | J10: =IF(OR($P39="No",SUMIF($P$37:$P$52,"Yes",J$37:J$52)=0),0,J39/SUMIF($P$37:$P$52,"Yes",J$37:J$52))*J$32 -> 0.3878439007 | K10: 0.4216619424 | L10: 0.3590282313 | M10: 0.5661968591 | N10: 0.5444080213 | P10: 2.279138955
C11: 4 | D11: ='SCS total'!$D$13 -> LV Services | E11: Dollars | F11: Real $2018 | G11: End_Year | H11: 0 | I11: 0 | J11: =IF(OR($P40="No",SUMIF($P$37:$P$52,"Yes",J$37:J$52)=0),0,J40/SUMIF($P$37:$P$52,"Yes",J$37:J$52))*J$32 -> 0.2085836585 | K11: 0.2888706882 | L11: 0.2510865789 | M11: 0.2029552191 | N11: 0.19952462 | P11: 1.151020765
C12: 5 | D12: ='SCS total'!$D$14 -> Distribution Substations | E12: Dollars | F12: Real $2018 | G12: End_Year | H12: 0 | I12: 0 | J12: =IF(OR($P41="No",SUMIF($P$37:$P$52,"Yes",J$37:J$52)=0),0,J41/SUMIF($P$37:$P$52,"Yes",J$37:J$52))*J$32 -> 0.8718012339 | K12: 1.069055455 | L12: 0.9463506256 | M12: 1.536357226 | N12: 1.514846587 | P12: 5.938411127
C13: 6 | D13: ='SCS total'!$D$15 -> Distribution Switchgear | E13: Dollars | F13: Real $2018 | G13: End_Year | H13: 0 | I13: 0 | J13: =IF(OR($P42="No",SUMIF($P$37:$P$52,"Yes",J$37:J$52)=0),0,J42/SUMIF($P$37:$P$52,"Yes",J$37:J$52))*J$32 -> 0.716346903 | K13: 0.8505256062 | L13: 0.7114884199 | M13: 1.129858685 | N13: 1.111569824 | P13: 4.519789439
C14: 7 | D14: ='SCS total'!$D$16 -> Protection | E14: Dollars | F14: Real $2018 | G14: End_Year | H14: 0 | I14: 0 | J14: =IF(OR($P43="No",SUMIF($P$37:$P$52,"Yes",J$37:J$52)=0),0,J43/SUMIF($P$37:$P$52,"Yes",J$37:J$52))*J$32 -> 0.4406475261 | K14: 0.5801680039 | L14: 0.2010431454 | M14: 0.2693679061 | N14: 0.3224514477 | P14: 1.813678029
C15: 8 | D15: ='SCS total'!$D$17 -> SCADA | E15: Dollars | F15: Real $2018 | G15: End_Year | H15: 0 | I15: 0 | J15: =IF(OR($P44="No",SUMIF($P$37:$P$52,"Yes",J$37:J$52)=0),0,J44/SUMIF($P$37:$P$52,"Yes",J$37:J$52))*J$32 -> 0.1158444857 | K15: 0.1780697445 | L15: 0.09529761696 | M15: 0.0726469515 | N15: 0.09859125503 | P15: 0.5604500538
C16: 9 | D16: ='SCS total'!$D$18 -> Communications | E16: Dollars | F16: Real $2018 | G16: End_Year | H16: 0 | I16: 0 | J16: =IF(OR($P45="No",SUMIF($P$37:$P$52,"Yes",J$37:J$52)=0),0,J45/SUMIF($P$37:$P$52,"Yes",J$37:J$52))*J$32 -> 0.3501338625 | K16: 0.4415154996 | L16: 0.3162867752 | M16: 0.3911950962 | N16: 0.348547238 | P16: 1.847678472
C17: 10 | D17: ='SCS total'!$D$19 -> Land and Easements | E17: Dollars | F17: Real $2018 | G17: End_Year | H17: 0 | I17: 0 | J17: =IF(OR($P46="No",SUMIF($P$37:$P$52,"Yes",J$37:J$52)=0),0,J46/SUMIF($P$37:$P$52,"Yes",J$37:J$52))*J$32 -> 0 | K17: 0 | L17: 0 | M17: 0 | N17: 0 | P17: 0
C18: 11 | D18: ='SCS total'!$D$20 -> Property | E18: Dollars | F18: Real $2018 | G18: End_Year | H18: 0 | I18: 0 | J18: =IF(OR($P47="No",SUMIF($P$37:$P$52,"Yes",J$37:J$52)=0),0,J47/SUMIF($P$37:$P$52,"Yes",J$37:J$52))*J$32 -> 0.111683213 | K18: 0.1518299053 | L18: 0.1337965878 | M18: 0.1805189369 | N18: 0.1718933679 | P18: 0.7497220109
C19: 12 | D19: ='SCS total'!$D$21 -> IT and Communications | E19: Dollars | F19: Real $2018 | G19: End_Year | H19: 0 | I19: 0 | J19: =IF(OR($P48="No",SUMIF($P$37:$P$52,"Yes",J$37:J$52)=0),0,J48/SUMIF($P$37:$P$52,"Yes",J$37:J$52))*J$32 -> 0.7915181648 | K19: 1.041140599 | L19: 1.725488413 | M19: 1.447946112 | N19: 1.215739217 | P19: 6.221832506
C20: 13 | D20: ='SCS total'!$D$22 -> Motor Vehicles | E20: Dollars | F20: Real $2018 | G20: End_Year | H20: 0 | I20: 0 | J20: =IF(OR($P49="No",SUMIF($P$37:$P$52,"Yes",J$37:J$52)=0),0,J49/SUMIF($P$37:$P$52,"Yes",J$37:J$52))*J$32 -> 0 | K20: 0 | L20: 0 | M20: 0 | N20: 0 | P20: 0
C21: 14 | D21: ='SCS total'!$D$23 -> Plant and Equipment | E21: Dollars | F21: Real $2018 | G21: End_Year | H21: 0 | I21: 0 | J21: =IF(OR($P50="No",SUMIF($P$37:$P$52,"Yes",J$37:J$52)=0),0,J50/SUMIF($P$37:$P$52,"Yes",J$37:J$52))*J$32 -> 0.161311402 | K21: 0.1894504053 | L21: 0.1613094214 | M21: 0.2543891532 | N21: 0.2477676524 | P21: 1.014228034
C22: 15 | D22: ='SCS total'!$D$24 -> Property Leases | E22: Dollars | F22: Real $2018 | G22: End_Year | H22: 0 | I22: 0 | J22: =IF(OR($P51="No",SUMIF($P$37:$P$52,"Yes",J$37:J$52)=0),0,J51/SUMIF($P$37:$P$52,"Yes",J$37:J$52))*J$32 -> 0.6791396516 | K22: 0.01010252219 | L22: 2.339151743 | M22: 0.01356540811 | N22: 0.1222209022 | P22: =SUM(J22:N22) -> 3.164180227
C23: 16 | D23: ='SCS total'!$D$25 -> Fleet Leases | E23: Dollars | F23: Real $2018 | G23: End_Year | H23: 0 | I23: 0 | J23: =IF(OR($P52="No",SUMIF($P$37:$P$52,"Yes",J$37:J$52)=0),0,J52/SUMIF($P$37:$P$52,"Yes",J$37:J$52))*J$32 -> 2.052103107 | K23: 0.6120698327 | L23: 0.4572535809 | M23: 0.8105700447 | N23: 0.6430149775 | P23: 4.575011543
D25: Total | E25: =E8 -> Dollars | F25: Real $2018 | G25: End_Year | H25: =SUM(H8:H23) -> 0 | I25: =SUM(I8:I23) -> 0 | J25: 11.26958955 | K25: 11.33131635 | L25: 11.43364129 | M25: 11.51927061 | N25: 11.60765266 | P25: 57.16147046
B27: Capitalised Overheads to be allocated
C29: Ref. | D29: Regulatory Asset Class | E29: Unit | F29: Basis | G29: Timing | H29: RY18 | I29: RY19 | J29: RY20 | K29: RY21 | L29: RY22 | M29: RY23 | N29: RY24
C30: =N(C29)+1 -> 1 | D30: Direct Unescalated Capitalised Overheads | E30: Dollars | F30: Real $2018 | G30: End_Year | H30: =SUM('[3]2.1 Expenditure summary'!$K$15:$K$16)/10^6*(1+'Total by category'!$G$22)^0.5*(1+'Total by category'!$H$22) -> 11.14579748 | I30: N/A | J30: N/A | K30: N/A | L30: N/A | M30: N/A | N30: N/A | P30: Note: sourced from PWC's 22 May 2018 CA RIN response. Calculated as the sum of cells K15:K16 of the '2.1 Expenditure summary' sheet inflated from mid-year RY17 dollars to end-year RY18 dollars (1.5. years of inflation).
C31: =N(C30)+1 -> 2 | D31: Overall Rate of Change | E31: Percent | F31: N/A | G31: N/A | H31: N/A | I31: =AVERAGE(J31:N31) -> 0.006791142344 | J31: 0.004286361612 | K31: 0.005477289418 | L31: 0.009030277942 | M31: 0.007489243956 | N31: 0.007672538791
C32: 3 | D32: Total Capitalised Overheads | E32: Dollars | F32: Real $2018 | G32: End_Year | H32: =H30 -> 11.14579748 | I32: =H32*(1+I31) -> 11.22149018 | J32: =I32*(1+J31) -> 11.26958955 | K32: 11.33131635 | L32: 11.43364129 | M32: 11.51927061 | N32: 11.60765266
B34: Share of Direct Costs
C36: Ref. | D36: Regulatory Asset Class | E36: Unit | F36: Basis | G36: Timing | H36: RY18 | I36: RY19 | J36: RY20 | K36: RY21 | L36: RY22 | M36: RY23 | N36: RY24 | P36: Allocated OH?
C37: =N(C36)+1 -> 1 | D37: ='SCS total'!$D$10 -> Substations | E37: Dollars | F37: Real $2018 | G37: End_Year | H37: =IF(Escalation!H$47=0,0,Escalation!H30/Escalation!H$47) -> 0.1558527497 | I37: =IF(Escalation!I$47=0,0,Escalation!I30/Escalation!I$47) -> 0.2544450443 | J37: =IF(Escalation!J$47=0,0,Escalation!J30/Escalation!J$47) -> 0.1114749262 | K37: =IF(Escalation!K$47=0,0,Escalation!K30/Escalation!K$47) -> 0.1190174419 | L37: =IF(Escalation!L$47=0,0,Escalation!L30/Escalation!L$47) -> 0.07241068829 | M37: =IF(Escalation!M$47=0,0,Escalation!M30/Escalation!M$47) -> 0.08055490424 | N37: =IF(Escalation!N$47=0,0,Escalation!N30/Escalation!N$47) -> 0.1072263988 | P37: Yes
C38: =N(C37)+1 -> 2 | D38: ='SCS total'!$D$11 -> Distribution Lines | E38: Dollars | F38: Real $2018 | G38: End_Year | H38: =IF(Escalation!H$47=0,0,Escalation!H31/Escalation!H$47) -> 0.2553327379 | I38: =IF(Escalation!I$47=0,0,Escalation!I31/Escalation!I$47) -> 0.3166733347 | J38: =IF(Escalation!J$47=0,0,Escalation!J31/Escalation!J$47) -> 0.2774152298 | K38: =IF(Escalation!K$47=0,0,Escalation!K31/Escalation!K$47) -> 0.3660856102 | L38: =IF(Escalation!L$47=0,0,Escalation!L31/Escalation!L$47) -> 0.2543496195 | M38: =IF(Escalation!M$47=0,0,Escalation!M31/Escalation!M$47) -> 0.3225698396 | N38: =IF(Escalation!N$47=0,0,Escalation!N31/Escalation!N$47) -> 0.3293026481 | P38: Yes
C39: 3 | D39: ='SCS total'!$D$12 -> Transmission Lines | E39: Dollars | F39: Real $2018 | G39: End_Year | H39: =IF(Escalation!H$47=0,0,Escalation!H32/Escalation!H$47) -> 0.1646401909 | I39: =IF(Escalation!I$47=0,0,Escalation!I32/Escalation!I$47) -> 0.004549996881 | J39: =IF(Escalation!J$47=0,0,Escalation!J32/Escalation!J$47) -> 0.03441508665 | K39: =IF(Escalation!K$47=0,0,Escalation!K32/Escalation!K$47) -> 0.03721208811 | L39: =IF(Escalation!L$47=0,0,Escalation!L32/Escalation!L$47) -> 0.03140104035 | M39: =IF(Escalation!M$47=0,0,Escalation!M32/Escalation!M$47) -> 0.04915214496 | N39: =IF(Escalation!N$47=0,0,Escalation!N32/Escalation!N$47) -> 0.04690078495 | P39: Yes
C40: 4 | D40: ='SCS total'!$D$13 -> LV Services | E40: Dollars | F40: Real $2018 | G40: End_Year | H40: =IF(Escalation!H$47=0,0,Escalation!H33/Escalation!H$47) -> 0.0143804653 | I40: =IF(Escalation!I$47=0,0,Escalation!I33/Escalation!I$47) -> 0.01853011642 | J40: =IF(Escalation!J$47=0,0,Escalation!J33/Escalation!J$47) -> 0.01850854085 | K40: =IF(Escalation!K$47=0,0,Escalation!K33/Escalation!K$47) -> 0.02549312713 | L40: =IF(Escalation!L$47=0,0,Escalation!L33/Escalation!L$47) -> 0.02196033378 | M40: =IF(Escalation!M$47=0,0,Escalation!M33/Escalation!M$47) -> 0.01761875607 | N40: =IF(Escalation!N$47=0,0,Escalation!N33/Escalation!N$47) -> 0.01718905844 | P40: Yes
C41: 5 | D41: ='SCS total'!$D$14 -> Distribution Substations | E41: Dollars | F41: Real $2018 | G41: End_Year | H41: =IF(Escalation!H$47=0,0,Escalation!H34/Escalation!H$47) -> 0.08086082914 | I41: =IF(Escalation!I$47=0,0,Escalation!I34/Escalation!I$47) -> 0.116790408 | J41: =IF(Escalation!J$47=0,0,Escalation!J34/Escalation!J$47) -> 0.07735873879 | K41: =IF(Escalation!K$47=0,0,Escalation!K34/Escalation!K$47) -> 0.09434521302 | L41: =IF(Escalation!L$47=0,0,Escalation!L34/Escalation!L$47) -> 0.0827689624 | M41: =IF(Escalation!M$47=0,0,Escalation!M34/Escalation!M$47) -> 0.133372787 | N41: =IF(Escalation!N$47=0,0,Escalation!N34/Escalation!N$47) -> 0.1305041278 | P41: Yes
C42: 6 | D42: ='SCS total'!$D$15 -> Distribution Switchgear | E42: Dollars | F42: Real $2018 | G42: End_Year | H42: =IF(Escalation!H$47=0,0,Escalation!H35/Escalation!H$47) -> 0.09982682086 | I42: =IF(Escalation!I$47=0,0,Escalation!I35/Escalation!I$47) -> 0.07907305189 | J42: =IF(Escalation!J$47=0,0,Escalation!J35/Escalation!J$47) -> 0.06356459568 | K42: =IF(Escalation!K$47=0,0,Escalation!K35/Escalation!K$47) -> 0.07505973534 | L42: =IF(Escalation!L$47=0,0,Escalation!L35/Escalation!L$47) -> 0.06222763179 | M42: =IF(Escalation!M$47=0,0,Escalation!M35/Escalation!M$47) -> 0.09808422107 | N42: =IF(Escalation!N$47=0,0,Escalation!N35/Escalation!N$47) -> 0.09576180959 | P42: Yes
C43: 7 | D43: ='SCS total'!$D$16 -> Protection | E43: Dollars | F43: Real $2018 | G43: End_Year | H43: =IF(Escalation!H$47=0,0,Escalation!H36/Escalation!H$47) -> 0.01929747308 | I43: =IF(Escalation!I$47=0,0,Escalation!I36/Escalation!I$47) -> 0.04845582483 | J43: =IF(Escalation!J$47=0,0,Escalation!J36/Escalation!J$47) -> 0.03910058342 | K43: =IF(Escalation!K$47=0,0,Escalation!K36/Escalation!K$47) -> 0.05120040656 | L43: =IF(Escalation!L$47=0,0,Escalation!L36/Escalation!L$47) -> 0.01758347498 | M43: =IF(Escalation!M$47=0,0,Escalation!M36/Escalation!M$47) -> 0.02338411129 | N43: =IF(Escalation!N$47=0,0,Escalation!N36/Escalation!N$47) -> 0.0277792123 | P43: Yes
C44: 8 | D44: ='SCS total'!$D$17 -> SCADA | E44: Dollars | F44: Real $2018 | G44: End_Year | H44: =IF(Escalation!H$47=0,0,Escalation!H37/Escalation!H$47) -> 0.009198944712 | I44: =IF(Escalation!I$47=0,0,Escalation!I37/Escalation!I$47) -> 0.02288949127 | J44: =IF(Escalation!J$47=0,0,Escalation!J37/Escalation!J$47) -> 0.0102793882 | K44: =IF(Escalation!K$47=0,0,Escalation!K37/Escalation!K$47) -> 0.01571483304 | L44: =IF(Escalation!L$47=0,0,Escalation!L37/Escalation!L$47) -> 0.008334844044 | M44: =IF(Escalation!M$47=0,0,Escalation!M37/Escalation!M$47) -> 0.006306558282 | N44: =IF(Escalation!N$47=0,0,Escalation!N37/Escalation!N$47) -> 0.008493642761 | P44: Yes
C45: 9 | D45: ='SCS total'!$D$18 -> Communications | E45: Dollars | F45: Real $2018 | G45: End_Year | H45: =IF(Escalation!H$47=0,0,Escalation!H38/Escalation!H$47) -> 0.1014362462 | I45: =IF(Escalation!I$47=0,0,Escalation!I38/Escalation!I$47) -> 0.03532572079 | J45: =IF(Escalation!J$47=0,0,Escalation!J38/Escalation!J$47) -> 0.03106890993 | K45: =IF(Escalation!K$47=0,0,Escalation!K38/Escalation!K$47) -> 0.03896418439 | L45: =IF(Escalation!L$47=0,0,Escalation!L38/Escalation!L$47) -> 0.02766282126 | M45: =IF(Escalation!M$47=0,0,Escalation!M38/Escalation!M$47) -> 0.03396005783 | N45: =IF(Escalation!N$47=0,0,Escalation!N38/Escalation!N$47) -> 0.03002736626 | P45: Yes
C46: 10 | D46: ='SCS total'!$D$19 -> Land and Easements | E46: Dollars | F46: Real $2018 | G46: End_Year | H46: =IF(Escalation!H$47=0,0,Escalation!H39/Escalation!H$47) -> 0 | I46: =IF(Escalation!I$47=0,0,Escalation!I39/Escalation!I$47) -> 0 | J46: =IF(Escalation!J$47=0,0,Escalation!J39/Escalation!J$47) -> 0 | K46: =IF(Escalation!K$47=0,0,Escalation!K39/Escalation!K$47) -> 0 | L46: =IF(Escalation!L$47=0,0,Escalation!L39/Escalation!L$47) -> 0 | M46: =IF(Escalation!M$47=0,0,Escalation!M39/Escalation!M$47) -> 0 | N46: =IF(Escalation!N$47=0,0,Escalation!N39/Escalation!N$47) -> 0 | P46: Yes
C47: 11 | D47: ='SCS total'!$D$20 -> Property | E47: Dollars | F47: Real $2018 | G47: End_Year | H47: =IF(Escalation!H$47=0,0,Escalation!H40/Escalation!H$47) -> 0 | I47: =IF(Escalation!I$47=0,0,Escalation!I40/Escalation!I$47) -> 0 | J47: =IF(Escalation!J$47=0,0,Escalation!J40/Escalation!J$47) -> 0.009910140258 | K47: =IF(Escalation!K$47=0,0,Escalation!K40/Escalation!K$47) -> 0.01339914099 | L47: =IF(Escalation!L$47=0,0,Escalation!L40/Escalation!L$47) -> 0.01170201028 | M47: =IF(Escalation!M$47=0,0,Escalation!M40/Escalation!M$47) -> 0.01567103881 | N47: =IF(Escalation!N$47=0,0,Escalation!N40/Escalation!N$47) -> 0.01480862435 | P47: Yes
C48: 12 | D48: ='SCS total'!$D$21 -> IT and Communications | E48: Dollars | F48: Real $2018 | G48: End_Year | H48: =IF(Escalation!H$47=0,0,Escalation!H41/Escalation!H$47) -> 0.08844784129 | I48: =IF(Escalation!I$47=0,0,Escalation!I41/Escalation!I$47) -> 0.09250527927 | J48: =IF(Escalation!J$47=0,0,Escalation!J41/Escalation!J$47) -> 0.07023487072 | K48: =IF(Escalation!K$47=0,0,Escalation!K41/Escalation!K$47) -> 0.09188169905 | L48: =IF(Escalation!L$47=0,0,Escalation!L41/Escalation!L$47) -> 0.1509132892 | M48: =IF(Escalation!M$47=0,0,Escalation!M41/Escalation!M$47) -> 0.1256977252 | N48: =IF(Escalation!N$47=0,0,Escalation!N41/Escalation!N$47) -> 0.1047360093 | P48: Yes
C49: 13 | D49: ='SCS total'!$D$22 -> Motor Vehicles | E49: Dollars | F49: Real $2018 | G49: End_Year | H49: =IF(Escalation!H$47=0,0,Escalation!H42/Escalation!H$47) -> 0 | I49: =IF(Escalation!I$47=0,0,Escalation!I42/Escalation!I$47) -> 0 | J49: =IF(Escalation!J$47=0,0,Escalation!J42/Escalation!J$47) -> 0 | K49: =IF(Escalation!K$47=0,0,Escalation!K42/Escalation!K$47) -> 0 | L49: =IF(Escalation!L$47=0,0,Escalation!L42/Escalation!L$47) -> 0 | M49: =IF(Escalation!M$47=0,0,Escalation!M42/Escalation!M$47) -> 0 | N49: =IF(Escalation!N$47=0,0,Escalation!N42/Escalation!N$47) -> 0 | P49: Yes
C50: 14 | D50: ='SCS total'!$D$23 -> Plant and Equipment | E50: Dollars | F50: Real $2018 | G50: End_Year | H50: =IF(Escalation!H$47=0,0,Escalation!H43/Escalation!H$47) -> 0.01072570092 | I50: =IF(Escalation!I$47=0,0,Escalation!I43/Escalation!I$47) -> 0.01076173175 | J50: =IF(Escalation!J$47=0,0,Escalation!J43/Escalation!J$47) -> 0.01431386665 | K50: =IF(Escalation!K$47=0,0,Escalation!K43/Escalation!K$47) -> 0.01671918774 | L50: =IF(Escalation!L$47=0,0,Escalation!L43/Escalation!L$47) -> 0.01410831575 | M50: =IF(Escalation!M$47=0,0,Escalation!M43/Escalation!M$47) -> 0.02208379 | N50: =IF(Escalation!N$47=0,0,Escalation!N43/Escalation!N$47) -> 0.02134519869 | P50: Yes
C51: 15 | D51: ='SCS total'!$D$24 -> Property Leases | E51: Dollars | F51: Real $2018 | G51: End_Year | H51: =IF(Escalation!H$47=0,0,Escalation!H44/Escalation!H$47) -> 0 | I51: =IF(Escalation!I$47=0,0,Escalation!I44/Escalation!I$47) -> 0 | J51: =IF(Escalation!J$47=0,0,Escalation!J44/Escalation!J$47) -> 0.06026303344 | K51: =IF(Escalation!K$47=0,0,Escalation!K44/Escalation!K$47) -> 0.0008915576865 | L51: =IF(Escalation!L$47=0,0,Escalation!L44/Escalation!L$47) -> 0.204585021 | M51: =IF(Escalation!M$47=0,0,Escalation!M44/Escalation!M$47) -> 0.001177627348 | N51: =IF(Escalation!N$47=0,0,Escalation!N44/Escalation!N$47) -> 0.01052933834 | P51: Yes
C52: 16 | D52: ='SCS total'!$D$25 -> Fleet Leases | E52: Dollars | F52: Real $2018 | G52: End_Year | H52: =IF(Escalation!H$47=0,0,Escalation!H45/Escalation!H$47) -> 0 | I52: =IF(Escalation!I$47=0,0,Escalation!I45/Escalation!I$47) -> 0 | J52: =IF(Escalation!J$47=0,0,Escalation!J45/Escalation!J$47) -> 0.1820920894 | K52: =IF(Escalation!K$47=0,0,Escalation!K45/Escalation!K$47) -> 0.05401577485 | L52: =IF(Escalation!L$47=0,0,Escalation!L45/Escalation!L$47) -> 0.0399919474 | M52: =IF(Escalation!M$47=0,0,Escalation!M45/Escalation!M$47) -> 0.07036643828 | N52: =IF(Escalation!N$47=0,0,Escalation!N45/Escalation!N$47) -> 0.05539578036 | P52: Yes
D54: Total | E54: Dollars | F54: Real $2018 | G54: End_Year | H54: =SUM(H37:H52) -> 1 | I54: =SUM(I37:I52) -> 1 | J54: 1 | K54: 1 | L54: 1 | M54: 1 | N54: 1
B56: End

Sheet Capital Contributions
B1: Connection Capital Expenditure
B3: Direct Capex Forecasts
C5: Direct Costs (Excluding Capitalised Overheads and Cost Escalation)
C7: Ref. | D7: Regulatory Asset Class | E7: Unit | F7: Basis | G7: Timing | H7: RY18 | I7: RY19 | J7: RY20 | K7: RY21 | L7: RY22 | M7: RY23 | N7: RY24 | P7: Total FY20 to FY24
C8: =N(C7)+1 -> 1 | D8: ='SCS total'!$D$10 -> Substations | E8: Dollars | F8: Real $2018 | G8: End_Year | H8: ='[4]Capital contributions'!I8 -> 0 | I8: ='[4]Capital contributions'!J8 -> 0 | J8: ='[4]Capital contributions'!K8 -> 0 | K8: ='[4]Capital contributions'!L8 -> 0 | L8: ='[4]Capital contributions'!M8 -> 0 | M8: ='[4]Capital contributions'!N8 -> 0 | N8: ='[4]Capital contributions'!O8 -> 0 | P8: =SUM(J8:N8) -> 0
C9: =N(C8)+1 -> 2 | D9: ='SCS total'!$D$11 -> Distribution Lines | E9: Dollars | F9: Real $2018 | G9: End_Year | H9: ='[4]Capital contributions'!I9 -> 6.19418789 | I9: ='[4]Capital contributions'!J9 -> 6.250652824 | J9: ='[4]Capital contributions'!K9 -> 6.37183038 | K9: ='[4]Capital contributions'!L9 -> 6.450500625 | L9: ='[4]Capital contributions'!M9 -> 6.461286062 | M9: ='[4]Capital contributions'!N9 -> 6.203704452 | N9: ='[4]Capital contributions'!O9 -> 6.206242202 | P9: 31.69356372
C10: 3 | D10: ='SCS total'!$D$12 -> Transmission Lines | E10: Dollars | F10: Real $2018 | G10: End_Year | H10: ='[4]Capital contributions'!I10 -> 0 | I10: ='[4]Capital contributions'!J10 -> 0 | J10: ='[4]Capital contributions'!K10 -> 0 | K10: ='[4]Capital contributions'!L10 -> 0 | L10: ='[4]Capital contributions'!M10 -> 0 | M10: ='[4]Capital contributions'!N10 -> 0 | N10: ='[4]Capital contributions'!O10 -> 0 | P10: 0
C11: 4 | D11: ='SCS total'!$D$13 -> LV Services | E11: Dollars | F11: Real $2018 | G11: End_Year | H11: ='[4]Capital contributions'!I11 -> 0.1416815216 | I11: ='[4]Capital contributions'!J11 -> 0.1755784448 | J11: ='[4]Capital contributions'!K11 -> 0.2483235271 | K11: ='[4]Capital contributions'!L11 -> 0.2955507009 | L11: ='[4]Capital contributions'!M11 -> 0.3020253941 | M11: ='[4]Capital contributions'!N11 -> 0.1473944862 | N11: ='[4]Capital contributions'!O11 -> 0.1489179434 | P11: 1.142212052
C12: 5 | D12: ='SCS total'!$D$14 -> Distribution Substations | E12: Dollars | F12: Real $2018 | G12: End_Year | H12: ='[4]Capital contributions'!I12 -> 2.286146094 | I12: ='[4]Capital contributions'!J12 -> 2.286146094 | J12: ='[4]Capital contributions'!K12 -> 2.286146094 | K12: ='[4]Capital contributions'!L12 -> 2.286146094 | L12: ='[4]Capital contributions'!M12 -> 2.286146094 | M12: ='[4]Capital contributions'!N12 -> 2.286146094 | N12: ='[4]Capital contributions'!O12 -> 2.286146094 | P12: 11.43073047
C13: 6 | D13: ='SCS total'!$D$15 -> Distribution Switchgear | E13: Dollars | F13: Real $2018 | G13: End_Year | H13: ='[4]Capital contributions'!I13 -> 0.6688736422 | I13: ='[4]Capital contributions'!J13 -> 0.6688736422 | J13: ='[4]Capital contributions'!K13 -> 0.6688736422 | K13: ='[4]Capital contributions'!L13 -> 0.6688736422 | L13: ='[4]Capital contributions'!M13 -> 0.6688736422 | M13: ='[4]Capital contributions'!N13 -> 0.6688736422 | N13: ='[4]Capital contributions'!O13 -> 0.6688736422 | P13: 3.344368211
C14: 7 | D14: ='SCS total'!$D$16 -> Protection | E14: Dollars | F14: Real $2018 | G14: End_Year | H14: ='[4]Capital contributions'!I14 -> 0 | I14: ='[4]Capital contributions'!J14 -> 0 | J14: ='[4]Capital contributions'!K14 -> 0 | K14: ='[4]Capital contributions'!L14 -> 0 | L14: ='[4]Capital contributions'!M14 -> 0 | M14: ='[4]Capital contributions'!N14 -> 0 | N14: ='[4]Capital contributions'!O14 -> 0 | P14: 0
C15: 8 | D15: ='SCS total'!$D$17 -> SCADA | E15: Dollars | F15: Real $2018 | G15: End_Year | H15: ='[4]Capital contributions'!I15 -> 0 | I15: ='[4]Capital contributions'!J15 -> 0 | J15: ='[4]Capital contributions'!K15 -> 0 | K15: ='[4]Capital contributions'!L15 -> 0 | L15: ='[4]Capital contributions'!M15 -> 0 | M15: ='[4]Capital contributions'!N15 -> 0 | N15: ='[4]Capital contributions'!O15 -> 0 | P15: 0
C16: 9 | D16: ='SCS total'!$D$18 -> Communications | E16: Dollars | F16: Real $2018 | G16: End_Year | H16: ='[4]Capital contributions'!I16 -> 0 | I16: ='[4]Capital contributions'!J16 -> 0 | J16: ='[4]Capital contributions'!K16 -> 0 | K16: ='[4]Capital contributions'!L16 -> 0 | L16: ='[4]Capital contributions'!M16 -> 0 | M16: ='[4]Capital contributions'!N16 -> 0 | N16: ='[4]Capital contributions'!O16 -> 0 | P16: 0
C17: 10 | D17: ='SCS total'!$D$19 -> Land and Easements | E17: Dollars | F17: Real $2018 | G17: End_Year | H17: ='[4]Capital contributions'!I17 -> 0 | I17: ='[4]Capital contributions'!J17 -> 0 | J17: ='[4]Capital contributions'!K17 -> 0 | K17: ='[4]Capital contributions'!L17 -> 0 | L17: ='[4]Capital contributions'!M17 -> 0 | M17: ='[4]Capital contributions'!N17 -> 0 | N17: ='[4]Capital contributions'!O17 -> 0 | P17: 0
C18: 11 | D18: ='SCS total'!$D$20 -> Property | E18: Dollars | F18: Real $2018 | G18: End_Year | H18: ='[4]Capital contributions'!I18 -> 0 | I18: ='[4]Capital contributions'!J18 -> 0 | J18: ='[4]Capital contributions'!K18 -> 0 | K18: ='[4]Capital contributions'!L18 -> 0 | L18: ='[4]Capital contributions'!M18 -> 0 | M18: ='[4]Capital contributions'!N18 -> 0 | N18: ='[4]Capital contributions'!O18 -> 0 | P18: 0
C19: 12 | D19: ='SCS total'!$D$21 -> IT and Communications | E19: Dollars | F19: Real $2018 | G19: End_Year | H19: ='[4]Capital contributions'!I19 -> 0 | I19: ='[4]Capital contributions'!J19 -> 0 | J19: ='[4]Capital contributions'!K19 -> 0 | K19: ='[4]Capital contributions'!L19 -> 0 | L19: ='[4]Capital contributions'!M19 -> 0 | M19: ='[4]Capital contributions'!N19 -> 0 | N19: ='[4]Capital contributions'!O19 -> 0 | P19: 0
C20: 13 | D20: ='SCS total'!$D$22 -> Motor Vehicles | E20: Dollars | F20: Real $2018 | G20: End_Year | H20: ='[4]Capital contributions'!I20 -> 0 | I20: ='[4]Capital contributions'!J20 -> 0 | J20: ='[4]Capital contributions'!K20 -> 0 | K20: ='[4]Capital contributions'!L20 -> 0 | L20: ='[4]Capital contributions'!M20 -> 0 | M20: ='[4]Capital contributions'!N20 -> 0 | N20: ='[4]Capital contributions'!O20 -> 0 | P20: 0
C21: 14 | D21: ='SCS total'!$D$23 -> Plant and Equipment | E21: Dollars | F21: Real $2018 | G21: End_Year | H21: ='[4]Capital contributions'!I21 -> 0 | I21: ='[4]Capital contributions'!J21 -> 0 | J21: ='[4]Capital contributions'!K21 -> 0 | K21: ='[4]Capital contributions'!L21 -> 0 | L21: ='[4]Capital contributions'!M21 -> 0 | M21: ='[4]Capital contributions'!N21 -> 0 | N21: ='[4]Capital contributions'!O21 -> 0 | P21: 0
C22: 15 | D22: ='SCS total'!$D$24 -> Property Leases | E22: Dollars | F22: Real $2018 | G22: End_Year | H22: 0 | I22: 0 | J22: 0 | K22: 0 | L22: 0 | M22: 0 | N22: 0 | P22: =SUM(J22:N22) -> 0
C23: 16 | D23: ='SCS total'!$D$25 -> Fleet Leases | E23: Dollars | F23: Real $2018 | G23: End_Year | H23: 0 | I23: 0 | J23: 0 | K23: 0 | L23: 0 | M23: 0 | N23: 0 | P23: 0
D25: Total | E25: =E8 -> Dollars | F25: Real $2018 | G25: End_Year | H25: =SUM(H8:H23) -> 9.290889148 | I25: =SUM(I8:I23) -> 9.381251005 | J25: 9.575173643 | K25: =SUM(K8:K23) -> 9.701071063 | L25: 9.718331193 | M25: 9.306118674 | N25: 9.310179882 | P25: 47.61087446
B27: End

Sheet ACS Metering -->
B8: ACS Metering

Sheet Metering total
A1: =IF(SUM($A2:$A23)>0,1,0) -> 0 | B1: Consolidated Capital Expenditure Forecast - Metering
B3: Capex Forecasts - Metering
C5: Direct Costs including Cost Escalation and Capitalised Overheads
D7: Forecast inflation | E7: Per cent | F7: Nominal | G7: End_Year | I7: ='Total by category'!$I$22 -> 0.0225
C9: Ref. | D9: Regulatory Asset Class | E9: Unit | F9: Basis | G9: Timing | H9: RY18 | I9: RY19 | J9: RY20 | K9: RY21 | L9: RY22 | M9: RY23 | N9: RY24 | P9: Total FY20 to FY24
C10: =N(C9)+1 -> 1 | D10: Mechanical Meters | E10: Dollars | F10: Real $2019 | G10: End_Year | H10: =(Metering!H8+'Metering | Escalation'!H8+'Metering | Capitalised OH'!H8)*(1+$I$7) -> 0 | I10: =(Metering!I8+'Metering | Escalation'!I8+'Metering | Capitalised OH'!I8)*(1+$I$7) -> 0 | J10: =(Metering!J8+'Metering | Escalation'!J8+'Metering | Capitalised OH'!J8)*(1+$I$7) -> 0 | K10: =(Metering!K8+'Metering | Escalation'!K8+'Metering | Capitalised OH'!K8)*(1+$I$7) -> 0 | L10: =(Metering!L8+'Metering | Escalation'!L8+'Metering | Capitalised OH'!L8)*(1+$I$7) -> 0 | M10: =(Metering!M8+'Metering | Escalation'!M8+'Metering | Capitalised OH'!M8)*(1+$I$7) -> 0 | N10: =(Metering!N8+'Metering | Escalation'!N8+'Metering | Capitalised OH'!N8)*(1+$I$7) -> 0 | P10: =SUM(J10:N10) -> 0
C11: =N(C10)+1 -> 2 | D11: Electronic Meters | E11: Dollars | F11: Real $2019 | G11: End_Year | H11: =(Metering!H9+'Metering | Escalation'!H9+'Metering | Capitalised OH'!H9)*(1+$I$7) -> 1.928403912 | I11: =(Metering!I9+'Metering | Escalation'!I9+'Metering | Capitalised OH'!I9)*(1+$I$7) -> 4.201101783 | J11: =(Metering!J9+'Metering | Escalation'!J9+'Metering | Capitalised OH'!J9)*(1+$I$7) -> 3.080293936 | K11: =(Metering!K9+'Metering | Escalation'!K9+'Metering | Capitalised OH'!K9)*(1+$I$7) -> 3.308470002 | L11: =(Metering!L9+'Metering | Escalation'!L9+'Metering | Capitalised OH'!L9)*(1+$I$7) -> 3.379210072 | M11: =(Metering!M9+'Metering | Escalation'!M9+'Metering | Capitalised OH'!M9)*(1+$I$7) -> 2.929342427 | N11: =(Metering!N9+'Metering | Escalation'!N9+'Metering | Capitalised OH'!N9)*(1+$I$7) -> 3.181592564 | P11: 15.878909
C12: 3 | D12: Metering Communications | E12: Dollars | F12: Real $2019 | G12: End_Year | H12: =(Metering!H10+'Metering | Escalation'!H10+'Metering | Capitalised OH'!H10)*(1+$I$7) -> 0 | I12: =(Metering!I10+'Metering | Escalation'!I10+'Metering | Capitalised OH'!I10)*(1+$I$7) -> 0 | J12: =(Metering!J10+'Metering | Escalation'!J10+'Metering | Capitalised OH'!J10)*(1+$I$7) -> 2.873058491 | K12: =(Metering!K10+'Metering | Escalation'!K10+'Metering | Capitalised OH'!K10)*(1+$I$7) -> 0.1784240532 | L12: =(Metering!L10+'Metering | Escalation'!L10+'Metering | Capitalised OH'!L10)*(1+$I$7) -> 0.1821282854 | M12: =(Metering!M10+'Metering | Escalation'!M10+'Metering | Capitalised OH'!M10)*(1+$I$7) -> 4.083303955 | N12: =(Metering!N10+'Metering | Escalation'!N10+'Metering | Capitalised OH'!N10)*(1+$I$7) -> 0.1730237164 | P12: 7.489938501
C13: 4 | D13: Metering Dedicated CTs and VTs | E13: Dollars | F13: Real $2019 | G13: End_Year | H13: =(Metering!H11+'Metering | Escalation'!H11+'Metering | Capitalised OH'!H11)*(1+$I$7) -> 0.1096072686 | I13: =(Metering!I11+'Metering | Escalation'!I11+'Metering | Capitalised OH'!I11)*(1+$I$7) -> 0.1101536747 | J13: =(Metering!J11+'Metering | Escalation'!J11+'Metering | Capitalised OH'!J11)*(1+$I$7) -> 0.1173947693 | K13: =(Metering!K11+'Metering | Escalation'!K11+'Metering | Capitalised OH'!K11)*(1+$I$7) -> 0.123893547 | L13: =(Metering!L11+'Metering | Escalation'!L11+'Metering | Capitalised OH'!L11)*(1+$I$7) -> 0.1242896445 | M13: =(Metering!M11+'Metering | Escalation'!M11+'Metering | Capitalised OH'!M11)*(1+$I$7) -> 0.1176332017 | N13: =(Metering!N11+'Metering | Escalation'!N11+'Metering | Capitalised OH'!N11)*(1+$I$7) -> 0.1262368958 | P13: 0.6094480583
C14: 5 | D14: Metering Non Network Other | E14: Dollars | F14: Real $2019 | G14: End_Year | H14: =(Metering!H12+'Metering | Escalation'!H12+'Metering | Capitalised OH'!H12)*(1+$I$7) -> 0 | I14: =(Metering!I12+'Metering | Escalation'!I12+'Metering | Capitalised OH'!I12)*(1+$I$7) -> 0 | J14: =(Metering!J12+'Metering | Escalation'!J12+'Metering | Capitalised OH'!J12)*(1+$I$7) -> 0 | K14: =(Metering!K12+'Metering | Escalation'!K12+'Metering | Capitalised OH'!K12)*(1+$I$7) -> 0 | L14: =(Metering!L12+'Metering | Escalation'!L12+'Metering | Capitalised OH'!L12)*(1+$I$7) -> 0 | M14: =(Metering!M12+'Metering | Escalation'!M12+'Metering | Capitalised OH'!M12)*(1+$I$7) -> 0 | N14: =(Metering!N12+'Metering | Escalation'!N12+'Metering | Capitalised OH'!N12)*(1+$I$7) -> 0 | P14: 0
C15: 6 | D15: Metering Non Network IT and Communications | E15: Dollars | F15: Real $2019 | G15: End_Year | H15: =(Metering!H13+'Metering | Escalation'!H13+'Metering | Capitalised OH'!H13)*(1+$I$7) -> 0 | I15: =(Metering!I13+'Metering | Escalation'!I13+'Metering | Capitalised OH'!I13)*(1+$I$7) -> 0 | J15: =(Metering!J13+'Metering | Escalation'!J13+'Metering | Capitalised OH'!J13)*(1+$I$7) -> 0.1166477588 | K15: =(Metering!K13+'Metering | Escalation'!K13+'Metering | Capitalised OH'!K13)*(1+$I$7) -> 0 | L15: =(Metering!L13+'Metering | Escalation'!L13+'Metering | Capitalised OH'!L13)*(1+$I$7) -> 0 | M15: =(Metering!M13+'Metering | Escalation'!M13+'Metering | Capitalised OH'!M13)*(1+$I$7) -> 0 | N15: =(Metering!N13+'Metering | Escalation'!N13+'Metering | Capitalised OH'!N13)*(1+$I$7) -> 0 | P15: 0.1166477588
C16: 7 | D16: Fleet leases | E16: Dollars | F16: Real $2019 | G16: End_Year | H16: =(Metering!H14+'Metering | Escalation'!H14+'Metering | Capitalised OH'!H14)*(1+$I$7) -> 0 | I16: =(Metering!I14+'Metering | Escalation'!I14+'Metering | Capitalised OH'!I14)*(1+$I$7) -> 0 | J16: =(Metering!J14+'Metering | Escalation'!J14+'Metering | Capitalised OH'!J14)*(1+$I$7) -> 0.414982608 | K16: =(Metering!K14+'Metering | Escalation'!K14+'Metering | Capitalised OH'!K14)*(1+$I$7) -> 0.08638673502 | L16: =(Metering!L14+'Metering | Escalation'!L14+'Metering | Capitalised OH'!L14)*(1+$I$7) -> 0.03582026681 | M16: =(Metering!M14+'Metering | Escalation'!M14+'Metering | Capitalised OH'!M14)*(1+$I$7) -> 0.1672558859 | N16: =(Metering!N14+'Metering | Escalation'!N14+'Metering | Capitalised OH'!N14)*(1+$I$7) -> 0.1104120263 | P16: =SUM(J16:N16) -> 0.814857522
D18: Total | E18: =E10 -> Dollars | F18: Real $2019 | G18: End_Year | H18: =SUM(H10:H16) -> 2.03801118 | I18: =SUM(I10:I16) -> 4.311255458 | J18: 6.602377563 | K18: 3.697174337 | L18: 3.721448268 | M18: 7.297535469 | N18: 3.591265203 | P18: 24.90980084
D20: Check - Value | E20: Dollars | F20: Real $2019 | G20: End_Year | H20: =SUM('Metering:Metering | Capitalised OH'!H16)*(1+$I$7) -> 2.03801118 | I20: =SUM('Metering:Metering | Capitalised OH'!I16)*(1+$I$7) -> 4.311255458 | J20: =SUM('Metering:Metering | Capitalised OH'!J16)*(1+$I$7) -> 6.602377563 | K20: =SUM('Metering:Metering | Capitalised OH'!K16)*(1+$I$7) -> 3.697174337 | L20: =SUM('Metering:Metering | Capitalised OH'!L16)*(1+$I$7) -> 3.721448268 | M20: =SUM('Metering:Metering | Capitalised OH'!M16)*(1+$I$7) -> 7.297535469 | N20: =SUM('Metering:Metering | Capitalised OH'!N16)*(1+$I$7) -> 3.591265203 | P20: =SUM(J20:N20) -> 24.90980084
A21: =IF(SUM($H21:$P21)>0,1,0) -> 0 | D21: Check - Flag | H21: =IF(ROUND(H18-H20,4)=0,0,1) -> 0 | I21: =IF(ROUND(I18-I20,4)=0,0,1) -> 0 | J21: 0 | K21: 0 | L21: 0 | M21: 0 | N21: 0 | P21: 0
B23: End

Sheet Metering
B1: Metering Capital Expenditure
B3: Direct Capex Forecasts
C5: Direct Costs (Excluding Capitalised Overheads and Cost Escalation)
C7: Ref. | D7: Regulatory Asset Class | E7: Unit | F7: Basis | G7: Timing | H7: RY18 | I7: RY19 | J7: RY20 | K7: RY21 | L7: RY22 | M7: RY23 | N7: RY24 | P7: Total FY20 to FY24
C8: =N(C7)+1 -> 1 | D8: ='Metering total'!$D$10 -> Mechanical Meters | E8: Dollars | F8: Real $2018 | G8: End_Year | H8: =[5]Output_AER_Capex!J19 -> 0 | I8: =[5]Output_AER_Capex!K19 -> 0 | J8: =[5]Output_AER_Capex!L19 -> 0 | K8: =[5]Output_AER_Capex!M19 -> 0 | L8: =[5]Output_AER_Capex!N19 -> 0 | M8: =[5]Output_AER_Capex!O19 -> 0 | N8: =[5]Output_AER_Capex!P19 -> 0 | P8: =SUM(J8:N8) -> 0
C9: =N(C8)+1 -> 2 | D9: ='Metering total'!$D$11 -> Electronic Meters | E9: Dollars | F9: Real $2018 | G9: End_Year | H9: =[5]Output_AER_Capex!J20 -> 1.881476629 | I9: =[5]Output_AER_Capex!K20 -> 4.081783696 | J9: =[5]Output_AER_Capex!L20 -> 2.810607665 | K9: =[5]Output_AER_Capex!M20 -> 2.863185156 | L9: =[5]Output_AER_Capex!N20 -> 2.918438417 | M9: =[5]Output_AER_Capex!O20 -> 2.676422779 | N9: =[5]Output_AER_Capex!P20 -> 2.711666444 | P9: 13.98032046
C10: =N(C9)+1 -> 3 | D10: ='Metering total'!$D$12 -> Metering Communications | E10: Dollars | F10: Real $2018 | G10: End_Year | H10: =[5]Output_AER_Capex!J21 -> 0 | I10: =[5]Output_AER_Capex!K21 -> 0 | J10: =[5]Output_AER_Capex!L21 -> 2.621516123 | K10: =[5]Output_AER_Capex!M21 -> 0.1544100748 | L10: =[5]Output_AER_Capex!N21 -> 0.1572942118 | M10: =[5]Output_AER_Capex!O21 -> 3.73075118 | N10: =[5]Output_AER_Capex!P21 -> 0.1474678471 | P10: 6.811439437
C11: 4 | D11: ='Metering total'!$D$13 -> Metering Dedicated CTs and VTs | E11: Dollars | F11: Real $2018 | G11: End_Year | H11: =[5]Output_AER_Capex!J22 -> 0.10694 | I11: =[5]Output_AER_Capex!K22 -> 0.1070251321 | J11: =[5]Output_AER_Capex!L22 -> 0.1071166081 | K11: =[5]Output_AER_Capex!M22 -> 0.1072187943 | L11: =[5]Output_AER_Capex!N22 -> 0.1073421497 | M11: =[5]Output_AER_Capex!O22 -> 0.1074767421 | N11: =[5]Output_AER_Capex!P22 -> 0.1075915119 | P11: 0.5367458062
C12: 5 | D12: ='Metering total'!$D$14 -> Metering Non Network Other | E12: Dollars | F12: Real $2018 | G12: End_Year | H12: =[5]Output_AER_Capex!J23 -> 0 | I12: =[5]Output_AER_Capex!K23 -> 0 | J12: =[5]Output_AER_Capex!L23 -> 0 | K12: =[5]Output_AER_Capex!M23 -> 0 | L12: =[5]Output_AER_Capex!N23 -> 0 | M12: =[5]Output_AER_Capex!O23 -> 0 | N12: =[5]Output_AER_Capex!P23 -> 0 | P12: 0
C13: 6 | D13: ='Metering total'!$D$15 -> Metering Non Network IT and Communications | E13: Dollars | F13: Real $2018 | G13: End_Year | H13: =[5]Output_AER_Capex!J24 -> 0 | I13: =[5]Output_AER_Capex!K24 -> 0 | J13: =[5]Output_AER_Capex!L24 -> 0.106435 | K13: =[5]Output_AER_Capex!M24 -> 0 | L13: =[5]Output_AER_Capex!N24 -> 0 | M13: =[5]Output_AER_Capex!O24 -> 0 | N13: =[5]Output_AER_Capex!P24 -> 0 | P13: 0.106435
C14: 7 | D14: ='Metering total'!$D$16 -> Fleet leases | E14: Dollars | F14: Real $2018 | G14: End_Year | H14: =[5]Output_AER_Capex!J25 -> 0 | I14: =[5]Output_AER_Capex!K25 -> 0 | J14: =[5]Output_AER_Capex!L25 -> 0.37865 | K14: =[5]Output_AER_Capex!M25 -> 0.07476 | L14: =[5]Output_AER_Capex!N25 -> 0.030936 | M14: =[5]Output_AER_Capex!O25 -> 0.152815 | N14: =[5]Output_AER_Capex!P25 -> 0.094104 | P14: =SUM(J14:N14) -> 0.731265
D16: Total | E16: =E8 -> Dollars | F16: Real $2018 | G16: End_Year | H16: =SUM(H8:H14) -> 1.988416629 | I16: =SUM(I8:I14) -> 4.188808828 | J16: 6.024325396 | K16: 3.199574025 | L16: 3.214010779 | M16: 6.667465701 | N16: 3.060829803 | P16: 22.1662057
B18: End

Sheet Metering | Escalation
B1: Escalation on Direct Capex Forecasts - Metering
B3: Escalation Forecasts
C5: Cost Escalation on Direct Costs
C7: Ref. | D7: Regulatory Asset Class | E7: Unit | F7: Basis | G7: Timing | H7: RY18 | I7: RY19 | J7: RY20 | K7: RY21 | L7: RY22 | M7: RY23 | N7: RY24 | P7: Total FY20 to FY24
C8: =N(C7)+1 -> 1 | D8: ='Metering total'!$D$10 -> Mechanical Meters | E8: Dollars | F8: Real $2018 | G8: End_Year | H8: =H21*H$31-H21 -> 0 | I8: 0 | J8: 0 | K8: 0 | L8: 0 | M8: 0 | N8: 0 | P8: =SUM(J8:N8) -> 0
C9: 2 | D9: ='Metering total'!$D$11 -> Electronic Meters | E9: Dollars | F9: Real $2018 | G9: End_Year | H9: 0.004492966191 | I9: 0.02687330463 | J9: 0.01460243751 | K9: 0.01125478847 | L9: 0.01655794265 | M9: 0.02373380084 | N9: 0.03357521719 | P9: 0.09972418666
C10: 3 | D10: ='Metering total'!$D$12 -> Metering Communications | E10: Dollars | F10: Real $2018 | G10: End_Year | H10: 0 | I10: 0 | J10: 0.01362001743 | K10: 0.0006069648436 | L10: 0.0008924185357 | M10: 0.0330833029 | N10: 0.001825912256 | P10: 0.05002861596
C11: 4 | D11: ='Metering total'!$D$13 -> Metering Dedicated CTs and VTs | E11: Dollars | F11: Real $2018 | G11: End_Year | H11: 0.00025537272 | I11: 0.0007046230746 | J11: 0.0005565214939 | K11: 0.0004214623869 | L11: 0.0006090123912 | M11: 0.0009530749824 | N11: 0.001332172837 | P11: 0.003872244091
C12: 5 | D12: ='Metering total'!$D$14 -> Metering Non Network Other | E12: Dollars | F12: Real $2018 | G12: End_Year | H12: 0 | I12: 0 | J12: 0 | K12: 0 | L12: 0 | M12: 0 | N12: 0 | P12: 0
C13: 6 | D13: ='Metering total'!$D$15 -> Metering Non Network IT and Communications | E13: Dollars | F13: Real $2018 | G13: End_Year | H13: 0 | I13: 0 | J13: 0.000552980217 | K13: 0 | L13: 0 | M13: 0 | N13: 0 | P13: 0.000552980217
C14: 7 | D14: ='Metering total'!$D$16 -> Fleet leases | E14: Dollars | F14: Real $2018 | G14: End_Year | H14: 0 | I14: 0 | J14: 0.001967266023 | K14: 0.0002938713148 | L14: 0.0001755173283 | M14: 0.001355122518 | N14: 0.001165173631 | P14: =SUM(J14:N14) -> 0.004956950816
D16: Total | E16: =E8 -> Dollars | F16: Real $2018 | G16: End_Year | H16: =SUM(H8:H14) -> 0.004748338911 | I16: =SUM(I8:I14) -> 0.0275779277 | J16: 0.03129922267 | K16: 0.01257708702 | L16: 0.01823489091 | M16: 0.05912530124 | N16: 0.03789847591 | P16: 0.1591349777
B18: Workings - Total Direct Costs Requiring Escalation
C20: Ref. | D20: Regulatory Asset Class | E20: Unit | F20: Basis | G20: Timing | H20: RY18 | I20: RY19 | J20: RY20 | K20: RY21 | L20: RY22 | M20: RY23 | N20: RY24
C21: 1 | D21: ='Metering total'!$D$10 -> Mechanical Meters | E21: Dollars | F21: Real $2018 | G21: End_Year | H21: =Metering!H8 -> 0 | I21: =Metering!I8 -> 0 | J21: =Metering!J8 -> 0 | K21: =Metering!K8 -> 0 | L21: =Metering!L8 -> 0 | M21: =Metering!M8 -> 0 | N21: =Metering!N8 -> 0
C22: 2 | D22: ='Metering total'!$D$11 -> Electronic Meters | E22: Dollars | F22: Real $2018 | G22: End_Year | H22: =Metering!H9 -> 1.881476629 | I22: =Metering!I9 -> 4.081783696 | J22: =Metering!J9 -> 2.810607665 | K22: =Metering!K9 -> 2.863185156 | L22: =Metering!L9 -> 2.918438417 | M22: =Metering!M9 -> 2.676422779 | N22: =Metering!N9 -> 2.711666444
C23: 3 | D23: ='Metering total'!$D$12 -> Metering Communications | E23: Dollars | F23: Real $2018 | G23: End_Year | H23: =Metering!H10 -> 0 | I23: =Metering!I10 -> 0 | J23: =Metering!J10 -> 2.621516123 | K23: =Metering!K10 -> 0.1544100748 | L23: =Metering!L10 -> 0.1572942118 | M23: =Metering!M10 -> 3.73075118 | N23: =Metering!N10 -> 0.1474678471
C24: 4 | D24: ='Metering total'!$D$13 -> Metering Dedicated CTs and VTs | E24: Dollars | F24: Real $2018 | G24: End_Year | H24: =Metering!H11 -> 0.10694 | I24: =Metering!I11 -> 0.1070251321 | J24: =Metering!J11 -> 0.1071166081 | K24: =Metering!K11 -> 0.1072187943 | L24: =Metering!L11 -> 0.1073421497 | M24: =Metering!M11 -> 0.1074767421 | N24: =Metering!N11 -> 0.1075915119
C25: 5 | D25: ='Metering total'!$D$14 -> Metering Non Network Other | E25: Dollars | F25: Real $2018 | G25: End_Year | H25: =Metering!H12 -> 0 | I25: =Metering!I12 -> 0 | J25: =Metering!J12 -> 0 | K25: =Metering!K12 -> 0 | L25: =Metering!L12 -> 0 | M25: =Metering!M12 -> 0 | N25: =Metering!N12 -> 0
C26: 6 | D26: ='Metering total'!$D$15 -> Metering Non Network IT and Communications | E26: Dollars | F26: Real $2018 | G26: End_Year | H26: =Metering!H13 -> 0 | I26: =Metering!I13 -> 0 | J26: =Metering!J13 -> 0.106435 | K26: =Metering!K13 -> 0 | L26: =Metering!L13 -> 0 | M26: =Metering!M13 -> 0 | N26: =Metering!N13 -> 0
C27: 6 | D27: ='Metering total'!$D$16 -> Fleet leases | E27: Dollars | F27: Real $2018 | G27: End_Year | H27: =Metering!H14 -> 0 | I27: =Metering!I14 -> 0 | J27: =Metering!J14 -> 0.37865 | K27: =Metering!K14 -> 0.07476 | L27: =Metering!L14 -> 0.030936 | M27: =Metering!M14 -> 0.152815 | N27: =Metering!N14 -> 0.094104
D29: Total | E29: Dollars | F29: Real $2018 | G29: End_Year | H29: =SUM(H21:H27) -> 1.988416629 | I29: =SUM(I21:I27) -> 4.188808828 | J29: 6.024325396 | K29: 3.199574025 | L29: 3.214010779 | M29: 6.667465701 | N29: 3.060829803
D31: =Escalation!D52 -> Applied Escalation Profile | E31: =Escalation!E52 -> Factor | F31: =Escalation!F52 -> N/A | G31: =Escalation!G52 -> N/A | H31: =Escalation!H52 -> 1.002388 | I31: =Escalation!I52 -> 1.006583716 | J31: =Escalation!J52 -> 1.005195473 | K31: =Escalation!K52 -> 1.003930863 | L31: =Escalation!L52 -> 1.005673562 | M31: =Escalation!M52 -> 1.008867732 | N31: =Escalation!N52 -> 1.012381765 | P31: Note: Sourced from the 'Escalation' sheet
B33: End

Sheet Metering | Capitalised OH
B1: Capitalised Overheads Forecast - Metering
B3: =B1 -> Capitalised Overheads Forecast - Metering
C5: Escalated Capitalised Overheads
C7: Ref. | D7: Regulatory Asset Class | E7: Unit | F7: Basis | G7: Timing | H7: RY18 | I7: RY19 | J7: RY20 | K7: RY21 | L7: RY22 | M7: RY23 | N7: RY24 | P7: Total FY20 to FY24
C8: =N(C7)+1 -> 1 | D8: ='Metering total'!$D$10 -> Mechanical Meters | E8: Dollars | F8: Real $2018 | G8: End_Year | H8: 0 | I8: 0 | J8: =IF(OR($P28="No",SUMIF($P$28:$P$34,"Yes",J$28:J$34)=0),0,J28/SUMIF($P$28:$P$34,"Yes",J$28:J$34))*J$23 -> 0 | K8: 0 | L8: 0 | M8: 0 | N8: 0 | P8: =SUM(J8:N8) -> 0
C9: =N(C8)+1 -> 2 | D9: ='Metering total'!$D$11 -> Electronic Meters | E9: Dollars | F9: Real $2018 | G9: End_Year | H9: 0 | I9: 0 | J9: =IF(OR($P29="No",SUMIF($P$28:$P$34,"Yes",J$28:J$34)=0),0,J29/SUMIF($P$28:$P$34,"Yes",J$28:J$34))*J$23 -> 0.1873023043 | K9: 0.3612275395 | L9: 0.3698545659 | M9: 0.1647259896 | N9: 0.3663403085 | P9: 1.449450708
C10: 3 | D10: ='Metering total'!$D$12 -> Metering Communications | E10: Dollars | F10: Real $2018 | G10: End_Year | H10: 0 | I10: 0 | J10: =IF(OR($P30="No",SUMIF($P$28:$P$34,"Yes",J$28:J$34)=0),0,J30/SUMIF($P$28:$P$34,"Yes",J$28:J$34))*J$23 -> 0.1747010146 | K10: 0.01948081188 | L10: 0.0199339421 | M10: 0.2296168173 | N10: 0.01992258919 | P10: 0.463655175
C11: 4 | D11: ='Metering total'!$D$13 -> Metering Dedicated CTs and VTs | E11: Dollars | F11: Real $2018 | G11: End_Year | H11: 0 | I11: 0 | J11: =IF(OR($P31="No",SUMIF($P$28:$P$34,"Yes",J$28:J$34)=0),0,J31/SUMIF($P$28:$P$34,"Yes",J$28:J$34))*J$23 -> 0.007138380708 | K11: 0.01352702642 | L11: 0.01360350246 | M11: 0.006614878953 | N11: 0.01453538202 | P11: 0.05541917055
C12: 5 | D12: ='Metering total'!$D$14 -> Metering Non Network Other | E12: Dollars | F12: Real $2018 | G12: End_Year | H12: 0 | I12: 0 | J12: =IF(OR($P32="No",SUMIF($P$28:$P$34,"Yes",J$28:J$34)=0),0,J32/SUMIF($P$28:$P$34,"Yes",J$28:J$34))*J$23 -> 0 | K12: 0 | L12: 0 | M12: 0 | N12: 0 | P12: 0
C13: 6 | D13: ='Metering total'!$D$15 -> Metering Non Network IT and Communications | E13: Dollars | F13: Real $2018 | G13: End_Year | H13: 0 | I13: 0 | J13: =IF(OR($P33="No",SUMIF($P$28:$P$34,"Yes",J$28:J$34)=0),0,J33/SUMIF($P$28:$P$34,"Yes",J$28:J$34))*J$23 -> 0.007092957516 | K13: 0 | L13: 0 | M13: 0 | N13: 0 | P13: 0.007092957516
C14: 7 | D14: ='Metering total'!$D$16 -> Fleet leases | E14: Dollars | F14: Real $2018 | G14: End_Year | H14: 0 | I14: 0 | J14: =IF(OR($P34="No",SUMIF($P$28:$P$34,"Yes",J$28:J$34)=0),0,J34/SUMIF($P$28:$P$34,"Yes",J$28:J$34))*J$23 -> 0.02523369534 | K14: =IF(OR($P34="No",SUMIF($P$28:$P$34,"Yes",K$28:K$34)=0),0,K34/SUMIF($P$28:$P$34,"Yes",K$28:K$34))*K$23 -> 0.009431933102 | L14: 0.003920528452 | M14: 0.009405316043 | N14: 0.01271324815 | P14: =SUM(J14:N14) -> 0.06070472108
D16: Total | E16: =E8 -> Dollars | F16: Real $2018 | G16: End_Year | H16: =SUM(H8:H14) -> 0 | I16: =SUM(I8:I14) -> 0 | J16: 0.4014683525 | K16: 0.4036673109 | L16: 0.4073125389 | M16: 0.4103630018 | N16: 0.4135115279 | P16: 2.036322732
B18: Capitalised Overheads to be allocated
C20: Ref. | D20: Regulatory Asset Class | E20: Unit | F20: Basis | G20: Timing | H20: RY18 | I20: RY19 | J20: RY20 | K20: RY21 | L20: RY22 | M20: RY23 | N20: RY24
C21: =N(C20)+1 -> 1 | D21: Direct Unescalated Capitalised Overheads | E21: Dollars | F21: Real $2018 | G21: End_Year | H21: 0.3970583786 | I21: N/A | J21: N/A | K21: N/A | L21: N/A | M21: N/A | N21: N/A | P21: Note: Sourced from SCS Opex Model and the DAE LPI values for RY18 and RY19 from its Feb 2017 report for SA (Table 7.1)
C22: =N(C21)+1 -> 2 | D22: ='Capitalised OH'!D31 -> Overall Rate of Change | E22: ='Capitalised OH'!E31 -> Percent | F22: ='Capitalised OH'!F31 -> N/A | G22: ='Capitalised OH'!G31 -> N/A | H22: ='Capitalised OH'!H31 -> N/A | I22: ='Capitalised OH'!I31 -> 0.006791142344 | J22: ='Capitalised OH'!J31 -> 0.004286361612 | K22: ='Capitalised OH'!K31 -> 0.005477289418 | L22: ='Capitalised OH'!L31 -> 0.009030277942 | M22: ='Capitalised OH'!M31 -> 0.007489243956 | N22: ='Capitalised OH'!N31 -> 0.007672538791
C23: 3 | D23: Total Capitalised Overheads | E23: Dollars | F23: Real $2018 | G23: End_Year | H23: =H21 -> 0.3970583786 | I23: =H23*(1+I22) -> 0.3997548586 | J23: =I23*(1+J22) -> 0.4014683525 | K23: 0.4036673109 | L23: 0.4073125389 | M23: 0.4103630018 | N23: 0.4135115279
B25: Share of Direct Costs
C27: Ref. | D27: Regulatory Asset Class | E27: Unit | F27: Basis | G27: Timing | H27: RY18 | I27: RY19 | J27: RY20 | K27: RY21 | L27: RY22 | M27: RY23 | N27: RY24 | P27: Allocated OH?
C28: 1 | D28: ='Metering total'!$D$10 -> Mechanical Meters | E28: Dollars | F28: Real $2018 | G28: End_Year | H28: =IF('Metering | Escalation'!H$29=0,0,'Metering | Escalation'!H21/'Metering | Escalation'!H$29) -> 0 | I28: =IF('Metering | Escalation'!I$29=0,0,'Metering | Escalation'!I21/'Metering | Escalation'!I$29) -> 0 | J28: =IF('Metering | Escalation'!J$29=0,0,'Metering | Escalation'!J21/'Metering | Escalation'!J$29) -> 0 | K28: =IF('Metering | Escalation'!K$29=0,0,'Metering | Escalation'!K21/'Metering | Escalation'!K$29) -> 0 | L28: =IF('Metering | Escalation'!L$29=0,0,'Metering | Escalation'!L21/'Metering | Escalation'!L$29) -> 0 | M28: =IF('Metering | Escalation'!M$29=0,0,'Metering | Escalation'!M21/'Metering | Escalation'!M$29) -> 0 | N28: =IF('Metering | Escalation'!N$29=0,0,'Metering | Escalation'!N21/'Metering | Escalation'!N$29) -> 0 | P28: Yes
C29: 2 | D29: ='Metering total'!$D$11 -> Electronic Meters | E29: Dollars | F29: Real $2018 | G29: End_Year | H29: =IF('Metering | Escalation'!H$29=0,0,'Metering | Escalation'!H22/'Metering | Escalation'!H$29) -> 0.9462185146 | I29: =IF('Metering | Escalation'!I$29=0,0,'Metering | Escalation'!I22/'Metering | Escalation'!I$29) -> 0.9744497454 | J29: =IF('Metering | Escalation'!J$29=0,0,'Metering | Escalation'!J22/'Metering | Escalation'!J$29) -> 0.4665431364 | K29: =IF('Metering | Escalation'!K$29=0,0,'Metering | Escalation'!K22/'Metering | Escalation'!K$29) -> 0.8948644831 | L29: =IF('Metering | Escalation'!L$29=0,0,'Metering | Escalation'!L22/'Metering | Escalation'!L$29) -> 0.908036288 | M29: =IF('Metering | Escalation'!M$29=0,0,'Metering | Escalation'!M22/'Metering | Escalation'!M$29) -> 0.4014153051 | N29: =IF('Metering | Escalation'!N$29=0,0,'Metering | Escalation'!N22/'Metering | Escalation'!N$29) -> 0.8859252616 | P29: Yes
C30: 3 | D30: ='Metering total'!$D$12 -> Metering Communications | E30: Dollars | F30: Real $2018 | G30: End_Year | H30: =IF('Metering | Escalation'!H$29=0,0,'Metering | Escalation'!H23/'Metering | Escalation'!H$29) -> 0 | I30: =IF('Metering | Escalation'!I$29=0,0,'Metering | Escalation'!I23/'Metering | Escalation'!I$29) -> 0 | J30: =IF('Metering | Escalation'!J$29=0,0,'Metering | Escalation'!J23/'Metering | Escalation'!J$29) -> 0.4351551337 | K30: =IF('Metering | Escalation'!K$29=0,0,'Metering | Escalation'!K23/'Metering | Escalation'!K$29) -> 0.04825957256 | L30: =IF('Metering | Escalation'!L$29=0,0,'Metering | Escalation'!L23/'Metering | Escalation'!L$29) -> 0.04894016314 | M30: =IF('Metering | Escalation'!M$29=0,0,'Metering | Escalation'!M23/'Metering | Escalation'!M$29) -> 0.5595456126 | N30: =IF('Metering | Escalation'!N$29=0,0,'Metering | Escalation'!N23/'Metering | Escalation'!N$29) -> 0.04817904181 | P30: Yes
C31: 4 | D31: ='Metering total'!$D$13 -> Metering Dedicated CTs and VTs | E31: Dollars | F31: Real $2018 | G31: End_Year | H31: =IF('Metering | Escalation'!H$29=0,0,'Metering | Escalation'!H24/'Metering | Escalation'!H$29) -> 0.05378148544 | I31: =IF('Metering | Escalation'!I$29=0,0,'Metering | Escalation'!I24/'Metering | Escalation'!I$29) -> 0.02555025462 | J31: =IF('Metering | Escalation'!J$29=0,0,'Metering | Escalation'!J24/'Metering | Escalation'!J$29) -> 0.017780681 | K31: =IF('Metering | Escalation'!K$29=0,0,'Metering | Escalation'!K24/'Metering | Escalation'!K$29) -> 0.03351033401 | L31: =IF('Metering | Escalation'!L$29=0,0,'Metering | Escalation'!L24/'Metering | Escalation'!L$29) -> 0.0333981922 | M31: =IF('Metering | Escalation'!M$29=0,0,'Metering | Escalation'!M24/'Metering | Escalation'!M$29) -> 0.01611957931 | N31: =IF('Metering | Escalation'!N$29=0,0,'Metering | Escalation'!N24/'Metering | Escalation'!N$29) -> 0.03515109262 | P31: Yes
C32: 5 | D32: ='Metering total'!$D$14 -> Metering Non Network Other | E32: Dollars | F32: Real $2018 | G32: End_Year | H32: =IF('Metering | Escalation'!H$29=0,0,'Metering | Escalation'!H25/'Metering | Escalation'!H$29) -> 0 | I32: =IF('Metering | Escalation'!I$29=0,0,'Metering | Escalation'!I25/'Metering | Escalation'!I$29) -> 0 | J32: =IF('Metering | Escalation'!J$29=0,0,'Metering | Escalation'!J25/'Metering | Escalation'!J$29) -> 0 | K32: =IF('Metering | Escalation'!K$29=0,0,'Metering | Escalation'!K25/'Metering | Escalation'!K$29) -> 0 | L32: =IF('Metering | Escalation'!L$29=0,0,'Metering | Escalation'!L25/'Metering | Escalation'!L$29) -> 0 | M32: =IF('Metering | Escalation'!M$29=0,0,'Metering | Escalation'!M25/'Metering | Escalation'!M$29) -> 0 | N32: =IF('Metering | Escalation'!N$29=0,0,'Metering | Escalation'!N25/'Metering | Escalation'!N$29) -> 0 | P32: Yes
C33: 6 | D33: ='Metering total'!$D$15 -> Metering Non Network IT and Communications | E33: Dollars | F33: Real $2018 | G33: End_Year | H33: =IF('Metering | Escalation'!H$29=0,0,'Metering | Escalation'!H26/'Metering | Escalation'!H$29) -> 0 | I33: =IF('Metering | Escalation'!I$29=0,0,'Metering | Escalation'!I26/'Metering | Escalation'!I$29) -> 0 | J33: =IF('Metering | Escalation'!J$29=0,0,'Metering | Escalation'!J26/'Metering | Escalation'!J$29) -> 0.01766753835 | K33: =IF('Metering | Escalation'!K$29=0,0,'Metering | Escalation'!K26/'Metering | Escalation'!K$29) -> 0 | L33: =IF('Metering | Escalation'!L$29=0,0,'Metering | Escalation'!L26/'Metering | Escalation'!L$29) -> 0 | M33: =IF('Metering | Escalation'!M$29=0,0,'Metering | Escalation'!M26/'Metering | Escalation'!M$29) -> 0 | N33: =IF('Metering | Escalation'!N$29=0,0,'Metering | Escalation'!N26/'Metering | Escalation'!N$29) -> 0 | P33: Yes
C34: 6 | D34: ='Metering total'!$D$16 -> Fleet leases | E34: Dollars | F34: Real $2018 | G34: End_Year | H34: =IF('Metering | Escalation'!H$29=0,0,'Metering | Escalation'!H27/'Metering | Escalation'!H$29) -> 0 | I34: =IF('Metering | Escalation'!I$29=0,0,'Metering | Escalation'!I27/'Metering | Escalation'!I$29) -> 0 | J34: =IF('Metering | Escalation'!J$29=0,0,'Metering | Escalation'!J27/'Metering | Escalation'!J$29) -> 0.06285351057 | K34: =IF('Metering | Escalation'!K$29=0,0,'Metering | Escalation'!K27/'Metering | Escalation'!K$29) -> 0.02336561036 | L34: =IF('Metering | Escalation'!L$29=0,0,'Metering | Escalation'!L27/'Metering | Escalation'!L$29) -> 0.009625356643 | M34: =IF('Metering | Escalation'!M$29=0,0,'Metering | Escalation'!M27/'Metering | Escalation'!M$29) -> 0.02291950298 | N34: =IF('Metering | Escalation'!N$29=0,0,'Metering | Escalation'!N27/'Metering | Escalation'!N$29) -> 0.03074460393 | P34: Yes
D36: Total | E36: Dollars | F36: Real $2018 | G36: End_Year | H36: =SUM(H28:H34) -> 1 | I36: =SUM(I28:I34) -> 1 | J36: 1 | K36: 1 | L36: 1 | M36: 1 | N36: 1
B38: End

Sheet Repex -->
B8: Repex

Sheet BNI 1
B1: =MID(CELL("filename",A1),FIND("]",CELL("filename",A1))+1,255)&" Capital Expenditure" -> BNI 1 Capital Expenditure | G1: COMMERCIAL IN CONFIDENCE
B3: Direct Capex Forecasts
C5: BNI Description
D7: Requirement | E7: Description
D8: Expenditure category | E8: Distribution Lines
D9: Project / program number | E9: PRA34420
D10: Project / program description | E10: Alice Springs Corroded Poles
C12: Direct Costs (Excluding Capitalised Overheads and Cost Escalation)
C14: Ref. | D14: Regulatory Asset Class | E14: Unit | F14: Basis | G14: Timing | H14: RY18 | I14: RY19 | J14: RY20 | K14: RY21 | L14: RY22 | M14: RY23 | N14: RY24 | P14: Total FY20 to FY24
C15: =N(C14)+1 -> 1 | D15: Substations | E15: Dollars | F15: Real $2018 | G15: End_Year | H15: c-i-c | I15: c-i-c | J15: c-i-c | K15: c-i-c | L15: c-i-c | M15: c-i-c | N15: c-i-c | P15: =SUM(J15:N15) -> 0
C16: =N(C15)+1 -> 2 | D16: Distribution Lines | E16: Dollars | F16: Real $2018 | G16: End_Year | H16: c-i-c | I16: c-i-c | J16: c-i-c | K16: c-i-c | L16: c-i-c | M16: c-i-c | N16: c-i-c | P16: 0
C17: 3 | D17: Transmission Lines | E17: Dollars | F17: Real $2018 | G17: End_Year | H17: c-i-c | I17: c-i-c | J17: c-i-c | K17: c-i-c | L17: c-i-c | M17: c-i-c | N17: c-i-c | P17: 0
C18: 4 | D18: LV Services | E18: Dollars | F18: Real $2018 | G18: End_Year | H18: c-i-c | I18: c-i-c | J18: c-i-c | K18: c-i-c | L18: c-i-c | M18: c-i-c | N18: c-i-c | P18: 0
C19: 5 | D19: Distribution Substations | E19: Dollars | F19: Real $2018 | G19: End_Year | H19: c-i-c | I19: c-i-c | J19: c-i-c | K19: c-i-c | L19: c-i-c | M19: c-i-c | N19: c-i-c | P19: 0
C20: 6 | D20: Distribution Switchgear | E20: Dollars | F20: Real $2018 | G20: End_Year | H20: c-i-c | I20: c-i-c | J20: c-i-c | K20: c-i-c | L20: c-i-c | M20: c-i-c | N20: c-i-c | P20: 0
C21: 7 | D21: Protection | E21: Dollars | F21: Real $2018 | G21: End_Year | H21: c-i-c | I21: c-i-c | J21: c-i-c | K21: c-i-c | L21: c-i-c | M21: c-i-c | N21: c-i-c | P21: 0
C22: 8 | D22: SCADA | E22: Dollars | F22: Real $2018 | G22: End_Year | H22: c-i-c | I22: c-i-c | J22: c-i-c | K22: c-i-c | L22: c-i-c | M22: c-i-c | N22: c-i-c | P22: 0
C23: 9 | D23: Communications | E23: Dollars | F23: Real $2018 | G23: End_Year | H23: c-i-c | I23: c-i-c | J23: c-i-c | K23: c-i-c | L23: c-i-c | M23: c-i-c | N23: c-i-c | P23: 0
C24: 10 | D24: Land and Easements | E24: Dollars | F24: Real $2018 | G24: End_Year | H24: c-i-c | I24: c-i-c | J24: c-i-c | K24: c-i-c | L24: c-i-c | M24: c-i-c | N24: c-i-c | P24: 0
C25: 11 | D25: Property | E25: Dollars | F25: Real $2018 | G25: End_Year | H25: c-i-c | I25: c-i-c | J25: c-i-c | K25: c-i-c | L25: c-i-c | M25: c-i-c | N25: c-i-c | P25: 0
C26: 12 | D26: IT and Communications | E26: Dollars | F26: Real $2018 | G26: End_Year | H26: c-i-c | I26: c-i-c | J26: c-i-c | K26: c-i-c | L26: c-i-c | M26: c-i-c | N26: c-i-c | P26: 0
C27: 13 | D27: Motor Vehicles | E27: Dollars | F27: Real $2018 | G27: End_Year | H27: c-i-c | I27: c-i-c | J27: c-i-c | K27: c-i-c | L27: c-i-c | M27: c-i-c | N27: c-i-c | P27: 0
C28: 14 | D28: Plant and Equipment | E28: Dollars | F28: Real $2018 | G28: End_Year | H28: c-i-c | I28: c-i-c | J28: c-i-c | K28: c-i-c | L28: c-i-c | M28: c-i-c | N28: c-i-c | P28: 0
C29: 15 | D29: Property Leases | E29: Dollars | F29: Real $2018 | G29: End_Year | H29: c-i-c | I29: c-i-c | J29: c-i-c | K29: c-i-c | L29: c-i-c | M29: c-i-c | N29: c-i-c | P29: =SUM(J29:N29) -> 0
C30: 16 | D30: Fleet Leases | E30: Dollars | F30: Real $2018 | G30: End_Year | H30: c-i-c | I30: c-i-c | J30: c-i-c | K30: c-i-c | L30: c-i-c | M30: c-i-c | N30: c-i-c | P30: 0
E32: =E15 -> Dollars | F32: Real $2018 | G32: End_Year | H32: =SUM(H15:H30) -> 0 | I32: =SUM(I15:I30) -> 0 | J32: 0 | K32: 0 | L32: 0 | M32: 0 | N32: 0 | P32: 0
B34: End

Sheet BNI 2
B1: =MID(CELL("filename",A1),FIND("]",CELL("filename",A1))+1,255)&" Capital Expenditure" -> BNI 2 Capital Expenditure | G1: COMMERCIAL IN CONFIDENCE
B3: Direct Capex Forecasts
C5: BNI Description
D7: Requirement | E7: Description
D8: Expenditure category | E8: Substations
D9: Project / program number | E9: PRD30402
D10: Project / program description | E10: Darwin - Replace Berrimah ZSS
C12: Direct Costs (Excluding Capitalised Overheads and Cost Escalation)
C14: Ref. | D14: Regulatory Asset Class | E14: Unit | F14: Basis | G14: Timing | H14: RY18 | I14: RY19 | J14: RY20 | K14: RY21 | L14: RY22 | M14: RY23 | N14: RY24 | P14: Total FY20 to FY24
C15: =N(C14)+1 -> 1 | D15: Substations | E15: Dollars | F15: Real $2018 | G15: End_Year | H15: c-i-c | I15: c-i-c | J15: c-i-c | K15: c-i-c | L15: c-i-c | M15: c-i-c | N15: c-i-c | P15: =SUM(J15:N15) -> 0
C16: =N(C15)+1 -> 2 | D16: Distribution Lines | E16: Dollars | F16: Real $2018 | G16: End_Year | H16: c-i-c | I16: c-i-c | J16: c-i-c | K16: c-i-c | L16: c-i-c | M16: c-i-c | N16: c-i-c | P16: 0
C17: 3 | D17: Transmission Lines | E17: Dollars | F17: Real $2018 | G17: End_Year | H17: c-i-c | I17: c-i-c | J17: c-i-c | K17: c-i-c | L17: c-i-c | M17: c-i-c | N17: c-i-c | P17: 0
C18: 4 | D18: LV Services | E18: Dollars | F18: Real $2018 | G18: End_Year | H18: c-i-c | I18: c-i-c | J18: c-i-c | K18: c-i-c | L18: c-i-c | M18: c-i-c | N18: c-i-c | P18: 0
C19: 5 | D19: Distribution Substations | E19: Dollars | F19: Real $2018 | G19: End_Year | H19: c-i-c | I19: c-i-c | J19: c-i-c | K19: c-i-c | L19: c-i-c | M19: c-i-c | N19: c-i-c | P19: 0
C20: 6 | D20: Distribution Switchgear | E20: Dollars | F20: Real $2018 | G20: End_Year | H20: c-i-c | I20: c-i-c | J20: c-i-c | K20: c-i-c | L20: c-i-c | M20: c-i-c | N20: c-i-c | P20: 0
C21: 7 | D21: Protection | E21: Dollars | F21: Real $2018 | G21: End_Year | H21: c-i-c | I21: c-i-c | J21: c-i-c | K21: c-i-c | L21: c-i-c | M21: c-i-c | N21: c-i-c | P21: 0
C22: 8 | D22: SCADA | E22: Dollars | F22: Real $2018 | G22: End_Year | H22: c-i-c | I22: c-i-c | J22: c-i-c | K22: c-i-c | L22: c-i-c | M22: c-i-c | N22: c-i-c | P22: 0
C23: 9 | D23: Communications | E23: Dollars | F23: Real $2018 | G23: End_Year | H23: c-i-c | I23: c-i-c | J23: c-i-c | K23: c-i-c | L23: c-i-c | M23: c-i-c | N23: c-i-c | P23: 0
C24: 10 | D24: Land and Easements | E24: Dollars | F24: Real $2018 | G24: End_Year | H24: c-i-c | I24: c-i-c | J24: c-i-c | K24: c-i-c | L24: c-i-c | M24: c-i-c | N24: c-i-c | P24: 0
C25: 11 | D25: Property | E25: Dollars | F25: Real $2018 | G25: End_Year | H25: c-i-c | I25: c-i-c | J25: c-i-c | K25: c-i-c | L25: c-i-c | M25: c-i-c | N25: c-i-c | P25: 0
C26: 12 | D26: IT and Communications | E26: Dollars | F26: Real $2018 | G26: End_Year | H26: c-i-c | I26: c-i-c | J26: c-i-c | K26: c-i-c | L26: c-i-c | M26: c-i-c | N26: c-i-c | P26: 0
C27: 13 | D27: Motor Vehicles | E27: Dollars | F27: Real $2018 | G27: End_Year | H27: c-i-c | I27: c-i-c | J27: c-i-c | K27: c-i-c | L27: c-i-c | M27: c-i-c | N27: c-i-c | P27: 0
C28: 14 | D28: Plant and Equipment | E28: Dollars | F28: Real $2018 | G28: End_Year | H28: c-i-c | I28: c-i-c | J28: c-i-c | K28: c-i-c | L28: c-i-c | M28: c-i-c | N28: c-i-c | P28: 0
C29: 15 | D29: Property Leases | E29: Dollars | F29: Real $2018 | G29: End_Year | H29: c-i-c | I29: c-i-c | J29: c-i-c | K29: c-i-c | L29: c-i-c | M29: c-i-c | N29: c-i-c | P29: =SUM(J29:N29) -> 0
C30: 16 | D30: Fleet Leases | E30: Dollars | F30: Real $2018 | G30: End_Year | H30: c-i-c | I30: c-i-c | J30: c-i-c | K30: c-i-c | L30: c-i-c | M30: c-i-c | N30: c-i-c | P30: 0
E32: =E15 -> Dollars | F32: Real $2018 | G32: End_Year | H32: =SUM(H15:H30) -> 0 | I32: =SUM(I15:I30) -> 0 | J32: 0 | K32: 0 | L32: 0 | M32: 0 | N32: 0 | P32: 0
B34: End

Sheet BNI 3
B1: =MID(CELL("filename",A1),FIND("]",CELL("filename",A1))+1,255)&" Capital Expenditure" -> BNI 3 Capital Expenditure | G1: COMMERCIAL IN CONFIDENCE
B3: Direct Capex Forecasts
C5: BNI Description
D7: Requirement | E7: Description
D8: Expenditure category | E8: Protection and SCADA
D9: Project / program number | E9: PRD32117
D10: Project / program description | E10: Darwin - Upgrade DKTL Secondary Systems
C12: Direct Costs (Excluding Capitalised Overheads and Cost Escalation)
C14: Ref. | D14: Regulatory Asset Class | E14: Unit | F14: Basis | G14: Timing | H14: RY18 | I14: RY19 | J14: RY20 | K14: RY21 | L14: RY22 | M14: RY23 | N14: RY24 | P14: Total FY20 to FY24
C15: =N(C14)+1 -> 1 | D15: Substations | E15: Dollars | F15: Real $2018 | G15: End_Year | H15: c-i-c | I15: c-i-c | J15: c-i-c | K15: c-i-c | L15: c-i-c | M15: c-i-c | N15: c-i-c | P15: =SUM(J15:N15) -> 0
C16: =N(C15)+1 -> 2 | D16: Distribution Lines | E16: Dollars | F16: Real $2018 | G16: End_Year | H16: c-i-c | I16: c-i-c | J16: c-i-c | K16: c-i-c | L16: c-i-c | M16: c-i-c | N16: c-i-c | P16: 0
C17: 3 | D17: Transmission Lines | E17: Dollars | F17: Real $2018 | G17: End_Year | H17: c-i-c | I17: c-i-c | J17: c-i-c | K17: c-i-c | L17: c-i-c | M17: c-i-c | N17: c-i-c | P17: 0
C18: 4 | D18: LV Services | E18: Dollars | F18: Real $2018 | G18: End_Year | H18: c-i-c | I18: c-i-c | J18: c-i-c | K18: c-i-c | L18: c-i-c | M18: c-i-c | N18: c-i-c | P18: 0
C19: 5 | D19: Distribution Substations | E19: Dollars | F19: Real $2018 | G19: End_Year | H19: c-i-c | I19: c-i-c | J19: c-i-c | K19: c-i-c | L19: c-i-c | M19: c-i-c | N19: c-i-c | P19: 0
C20: 6 | D20: Distribution Switchgear | E20: Dollars | F20: Real $2018 | G20: End_Year | H20: c-i-c | I20: c-i-c | J20: c-i-c | K20: c-i-c | L20: c-i-c | M20: c-i-c | N20: c-i-c | P20: 0
C21: 7 | D21: Protection | E21: Dollars | F21: Real $2018 | G21: End_Year | H21: c-i-c | I21: c-i-c | J21: c-i-c | K21: c-i-c | L21: c-i-c | M21: c-i-c | N21: c-i-c | P21: 0
C22: 8 | D22: SCADA | E22: Dollars | F22: Real $2018 | G22: End_Year | H22: c-i-c | I22: c-i-c | J22: c-i-c | K22: c-i-c | L22: c-i-c | M22: c-i-c | N22: c-i-c | P22: 0
C23: 9 | D23: Communications | E23: Dollars | F23: Real $2018 | G23: End_Year | H23: c-i-c | I23: c-i-c | J23: c-i-c | K23: c-i-c | L23: c-i-c | M23: c-i-c | N23: c-i-c | P23: 0
C24: 10 | D24: Land and Easements | E24: Dollars | F24: Real $2018 | G24: End_Year | H24: c-i-c | I24: c-i-c | J24: c-i-c | K24: c-i-c | L24: c-i-c | M24: c-i-c | N24: c-i-c | P24: 0
C25: 11 | D25: Property | E25: Dollars | F25: Real $2018 | G25: End_Year | H25: c-i-c | I25: c-i-c | J25: c-i-c | K25: c-i-c | L25: c-i-c | M25: c-i-c | N25: c-i-c | P25: 0
C26: 12 | D26: IT and Communications | E26: Dollars | F26: Real $2018 | G26: End_Year | H26: c-i-c | I26: c-i-c | J26: c-i-c | K26: c-i-c | L26: c-i-c | M26: c-i-c | N26: c-i-c | P26: 0
C27: 13 | D27: Motor Vehicles | E27: Dollars | F27: Real $2018 | G27: End_Year | H27: c-i-c | I27: c-i-c | J27: c-i-c | K27: c-i-c | L27: c-i-c | M27: c-i-c | N27: c-i-c | P27: 0
C28: 14 | D28: Plant and Equipment | E28: Dollars | F28: Real $2018 | G28: End_Year | H28: c-i-c | I28: c-i-c | J28: c-i-c | K28: c-i-c | L28: c-i-c | M28: c-i-c | N28: c-i-c | P28: 0
C29: 15 | D29: Property Leases | E29: Dollars | F29: Real $2018 | G29: End_Year | H29: c-i-c | I29: c-i-c | J29: c-i-c | K29: c-i-c | L29: c-i-c | M29: c-i-c | N29: c-i-c | P29: =SUM(J29:N29) -> 0
C30: 16 | D30: Fleet Leases | E30: Dollars | F30: Real $2018 | G30: End_Year | H30: c-i-c | I30: c-i-c | J30: c-i-c | K30: c-i-c | L30: c-i-c | M30: c-i-c | N30: c-i-c | P30: 0
E32: =E15 -> Dollars | F32: Real $2018 | G32: End_Year | H32: =SUM(H15:H30) -> 0 | I32: =SUM(I15:I30) -> 0 | J32: 0 | K32: 0 | L32: 0 | M32: 0 | N32: 0 | P32: 0
B34: End

Sheet BNI 4
B1: =MID(CELL("filename",A1),FIND("]",CELL("filename",A1))+1,255)&" Capital Expenditure" -> BNI 4 Capital Expenditure | G1: COMMERCIAL IN CONFIDENCE
B3: Direct Capex Forecasts
C5: BNI Description
D7: Requirement | E7: Description
D8: Expenditure category | E8: Substations
D9: Project / program number | E9: PRD33003
D10: Project / program description | E10: Darwin - Replace Cosmo Howley Transformers
C12: Direct Costs (Excluding Capitalised Overheads and Cost Escalation)
C14: Ref. | D14: Regulatory Asset Class | E14: Unit | F14: Basis | G14: Timing | H14: RY18 | I14: RY19 | J14: RY20 | K14: RY21 | L14: RY22 | M14: RY23 | N14: RY24 | P14: Total FY20 to FY24
C15: =N(C14)+1 -> 1 | D15: Substations | E15: Dollars | F15: Real $2018 | G15: End_Year | H15: c-i-c | I15: c-i-c | J15: c-i-c | K15: c-i-c | L15: c-i-c | M15: c-i-c | N15: c-i-c | P15: =SUM(J15:N15) -> 0
C16: =N(C15)+1 -> 2 | D16: Distribution Lines | E16: Dollars | F16: Real $2018 | G16: End_Year | H16: c-i-c | I16: c-i-c | J16: c-i-c | K16: c-i-c | L16: c-i-c | M16: c-i-c | N16: c-i-c | P16: 0
C17: 3 | D17: Transmission Lines | E17: Dollars | F17: Real $2018 | G17: End_Year | H17: c-i-c | I17: c-i-c | J17: c-i-c | K17: c-i-c | L17: c-i-c | M17: c-i-c | N17: c-i-c | P17: 0
C18: 4 | D18: LV Services | E18: Dollars | F18: Real $2018 | G18: End_Year | H18: c-i-c | I18: c-i-c | J18: c-i-c | K18: c-i-c | L18: c-i-c | M18: c-i-c | N18: c-i-c | P18: 0
C19: 5 | D19: Distribution Substations | E19: Dollars | F19: Real $2018 | G19: End_Year | H19: c-i-c | I19: c-i-c | J19: c-i-c | K19: c-i-c | L19: c-i-c | M19: c-i-c | N19: c-i-c | P19: 0
C20: 6 | D20: Distribution Switchgear | E20: Dollars | F20: Real $2018 | G20: End_Year | H20: c-i-c | I20: c-i-c | J20: c-i-c | K20: c-i-c | L20: c-i-c | M20: c-i-c | N20: c-i-c | P20: 0
C21: 7 | D21: Protection | E21: Dollars | F21: Real $2018 | G21: End_Year | H21: c-i-c | I21: c-i-c | J21: c-i-c | K21: c-i-c | L21: c-i-c | M21: c-i-c | N21: c-i-c | P21: 0
C22: 8 | D22: SCADA | E22: Dollars | F22: Real $2018 | G22: End_Year | H22: c-i-c | I22: c-i-c | J22: c-i-c | K22: c-i-c | L22: c-i-c | M22: c-i-c | N22: c-i-c | P22: 0
C23: 9 | D23: Communications | E23: Dollars | F23: Real $2018 | G23: End_Year | H23: c-i-c | I23: c-i-c | J23: c-i-c | K23: c-i-c | L23: c-i-c | M23: c-i-c | N23: c-i-c | P23: 0
C24: 10 | D24: Land and Easements | E24: Dollars | F24: Real $2018 | G24: End_Year | H24: c-i-c | I24: c-i-c | J24: c-i-c | K24: c-i-c | L24: c-i-c | M24: c-i-c | N24: c-i-c | P24: 0
C25: 11 | D25: Property | E25: Dollars | F25: Real $2018 | G25: End_Year | H25: c-i-c | I25: c-i-c | J25: c-i-c | K25: c-i-c | L25: c-i-c | M25: c-i-c | N25: c-i-c | P25: 0
C26: 12 | D26: IT and Communications | E26: Dollars | F26: Real $2018 | G26: End_Year | H26: c-i-c | I26: c-i-c | J26: c-i-c | K26: c-i-c | L26: c-i-c | M26: c-i-c | N26: c-i-c | P26: 0
C27: 13 | D27: Motor Vehicles | E27: Dollars | F27: Real $2018 | G27: End_Year | H27: c-i-c | I27: c-i-c | J27: c-i-c | K27: c-i-c | L27: c-i-c | M27: c-i-c | N27: c-i-c | P27: 0
C28: 14 | D28: Plant and Equipment | E28: Dollars | F28: Real $2018 | G28: End_Year | H28: c-i-c | I28: c-i-c | J28: c-i-c | K28: c-i-c | L28: c-i-c | M28: c-i-c | N28: c-i-c | P28: 0
C29: 15 | D29: Property Leases | E29: Dollars | F29: Real $2018 | G29: End_Year | H29: c-i-c | I29: c-i-c | J29: c-i-c | K29: c-i-c | L29: c-i-c | M29: c-i-c | N29: c-i-c | P29: =SUM(J29:N29) -> 0
C30: 16 | D30: Fleet Leases | E30: Dollars | F30: Real $2018 | G30: End_Year | H30: c-i-c | I30: c-i-c | J30: c-i-c | K30: c-i-c | L30: c-i-c | M30: c-i-c | N30: c-i-c | P30: 0
E32: =E15 -> Dollars | F32: Real $2018 | G32: End_Year | H32: =SUM(H15:H30) -> 0 | I32: =SUM(I15:I30) -> 0 | J32: 0 | K32: 0 | L32: 0 | M32: 0 | N32: 0 | P32: 0
B34: End

Sheet BNI 5
B1: =MID(CELL("filename",A1),FIND("]",CELL("filename",A1))+1,255)&" Capital Expenditure" -> BNI 5 Capital Expenditure | G1: COMMERCIAL IN CONFIDENCE
B3: Direct Capex Forecasts
C5: BNI Description
D7: Requirement | E7: Description
D8: Expenditure category | E8: Distribution Lines
D9: Project / program number | E9: PRD33006
D10: Project / program description | E10: Darwin - Replace Port Feeder
C12: Direct Costs (Excluding Capitalised Overheads and Cost Escalation)
C14: Ref. | D14: Regulatory Asset Class | E14: Unit | F14: Basis | G14: Timing | H14: RY18 | I14: RY19 | J14: RY20 | K14: RY21 | L14: RY22 | M14: RY23 | N14: RY24 | P14: Total FY20 to FY24
C15: =N(C14)+1 -> 1 | D15: Substations | E15: Dollars | F15: Real $2018 | G15: End_Year | H15: c-i-c | I15: c-i-c | J15: c-i-c | K15: c-i-c | L15: c-i-c | M15: c-i-c | N15: c-i-c | P15: =SUM(J15:N15) -> 0
C16: =N(C15)+1 -> 2 | D16: Distribution Lines | E16: Dollars | F16: Real $2018 | G16: End_Year | H16: c-i-c | I16: c-i-c | J16: c-i-c | K16: c-i-c | L16: c-i-c | M16: c-i-c | N16: c-i-c | P16: 0
C17: 3 | D17: Transmission Lines | E17: Dollars | F17: Real $2018 | G17: End_Year | H17: c-i-c | I17: c-i-c | J17: c-i-c | K17: c-i-c | L17: c-i-c | M17: c-i-c | N17: c-i-c | P17: 0
C18: 4 | D18: LV Services | E18: Dollars | F18: Real $2018 | G18: End_Year | H18: c-i-c | I18: c-i-c | J18: c-i-c | K18: c-i-c | L18: c-i-c | M18: c-i-c | N18: c-i-c | P18: 0
C19: 5 | D19: Distribution Substations | E19: Dollars | F19: Real $2018 | G19: End_Year | H19: c-i-c | I19: c-i-c | J19: c-i-c | K19: c-i-c | L19: c-i-c | M19: c-i-c | N19: c-i-c | P19: 0
C20: 6 | D20: Distribution Switchgear | E20: Dollars | F20: Real $2018 | G20: End_Year | H20: c-i-c | I20: c-i-c | J20: c-i-c | K20: c-i-c | L20: c-i-c | M20: c-i-c | N20: c-i-c | P20: 0
C21: 7 | D21: Protection | E21: Dollars | F21: Real $2018 | G21: End_Year | H21: c-i-c | I21: c-i-c | J21: c-i-c | K21: c-i-c | L21: c-i-c | M21: c-i-c | N21: c-i-c | P21: 0
C22: 8 | D22: SCADA | E22: Dollars | F22: Real $2018 | G22: End_Year | H22: c-i-c | I22: c-i-c | J22: c-i-c | K22: c-i-c | L22: c-i-c | M22: c-i-c | N22: c-i-c | P22: 0
C23: 9 | D23: Communications | E23: Dollars | F23: Real $2018 | G23: End_Year | H23: c-i-c | I23: c-i-c | J23: c-i-c | K23: c-i-c | L23: c-i-c | M23: c-i-c | N23: c-i-c | P23: 0
C24: 10 | D24: Land and Easements | E24: Dollars | F24: Real $2018 | G24: End_Year | H24: c-i-c | I24: c-i-c | J24: c-i-c | K24: c-i-c | L24: c-i-c | M24: c-i-c | N24: c-i-c | P24: 0
C25: 11 | D25: Property | E25: Dollars | F25: Real $2018 | G25: End_Year | H25: c-i-c | I25: c-i-c | J25: c-i-c | K25: c-i-c | L25: c-i-c | M25: c-i-c | N25: c-i-c | P25: 0
C26: 12 | D26: IT and Communications | E26: Dollars | F26: Real $2018 | G26: End_Year | H26: c-i-c | I26: c-i-c | J26: c-i-c | K26: c-i-c | L26: c-i-c | M26: c-i-c | N26: c-i-c | P26: 0
C27: 13 | D27: Motor Vehicles | E27: Dollars | F27: Real $2018 | G27: End_Year | H27: c-i-c | I27: c-i-c | J27: c-i-c | K27: c-i-c | L27: c-i-c | M27: c-i-c | N27: c-i-c | P27: 0
C28: 14 | D28: Plant and Equipment | E28: Dollars | F28: Real $2018 | G28: End_Year | H28: c-i-c | I28: c-i-c | J28: c-i-c | K28: c-i-c | L28: c-i-c | M28: c-i-c | N28: c-i-c | P28: 0
C29: 15 | D29: Property Leases | E29: Dollars | F29: Real $2018 | G29: End_Year | H29: c-i-c | I29: c-i-c | J29: c-i-c | K29: c-i-c | L29: c-i-c | M29: c-i-c | N29: c-i-c | P29: =SUM(J29:N29) -> 0
C30: 16 | D30: Fleet Leases | E30: Dollars | F30: Real $2018 | G30: End_Year | H30: c-i-c | I30: c-i-c | J30: c-i-c | K30: c-i-c | L30: c-i-c | M30: c-i-c | N30: c-i-c | P30: 0
E32: =E15 -> Dollars | F32: Real $2018 | G32: End_Year | H32: =SUM(H15:H30) -> 0 | I32: =SUM(I15:I30) -> 0 | J32: 0 | K32: 0 | L32: 0 | M32: 0 | N32: 0 | P32: 0
B34: End

Sheet BNI 6
B1: =MID(CELL("filename",A1),FIND("]",CELL("filename",A1))+1,255)&" Capital Expenditure" -> BNI 6 Capital Expenditure | G1: COMMERCIAL IN CONFIDENCE
B3: Direct Capex Forecasts
C5: BNI Description
D7: Requirement | E7: Description
D8: Expenditure category
D9: Project / program number
D10: Project / program description | E10: [deleted]
C12: Direct Costs (Excluding Capitalised Overheads and Cost Escalation)
C14: Ref. | D14: Regulatory Asset Class | E14: Unit | F14: Basis | G14: Timing | H14: RY18 | I14: RY19 | J14: RY20 | K14: RY21 | L14: RY22 | M14: RY23 | N14: RY24 | P14: Total FY20 to FY24
C15: =N(C14)+1 -> 1 | D15: Substations | E15: Dollars | F15: Real $2018 | G15: End_Year | H15: c-i-c | I15: c-i-c | J15: c-i-c | K15: c-i-c | L15: c-i-c | M15: c-i-c | N15: c-i-c | P15: =SUM(J15:N15) -> 0
C16: =N(C15)+1 -> 2 | D16: Distribution Lines | E16: Dollars | F16: Real $2018 | G16: End_Year | H16: c-i-c | I16: c-i-c | J16: c-i-c | K16: c-i-c | L16: c-i-c | M16: c-i-c | N16: c-i-c | P16: 0
C17: 3 | D17: Transmission Lines | E17: Dollars | F17: Real $2018 | G17: End_Year | H17: c-i-c | I17: c-i-c | J17: c-i-c | K17: c-i-c | L17: c-i-c | M17: c-i-c | N17: c-i-c | P17: 0
C18: 4 | D18: LV Services | E18: Dollars | F18: Real $2018 | G18: End_Year | H18: c-i-c | I18: c-i-c | J18: c-i-c | K18: c-i-c | L18: c-i-c | M18: c-i-c | N18: c-i-c | P18: 0
C19: 5 | D19: Distribution Substations | E19: Dollars | F19: Real $2018 | G19: End_Year | H19: c-i-c | I19: c-i-c | J19: c-i-c | K19: c-i-c | L19: c-i-c | M19: c-i-c | N19: c-i-c | P19: 0
C20: 6 | D20: Distribution Switchgear | E20: Dollars | F20: Real $2018 | G20: End_Year | H20: c-i-c | I20: c-i-c | J20: c-i-c | K20: c-i-c | L20: c-i-c | M20: c-i-c | N20: c-i-c | P20: 0
C21: 7 | D21: Protection | E21: Dollars | F21: Real $2018 | G21: End_Year | H21: c-i-c | I21: c-i-c | J21: c-i-c | K21: c-i-c | L21: c-i-c | M21: c-i-c | N21: c-i-c | P21: 0
C22: 8 | D22: SCADA | E22: Dollars | F22: Real $2018 | G22: End_Year | H22: c-i-c | I22: c-i-c | J22: c-i-c | K22: c-i-c | L22: c-i-c | M22: c-i-c | N22: c-i-c | P22: 0
C23: 9 | D23: Communications | E23: Dollars | F23: Real $2018 | G23: End_Year | H23: c-i-c | I23: c-i-c | J23: c-i-c | K23: c-i-c | L23: c-i-c | M23: c-i-c | N23: c-i-c | P23: 0
C24: 10 | D24: Land and Easements | E24: Dollars | F24: Real $2018 | G24: End_Year | H24: c-i-c | I24: c-i-c | J24: c-i-c | K24: c-i-c | L24: c-i-c | M24: c-i-c | N24: c-i-c | P24: 0
C25: 11 | D25: Property | E25: Dollars | F25: Real $2018 | G25: End_Year | H25: c-i-c | I25: c-i-c | J25: c-i-c | K25: c-i-c | L25: c-i-c | M25: c-i-c | N25: c-i-c | P25: 0
C26: 12 | D26: IT and Communications | E26: Dollars | F26: Real $2018 | G26: End_Year | H26: c-i-c | I26: c-i-c | J26: c-i-c | K26: c-i-c | L26: c-i-c | M26: c-i-c | N26: c-i-c | P26: 0
C27: 13 | D27: Motor Vehicles | E27: Dollars | F27: Real $2018 | G27: End_Year | H27: c-i-c | I27: c-i-c | J27: c-i-c | K27: c-i-c | L27: c-i-c | M27: c-i-c | N27: c-i-c | P27: 0
C28: 14 | D28: Plant and Equipment | E28: Dollars | F28: Real $2018 | G28: End_Year | H28: c-i-c | I28: c-i-c | J28: c-i-c | K28: c-i-c | L28: c-i-c | M28: c-i-c | N28: c-i-c | P28: 0
C29: 15 | D29: Property Leases | E29: Dollars | F29: Real $2018 | G29: End_Year | H29: c-i-c | I29: c-i-c | J29: c-i-c | K29: c-i-c | L29: c-i-c | M29: c-i-c | N29: c-i-c | P29: =SUM(J29:N29) -> 0
C30: 16 | D30: Fleet Leases | E30: Dollars | F30: Real $2018 | G30: End_Year | H30: c-i-c | I30: c-i-c | J30: c-i-c | K30: c-i-c | L30: c-i-c | M30: c-i-c | N30: c-i-c | P30: 0
E32: =E15 -> Dollars | F32: Real $2018 | G32: End_Year | H32: =SUM(H15:H30) -> 0 | I32: =SUM(I15:I30) -> 0 | J32: 0 | K32: 0 | L32: 0 | M32: 0 | N32: 0 | P32: 0
B34: End

Sheet BNI 7
B1: =MID(CELL("filename",A1),FIND("]",CELL("filename",A1))+1,255)&" Capital Expenditure" -> BNI 7 Capital Expenditure | G1: COMMERCIAL IN CONFIDENCE
B3: Direct Capex Forecasts
C5: BNI Description
D7: Requirement | E7: Description
D8: Expenditure category | E8: Substations
D9: Project / program number | E9: PRD33125
D10: Project / program description | E10: Darwin Replace 66/11kV Centreyard ZSS
C12: Direct Costs (Excluding Capitalised Overheads and Cost Escalation)
C14: Ref. | D14: Regulatory Asset Class | E14: Unit | F14: Basis | G14: Timing | H14: RY18 | I14: RY19 | J14: RY20 | K14: RY21 | L14: RY22 | M14: RY23 | N14: RY24 | P14: Total FY20 to FY24
C15: =N(C14)+1 -> 1 | D15: Substations | E15: Dollars | F15: Real $2018 | G15: End_Year | H15: c-i-c | I15: c-i-c | J15: c-i-c | K15: c-i-c | L15: c-i-c | M15: c-i-c | N15: c-i-c | P15: =SUM(J15:N15) -> 0
C16: =N(C15)+1 -> 2 | D16: Distribution Lines | E16: Dollars | F16: Real $2018 | G16: End_Year | H16: c-i-c | I16: c-i-c | J16: c-i-c | K16: c-i-c | L16: c-i-c | M16: c-i-c | N16: c-i-c | P16: 0
C17: 3 | D17: Transmission Lines | E17: Dollars | F17: Real $2018 | G17: End_Year | H17: c-i-c | I17: c-i-c | J17: c-i-c | K17: c-i-c | L17: c-i-c | M17: c-i-c | N17: c-i-c | P17: 0
C18: 4 | D18: LV Services | E18: Dollars | F18: Real $2018 | G18: End_Year | H18: c-i-c | I18: c-i-c | J18: c-i-c | K18: c-i-c | L18: c-i-c | M18: c-i-c | N18: c-i-c | P18: 0
C19: 5 | D19: Distribution Substations | E19: Dollars | F19: Real $2018 | G19: End_Year | H19: c-i-c | I19: c-i-c | J19: c-i-c | K19: c-i-c | L19: c-i-c | M19: c-i-c | N19: c-i-c | P19: 0
C20: 6 | D20: Distribution Switchgear | E20: Dollars | F20: Real $2018 | G20: End_Year | H20: c-i-c | I20: c-i-c | J20: c-i-c | K20: c-i-c | L20: c-i-c | M20: c-i-c | N20: c-i-c | P20: 0
C21: 7 | D21: Protection | E21: Dollars | F21: Real $2018 | G21: End_Year | H21: c-i-c | I21: c-i-c | J21: c-i-c | K21: c-i-c | L21: c-i-c | M21: c-i-c | N21: c-i-c | P21: 0
C22: 8 | D22: SCADA | E22: Dollars | F22: Real $2018 | G22: End_Year | H22: c-i-c | I22: c-i-c | J22: c-i-c | K22: c-i-c | L22: c-i-c | M22: c-i-c | N22: c-i-c | P22: 0
C23: 9 | D23: Communications | E23: Dollars | F23: Real $2018 | G23: End_Year | H23: c-i-c | I23: c-i-c | J23: c-i-c | K23: c-i-c | L23: c-i-c | M23: c-i-c | N23: c-i-c | P23: 0
C24: 10 | D24: Land and Easements | E24: Dollars | F24: Real $2018 | G24: End_Year | H24: c-i-c | I24: c-i-c | J24: c-i-c | K24: c-i-c | L24: c-i-c | M24: c-i-c | N24: c-i-c | P24: 0
C25: 11 | D25: Property | E25: Dollars | F25: Real $2018 | G25: End_Year | H25: c-i-c | I25: c-i-c | J25: c-i-c | K25: c-i-c | L25: c-i-c | M25: c-i-c | N25: c-i-c | P25: 0
C26: 12 | D26: IT and Communications | E26: Dollars | F26: Real $2018 | G26: End_Year | H26: c-i-c | I26: c-i-c | J26: c-i-c | K26: c-i-c | L26: c-i-c | M26: c-i-c | N26: c-i-c | P26: 0
C27: 13 | D27: Motor Vehicles | E27: Dollars | F27: Real $2018 | G27: End_Year | H27: c-i-c | I27: c-i-c | J27: c-i-c | K27: c-i-c | L27: c-i-c | M27: c-i-c | N27: c-i-c | P27: 0
C28: 14 | D28: Plant and Equipment | E28: Dollars | F28: Real $2018 | G28: End_Year | H28: c-i-c | I28: c-i-c | J28: c-i-c | K28: c-i-c | L28: c-i-c | M28: c-i-c | N28: c-i-c | P28: 0
C29: 15 | D29: Property Leases | E29: Dollars | F29: Real $2018 | G29: End_Year | H29: c-i-c | I29: c-i-c | J29: c-i-c | K29: c-i-c | L29: c-i-c | M29: c-i-c | N29: c-i-c | P29: =SUM(J29:N29) -> 0
C30: 16 | D30: Fleet Leases | E30: Dollars | F30: Real $2018 | G30: End_Year | H30: c-i-c | I30: c-i-c | J30: c-i-c | K30: c-i-c | L30: c-i-c | M30: c-i-c | N30: c-i-c | P30: 0
E32: =E15 -> Dollars | F32: Real $2018 | G32: End_Year | H32: =SUM(H15:H30) -> 0 | I32: =SUM(I15:I30) -> 0 | J32: 0 | K32: 0 | L32: 0 | M32: 0 | N32: 0 | P32: 0
B34: End

Sheet BNI 8
B1: =MID(CELL("filename",A1),FIND("]",CELL("filename",A1))+1,255)&" Capital Expenditure" -> BNI 8 Capital Expenditure | G1: COMMERCIAL IN CONFIDENCE
B3: Direct Capex Forecasts
C5: BNI Description
D7: Requirement | E7: Description
D8: Expenditure category
D9: Project / program number
D10: Project / program description | E10: [deleted]
C12: Direct Costs (Excluding Capitalised Overheads and Cost Escalation)
C14: Ref. | D14: Regulatory Asset Class | E14: Unit | F14: Basis | G14: Timing | H14: RY18 | I14: RY19 | J14: RY20 | K14: RY21 | L14: RY22 | M14: RY23 | N14: RY24 | P14: Total FY20 to FY24
C15: =N(C14)+1 -> 1 | D15: Substations | E15: Dollars | F15: Real $2018 | G15: End_Year | H15: c-i-c | I15: c-i-c | J15: c-i-c | K15: c-i-c | L15: c-i-c | M15: c-i-c | N15: c-i-c | P15: =SUM(J15:N15) -> 0
C16: =N(C15)+1 -> 2 | D16: Distribution Lines | E16: Dollars | F16: Real $2018 | G16: End_Year | H16: c-i-c | I16: c-i-c | J16: c-i-c | K16: c-i-c | L16: c-i-c | M16: c-i-c | N16: c-i-c | P16: 0
C17: 3 | D17: Transmission Lines | E17: Dollars | F17: Real $2018 | G17: End_Year | H17: c-i-c | I17: c-i-c | J17: c-i-c | K17: c-i-c | L17: c-i-c | M17: c-i-c | N17: c-i-c | P17: 0
C18: 4 | D18: LV Services | E18: Dollars | F18: Real $2018 | G18: End_Year | H18: c-i-c | I18: c-i-c | J18: c-i-c | K18: c-i-c | L18: c-i-c | M18: c-i-c | N18: c-i-c | P18: 0
C19: 5 | D19: Distribution Substations | E19: Dollars | F19: Real $2018 | G19: End_Year | H19: c-i-c | I19: c-i-c | J19: c-i-c | K19: c-i-c | L19: c-i-c | M19: c-i-c | N19: c-i-c | P19: 0
C20: 6 | D20: Distribution Switchgear | E20: Dollars | F20: Real $2018 | G20: End_Year | H20: c-i-c | I20: c-i-c | J20: c-i-c | K20: c-i-c | L20: c-i-c | M20: c-i-c | N20: c-i-c | P20: 0
C21: 7 | D21: Protection | E21: Dollars | F21: Real $2018 | G21: End_Year | H21: c-i-c | I21: c-i-c | J21: c-i-c | K21: c-i-c | L21: c-i-c | M21: c-i-c | N21: c-i-c | P21: 0
C22: 8 | D22: SCADA | E22: Dollars | F22: Real $2018 | G22: End_Year | H22: c-i-c | I22: c-i-c | J22: c-i-c | K22: c-i-c | L22: c-i-c | M22: c-i-c | N22: c-i-c | P22: 0
C23: 9 | D23: Communications | E23: Dollars | F23: Real $2018 | G23: End_Year | H23: c-i-c | I23: c-i-c | J23: c-i-c | K23: c-i-c | L23: c-i-c | M23: c-i-c | N23: c-i-c | P23: 0
C24: 10 | D24: Land and Easements | E24: Dollars | F24: Real $2018 | G24: End_Year | H24: c-i-c | I24: c-i-c | J24: c-i-c | K24: c-i-c | L24: c-i-c | M24: c-i-c | N24: c-i-c | P24: 0
C25: 11 | D25: Property | E25: Dollars | F25: Real $2018 | G25: End_Year | H25: c-i-c | I25: c-i-c | J25: c-i-c | K25: c-i-c | L25: c-i-c | M25: c-i-c | N25: c-i-c | P25: 0
C26: 12 | D26: IT and Communications | E26: Dollars | F26: Real $2018 | G26: End_Year | H26: c-i-c | I26: c-i-c | J26: c-i-c | K26: c-i-c | L26: c-i-c | M26: c-i-c | N26: c-i-c | P26: 0
C27: 13 | D27: Motor Vehicles | E27: Dollars | F27: Real $2018 | G27: End_Year | H27: c-i-c | I27: c-i-c | J27: c-i-c | K27: c-i-c | L27: c-i-c | M27: c-i-c | N27: c-i-c | P27: 0
C28: 14 | D28: Plant and Equipment | E28: Dollars | F28: Real $2018 | G28: End_Year | H28: c-i-c | I28: c-i-c | J28: c-i-c | K28: c-i-c | L28: c-i-c | M28: c-i-c | N28: c-i-c | P28: 0
C29: 15 | D29: Property Leases | E29: Dollars | F29: Real $2018 | G29: End_Year | H29: c-i-c | I29: c-i-c | J29: c-i-c | K29: c-i-c | L29: c-i-c | M29: c-i-c | N29: c-i-c | P29: =SUM(J29:N29) -> 0
C30: 16 | D30: Fleet Leases | E30: Dollars | F30: Real $2018 | G30: End_Year | H30: c-i-c | I30: c-i-c | J30: c-i-c | K30: c-i-c | L30: c-i-c | M30: c-i-c | N30: c-i-c | P30: 0
E32: =E15 -> Dollars | F32: Real $2018 | G32: End_Year | H32: =SUM(H15:H30) -> 0 | I32: =SUM(I15:I30) -> 0 | J32: 0 | K32: 0 | L32: 0 | M32: 0 | N32: 0 | P32: 0
B34: End

Sheet BNI 9
B1: =MID(CELL("filename",A1),FIND("]",CELL("filename",A1))+1,255)&" Capital Expenditure" -> BNI 9 Capital Expenditure | G1: COMMERCIAL IN CONFIDENCE
B3: Direct Capex Forecasts
C5: BNI Description
D7: Requirement | E7: Description
D8: Expenditure category
D9: Project / program number
D10: Project / program description | E10: [deleted]
C12: Direct Costs (Excluding Capitalised Overheads and Cost Escalation)
C14: Ref. | D14: Regulatory Asset Class | E14: Unit | F14: Basis | G14: Timing | H14: RY18 | I14: RY19 | J14: RY20 | K14: RY21 | L14: RY22 | M14: RY23 | N14: RY24 | P14: Total FY20 to FY24
C15: =N(C14)+1 -> 1 | D15: Substations | E15: Dollars | F15: Real $2018 | G15: End_Year | H15: c-i-c | I15: c-i-c | J15: c-i-c | K15: c-i-c | L15: c-i-c | M15: c-i-c | N15: c-i-c | P15: =SUM(J15:N15) -> 0
C16: =N(C15)+1 -> 2 | D16: Distribution Lines | E16: Dollars | F16: Real $2018 | G16: End_Year | H16: c-i-c | I16: c-i-c | J16: c-i-c | K16: c-i-c | L16: c-i-c | M16: c-i-c | N16: c-i-c | P16: 0
C17: 3 | D17: Transmission Lines | E17: Dollars | F17: Real $2018 | G17: End_Year | H17: c-i-c | I17: c-i-c | J17: c-i-c | K17: c-i-c | L17: c-i-c | M17: c-i-c | N17: c-i-c | P17: 0
C18: 4 | D18: LV Services | E18: Dollars | F18: Real $2018 | G18: End_Year | H18: c-i-c | I18: c-i-c | J18: c-i-c | K18: c-i-c | L18: c-i-c | M18: c-i-c | N18: c-i-c | P18: 0
C19: 5 | D19: Distribution Substations | E19: Dollars | F19: Real $2018 | G19: End_Year | H19: c-i-c | I19: c-i-c | J19: c-i-c | K19: c-i-c | L19: c-i-c | M19: c-i-c | N19: c-i-c | P19: 0
C20: 6 | D20: Distribution Switchgear | E20: Dollars | F20: Real $2018 | G20: End_Year | H20: c-i-c | I20: c-i-c | J20: c-i-c | K20: c-i-c | L20: c-i-c | M20: c-i-c | N20: c-i-c | P20: 0
C21: 7 | D21: Protection | E21: Dollars | F21: Real $2018 | G21: End_Year | H21: c-i-c | I21: c-i-c | J21: c-i-c | K21: c-i-c | L21: c-i-c | M21: c-i-c | N21: c-i-c | P21: 0
C22: 8 | D22: SCADA | E22: Dollars | F22: Real $2018 | G22: End_Year | H22: c-i-c | I22: c-i-c | J22: c-i-c | K22: c-i-c | L22: c-i-c | M22: c-i-c | N22: c-i-c | P22: 0
C23: 9 | D23: Communications | E23: Dollars | F23: Real $2018 | G23: End_Year | H23: c-i-c | I23: c-i-c | J23: c-i-c | K23: c-i-c | L23: c-i-c | M23: c-i-c | N23: c-i-c | P23: 0
C24: 10 | D24: Land and Easements | E24: Dollars | F24: Real $2018 | G24: End_Year | H24: c-i-c | I24: c-i-c | J24: c-i-c | K24: c-i-c | L24: c-i-c | M24: c-i-c | N24: c-i-c | P24: 0
C25: 11 | D25: Property | E25: Dollars | F25: Real $2018 | G25: End_Year | H25: c-i-c | I25: c-i-c | J25: c-i-c | K25: c-i-c | L25: c-i-c | M25: c-i-c | N25: c-i-c | P25: 0
C26: 12 | D26: IT and Communications | E26: Dollars | F26: Real $2018 | G26: End_Year | H26: c-i-c | I26: c-i-c | J26: c-i-c | K26: c-i-c | L26: c-i-c | M26: c-i-c | N26: c-i-c | P26: 0
C27: 13 | D27: Motor Vehicles | E27: Dollars | F27: Real $2018 | G27: End_Year | H27: c-i-c | I27: c-i-c | J27: c-i-c | K27: c-i-c | L27: c-i-c | M27: c-i-c | N27: c-i-c | P27: 0
C28: 14 | D28: Plant and Equipment | E28: Dollars | F28: Real $2018 | G28: End_Year | H28: c-i-c | I28: c-i-c | J28: c-i-c | K28: c-i-c | L28: c-i-c | M28: c-i-c | N28: c-i-c | P28: 0
C29: 15 | D29: Property Leases | E29: Dollars | F29: Real $2018 | G29: End_Year | H29: c-i-c | I29: c-i-c | J29: c-i-c | K29: c-i-c | L29: c-i-c | M29: c-i-c | N29: c-i-c | P29: =SUM(J29:N29) -> 0
C30: 16 | D30: Fleet Leases | E30: Dollars | F30: Real $2018 | G30: End_Year | H30: c-i-c | I30: c-i-c | J30: c-i-c | K30: c-i-c | L30: c-i-c | M30: c-i-c | N30: c-i-c | P30: 0
E32: =E15 -> Dollars | F32: Real $2018 | G32: End_Year | H32: =SUM(H15:H30) -> 0 | I32: =SUM(I15:I30) -> 0 | J32: 0 | K32: 0 | L32: 0 | M32: 0 | N32: 0 | P32: 0
B34: End

Sheet BNI 10
B1: =MID(CELL("filename",A1),FIND("]",CELL("filename",A1))+1,255)&" Capital Expenditure" -> BNI 10 Capital Expenditure | G1: COMMERCIAL IN CONFIDENCE
B3: Direct Capex Forecasts
C5: BNI Description
D7: Requirement | E7: Description
D8: Expenditure category | E8: Substations
D9: Project / program number | E9: PRD30401
D10: Project / program description | E10: Darwin - Replace Humpty Doo ZSS
C12: Direct Costs (Excluding Capitalised Overheads and Cost Escalation)
C14: Ref. | D14: Regulatory Asset Class | E14: Unit | F14: Basis | G14: Timing | H14: RY18 | I14: RY19 | J14: RY20 | K14: RY21 | L14: RY22 | M14: RY23 | N14: RY24 | P14: Total FY20 to FY24
C15: =N(C14)+1 -> 1 | D15: Substations | E15: Dollars | F15: Real $2018 | G15: End_Year | H15: c-i-c | I15: c-i-c | J15: c-i-c | K15: c-i-c | L15: c-i-c | M15: c-i-c | N15: c-i-c | P15: =SUM(J15:N15) -> 0
C16: =N(C15)+1 -> 2 | D16: Distribution Lines | E16: Dollars | F16: Real $2018 | G16: End_Year | H16: c-i-c | I16: c-i-c | J16: c-i-c | K16: c-i-c | L16: c-i-c | M16: c-i-c | N16: c-i-c | P16: 0
C17: 3 | D17: Transmission Lines | E17: Dollars | F17: Real $2018 | G17: End_Year | H17: c-i-c | I17: c-i-c | J17: c-i-c | K17: c-i-c | L17: c-i-c | M17: c-i-c | N17: c-i-c | P17: 0
C18: 4 | D18: LV Services | E18: Dollars | F18: Real $2018 | G18: End_Year | H18: c-i-c | I18: c-i-c | J18: c-i-c | K18: c-i-c | L18: c-i-c | M18: c-i-c | N18: c-i-c | P18: 0
C19: 5 | D19: Distribution Substations | E19: Dollars | F19: Real $2018 | G19: End_Year | H19: c-i-c | I19: c-i-c | J19: c-i-c | K19: c-i-c | L19: c-i-c | M19: c-i-c | N19: c-i-c | P19: 0
C20: 6 | D20: Distribution Switchgear | E20: Dollars | F20: Real $2018 | G20: End_Year | H20: c-i-c | I20: c-i-c | J20: c-i-c | K20: c-i-c | L20: c-i-c | M20: c-i-c | N20: c-i-c | P20: 0
C21: 7 | D21: Protection | E21: Dollars | F21: Real $2018 | G21: End_Year | H21: c-i-c | I21: c-i-c | J21: c-i-c | K21: c-i-c | L21: c-i-c | M21: c-i-c | N21: c-i-c | P21: 0
C22: 8 | D22: SCADA | E22: Dollars | F22: Real $2018 | G22: End_Year | H22: c-i-c | I22: c-i-c | J22: c-i-c | K22: c-i-c | L22: c-i-c | M22: c-i-c | N22: c-i-c | P22: 0
C23: 9 | D23: Communications | E23: Dollars | F23: Real $2018 | G23: End_Year | H23: c-i-c | I23: c-i-c | J23: c-i-c | K23: c-i-c | L23: c-i-c | M23: c-i-c | N23: c-i-c | P23: 0
C24: 10 | D24: Land and Easements | E24: Dollars | F24: Real $2018 | G24: End_Year | H24: c-i-c | I24: c-i-c | J24: c-i-c | K24: c-i-c | L24: c-i-c | M24: c-i-c | N24: c-i-c | P24: 0
C25: 11 | D25: Property | E25: Dollars | F25: Real $2018 | G25: End_Year | H25: c-i-c | I25: c-i-c | J25: c-i-c | K25: c-i-c | L25: c-i-c | M25: c-i-c | N25: c-i-c | P25: 0
C26: 12 | D26: IT and Communications | E26: Dollars | F26: Real $2018 | G26: End_Year | H26: c-i-c | I26: c-i-c | J26: c-i-c | K26: c-i-c | L26: c-i-c | M26: c-i-c | N26: c-i-c | P26: 0
C27: 13 | D27: Motor Vehicles | E27: Dollars | F27: Real $2018 | G27: End_Year | H27: c-i-c | I27: c-i-c | J27: c-i-c | K27: c-i-c | L27: c-i-c | M27: c-i-c | N27: c-i-c | P27: 0
C28: 14 | D28: Plant and Equipment | E28: Dollars | F28: Real $2018 | G28: End_Year | H28: c-i-c | I28: c-i-c | J28: c-i-c | K28: c-i-c | L28: c-i-c | M28: c-i-c | N28: c-i-c | P28: 0
C29: 15 | D29: Property Leases | E29: Dollars | F29: Real $2018 | G29: End_Year | H29: c-i-c | I29: c-i-c | J29: c-i-c | K29: c-i-c | L29: c-i-c | M29: c-i-c | N29: c-i-c | P29: =SUM(J29:N29) -> 0
C30: 16 | D30: Fleet Leases | E30: Dollars | F30: Real $2018 | G30: End_Year | H30: c-i-c | I30: c-i-c | J30: c-i-c | K30: c-i-c | L30: c-i-c | M30: c-i-c | N30: c-i-c | P30: 0
E32: =E15 -> Dollars | F32: Real $2018 | G32: End_Year | H32: =SUM(H15:H30) -> 0 | I32: =SUM(I15:I30) -> 0 | J32: 0 | K32: 0 | L32: 0 | M32: 0 | N32: 0 | P32: 0
B34: End

Sheet BNI 11
B1: =MID(CELL("filename",A1),FIND("]",CELL("filename",A1))+1,255)&" Capital Expenditure" -> BNI 11 Capital Expenditure | G1: COMMERCIAL IN CONFIDENCE
B3: Direct Capex Forecasts
C5: BNI Description
D7: Requirement | E7: Description
D8: Expenditure category
D9: Project / program number
D10: Project / program description | E10: [deleted]
C12: Direct Costs (Excluding Capitalised Overheads and Cost Escalation)
C14: Ref. | D14: Regulatory Asset Class | E14: Unit | F14: Basis | G14: Timing | H14: RY18 | I14: RY19 | J14: RY20 | K14: RY21 | L14: RY22 | M14: RY23 | N14: RY24 | P14: Total FY20 to FY24
C15: =N(C14)+1 -> 1 | D15: Substations | E15: Dollars | F15: Real $2018 | G15: End_Year | H15: c-i-c | I15: c-i-c | J15: c-i-c | K15: c-i-c | L15: c-i-c | M15: c-i-c | N15: c-i-c | P15: =SUM(J15:N15) -> 0
C16: =N(C15)+1 -> 2 | D16: Distribution Lines | E16: Dollars | F16: Real $2018 | G16: End_Year | H16: c-i-c | I16: c-i-c | J16: c-i-c | K16: c-i-c | L16: c-i-c | M16: c-i-c | N16: c-i-c | P16: 0
C17: 3 | D17: Transmission Lines | E17: Dollars | F17: Real $2018 | G17: End_Year | H17: c-i-c | I17: c-i-c | J17: c-i-c | K17: c-i-c | L17: c-i-c | M17: c-i-c | N17: c-i-c | P17: 0
C18: 4 | D18: LV Services | E18: Dollars | F18: Real $2018 | G18: End_Year | H18: c-i-c | I18: c-i-c | J18: c-i-c | K18: c-i-c | L18: c-i-c | M18: c-i-c | N18: c-i-c | P18: 0
C19: 5 | D19: Distribution Substations | E19: Dollars | F19: Real $2018 | G19: End_Year | H19: c-i-c | I19: c-i-c | J19: c-i-c | K19: c-i-c | L19: c-i-c | M19: c-i-c | N19: c-i-c | P19: 0
C20: 6 | D20: Distribution Switchgear | E20: Dollars | F20: Real $2018 | G20: End_Year | H20: c-i-c | I20: c-i-c | J20: c-i-c | K20: c-i-c | L20: c-i-c | M20: c-i-c | N20: c-i-c | P20: 0
C21: 7 | D21: Protection | E21: Dollars | F21: Real $2018 | G21: End_Year | H21: c-i-c | I21: c-i-c | J21: c-i-c | K21: c-i-c | L21: c-i-c | M21: c-i-c | N21: c-i-c | P21: 0
C22: 8 | D22: SCADA | E22: Dollars | F22: Real $2018 | G22: End_Year | H22: c-i-c | I22: c-i-c | J22: c-i-c | K22: c-i-c | L22: c-i-c | M22: c-i-c | N22: c-i-c | P22: 0
C23: 9 | D23: Communications | E23: Dollars | F23: Real $2018 | G23: End_Year | H23: c-i-c | I23: c-i-c | J23: c-i-c | K23: c-i-c | L23: c-i-c | M23: c-i-c | N23: c-i-c | P23: 0
C24: 10 | D24: Land and Easements | E24: Dollars | F24: Real $2018 | G24: End_Year | H24: c-i-c | I24: c-i-c | J24: c-i-c | K24: c-i-c | L24: c-i-c | M24: c-i-c | N24: c-i-c | P24: 0
C25: 11 | D25: Property | E25: Dollars | F25: Real $2018 | G25: End_Year | H25: c-i-c | I25: c-i-c | J25: c-i-c | K25: c-i-c | L25: c-i-c | M25: c-i-c | N25: c-i-c | P25: 0
C26: 12 | D26: IT and Communications | E26: Dollars | F26: Real $2018 | G26: End_Year | H26: c-i-c | I26: c-i-c | J26: c-i-c | K26: c-i-c | L26: c-i-c | M26: c-i-c | N26: c-i-c | P26: 0
C27: 13 | D27: Motor Vehicles | E27: Dollars | F27: Real $2018 | G27: End_Year | H27: c-i-c | I27: c-i-c | J27: c-i-c | K27: c-i-c | L27: c-i-c | M27: c-i-c | N27: c-i-c | P27: 0
C28: 14 | D28: Plant and Equipment | E28: Dollars | F28: Real $2018 | G28: End_Year | H28: c-i-c | I28: c-i-c | J28: c-i-c | K28: c-i-c | L28: c-i-c | M28: c-i-c | N28: c-i-c | P28: 0
C29: 15 | D29: Property Leases | E29: Dollars | F29: Real $2018 | G29: End_Year | H29: c-i-c | I29: c-i-c | J29: c-i-c | K29: c-i-c | L29: c-i-c | M29: c-i-c | N29: c-i-c | P29: =SUM(J29:N29) -> 0
C30: 16 | D30: Fleet Leases | E30: Dollars | F30: Real $2018 | G30: End_Year | H30: c-i-c | I30: c-i-c | J30: c-i-c | K30: c-i-c | L30: c-i-c | M30: c-i-c | N30: c-i-c | P30: 0
E32: =E15 -> Dollars | F32: Real $2018 | G32: End_Year | H32: =SUM(H15:H30) -> 0 | I32: =SUM(I15:I30) -> 0 | J32: 0 | K32: 0 | L32: 0 | M32: 0 | N32: 0 | P32: 0
B34: End

Sheet BNI 12
B1: =MID(CELL("filename",A1),FIND("]",CELL("filename",A1))+1,255)&" Capital Expenditure" -> BNI 12 Capital Expenditure | G1: COMMERCIAL IN CONFIDENCE
B3: Direct Capex Forecasts
C5: BNI Description
D7: Requirement | E7: Description
D8: Expenditure category | E8: IT and Communications
D9: Project / program number | E9: PRD33134
D10: Project / program description | E10: Darwin - Energy Management System Upgrade
C12: Direct Costs (Excluding Capitalised Overheads and Cost Escalation)
C14: Ref. | D14: Regulatory Asset Class | E14: Unit | F14: Basis | G14: Timing | H14: RY18 | I14: RY19 | J14: RY20 | K14: RY21 | L14: RY22 | M14: RY23 | N14: RY24 | P14: Total FY20 to FY24
C15: =N(C14)+1 -> 1 | D15: Substations | E15: Dollars | F15: Real $2018 | G15: End_Year | H15: c-i-c | I15: c-i-c | J15: c-i-c | K15: c-i-c | L15: c-i-c | M15: c-i-c | N15: c-i-c | P15: =SUM(J15:N15) -> 0
C16: =N(C15)+1 -> 2 | D16: Distribution Lines | E16: Dollars | F16: Real $2018 | G16: End_Year | H16: c-i-c | I16: c-i-c | J16: c-i-c | K16: c-i-c | L16: c-i-c | M16: c-i-c | N16: c-i-c | P16: 0
C17: 3 | D17: Transmission Lines | E17: Dollars | F17: Real $2018 | G17: End_Year | H17: c-i-c | I17: c-i-c | J17: c-i-c | K17: c-i-c | L17: c-i-c | M17: c-i-c | N17: c-i-c | P17: 0
C18: 4 | D18: LV Services | E18: Dollars | F18: Real $2018 | G18: End_Year | H18: c-i-c | I18: c-i-c | J18: c-i-c | K18: c-i-c | L18: c-i-c | M18: c-i-c | N18: c-i-c | P18: 0
C19: 5 | D19: Distribution Substations | E19: Dollars | F19: Real $2018 | G19: End_Year | H19: c-i-c | I19: c-i-c | J19: c-i-c | K19: c-i-c | L19: c-i-c | M19: c-i-c | N19: c-i-c | P19: 0
C20: 6 | D20: Distribution Switchgear | E20: Dollars | F20: Real $2018 | G20: End_Year | H20: c-i-c | I20: c-i-c | J20: c-i-c | K20: c-i-c | L20: c-i-c | M20: c-i-c | N20: c-i-c | P20: 0
C21: 7 | D21: Protection | E21: Dollars | F21: Real $2018 | G21: End_Year | H21: c-i-c | I21: c-i-c | J21: c-i-c | K21: c-i-c | L21: c-i-c | M21: c-i-c | N21: c-i-c | P21: 0
C22: 8 | D22: SCADA | E22: Dollars | F22: Real $2018 | G22: End_Year | H22: c-i-c | I22: c-i-c | J22: c-i-c | K22: c-i-c | L22: c-i-c | M22: c-i-c | N22: c-i-c | P22: 0
C23: 9 | D23: Communications | E23: Dollars | F23: Real $2018 | G23: End_Year | H23: c-i-c | I23: c-i-c | J23: c-i-c | K23: c-i-c | L23: c-i-c | M23: c-i-c | N23: c-i-c | P23: 0
C24: 10 | D24: Land and Easements | E24: Dollars | F24: Real $2018 | G24: End_Year | H24: c-i-c | I24: c-i-c | J24: c-i-c | K24: c-i-c | L24: c-i-c | M24: c-i-c | N24: c-i-c | P24: 0
C25: 11 | D25: Property | E25: Dollars | F25: Real $2018 | G25: End_Year | H25: c-i-c | I25: c-i-c | J25: c-i-c | K25: c-i-c | L25: c-i-c | M25: c-i-c | N25: c-i-c | P25: 0
C26: 12 | D26: IT and Communications | E26: Dollars | F26: Real $2018 | G26: End_Year | H26: c-i-c | I26: c-i-c | J26: c-i-c | K26: c-i-c | L26: c-i-c | M26: c-i-c | N26: c-i-c | P26: 0
C27: 13 | D27: Motor Vehicles | E27: Dollars | F27: Real $2018 | G27: End_Year | H27: c-i-c | I27: c-i-c | J27: c-i-c | K27: c-i-c | L27: c-i-c | M27: c-i-c | N27: c-i-c | P27: 0
C28: 14 | D28: Plant and Equipment | E28: Dollars | F28: Real $2018 | G28: End_Year | H28: c-i-c | I28: c-i-c | J28: c-i-c | K28: c-i-c | L28: c-i-c | M28: c-i-c | N28: c-i-c | P28: 0
C29: 15 | D29: Property Leases | E29: Dollars | F29: Real $2018 | G29: End_Year | H29: c-i-c | I29: c-i-c | J29: c-i-c | K29: c-i-c | L29: c-i-c | M29: c-i-c | N29: c-i-c | P29: =SUM(J29:N29) -> 0
C30: 16 | D30: Fleet Leases | E30: Dollars | F30: Real $2018 | G30: End_Year | H30: c-i-c | I30: c-i-c | J30: c-i-c | K30: c-i-c | L30: c-i-c | M30: c-i-c | N30: c-i-c | P30: 0
E32: =E15 -> Dollars | F32: Real $2018 | G32: End_Year | H32: =SUM(H15:H30) -> 0 | I32: =SUM(I15:I30) -> 0 | J32: 0 | K32: 0 | L32: 0 | M32: 0 | N32: 0 | P32: 0
B34: End

Sheet BNI 13
B1: =MID(CELL("filename",A1),FIND("]",CELL("filename",A1))+1,255)&" Capital Expenditure" -> BNI 13 Capital Expenditure | G1: COMMERCIAL IN CONFIDENCE
B3: Direct Capex Forecasts
C5: BNI Description
D7: Requirement | E7: Description
D8: Expenditure category
D9: Project / program number
D10: Project / program description | E10: [deleted]
C12: Direct Costs (Excluding Capitalised Overheads and Cost Escalation)
C14: Ref. | D14: Regulatory Asset Class | E14: Unit | F14: Basis | G14: Timing | H14: RY18 | I14: RY19 | J14: RY20 | K14: RY21 | L14: RY22 | M14: RY23 | N14: RY24 | P14: Total FY20 to FY24
C15: =N(C14)+1 -> 1 | D15: Substations | E15: Dollars | F15: Real $2018 | G15: End_Year | H15: c-i-c | I15: c-i-c | J15: c-i-c | K15: c-i-c | L15: c-i-c | M15: c-i-c | N15: c-i-c | P15: =SUM(J15:N15) -> 0
C16: =N(C15)+1 -> 2 | D16: Distribution Lines | E16: Dollars | F16: Real $2018 | G16: End_Year | H16: c-i-c | I16: c-i-c | J16: c-i-c | K16: c-i-c | L16: c-i-c | M16: c-i-c | N16: c-i-c | P16: 0
C17: 3 | D17: Transmission Lines | E17: Dollars | F17: Real $2018 | G17: End_Year | H17: c-i-c | I17: c-i-c | J17: c-i-c | K17: c-i-c | L17: c-i-c | M17: c-i-c | N17: c-i-c | P17: 0
C18: 4 | D18: LV Services | E18: Dollars | F18: Real $2018 | G18: End_Year | H18: c-i-c | I18: c-i-c | J18: c-i-c | K18: c-i-c | L18: c-i-c | M18: c-i-c | N18: c-i-c | P18: 0
C19: 5 | D19: Distribution Substations | E19: Dollars | F19: Real $2018 | G19: End_Year | H19: c-i-c | I19: c-i-c | J19: c-i-c | K19: c-i-c | L19: c-i-c | M19: c-i-c | N19: c-i-c | P19: 0
C20: 6 | D20: Distribution Switchgear | E20: Dollars | F20: Real $2018 | G20: End_Year | H20: c-i-c | I20: c-i-c | J20: c-i-c | K20: c-i-c | L20: c-i-c | M20: c-i-c | N20: c-i-c | P20: 0
C21: 7 | D21: Protection | E21: Dollars | F21: Real $2018 | G21: End_Year | H21: c-i-c | I21: c-i-c | J21: c-i-c | K21: c-i-c | L21: c-i-c | M21: c-i-c | N21: c-i-c | P21: 0
C22: 8 | D22: SCADA | E22: Dollars | F22: Real $2018 | G22: End_Year | H22: c-i-c | I22: c-i-c | J22: c-i-c | K22: c-i-c | L22: c-i-c | M22: c-i-c | N22: c-i-c | P22: 0
C23: 9 | D23: Communications | E23: Dollars | F23: Real $2018 | G23: End_Year | H23: c-i-c | I23: c-i-c | J23: c-i-c | K23: c-i-c | L23: c-i-c | M23: c-i-c | N23: c-i-c | P23: 0
C24: 10 | D24: Land and Easements | E24: Dollars | F24: Real $2018 | G24: End_Year | H24: c-i-c | I24: c-i-c | J24: c-i-c | K24: c-i-c | L24: c-i-c | M24: c-i-c | N24: c-i-c | P24: 0
C25: 11 | D25: Property | E25: Dollars | F25: Real $2018 | G25: End_Year | H25: c-i-c | I25: c-i-c | J25: c-i-c | K25: c-i-c | L25: c-i-c | M25: c-i-c | N25: c-i-c | P25: 0
C26: 12 | D26: IT and Communications | E26: Dollars | F26: Real $2018 | G26: End_Year | H26: c-i-c | I26: c-i-c | J26: c-i-c | K26: c-i-c | L26: c-i-c | M26: c-i-c | N26: c-i-c | P26: 0
C27: 13 | D27: Motor Vehicles | E27: Dollars | F27: Real $2018 | G27: End_Year | H27: c-i-c | I27: c-i-c | J27: c-i-c | K27: c-i-c | L27: c-i-c | M27: c-i-c | N27: c-i-c | P27: 0
C28: 14 | D28: Plant and Equipment | E28: Dollars | F28: Real $2018 | G28: End_Year | H28: c-i-c | I28: c-i-c | J28: c-i-c | K28: c-i-c | L28: c-i-c | M28: c-i-c | N28: c-i-c | P28: 0
C29: 15 | D29: Property Leases | E29: Dollars | F29: Real $2018 | G29: End_Year | H29: c-i-c | I29: c-i-c | J29: c-i-c | K29: c-i-c | L29: c-i-c | M29: c-i-c | N29: c-i-c | P29: =SUM(J29:N29) -> 0
C30: 16 | D30: Fleet Leases | E30: Dollars | F30: Real $2018 | G30: End_Year | H30: c-i-c | I30: c-i-c | J30: c-i-c | K30: c-i-c | L30: c-i-c | M30: c-i-c | N30: c-i-c | P30: 0
E32: =E15 -> Dollars | F32: Real $2018 | G32: End_Year | H32: =SUM(H15:H30) -> 0 | I32: =SUM(I15:I30) -> 0 | J32: 0 | K32: 0 | L32: 0 | M32: 0 | N32: 0 | P32: 0
B34: End

Sheet BNI 14
B1: =MID(CELL("filename",A1),FIND("]",CELL("filename",A1))+1,255)&" Capital Expenditure" -> BNI 14 Capital Expenditure | G1: COMMERCIAL IN CONFIDENCE
B3: Direct Capex Forecasts
C5: BNI Description
D7: Requirement | E7: Description
D8: Expenditure category | E8: Substations
D9: Project / program number | E9: NMP3
D10: Project / program description | E10: 66kV HLC Circuit Breaker Replacement Program
C12: Direct Costs (Excluding Capitalised Overheads and Cost Escalation)
C14: Ref. | D14: Regulatory Asset Class | E14: Unit | F14: Basis | G14: Timing | H14: RY18 | I14: RY19 | J14: RY20 | K14: RY21 | L14: RY22 | M14: RY23 | N14: RY24 | P14: Total FY20 to FY24
C15: =N(C14)+1 -> 1 | D15: Substations | E15: Dollars | F15: Real $2018 | G15: End_Year | H15: c-i-c | I15: c-i-c | J15: c-i-c | K15: c-i-c | L15: c-i-c | M15: c-i-c | N15: c-i-c | P15: =SUM(J15:N15) -> 0
C16: =N(C15)+1 -> 2 | D16: Distribution Lines | E16: Dollars | F16: Real $2018 | G16: End_Year | H16: c-i-c | I16: c-i-c | J16: c-i-c | K16: c-i-c | L16: c-i-c | M16: c-i-c | N16: c-i-c | P16: 0
C17: 3 | D17: Transmission Lines | E17: Dollars | F17: Real $2018 | G17: End_Year | H17: c-i-c | I17: c-i-c | J17: c-i-c | K17: c-i-c | L17: c-i-c | M17: c-i-c | N17: c-i-c | P17: 0
C18: 4 | D18: LV Services | E18: Dollars | F18: Real $2018 | G18: End_Year | H18: c-i-c | I18: c-i-c | J18: c-i-c | K18: c-i-c | L18: c-i-c | M18: c-i-c | N18: c-i-c | P18: 0
C19: 5 | D19: Distribution Substations | E19: Dollars | F19: Real $2018 | G19: End_Year | H19: c-i-c | I19: c-i-c | J19: c-i-c | K19: c-i-c | L19: c-i-c | M19: c-i-c | N19: c-i-c | P19: 0
C20: 6 | D20: Distribution Switchgear | E20: Dollars | F20: Real $2018 | G20: End_Year | H20: c-i-c | I20: c-i-c | J20: c-i-c | K20: c-i-c | L20: c-i-c | M20: c-i-c | N20: c-i-c | P20: 0
C21: 7 | D21: Protection | E21: Dollars | F21: Real $2018 | G21: End_Year | H21: c-i-c | I21: c-i-c | J21: c-i-c | K21: c-i-c | L21: c-i-c | M21: c-i-c | N21: c-i-c | P21: 0
C22: 8 | D22: SCADA | E22: Dollars | F22: Real $2018 | G22: End_Year | H22: c-i-c | I22: c-i-c | J22: c-i-c | K22: c-i-c | L22: c-i-c | M22: c-i-c | N22: c-i-c | P22: 0
C23: 9 | D23: Communications | E23: Dollars | F23: Real $2018 | G23: End_Year | H23: c-i-c | I23: c-i-c | J23: c-i-c | K23: c-i-c | L23: c-i-c | M23: c-i-c | N23: c-i-c | P23: 0
C24: 10 | D24: Land and Easements | E24: Dollars | F24: Real $2018 | G24: End_Year | H24: c-i-c | I24: c-i-c | J24: c-i-c | K24: c-i-c | L24: c-i-c | M24: c-i-c | N24: c-i-c | P24: 0
C25: 11 | D25: Property | E25: Dollars | F25: Real $2018 | G25: End_Year | H25: c-i-c | I25: c-i-c | J25: c-i-c | K25: c-i-c | L25: c-i-c | M25: c-i-c | N25: c-i-c | P25: 0
C26: 12 | D26: IT and Communications | E26: Dollars | F26: Real $2018 | G26: End_Year | H26: c-i-c | I26: c-i-c | J26: c-i-c | K26: c-i-c | L26: c-i-c | M26: c-i-c | N26: c-i-c | P26: 0
C27: 13 | D27: Motor Vehicles | E27: Dollars | F27: Real $2018 | G27: End_Year | H27: c-i-c | I27: c-i-c | J27: c-i-c | K27: c-i-c | L27: c-i-c | M27: c-i-c | N27: c-i-c | P27: 0
C28: 14 | D28: Plant and Equipment | E28: Dollars | F28: Real $2018 | G28: End_Year | H28: c-i-c | I28: c-i-c | J28: c-i-c | K28: c-i-c | L28: c-i-c | M28: c-i-c | N28: c-i-c | P28: 0
C29: 15 | D29: Property Leases | E29: Dollars | F29: Real $2018 | G29: End_Year | H29: c-i-c | I29: c-i-c | J29: c-i-c | K29: c-i-c | L29: c-i-c | M29: c-i-c | N29: c-i-c | P29: =SUM(J29:N29) -> 0
C30: 16 | D30: Fleet Leases | E30: Dollars | F30: Real $2018 | G30: End_Year | H30: c-i-c | I30: c-i-c | J30: c-i-c | K30: c-i-c | L30: c-i-c | M30: c-i-c | N30: c-i-c | P30: 0
E32: =E15 -> Dollars | F32: Real $2018 | G32: End_Year | H32: =SUM(H15:H30) -> 0 | I32: =SUM(I15:I30) -> 0 | J32: 0 | K32: 0 | L32: 0 | M32: 0 | N32: 0 | P32: 0
B34: End

Sheet BNI 15
B1: =MID(CELL("filename",A1),FIND("]",CELL("filename",A1))+1,255)&" Capital Expenditure" -> BNI 15 Capital Expenditure | G1: COMMERCIAL IN CONFIDENCE
B3: Direct Capex Forecasts
C5: BNI Description
D7: Requirement | E7: Description
D8: Expenditure category | E8: Property
D9: Project / program number | E9: NMP14
D10: Project / program description | E10: Substation Fire Protection Equipment Replacement Program
C12: Direct Costs (Excluding Capitalised Overheads and Cost Escalation)
C14: Ref. | D14: Regulatory Asset Class | E14: Unit | F14: Basis | G14: Timing | H14: RY18 | I14: RY19 | J14: RY20 | K14: RY21 | L14: RY22 | M14: RY23 | N14: RY24 | P14: Total FY20 to FY24
C15: =N(C14)+1 -> 1 | D15: Substations | E15: Dollars | F15: Real $2018 | G15: End_Year | H15: c-i-c | I15: c-i-c | J15: c-i-c | K15: c-i-c | L15: c-i-c | M15: c-i-c | N15: c-i-c | P15: =SUM(J15:N15) -> 0
C16: =N(C15)+1 -> 2 | D16: Distribution Lines | E16: Dollars | F16: Real $2018 | G16: End_Year | H16: c-i-c | I16: c-i-c | J16: c-i-c | K16: c-i-c | L16: c-i-c | M16: c-i-c | N16: c-i-c | P16: 0
C17: 3 | D17: Transmission Lines | E17: Dollars | F17: Real $2018 | G17: End_Year | H17: c-i-c | I17: c-i-c | J17: c-i-c | K17: c-i-c | L17: c-i-c | M17: c-i-c | N17: c-i-c | P17: 0
C18: 4 | D18: LV Services | E18: Dollars | F18: Real $2018 | G18: End_Year | H18: c-i-c | I18: c-i-c | J18: c-i-c | K18: c-i-c | L18: c-i-c | M18: c-i-c | N18: c-i-c | P18: 0
C19: 5 | D19: Distribution Substations | E19: Dollars | F19: Real $2018 | G19: End_Year | H19: c-i-c | I19: c-i-c | J19: c-i-c | K19: c-i-c | L19: c-i-c | M19: c-i-c | N19: c-i-c | P19: 0
C20: 6 | D20: Distribution Switchgear | E20: Dollars | F20: Real $2018 | G20: End_Year | H20: c-i-c | I20: c-i-c | J20: c-i-c | K20: c-i-c | L20: c-i-c | M20: c-i-c | N20: c-i-c | P20: 0
C21: 7 | D21: Protection | E21: Dollars | F21: Real $2018 | G21: End_Year | H21: c-i-c | I21: c-i-c | J21: c-i-c | K21: c-i-c | L21: c-i-c | M21: c-i-c | N21: c-i-c | P21: 0
C22: 8 | D22: SCADA | E22: Dollars | F22: Real $2018 | G22: End_Year | H22: c-i-c | I22: c-i-c | J22: c-i-c | K22: c-i-c | L22: c-i-c | M22: c-i-c | N22: c-i-c | P22: 0
C23: 9 | D23: Communications | E23: Dollars | F23: Real $2018 | G23: End_Year | H23: c-i-c | I23: c-i-c | J23: c-i-c | K23: c-i-c | L23: c-i-c | M23: c-i-c | N23: c-i-c | P23: 0
C24: 10 | D24: Land and Easements | E24: Dollars | F24: Real $2018 | G24: End_Year | H24: c-i-c | I24: c-i-c | J24: c-i-c | K24: c-i-c | L24: c-i-c | M24: c-i-c | N24: c-i-c | P24: 0
C25: 11 | D25: Property | E25: Dollars | F25: Real $2018 | G25: End_Year | H25: c-i-c | I25: c-i-c | J25: c-i-c | K25: c-i-c | L25: c-i-c | M25: c-i-c | N25: c-i-c | P25: 0
C26: 12 | D26: IT and Communications | E26: Dollars | F26: Real $2018 | G26: End_Year | H26: c-i-c | I26: c-i-c | J26: c-i-c | K26: c-i-c | L26: c-i-c | M26: c-i-c | N26: c-i-c | P26: 0
C27: 13 | D27: Motor Vehicles | E27: Dollars | F27: Real $2018 | G27: End_Year | H27: c-i-c | I27: c-i-c | J27: c-i-c | K27: c-i-c | L27: c-i-c | M27: c-i-c | N27: c-i-c | P27: 0
C28: 14 | D28: Plant and Equipment | E28: Dollars | F28: Real $2018 | G28: End_Year | H28: c-i-c | I28: c-i-c | J28: c-i-c | K28: c-i-c | L28: c-i-c | M28: c-i-c | N28: c-i-c | P28: 0
C29: 15 | D29: Property Leases | E29: Dollars | F29: Real $2018 | G29: End_Year | H29: c-i-c | I29: c-i-c | J29: c-i-c | K29: c-i-c | L29: c-i-c | M29: c-i-c | N29: c-i-c | P29: =SUM(J29:N29) -> 0
C30: 16 | D30: Fleet Leases | E30: Dollars | F30: Real $2018 | G30: End_Year | H30: c-i-c | I30: c-i-c | J30: c-i-c | K30: c-i-c | L30: c-i-c | M30: c-i-c | N30: c-i-c | P30: 0
E32: =E15 -> Dollars | F32: Real $2018 | G32: End_Year | H32: =SUM(H15:H30) -> 0 | I32: =SUM(I15:I30) -> 0 | J32: 0 | K32: 0 | L32: 0 | M32: 0 | N32: 0 | P32: 0
B34: End

Sheet BNI 16
B1: =MID(CELL("filename",A1),FIND("]",CELL("filename",A1))+1,255)&" Capital Expenditure" -> BNI 16 Capital Expenditure | G1: COMMERCIAL IN CONFIDENCE
B3: Direct Capex Forecasts
C5: BNI Description
D7: Requirement | E7: Description
D8: Expenditure category | E8: SCADA and Communications
D9: Project / program number | E9: NMSC1
D10: Project / program description | E10: SCADA and Communications Obsolete Asset Replacement Program
C12: Direct Costs (Excluding Capitalised Overheads and Cost Escalation)
C14: Ref. | D14: Regulatory Asset Class | E14: Unit | F14: Basis | G14: Timing | H14: RY18 | I14: RY19 | J14: RY20 | K14: RY21 | L14: RY22 | M14: RY23 | N14: RY24 | P14: Total FY20 to FY24
C15: =N(C14)+1 -> 1 | D15: Substations | E15: Dollars | F15: Real $2018 | G15: End_Year | H15: c-i-c | I15: c-i-c | J15: c-i-c | K15: c-i-c | L15: c-i-c | M15: c-i-c | N15: c-i-c | P15: =SUM(J15:N15) -> 0
C16: =N(C15)+1 -> 2 | D16: Distribution Lines | E16: Dollars | F16: Real $2018 | G16: End_Year | H16: c-i-c | I16: c-i-c | J16: c-i-c | K16: c-i-c | L16: c-i-c | M16: c-i-c | N16: c-i-c | P16: 0
C17: 3 | D17: Transmission Lines | E17: Dollars | F17: Real $2018 | G17: End_Year | H17: c-i-c | I17: c-i-c | J17: c-i-c | K17: c-i-c | L17: c-i-c | M17: c-i-c | N17: c-i-c | P17: 0
C18: 4 | D18: LV Services | E18: Dollars | F18: Real $2018 | G18: End_Year | H18: c-i-c | I18: c-i-c | J18: c-i-c | K18: c-i-c | L18: c-i-c | M18: c-i-c | N18: c-i-c | P18: 0
C19: 5 | D19: Distribution Substations | E19: Dollars | F19: Real $2018 | G19: End_Year | H19: c-i-c | I19: c-i-c | J19: c-i-c | K19: c-i-c | L19: c-i-c | M19: c-i-c | N19: c-i-c | P19: 0
C20: 6 | D20: Distribution Switchgear | E20: Dollars | F20: Real $2018 | G20: End_Year | H20: c-i-c | I20: c-i-c | J20: c-i-c | K20: c-i-c | L20: c-i-c | M20: c-i-c | N20: c-i-c | P20: 0
C21: 7 | D21: Protection | E21: Dollars | F21: Real $2018 | G21: End_Year | H21: c-i-c | I21: c-i-c | J21: c-i-c | K21: c-i-c | L21: c-i-c | M21: c-i-c | N21: c-i-c | P21: 0
C22: 8 | D22: SCADA | E22: Dollars | F22: Real $2018 | G22: End_Year | H22: c-i-c | I22: c-i-c | J22: c-i-c | K22: c-i-c | L22: c-i-c | M22: c-i-c | N22: c-i-c | P22: 0
C23: 9 | D23: Communications | E23: Dollars | F23: Real $2018 | G23: End_Year | H23: c-i-c | I23: c-i-c | J23: c-i-c | K23: c-i-c | L23: c-i-c | M23: c-i-c | N23: c-i-c | P23: 0
C24: 10 | D24: Land and Easements | E24: Dollars | F24: Real $2018 | G24: End_Year | H24: c-i-c | I24: c-i-c | J24: c-i-c | K24: c-i-c | L24: c-i-c | M24: c-i-c | N24: c-i-c | P24: 0
C25: 11 | D25: Property | E25: Dollars | F25: Real $2018 | G25: End_Year | H25: c-i-c | I25: c-i-c | J25: c-i-c | K25: c-i-c | L25: c-i-c | M25: c-i-c | N25: c-i-c | P25: 0
C26: 12 | D26: IT and Communications | E26: Dollars | F26: Real $2018 | G26: End_Year | H26: c-i-c | I26: c-i-c | J26: c-i-c | K26: c-i-c | L26: c-i-c | M26: c-i-c | N26: c-i-c | P26: 0
C27: 13 | D27: Motor Vehicles | E27: Dollars | F27: Real $2018 | G27: End_Year | H27: c-i-c | I27: c-i-c | J27: c-i-c | K27: c-i-c | L27: c-i-c | M27: c-i-c | N27: c-i-c | P27: 0
C28: 14 | D28: Plant and Equipment | E28: Dollars | F28: Real $2018 | G28: End_Year | H28: c-i-c | I28: c-i-c | J28: c-i-c | K28: c-i-c | L28: c-i-c | M28: c-i-c | N28: c-i-c | P28: 0
C29: 15 | D29: Property Leases | E29: Dollars | F29: Real $2018 | G29: End_Year | H29: c-i-c | I29: c-i-c | J29: c-i-c | K29: c-i-c | L29: c-i-c | M29: c-i-c | N29: c-i-c | P29: =SUM(J29:N29) -> 0
C30: 16 | D30: Fleet Leases | E30: Dollars | F30: Real $2018 | G30: End_Year | H30: c-i-c | I30: c-i-c | J30: c-i-c | K30: c-i-c | L30: c-i-c | M30: c-i-c | N30: c-i-c | P30: 0
E32: =E15 -> Dollars | F32: Real $2018 | G32: End_Year | H32: =SUM(H15:H30) -> 0 | I32: =SUM(I15:I30) -> 0 | J32: 0 | K32: 0 | L32: 0 | M32: 0 | N32: 0 | P32: 0
B34: End

Sheet BNI 17
B1: =MID(CELL("filename",A1),FIND("]",CELL("filename",A1))+1,255)&" Capital Expenditure" -> BNI 17 Capital Expenditure | G1: COMMERCIAL IN CONFIDENCE
B3: Direct Capex Forecasts
C5: BNI Description
D7: Requirement | E7: Description
D8: Expenditure category | E8: Communications
D9: Project / program number | E9: NMSC2
D10: Project / program description | E10: SCADA and Communications Battery Replacement Program
C12: Direct Costs (Excluding Capitalised Overheads and Cost Escalation)
C14: Ref. | D14: Regulatory Asset Class | E14: Unit | F14: Basis | G14: Timing | H14: RY18 | I14: RY19 | J14: RY20 | K14: RY21 | L14: RY22 | M14: RY23 | N14: RY24 | P14: Total FY20 to FY24
C15: =N(C14)+1 -> 1 | D15: Substations | E15: Dollars | F15: Real $2018 | G15: End_Year | H15: c-i-c | I15: c-i-c | J15: c-i-c | K15: c-i-c | L15: c-i-c | M15: c-i-c | N15: c-i-c | P15: =SUM(J15:N15) -> 0
C16: =N(C15)+1 -> 2 | D16: Distribution Lines | E16: Dollars | F16: Real $2018 | G16: End_Year | H16: c-i-c | I16: c-i-c | J16: c-i-c | K16: c-i-c | L16: c-i-c | M16: c-i-c | N16: c-i-c | P16: 0
C17: 3 | D17: Transmission Lines | E17: Dollars | F17: Real $2018 | G17: End_Year | H17: c-i-c | I17: c-i-c | J17: c-i-c | K17: c-i-c | L17: c-i-c | M17: c-i-c | N17: c-i-c | P17: 0
C18: 4 | D18: LV Services | E18: Dollars | F18: Real $2018 | G18: End_Year | H18: c-i-c | I18: c-i-c | J18: c-i-c | K18: c-i-c | L18: c-i-c | M18: c-i-c | N18: c-i-c | P18: 0
C19: 5 | D19: Distribution Substations | E19: Dollars | F19: Real $2018 | G19: End_Year | H19: c-i-c | I19: c-i-c | J19: c-i-c | K19: c-i-c | L19: c-i-c | M19: c-i-c | N19: c-i-c | P19: 0
C20: 6 | D20: Distribution Switchgear | E20: Dollars | F20: Real $2018 | G20: End_Year | H20: c-i-c | I20: c-i-c | J20: c-i-c | K20: c-i-c | L20: c-i-c | M20: c-i-c | N20: c-i-c | P20: 0
C21: 7 | D21: Protection | E21: Dollars | F21: Real $2018 | G21: End_Year | H21: c-i-c | I21: c-i-c | J21: c-i-c | K21: c-i-c | L21: c-i-c | M21: c-i-c | N21: c-i-c | P21: 0
C22: 8 | D22: SCADA | E22: Dollars | F22: Real $2018 | G22: End_Year | H22: c-i-c | I22: c-i-c | J22: c-i-c | K22: c-i-c | L22: c-i-c | M22: c-i-c | N22: c-i-c | P22: 0
C23: 9 | D23: Communications | E23: Dollars | F23: Real $2018 | G23: End_Year | H23: c-i-c | I23: c-i-c | J23: c-i-c | K23: c-i-c | L23: c-i-c | M23: c-i-c | N23: c-i-c | P23: 0
C24: 10 | D24: Land and Easements | E24: Dollars | F24: Real $2018 | G24: End_Year | H24: c-i-c | I24: c-i-c | J24: c-i-c | K24: c-i-c | L24: c-i-c | M24: c-i-c | N24: c-i-c | P24: 0
C25: 11 | D25: Property | E25: Dollars | F25: Real $2018 | G25: End_Year | H25: c-i-c | I25: c-i-c | J25: c-i-c | K25: c-i-c | L25: c-i-c | M25: c-i-c | N25: c-i-c | P25: 0
C26: 12 | D26: IT and Communications | E26: Dollars | F26: Real $2018 | G26: End_Year | H26: c-i-c | I26: c-i-c | J26: c-i-c | K26: c-i-c | L26: c-i-c | M26: c-i-c | N26: c-i-c | P26: 0
C27: 13 | D27: Motor Vehicles | E27: Dollars | F27: Real $2018 | G27: End_Year | H27: c-i-c | I27: c-i-c | J27: c-i-c | K27: c-i-c | L27: c-i-c | M27: c-i-c | N27: c-i-c | P27: 0
C28: 14 | D28: Plant and Equipment | E28: Dollars | F28: Real $2018 | G28: End_Year | H28: c-i-c | I28: c-i-c | J28: c-i-c | K28: c-i-c | L28: c-i-c | M28: c-i-c | N28: c-i-c | P28: 0
C29: 15 | D29: Property Leases | E29: Dollars | F29: Real $2018 | G29: End_Year | H29: c-i-c | I29: c-i-c | J29: c-i-c | K29: c-i-c | L29: c-i-c | M29: c-i-c | N29: c-i-c | P29: =SUM(J29:N29) -> 0
C30: 16 | D30: Fleet Leases | E30: Dollars | F30: Real $2018 | G30: End_Year | H30: c-i-c | I30: c-i-c | J30: c-i-c | K30: c-i-c | L30: c-i-c | M30: c-i-c | N30: c-i-c | P30: 0
E32: =E15 -> Dollars | F32: Real $2018 | G32: End_Year | H32: =SUM(H15:H30) -> 0 | I32: =SUM(I15:I30) -> 0 | J32: 0 | K32: 0 | L32: 0 | M32: 0 | N32: 0 | P32: 0
B34: End

Sheet BNI 18
B1: =MID(CELL("filename",A1),FIND("]",CELL("filename",A1))+1,255)&" Capital Expenditure" -> BNI 18 Capital Expenditure | G1: COMMERCIAL IN CONFIDENCE
B3: Direct Capex Forecasts
C5: BNI Description
D7: Requirement | E7: Description
D8: Expenditure category | E8: Communications
D9: Project / program number | E9: NMSC4
D10: Project / program description | E10: SCADA and Communications Compliance and Safety Program
C12: Direct Costs (Excluding Capitalised Overheads and Cost Escalation)
C14: Ref. | D14: Regulatory Asset Class | E14: Unit | F14: Basis | G14: Timing | H14: RY18 | I14: RY19 | J14: RY20 | K14: RY21 | L14: RY22 | M14: RY23 | N14: RY24 | P14: Total FY20 to FY24
C15: =N(C14)+1 -> 1 | D15: Substations | E15: Dollars | F15: Real $2018 | G15: End_Year | H15: c-i-c | I15: c-i-c | J15: c-i-c | K15: c-i-c | L15: c-i-c | M15: c-i-c | N15: c-i-c | P15: =SUM(J15:N15) -> 0
C16: =N(C15)+1 -> 2 | D16: Distribution Lines | E16: Dollars | F16: Real $2018 | G16: End_Year | H16: c-i-c | I16: c-i-c | J16: c-i-c | K16: c-i-c | L16: c-i-c | M16: c-i-c | N16: c-i-c | P16: 0
C17: 3 | D17: Transmission Lines | E17: Dollars | F17: Real $2018 | G17: End_Year | H17: c-i-c | I17: c-i-c | J17: c-i-c | K17: c-i-c | L17: c-i-c | M17: c-i-c | N17: c-i-c | P17: 0
C18: 4 | D18: LV Services | E18: Dollars | F18: Real $2018 | G18: End_Year | H18: c-i-c | I18: c-i-c | J18: c-i-c | K18: c-i-c | L18: c-i-c | M18: c-i-c | N18: c-i-c | P18: 0
C19: 5 | D19: Distribution Substations | E19: Dollars | F19: Real $2018 | G19: End_Year | H19: c-i-c | I19: c-i-c | J19: c-i-c | K19: c-i-c | L19: c-i-c | M19: c-i-c | N19: c-i-c | P19: 0
C20: 6 | D20: Distribution Switchgear | E20: Dollars | F20: Real $2018 | G20: End_Year | H20: c-i-c | I20: c-i-c | J20: c-i-c | K20: c-i-c | L20: c-i-c | M20: c-i-c | N20: c-i-c | P20: 0
C21: 7 | D21: Protection | E21: Dollars | F21: Real $2018 | G21: End_Year | H21: c-i-c | I21: c-i-c | J21: c-i-c | K21: c-i-c | L21: c-i-c | M21: c-i-c | N21: c-i-c | P21: 0
C22: 8 | D22: SCADA | E22: Dollars | F22: Real $2018 | G22: End_Year | H22: c-i-c | I22: c-i-c | J22: c-i-c | K22: c-i-c | L22: c-i-c | M22: c-i-c | N22: c-i-c | P22: 0
C23: 9 | D23: Communications | E23: Dollars | F23: Real $2018 | G23: End_Year | H23: c-i-c | I23: c-i-c | J23: c-i-c | K23: c-i-c | L23: c-i-c | M23: c-i-c | N23: c-i-c | P23: 0
C24: 10 | D24: Land and Easements | E24: Dollars | F24: Real $2018 | G24: End_Year | H24: c-i-c | I24: c-i-c | J24: c-i-c | K24: c-i-c | L24: c-i-c | M24: c-i-c | N24: c-i-c | P24: 0
C25: 11 | D25: Property | E25: Dollars | F25: Real $2018 | G25: End_Year | H25: c-i-c | I25: c-i-c | J25: c-i-c | K25: c-i-c | L25: c-i-c | M25: c-i-c | N25: c-i-c | P25: 0
C26: 12 | D26: IT and Communications | E26: Dollars | F26: Real $2018 | G26: End_Year | H26: c-i-c | I26: c-i-c | J26: c-i-c | K26: c-i-c | L26: c-i-c | M26: c-i-c | N26: c-i-c | P26: 0
C27: 13 | D27: Motor Vehicles | E27: Dollars | F27: Real $2018 | G27: End_Year | H27: c-i-c | I27: c-i-c | J27: c-i-c | K27: c-i-c | L27: c-i-c | M27: c-i-c | N27: c-i-c | P27: 0
C28: 14 | D28: Plant and Equipment | E28: Dollars | F28: Real $2018 | G28: End_Year | H28: c-i-c | I28: c-i-c | J28: c-i-c | K28: c-i-c | L28: c-i-c | M28: c-i-c | N28: c-i-c | P28: 0
C29: 15 | D29: Property Leases | E29: Dollars | F29: Real $2018 | G29: End_Year | H29: c-i-c | I29: c-i-c | J29: c-i-c | K29: c-i-c | L29: c-i-c | M29: c-i-c | N29: c-i-c | P29: =SUM(J29:N29) -> 0
C30: 16 | D30: Fleet Leases | E30: Dollars | F30: Real $2018 | G30: End_Year | H30: c-i-c | I30: c-i-c | J30: c-i-c | K30: c-i-c | L30: c-i-c | M30: c-i-c | N30: c-i-c | P30: 0
E32: =E15 -> Dollars | F32: Real $2018 | G32: End_Year | H32: =SUM(H15:H30) -> 0 | I32: =SUM(I15:I30) -> 0 | J32: 0 | K32: 0 | L32: 0 | M32: 0 | N32: 0 | P32: 0
B34: End

Sheet BNI 19
B1: =MID(CELL("filename",A1),FIND("]",CELL("filename",A1))+1,255)&" Capital Expenditure" -> BNI 19 Capital Expenditure | G1: COMMERCIAL IN CONFIDENCE
B3: Direct Capex Forecasts
C5: BNI Description
D7: Requirement | E7: Description
D8: Expenditure category | E8: Protection
D9: Project / program number | E9: NPR
D10: Project / program description | E10: Protection Relay Replacement Program
C12: Direct Costs (Excluding Capitalised Overheads and Cost Escalation)
C14: Ref. | D14: Regulatory Asset Class | E14: Unit | F14: Basis | G14: Timing | H14: RY18 | I14: RY19 | J14: RY20 | K14: RY21 | L14: RY22 | M14: RY23 | N14: RY24 | P14: Total FY20 to FY24
C15: =N(C14)+1 -> 1 | D15: Substations | E15: Dollars | F15: Real $2018 | G15: End_Year | H15: c-i-c | I15: c-i-c | J15: c-i-c | K15: c-i-c | L15: c-i-c | M15: c-i-c | N15: c-i-c | P15: =SUM(J15:N15) -> 0
C16: =N(C15)+1 -> 2 | D16: Distribution Lines | E16: Dollars | F16: Real $2018 | G16: End_Year | H16: c-i-c | I16: c-i-c | J16: c-i-c | K16: c-i-c | L16: c-i-c | M16: c-i-c | N16: c-i-c | P16: 0
C17: 3 | D17: Transmission Lines | E17: Dollars | F17: Real $2018 | G17: End_Year | H17: c-i-c | I17: c-i-c | J17: c-i-c | K17: c-i-c | L17: c-i-c | M17: c-i-c | N17: c-i-c | P17: 0
C18: 4 | D18: LV Services | E18: Dollars | F18: Real $2018 | G18: End_Year | H18: c-i-c | I18: c-i-c | J18: c-i-c | K18: c-i-c | L18: c-i-c | M18: c-i-c | N18: c-i-c | P18: 0
C19: 5 | D19: Distribution Substations | E19: Dollars | F19: Real $2018 | G19: End_Year | H19: c-i-c | I19: c-i-c | J19: c-i-c | K19: c-i-c | L19: c-i-c | M19: c-i-c | N19: c-i-c | P19: 0
C20: 6 | D20: Distribution Switchgear | E20: Dollars | F20: Real $2018 | G20: End_Year | H20: c-i-c | I20: c-i-c | J20: c-i-c | K20: c-i-c | L20: c-i-c | M20: c-i-c | N20: c-i-c | P20: 0
C21: 7 | D21: Protection | E21: Dollars | F21: Real $2018 | G21: End_Year | H21: c-i-c | I21: c-i-c | J21: c-i-c | K21: c-i-c | L21: c-i-c | M21: c-i-c | N21: c-i-c | P21: 0
C22: 8 | D22: SCADA | E22: Dollars | F22: Real $2018 | G22: End_Year | H22: c-i-c | I22: c-i-c | J22: c-i-c | K22: c-i-c | L22: c-i-c | M22: c-i-c | N22: c-i-c | P22: 0
C23: 9 | D23: Communications | E23: Dollars | F23: Real $2018 | G23: End_Year | H23: c-i-c | I23: c-i-c | J23: c-i-c | K23: c-i-c | L23: c-i-c | M23: c-i-c | N23: c-i-c | P23: 0
C24: 10 | D24: Land and Easements | E24: Dollars | F24: Real $2018 | G24: End_Year | H24: c-i-c | I24: c-i-c | J24: c-i-c | K24: c-i-c | L24: c-i-c | M24: c-i-c | N24: c-i-c | P24: 0
C25: 11 | D25: Property | E25: Dollars | F25: Real $2018 | G25: End_Year | H25: c-i-c | I25: c-i-c | J25: c-i-c | K25: c-i-c | L25: c-i-c | M25: c-i-c | N25: c-i-c | P25: 0
C26: 12 | D26: IT and Communications | E26: Dollars | F26: Real $2018 | G26: End_Year | H26: c-i-c | I26: c-i-c | J26: c-i-c | K26: c-i-c | L26: c-i-c | M26: c-i-c | N26: c-i-c | P26: 0
C27: 13 | D27: Motor Vehicles | E27: Dollars | F27: Real $2018 | G27: End_Year | H27: c-i-c | I27: c-i-c | J27: c-i-c | K27: c-i-c | L27: c-i-c | M27: c-i-c | N27: c-i-c | P27: 0
C28: 14 | D28: Plant and Equipment | E28: Dollars | F28: Real $2018 | G28: End_Year | H28: c-i-c | I28: c-i-c | J28: c-i-c | K28: c-i-c | L28: c-i-c | M28: c-i-c | N28: c-i-c | P28: 0
C29: 15 | D29: Property Leases | E29: Dollars | F29: Real $2018 | G29: End_Year | H29: c-i-c | I29: c-i-c | J29: c-i-c | K29: c-i-c | L29: c-i-c | M29: c-i-c | N29: c-i-c | P29: =SUM(J29:N29) -> 0
C30: 16 | D30: Fleet Leases | E30: Dollars | F30: Real $2018 | G30: End_Year | H30: c-i-c | I30: c-i-c | J30: c-i-c | K30: c-i-c | L30: c-i-c | M30: c-i-c | N30: c-i-c | P30: 0
E32: =E15 -> Dollars | F32: Real $2018 | G32: End_Year | H32: =SUM(H15:H30) -> 0 | I32: =SUM(I15:I30) -> 0 | J32: 0 | K32: 0 | L32: 0 | M32: 0 | N32: 0 | P32: 0
B34: End

Sheet BNI 20
B1: =MID(CELL("filename",A1),FIND("]",CELL("filename",A1))+1,255)&" Capital Expenditure" -> BNI 20 Capital Expenditure | G1: COMMERCIAL IN CONFIDENCE
B3: Direct Capex Forecasts
C5: NMP1 - High Voltage Cable Replacement Darwin Northern Suburbs
D7: Requirement | E7: Description
D8: Expenditure category | E8: Distribution Lines
D9: Project / program number | E9: NMP1
D10: Project / program description | E10: Darwin Northern Suburbs High Voltage Cable Replacement Program
C12: Direct Costs (Excluding Capitalised Overheads and Cost Escalation)
C14: Ref. | D14: Regulatory Asset Class | E14: Unit | F14: Basis | G14: Timing | H14: RY18 | I14: RY19 | J14: RY20 | K14: RY21 | L14: RY22 | M14: RY23 | N14: RY24 | P14: Total FY20 to FY24
C15: =N(C14)+1 -> 1 | D15: Substations | E15: Dollars | F15: Real $2018 | G15: End_Year | H15: c-i-c | I15: c-i-c | J15: c-i-c | K15: c-i-c | L15: c-i-c | M15: c-i-c | N15: c-i-c | P15: =SUM(J15:N15) -> 0
C16: =N(C15)+1 -> 2 | D16: Distribution Lines | E16: Dollars | F16: Real $2018 | G16: End_Year | H16: c-i-c | I16: c-i-c | J16: c-i-c | K16: c-i-c | L16: c-i-c | M16: c-i-c | N16: c-i-c | P16: =SUM(J16:N16) -> 0
C17: 3 | D17: Transmission Lines | E17: Dollars | F17: Real $2018 | G17: End_Year | H17: c-i-c | I17: c-i-c | J17: c-i-c | K17: c-i-c | L17: c-i-c | M17: c-i-c | N17: c-i-c | P17: 0
C18: 4 | D18: LV Services | E18: Dollars | F18: Real $2018 | G18: End_Year | H18: c-i-c | I18: c-i-c | J18: c-i-c | K18: c-i-c | L18: c-i-c | M18: c-i-c | N18: c-i-c | P18: 0
C19: 5 | D19: Distribution Substations | E19: Dollars | F19: Real $2018 | G19: End_Year | H19: c-i-c | I19: c-i-c | J19: c-i-c | K19: c-i-c | L19: c-i-c | M19: c-i-c | N19: c-i-c | P19: 0
C20: 6 | D20: Distribution Switchgear | E20: Dollars | F20: Real $2018 | G20: End_Year | H20: c-i-c | I20: c-i-c | J20: c-i-c | K20: c-i-c | L20: c-i-c | M20: c-i-c | N20: c-i-c | P20: 0
C21: 7 | D21: Protection | E21: Dollars | F21: Real $2018 | G21: End_Year | H21: c-i-c | I21: c-i-c | J21: c-i-c | K21: c-i-c | L21: c-i-c | M21: c-i-c | N21: c-i-c | P21: 0
C22: 8 | D22: SCADA | E22: Dollars | F22: Real $2018 | G22: End_Year | H22: c-i-c | I22: c-i-c | J22: c-i-c | K22: c-i-c | L22: c-i-c | M22: c-i-c | N22: c-i-c | P22: 0
C23: 9 | D23: Communications | E23: Dollars | F23: Real $2018 | G23: End_Year | H23: c-i-c | I23: c-i-c | J23: c-i-c | K23: c-i-c | L23: c-i-c | M23: c-i-c | N23: c-i-c | P23: 0
C24: 10 | D24: Land and Easements | E24: Dollars | F24: Real $2018 | G24: End_Year | H24: c-i-c | I24: c-i-c | J24: c-i-c | K24: c-i-c | L24: c-i-c | M24: c-i-c | N24: c-i-c | P24: 0
C25: 11 | D25: Property | E25: Dollars | F25: Real $2018 | G25: End_Year | H25: c-i-c | I25: c-i-c | J25: c-i-c | K25: c-i-c | L25: c-i-c | M25: c-i-c | N25: c-i-c | P25: 0
C26: 12 | D26: IT and Communications | E26: Dollars | F26: Real $2018 | G26: End_Year | H26: c-i-c | I26: c-i-c | J26: c-i-c | K26: c-i-c | L26: c-i-c | M26: c-i-c | N26: c-i-c | P26: 0
C27: 13 | D27: Motor Vehicles | E27: Dollars | F27: Real $2018 | G27: End_Year | H27: c-i-c | I27: c-i-c | J27: c-i-c | K27: c-i-c | L27: c-i-c | M27: c-i-c | N27: c-i-c | P27: 0
C28: 14 | D28: Plant and Equipment | E28: Dollars | F28: Real $2018 | G28: End_Year | H28: c-i-c | I28: c-i-c | J28: c-i-c | K28: c-i-c | L28: c-i-c | M28: c-i-c | N28: c-i-c | P28: 0
C29: 15 | D29: Property Leases | E29: Dollars | F29: Real $2018 | G29: End_Year | H29: c-i-c | I29: c-i-c | J29: c-i-c | K29: c-i-c | L29: c-i-c | M29: c-i-c | N29: c-i-c | P29: =SUM(J29:N29) -> 0
C30: 16 | D30: Fleet Leases | E30: Dollars | F30: Real $2018 | G30: End_Year | H30: c-i-c | I30: c-i-c | J30: c-i-c | K30: c-i-c | L30: c-i-c | M30: c-i-c | N30: c-i-c | P30: 0
E32: =E15 -> Dollars | F32: Real $2018 | G32: End_Year | H32: =SUM(H15:H30) -> 0 | I32: =SUM(I15:I30) -> 0 | J32: 0 | K32: 0 | L32: 0 | M32: 0 | N32: 0 | P32: 0
B34: End

Sheet BNI 21
B1: =MID(CELL("filename",A1),FIND("]",CELL("filename",A1))+1,255)&" Capital Expenditure" -> BNI 21 Capital Expenditure | G1: COMMERCIAL IN CONFIDENCE
B3: Direct Capex Forecasts
C5: NMP2 - Cullen Bay and Bayview LV cable Replacement
D7: Requirement | E7: Description
D8: Expenditure category | E8: Distribution Lines
D9: Project / program number | E9: NMP2
D10: Project / program description | E10: Darwin Cullen Bay and Bayview Low Voltage Cable Replacement Program
C12: Direct Costs (Excluding Capitalised Overheads and Cost Escalation)
C14: Ref. | D14: Regulatory Asset Class | E14: Unit | F14: Basis | G14: Timing | H14: RY18 | I14: RY19 | J14: RY20 | K14: RY21 | L14: RY22 | M14: RY23 | N14: RY24 | P14: Total FY20 to FY24
C15: =N(C14)+1 -> 1 | D15: Substations | E15: Dollars | F15: Real $2018 | G15: End_Year | H15: c-i-c | I15: c-i-c | J15: c-i-c | K15: c-i-c | L15: c-i-c | M15: c-i-c | N15: c-i-c | P15: =SUM(J15:N15) -> 0
C16: =N(C15)+1 -> 2 | D16: Distribution Lines | E16: Dollars | F16: Real $2018 | G16: End_Year | H16: c-i-c | I16: c-i-c | J16: c-i-c | K16: c-i-c | L16: c-i-c | M16: c-i-c | N16: c-i-c | P16: 0
C17: 3 | D17: Transmission Lines | E17: Dollars | F17: Real $2018 | G17: End_Year | H17: c-i-c | I17: c-i-c | J17: c-i-c | K17: c-i-c | L17: c-i-c | M17: c-i-c | N17: c-i-c | P17: 0
C18: 4 | D18: LV Services | E18: Dollars | F18: Real $2018 | G18: End_Year | H18: c-i-c | I18: c-i-c | J18: c-i-c | K18: c-i-c | L18: c-i-c | M18: c-i-c | N18: c-i-c | P18: 0
C19: 5 | D19: Distribution Substations | E19: Dollars | F19: Real $2018 | G19: End_Year | H19: c-i-c | I19: c-i-c | J19: c-i-c | K19: c-i-c | L19: c-i-c | M19: c-i-c | N19: c-i-c | P19: 0
C20: 6 | D20: Distribution Switchgear | E20: Dollars | F20: Real $2018 | G20: End_Year | H20: c-i-c | I20: c-i-c | J20: c-i-c | K20: c-i-c | L20: c-i-c | M20: c-i-c | N20: c-i-c | P20: 0
C21: 7 | D21: Protection | E21: Dollars | F21: Real $2018 | G21: End_Year | H21: c-i-c | I21: c-i-c | J21: c-i-c | K21: c-i-c | L21: c-i-c | M21: c-i-c | N21: c-i-c | P21: 0
C22: 8 | D22: SCADA | E22: Dollars | F22: Real $2018 | G22: End_Year | H22: c-i-c | I22: c-i-c | J22: c-i-c | K22: c-i-c | L22: c-i-c | M22: c-i-c | N22: c-i-c | P22: 0
C23: 9 | D23: Communications | E23: Dollars | F23: Real $2018 | G23: End_Year | H23: c-i-c | I23: c-i-c | J23: c-i-c | K23: c-i-c | L23: c-i-c | M23: c-i-c | N23: c-i-c | P23: 0
C24: 10 | D24: Land and Easements | E24: Dollars | F24: Real $2018 | G24: End_Year | H24: c-i-c | I24: c-i-c | J24: c-i-c | K24: c-i-c | L24: c-i-c | M24: c-i-c | N24: c-i-c | P24: 0
C25: 11 | D25: Property | E25: Dollars | F25: Real $2018 | G25: End_Year | H25: c-i-c | I25: c-i-c | J25: c-i-c | K25: c-i-c | L25: c-i-c | M25: c-i-c | N25: c-i-c | P25: 0
C26: 12 | D26: IT and Communications | E26: Dollars | F26: Real $2018 | G26: End_Year | H26: c-i-c | I26: c-i-c | J26: c-i-c | K26: c-i-c | L26: c-i-c | M26: c-i-c | N26: c-i-c | P26: 0
C27: 13 | D27: Motor Vehicles | E27: Dollars | F27: Real $2018 | G27: End_Year | H27: c-i-c | I27: c-i-c | J27: c-i-c | K27: c-i-c | L27: c-i-c | M27: c-i-c | N27: c-i-c | P27: 0
C28: 14 | D28: Plant and Equipment | E28: Dollars | F28: Real $2018 | G28: End_Year | H28: c-i-c | I28: c-i-c | J28: c-i-c | K28: c-i-c | L28: c-i-c | M28: c-i-c | N28: c-i-c | P28: 0
C29: 15 | D29: Property Leases | E29: Dollars | F29: Real $2018 | G29: End_Year | H29: c-i-c | I29: c-i-c | J29: c-i-c | K29: c-i-c | L29: c-i-c | M29: c-i-c | N29: c-i-c | P29: =SUM(J29:N29) -> 0
C30: 16 | D30: Fleet Leases | E30: Dollars | F30: Real $2018 | G30: End_Year | H30: c-i-c | I30: c-i-c | J30: c-i-c | K30: c-i-c | L30: c-i-c | M30: c-i-c | N30: c-i-c | P30: 0
E32: =E15 -> Dollars | F32: Real $2018 | G32: End_Year | H32: =SUM(H15:H30) -> 0 | I32: =SUM(I15:I30) -> 0 | J32: 0 | K32: 0 | L32: 0 | M32: 0 | N32: 0 | P32: 0
B34: End

Sheet BNI 22
B1: =MID(CELL("filename",A1),FIND("]",CELL("filename",A1))+1,255)&" Capital Expenditure" -> BNI 22 Capital Expenditure | G1: COMMERCIAL IN CONFIDENCE
B3: Direct Capex Forecasts
C5: NMP5 - Lake Bennett feeder (Cockatoo conductor)
D7: Requirement | E7: Description
D8: Expenditure category | E8: Distribution Lines
D9: Project / program number | E9: NMP5
D10: Project / program description | E10: Darwin Lake Bennett Conductor Clearance Rectification Program
C12: Direct Costs (Excluding Capitalised Overheads and Cost Escalation)
C14: Ref. | D14: Regulatory Asset Class | E14: Unit | F14: Basis | G14: Timing | H14: RY18 | I14: RY19 | J14: RY20 | K14: RY21 | L14: RY22 | M14: RY23 | N14: RY24 | P14: Total FY20 to FY24
C15: =N(C14)+1 -> 1 | D15: Substations | E15: Dollars | F15: Real $2018 | G15: End_Year | H15: c-i-c | I15: c-i-c | J15: c-i-c | K15: c-i-c | L15: c-i-c | M15: c-i-c | N15: c-i-c | P15: =SUM(J15:N15) -> 0
C16: =N(C15)+1 -> 2 | D16: Distribution Lines | E16: Dollars | F16: Real $2018 | G16: End_Year | H16: c-i-c | I16: c-i-c | J16: c-i-c | K16: c-i-c | L16: c-i-c | M16: c-i-c | N16: c-i-c | P16: 0
C17: 3 | D17: Transmission Lines | E17: Dollars | F17: Real $2018 | G17: End_Year | H17: c-i-c | I17: c-i-c | J17: c-i-c | K17: c-i-c | L17: c-i-c | M17: c-i-c | N17: c-i-c | P17: 0
C18: 4 | D18: LV Services | E18: Dollars | F18: Real $2018 | G18: End_Year | H18: c-i-c | I18: c-i-c | J18: c-i-c | K18: c-i-c | L18: c-i-c | M18: c-i-c | N18: c-i-c | P18: 0
C19: 5 | D19: Distribution Substations | E19: Dollars | F19: Real $2018 | G19: End_Year | H19: c-i-c | I19: c-i-c | J19: c-i-c | K19: c-i-c | L19: c-i-c | M19: c-i-c | N19: c-i-c | P19: 0
C20: 6 | D20: Distribution Switchgear | E20: Dollars | F20: Real $2018 | G20: End_Year | H20: c-i-c | I20: c-i-c | J20: c-i-c | K20: c-i-c | L20: c-i-c | M20: c-i-c | N20: c-i-c | P20: 0
C21: 7 | D21: Protection | E21: Dollars | F21: Real $2018 | G21: End_Year | H21: c-i-c | I21: c-i-c | J21: c-i-c | K21: c-i-c | L21: c-i-c | M21: c-i-c | N21: c-i-c | P21: 0
C22: 8 | D22: SCADA | E22: Dollars | F22: Real $2018 | G22: End_Year | H22: c-i-c | I22: c-i-c | J22: c-i-c | K22: c-i-c | L22: c-i-c | M22: c-i-c | N22: c-i-c | P22: 0
C23: 9 | D23: Communications | E23: Dollars | F23: Real $2018 | G23: End_Year | H23: c-i-c | I23: c-i-c | J23: c-i-c | K23: c-i-c | L23: c-i-c | M23: c-i-c | N23: c-i-c | P23: 0
C24: 10 | D24: Land and Easements | E24: Dollars | F24: Real $2018 | G24: End_Year | H24: c-i-c | I24: c-i-c | J24: c-i-c | K24: c-i-c | L24: c-i-c | M24: c-i-c | N24: c-i-c | P24: 0
C25: 11 | D25: Property | E25: Dollars | F25: Real $2018 | G25: End_Year | H25: c-i-c | I25: c-i-c | J25: c-i-c | K25: c-i-c | L25: c-i-c | M25: c-i-c | N25: c-i-c | P25: 0
C26: 12 | D26: IT and Communications | E26: Dollars | F26: Real $2018 | G26: End_Year | H26: c-i-c | I26: c-i-c | J26: c-i-c | K26: c-i-c | L26: c-i-c | M26: c-i-c | N26: c-i-c | P26: 0
C27: 13 | D27: Motor Vehicles | E27: Dollars | F27: Real $2018 | G27: End_Year | H27: c-i-c | I27: c-i-c | J27: c-i-c | K27: c-i-c | L27: c-i-c | M27: c-i-c | N27: c-i-c | P27: 0
C28: 14 | D28: Plant and Equipment | E28: Dollars | F28: Real $2018 | G28: End_Year | H28: c-i-c | I28: c-i-c | J28: c-i-c | K28: c-i-c | L28: c-i-c | M28: c-i-c | N28: c-i-c | P28: 0
C29: 15 | D29: Property Leases | E29: Dollars | F29: Real $2018 | G29: End_Year | H29: c-i-c | I29: c-i-c | J29: c-i-c | K29: c-i-c | L29: c-i-c | M29: c-i-c | N29: c-i-c | P29: =SUM(J29:N29) -> 0
C30: 16 | D30: Fleet Leases | E30: Dollars | F30: Real $2018 | G30: End_Year | H30: c-i-c | I30: c-i-c | J30: c-i-c | K30: c-i-c | L30: c-i-c | M30: c-i-c | N30: c-i-c | P30: 0
E32: =E15 -> Dollars | F32: Real $2018 | G32: End_Year | H32: =SUM(H15:H30) -> 0 | I32: =SUM(I15:I30) -> 0 | J32: 0 | K32: 0 | L32: 0 | M32: 0 | N32: 0 | P32: 0
B34: End

Sheet BNI 23
B1: =MID(CELL("filename",A1),FIND("]",CELL("filename",A1))+1,255)&" Capital Expenditure" -> BNI 23 Capital Expenditure | G1: COMMERCIAL IN CONFIDENCE
B3: Direct Capex Forecasts
C5: NMP7 - Distribution Switchgear Replacement (Hazemeyer)
D7: Requirement | E7: Description
D8: Expenditure category
D9: Project / program number
D10: Project / program description | E10: [deleted]
C12: Direct Costs (Excluding Capitalised Overheads and Cost Escalation)
C14: Ref. | D14: Regulatory Asset Class | E14: Unit | F14: Basis | G14: Timing | H14: RY18 | I14: RY19 | J14: RY20 | K14: RY21 | L14: RY22 | M14: RY23 | N14: RY24 | P14: Total FY20 to FY24
C15: =N(C14)+1 -> 1 | D15: Substations | E15: Dollars | F15: Real $2018 | G15: End_Year | H15: c-i-c | I15: c-i-c | J15: c-i-c | K15: c-i-c | L15: c-i-c | M15: c-i-c | N15: c-i-c | P15: =SUM(J15:N15) -> 0
C16: =N(C15)+1 -> 2 | D16: Distribution Lines | E16: Dollars | F16: Real $2018 | G16: End_Year | H16: c-i-c | I16: c-i-c | J16: c-i-c | K16: c-i-c | L16: c-i-c | M16: c-i-c | N16: c-i-c | P16: 0
C17: 3 | D17: Transmission Lines | E17: Dollars | F17: Real $2018 | G17: End_Year | H17: c-i-c | I17: c-i-c | J17: c-i-c | K17: c-i-c | L17: c-i-c | M17: c-i-c | N17: c-i-c | P17: 0
C18: 4 | D18: LV Services | E18: Dollars | F18: Real $2018 | G18: End_Year | H18: c-i-c | I18: c-i-c | J18: c-i-c | K18: c-i-c | L18: c-i-c | M18: c-i-c | N18: c-i-c | P18: 0
C19: 5 | D19: Distribution Substations | E19: Dollars | F19: Real $2018 | G19: End_Year | H19: c-i-c | I19: c-i-c | J19: c-i-c | K19: c-i-c | L19: c-i-c | M19: c-i-c | N19: c-i-c | P19: 0
C20: 6 | D20: Distribution Switchgear | E20: Dollars | F20: Real $2018 | G20: End_Year | H20: c-i-c | I20: c-i-c | J20: c-i-c | K20: c-i-c | L20: c-i-c | M20: c-i-c | N20: c-i-c | P20: 0
C21: 7 | D21: Protection | E21: Dollars | F21: Real $2018 | G21: End_Year | H21: c-i-c | I21: c-i-c | J21: c-i-c | K21: c-i-c | L21: c-i-c | M21: c-i-c | N21: c-i-c | P21: 0
C22: 8 | D22: SCADA | E22: Dollars | F22: Real $2018 | G22: End_Year | H22: c-i-c | I22: c-i-c | J22: c-i-c | K22: c-i-c | L22: c-i-c | M22: c-i-c | N22: c-i-c | P22: 0
C23: 9 | D23: Communications | E23: Dollars | F23: Real $2018 | G23: End_Year | H23: c-i-c | I23: c-i-c | J23: c-i-c | K23: c-i-c | L23: c-i-c | M23: c-i-c | N23: c-i-c | P23: 0
C24: 10 | D24: Land and Easements | E24: Dollars | F24: Real $2018 | G24: End_Year | H24: c-i-c | I24: c-i-c | J24: c-i-c | K24: c-i-c | L24: c-i-c | M24: c-i-c | N24: c-i-c | P24: 0
C25: 11 | D25: Property | E25: Dollars | F25: Real $2018 | G25: End_Year | H25: c-i-c | I25: c-i-c | J25: c-i-c | K25: c-i-c | L25: c-i-c | M25: c-i-c | N25: c-i-c | P25: 0
C26: 12 | D26: IT and Communications | E26: Dollars | F26: Real $2018 | G26: End_Year | H26: c-i-c | I26: c-i-c | J26: c-i-c | K26: c-i-c | L26: c-i-c | M26: c-i-c | N26: c-i-c | P26: 0
C27: 13 | D27: Motor Vehicles | E27: Dollars | F27: Real $2018 | G27: End_Year | H27: c-i-c | I27: c-i-c | J27: c-i-c | K27: c-i-c | L27: c-i-c | M27: c-i-c | N27: c-i-c | P27: 0
C28: 14 | D28: Plant and Equipment | E28: Dollars | F28: Real $2018 | G28: End_Year | H28: c-i-c | I28: c-i-c | J28: c-i-c | K28: c-i-c | L28: c-i-c | M28: c-i-c | N28: c-i-c | P28: 0
C29: 15 | D29: Property Leases | E29: Dollars | F29: Real $2018 | G29: End_Year | H29: c-i-c | I29: c-i-c | J29: c-i-c | K29: c-i-c | L29: c-i-c | M29: c-i-c | N29: c-i-c | P29: =SUM(J29:N29) -> 0
C30: 16 | D30: Fleet Leases | E30: Dollars | F30: Real $2018 | G30: End_Year | H30: c-i-c | I30: c-i-c | J30: c-i-c | K30: c-i-c | L30: c-i-c | M30: c-i-c | N30: c-i-c | P30: 0
E32: =E15 -> Dollars | F32: Real $2018 | G32: End_Year | H32: =SUM(H15:H30) -> 0 | I32: =SUM(I15:I30) -> 0 | J32: 0 | K32: 0 | L32: 0 | M32: 0 | N32: 0 | P32: 0
B34: End

Sheet BNI 24
B1: =MID(CELL("filename",A1),FIND("]",CELL("filename",A1))+1,255)&" Capital Expenditure" -> BNI 24 Capital Expenditure | G1: COMMERCIAL IN CONFIDENCE
B3: Direct Capex Forecasts
C5: NMP17 - Single Phase Substation Replacement/Refurbishment
D7: Requirement | E7: Description
D8: Expenditure category | E8: Distribution Substations
D9: Project / program number | E9: NMP17
D10: Project / program description | E10: Single Phase Substation Refurbishment Program
C12: Direct Costs (Excluding Capitalised Overheads and Cost Escalation)
C14: Ref. | D14: Regulatory Asset Class | E14: Unit | F14: Basis | G14: Timing | H14: RY18 | I14: RY19 | J14: RY20 | K14: RY21 | L14: RY22 | M14: RY23 | N14: RY24 | P14: Total FY20 to FY24
C15: =N(C14)+1 -> 1 | D15: Substations | E15: Dollars | F15: Real $2018 | G15: End_Year | H15: c-i-c | I15: c-i-c | J15: c-i-c | K15: c-i-c | L15: c-i-c | M15: c-i-c | N15: c-i-c | P15: =SUM(J15:N15) -> 0
C16: =N(C15)+1 -> 2 | D16: Distribution Lines | E16: Dollars | F16: Real $2018 | G16: End_Year | H16: c-i-c | I16: c-i-c | J16: c-i-c | K16: c-i-c | L16: c-i-c | M16: c-i-c | N16: c-i-c | P16: 0
C17: 3 | D17: Transmission Lines | E17: Dollars | F17: Real $2018 | G17: End_Year | H17: c-i-c | I17: c-i-c | J17: c-i-c | K17: c-i-c | L17: c-i-c | M17: c-i-c | N17: c-i-c | P17: 0
C18: 4 | D18: LV Services | E18: Dollars | F18: Real $2018 | G18: End_Year | H18: c-i-c | I18: c-i-c | J18: c-i-c | K18: c-i-c | L18: c-i-c | M18: c-i-c | N18: c-i-c | P18: 0
C19: 5 | D19: Distribution Substations | E19: Dollars | F19: Real $2018 | G19: End_Year | H19: c-i-c | I19: c-i-c | J19: c-i-c | K19: c-i-c | L19: c-i-c | M19: c-i-c | N19: c-i-c | P19: 0
C20: 6 | D20: Distribution Switchgear | E20: Dollars | F20: Real $2018 | G20: End_Year | H20: c-i-c | I20: c-i-c | J20: c-i-c | K20: c-i-c | L20: c-i-c | M20: c-i-c | N20: c-i-c | P20: 0
C21: 7 | D21: Protection | E21: Dollars | F21: Real $2018 | G21: End_Year | H21: c-i-c | I21: c-i-c | J21: c-i-c | K21: c-i-c | L21: c-i-c | M21: c-i-c | N21: c-i-c | P21: 0
C22: 8 | D22: SCADA | E22: Dollars | F22: Real $2018 | G22: End_Year | H22: c-i-c | I22: c-i-c | J22: c-i-c | K22: c-i-c | L22: c-i-c | M22: c-i-c | N22: c-i-c | P22: 0
C23: 9 | D23: Communications | E23: Dollars | F23: Real $2018 | G23: End_Year | H23: c-i-c | I23: c-i-c | J23: c-i-c | K23: c-i-c | L23: c-i-c | M23: c-i-c | N23: c-i-c | P23: 0
C24: 10 | D24: Land and Easements | E24: Dollars | F24: Real $2018 | G24: End_Year | H24: c-i-c | I24: c-i-c | J24: c-i-c | K24: c-i-c | L24: c-i-c | M24: c-i-c | N24: c-i-c | P24: 0
C25: 11 | D25: Property | E25: Dollars | F25: Real $2018 | G25: End_Year | H25: c-i-c | I25: c-i-c | J25: c-i-c | K25: c-i-c | L25: c-i-c | M25: c-i-c | N25: c-i-c | P25: 0
C26: 12 | D26: IT and Communications | E26: Dollars | F26: Real $2018 | G26: End_Year | H26: c-i-c | I26: c-i-c | J26: c-i-c | K26: c-i-c | L26: c-i-c | M26: c-i-c | N26: c-i-c | P26: 0
C27: 13 | D27: Motor Vehicles | E27: Dollars | F27: Real $2018 | G27: End_Year | H27: c-i-c | I27: c-i-c | J27: c-i-c | K27: c-i-c | L27: c-i-c | M27: c-i-c | N27: c-i-c | P27: 0
C28: 14 | D28: Plant and Equipment | E28: Dollars | F28: Real $2018 | G28: End_Year | H28: c-i-c | I28: c-i-c | J28: c-i-c | K28: c-i-c | L28: c-i-c | M28: c-i-c | N28: c-i-c | P28: 0
C29: 15 | D29: Property Leases | E29: Dollars | F29: Real $2018 | G29: End_Year | H29: c-i-c | I29: c-i-c | J29: c-i-c | K29: c-i-c | L29: c-i-c | M29: c-i-c | N29: c-i-c | P29: =SUM(J29:N29) -> 0
C30: 16 | D30: Fleet Leases | E30: Dollars | F30: Real $2018 | G30: End_Year | H30: c-i-c | I30: c-i-c | J30: c-i-c | K30: c-i-c | L30: c-i-c | M30: c-i-c | N30: c-i-c | P30: 0
E32: =E15 -> Dollars | F32: Real $2018 | G32: End_Year | H32: =SUM(H15:H30) -> 0 | I32: =SUM(I15:I30) -> 0 | J32: 0 | K32: 0 | L32: 0 | M32: 0 | N32: 0 | P32: 0
B34: End

Sheet BNI 25
B1: =MID(CELL("filename",A1),FIND("]",CELL("filename",A1))+1,255)&" Capital Expenditure" -> BNI 25 Capital Expenditure | G1: COMMERCIAL IN CONFIDENCE
B3: Direct Capex Forecasts
C5: NMP17 - Single Phase Substation Replacement/Refurbishment
D7: Requirement | E7: Description
D8: Expenditure category | E8: Distribution assets
D9: Project / program number | E9: NMCFR / PRD33437
D10: Project / program description | E10: All Regions Condition and Failure Based Replacement Pooled Forecast
C12: Direct Costs (Excluding Capitalised Overheads and Cost Escalation)
C14: Ref. | D14: Regulatory Asset Class | E14: Unit | F14: Basis | G14: Timing | H14: RY18 | I14: RY19 | J14: RY20 | K14: RY21 | L14: RY22 | M14: RY23 | N14: RY24 | P14: Total FY20 to FY24
C15: =N(C14)+1 -> 1 | D15: Substations | E15: Dollars | F15: Real $2018 | G15: End_Year | H15: c-i-c | I15: c-i-c | J15: c-i-c | K15: c-i-c | L15: c-i-c | M15: c-i-c | N15: c-i-c | P15: =SUM(J15:N15) -> 0
C16: =N(C15)+1 -> 2 | D16: Distribution Lines | E16: Dollars | F16: Real $2018 | G16: End_Year | H16: c-i-c | I16: c-i-c | J16: c-i-c | K16: c-i-c | L16: c-i-c | M16: c-i-c | N16: c-i-c | P16: 0
C17: 3 | D17: Transmission Lines | E17: Dollars | F17: Real $2018 | G17: End_Year | H17: c-i-c | I17: c-i-c | J17: c-i-c | K17: c-i-c | L17: c-i-c | M17: c-i-c | N17: c-i-c | P17: 0
C18: 4 | D18: LV Services | E18: Dollars | F18: Real $2018 | G18: End_Year | H18: c-i-c | I18: c-i-c | J18: c-i-c | K18: c-i-c | L18: c-i-c | M18: c-i-c | N18: c-i-c | P18: 0
C19: 5 | D19: Distribution Substations | E19: Dollars | F19: Real $2018 | G19: End_Year | H19: c-i-c | I19: c-i-c | J19: c-i-c | K19: c-i-c | L19: c-i-c | M19: c-i-c | N19: c-i-c | P19: 0
C20: 6 | D20: Distribution Switchgear | E20: Dollars | F20: Real $2018 | G20: End_Year | H20: c-i-c | I20: c-i-c | J20: c-i-c | K20: c-i-c | L20: c-i-c | M20: c-i-c | N20: c-i-c | P20: 0
C21: 7 | D21: Protection | E21: Dollars | F21: Real $2018 | G21: End_Year | H21: c-i-c | I21: c-i-c | J21: c-i-c | K21: c-i-c | L21: c-i-c | M21: c-i-c | N21: c-i-c | P21: 0
C22: 8 | D22: SCADA | E22: Dollars | F22: Real $2018 | G22: End_Year | H22: c-i-c | I22: c-i-c | J22: c-i-c | K22: c-i-c | L22: c-i-c | M22: c-i-c | N22: c-i-c | P22: 0
C23: 9 | D23: Communications | E23: Dollars | F23: Real $2018 | G23: End_Year | H23: c-i-c | I23: c-i-c | J23: c-i-c | K23: c-i-c | L23: c-i-c | M23: c-i-c | N23: c-i-c | P23: 0
C24: 10 | D24: Land and Easements | E24: Dollars | F24: Real $2018 | G24: End_Year | H24: c-i-c | I24: c-i-c | J24: c-i-c | K24: c-i-c | L24: c-i-c | M24: c-i-c | N24: c-i-c | P24: 0
C25: 11 | D25: Property | E25: Dollars | F25: Real $2018 | G25: End_Year | H25: c-i-c | I25: c-i-c | J25: c-i-c | K25: c-i-c | L25: c-i-c | M25: c-i-c | N25: c-i-c | P25: 0
C26: 12 | D26: IT and Communications | E26: Dollars | F26: Real $2018 | G26: End_Year | H26: c-i-c | I26: c-i-c | J26: c-i-c | K26: c-i-c | L26: c-i-c | M26: c-i-c | N26: c-i-c | P26: 0
C27: 13 | D27: Motor Vehicles | E27: Dollars | F27: Real $2018 | G27: End_Year | H27: c-i-c | I27: c-i-c | J27: c-i-c | K27: c-i-c | L27: c-i-c | M27: c-i-c | N27: c-i-c | P27: 0
C28: 14 | D28: Plant and Equipment | E28: Dollars | F28: Real $2018 | G28: End_Year | H28: c-i-c | I28: c-i-c | J28: c-i-c | K28: c-i-c | L28: c-i-c | M28: c-i-c | N28: c-i-c | P28: 0
C29: 15 | D29: Property Leases | E29: Dollars | F29: Real $2018 | G29: End_Year | H29: c-i-c | I29: c-i-c | J29: c-i-c | K29: c-i-c | L29: c-i-c | M29: c-i-c | N29: c-i-c | P29: =SUM(J29:N29) -> 0
C30: 16 | D30: Fleet Leases | E30: Dollars | F30: Real $2018 | G30: End_Year | H30: c-i-c | I30: c-i-c | J30: c-i-c | K30: c-i-c | L30: c-i-c | M30: c-i-c | N30: c-i-c | P30: 0
E32: =E15 -> Dollars | F32: Real $2018 | G32: End_Year | H32: =SUM(H15:H30) -> 0 | I32: =SUM(I15:I30) -> 0 | J32: 0 | K32: 0 | L32: 0 | M32: 0 | N32: 0 | P32: 0
B34: End

Sheet BNI 26
B1: =MID(CELL("filename",A1),FIND("]",CELL("filename",A1))+1,255)&" Capital Expenditure" -> BNI 26 Capital Expenditure | G1: COMMERCIAL IN CONFIDENCE
B3: Direct Capex Forecasts
C5: BNI Description
D7: Requirement | E7: Description
D8: Expenditure category | E8: Distribution Lines
D9: Project / program number | E9: NMP18
D10: Project / program description | E10: Darwin Coastal Pole Top Corrosion Replacement Program
C12: Direct Costs (Excluding Capitalised Overheads and Cost Escalation)
C14: Ref. | D14: Regulatory Asset Class | E14: Unit | F14: Basis | G14: Timing | H14: RY18 | I14: RY19 | J14: RY20 | K14: RY21 | L14: RY22 | M14: RY23 | N14: RY24 | P14: Total FY20 to FY24
C15: =N(C14)+1 -> 1 | D15: Substations | E15: Dollars | F15: Real $2018 | G15: End_Year | H15: c-i-c | I15: c-i-c | J15: c-i-c | K15: c-i-c | L15: c-i-c | M15: c-i-c | N15: c-i-c | P15: =SUM(J15:N15) -> 0
C16: =N(C15)+1 -> 2 | D16: Distribution Lines | E16: Dollars | F16: Real $2018 | G16: End_Year | H16: c-i-c | I16: c-i-c | J16: c-i-c | K16: c-i-c | L16: c-i-c | M16: c-i-c | N16: c-i-c | P16: 0
C17: 3 | D17: Transmission Lines | E17: Dollars | F17: Real $2018 | G17: End_Year | H17: c-i-c | I17: c-i-c | J17: c-i-c | K17: c-i-c | L17: c-i-c | M17: c-i-c | N17: c-i-c | P17: 0
C18: 4 | D18: LV Services | E18: Dollars | F18: Real $2018 | G18: End_Year | H18: c-i-c | I18: c-i-c | J18: c-i-c | K18: c-i-c | L18: c-i-c | M18: c-i-c | N18: c-i-c | P18: 0
C19: 5 | D19: Distribution Substations | E19: Dollars | F19: Real $2018 | G19: End_Year | H19: c-i-c | I19: c-i-c | J19: c-i-c | K19: c-i-c | L19: c-i-c | M19: c-i-c | N19: c-i-c | P19: 0
C20: 6 | D20: Distribution Switchgear | E20: Dollars | F20: Real $2018 | G20: End_Year | H20: c-i-c | I20: c-i-c | J20: c-i-c | K20: c-i-c | L20: c-i-c | M20: c-i-c | N20: c-i-c | P20: 0
C21: 7 | D21: Protection | E21: Dollars | F21: Real $2018 | G21: End_Year | H21: c-i-c | I21: c-i-c | J21: c-i-c | K21: c-i-c | L21: c-i-c | M21: c-i-c | N21: c-i-c | P21: 0
C22: 8 | D22: SCADA | E22: Dollars | F22: Real $2018 | G22: End_Year | H22: c-i-c | I22: c-i-c | J22: c-i-c | K22: c-i-c | L22: c-i-c | M22: c-i-c | N22: c-i-c | P22: 0
C23: 9 | D23: Communications | E23: Dollars | F23: Real $2018 | G23: End_Year | H23: c-i-c | I23: c-i-c | J23: c-i-c | K23: c-i-c | L23: c-i-c | M23: c-i-c | N23: c-i-c | P23: 0
C24: 10 | D24: Land and Easements | E24: Dollars | F24: Real $2018 | G24: End_Year | H24: c-i-c | I24: c-i-c | J24: c-i-c | K24: c-i-c | L24: c-i-c | M24: c-i-c | N24: c-i-c | P24: 0
C25: 11 | D25: Property | E25: Dollars | F25: Real $2018 | G25: End_Year | H25: c-i-c | I25: c-i-c | J25: c-i-c | K25: c-i-c | L25: c-i-c | M25: c-i-c | N25: c-i-c | P25: 0
C26: 12 | D26: IT and Communications | E26: Dollars | F26: Real $2018 | G26: End_Year | H26: c-i-c | I26: c-i-c | J26: c-i-c | K26: c-i-c | L26: c-i-c | M26: c-i-c | N26: c-i-c | P26: 0
C27: 13 | D27: Motor Vehicles | E27: Dollars | F27: Real $2018 | G27: End_Year | H27: c-i-c | I27: c-i-c | J27: c-i-c | K27: c-i-c | L27: c-i-c | M27: c-i-c | N27: c-i-c | P27: 0
C28: 14 | D28: Plant and Equipment | E28: Dollars | F28: Real $2018 | G28: End_Year | H28: c-i-c | I28: c-i-c | J28: c-i-c | K28: c-i-c | L28: c-i-c | M28: c-i-c | N28: c-i-c | P28: 0
C29: 15 | D29: Property Leases | E29: Dollars | F29: Real $2018 | G29: End_Year | H29: c-i-c | I29: c-i-c | J29: c-i-c | K29: c-i-c | L29: c-i-c | M29: c-i-c | N29: c-i-c | P29: =SUM(J29:N29) -> 0
C30: 16 | D30: Fleet Leases | E30: Dollars | F30: Real $2018 | G30: End_Year | H30: c-i-c | I30: c-i-c | J30: c-i-c | K30: c-i-c | L30: c-i-c | M30: c-i-c | N30: c-i-c | P30: 0
E32: =E15 -> Dollars | F32: Real $2018 | G32: End_Year | H32: =SUM(H15:H30) -> 0 | I32: =SUM(I15:I30) -> 0 | J32: 0 | K32: 0 | L32: 0 | M32: 0 | N32: 0 | P32: 0
B34: End

Sheet BNI 27
B1: =MID(CELL("filename",A1),FIND("]",CELL("filename",A1))+1,255)&" Capital Expenditure" -> BNI 27 Capital Expenditure | G1: COMMERCIAL IN CONFIDENCE
B3: Direct Capex Forecasts
C5: BNI Description
D7: Requirement | E7: Description
D8: Expenditure category | E8: Substations
D9: Project / program number | E9: NMP16
D10: Project / program description | E10: Substation DC System Replacement Program
C12: Direct Costs (Excluding Capitalised Overheads and Cost Escalation)
C14: Ref. | D14: Regulatory Asset Class | E14: Unit | F14: Basis | G14: Timing | H14: RY18 | I14: RY19 | J14: RY20 | K14: RY21 | L14: RY22 | M14: RY23 | N14: RY24 | P14: Total FY20 to FY24
C15: =N(C14)+1 -> 1 | D15: Substations | E15: Dollars | F15: Real $2018 | G15: End_Year | H15: c-i-c | I15: c-i-c | J15: c-i-c | K15: c-i-c | L15: c-i-c | M15: c-i-c | N15: c-i-c | P15: =SUM(J15:N15) -> 0
C16: =N(C15)+1 -> 2 | D16: Distribution Lines | E16: Dollars | F16: Real $2018 | G16: End_Year | H16: c-i-c | I16: c-i-c | J16: c-i-c | K16: c-i-c | L16: c-i-c | M16: c-i-c | N16: c-i-c | P16: 0
C17: 3 | D17: Transmission Lines | E17: Dollars | F17: Real $2018 | G17: End_Year | H17: c-i-c | I17: c-i-c | J17: c-i-c | K17: c-i-c | L17: c-i-c | M17: c-i-c | N17: c-i-c | P17: 0
C18: 4 | D18: LV Services | E18: Dollars | F18: Real $2018 | G18: End_Year | H18: c-i-c | I18: c-i-c | J18: c-i-c | K18: c-i-c | L18: c-i-c | M18: c-i-c | N18: c-i-c | P18: 0
C19: 5 | D19: Distribution Substations | E19: Dollars | F19: Real $2018 | G19: End_Year | H19: c-i-c | I19: c-i-c | J19: c-i-c | K19: c-i-c | L19: c-i-c | M19: c-i-c | N19: c-i-c | P19: 0
C20: 6 | D20: Distribution Switchgear | E20: Dollars | F20: Real $2018 | G20: End_Year | H20: c-i-c | I20: c-i-c | J20: c-i-c | K20: c-i-c | L20: c-i-c | M20: c-i-c | N20: c-i-c | P20: 0
C21: 7 | D21: Protection | E21: Dollars | F21: Real $2018 | G21: End_Year | H21: c-i-c | I21: c-i-c | J21: c-i-c | K21: c-i-c | L21: c-i-c | M21: c-i-c | N21: c-i-c | P21: 0
C22: 8 | D22: SCADA | E22: Dollars | F22: Real $2018 | G22: End_Year | H22: c-i-c | I22: c-i-c | J22: c-i-c | K22: c-i-c | L22: c-i-c | M22: c-i-c | N22: c-i-c | P22: 0
C23: 9 | D23: Communications | E23: Dollars | F23: Real $2018 | G23: End_Year | H23: c-i-c | I23: c-i-c | J23: c-i-c | K23: c-i-c | L23: c-i-c | M23: c-i-c | N23: c-i-c | P23: 0
C24: 10 | D24: Land and Easements | E24: Dollars | F24: Real $2018 | G24: End_Year | H24: c-i-c | I24: c-i-c | J24: c-i-c | K24: c-i-c | L24: c-i-c | M24: c-i-c | N24: c-i-c | P24: 0
C25: 11 | D25: Property | E25: Dollars | F25: Real $2018 | G25: End_Year | H25: c-i-c | I25: c-i-c | J25: c-i-c | K25: c-i-c | L25: c-i-c | M25: c-i-c | N25: c-i-c | P25: 0
C26: 12 | D26: IT and Communications | E26: Dollars | F26: Real $2018 | G26: End_Year | H26: c-i-c | I26: c-i-c | J26: c-i-c | K26: c-i-c | L26: c-i-c | M26: c-i-c | N26: c-i-c | P26: 0
C27: 13 | D27: Motor Vehicles | E27: Dollars | F27: Real $2018 | G27: End_Year | H27: c-i-c | I27: c-i-c | J27: c-i-c | K27: c-i-c | L27: c-i-c | M27: c-i-c | N27: c-i-c | P27: 0
C28: 14 | D28: Plant and Equipment | E28: Dollars | F28: Real $2018 | G28: End_Year | H28: c-i-c | I28: c-i-c | J28: c-i-c | K28: c-i-c | L28: c-i-c | M28: c-i-c | N28: c-i-c | P28: 0
C29: 15 | D29: Property Leases | E29: Dollars | F29: Real $2018 | G29: End_Year | H29: c-i-c | I29: c-i-c | J29: c-i-c | K29: c-i-c | L29: c-i-c | M29: c-i-c | N29: c-i-c | P29: =SUM(J29:N29) -> 0
C30: 16 | D30: Fleet Leases | E30: Dollars | F30: Real $2018 | G30: End_Year | H30: c-i-c | I30: c-i-c | J30: c-i-c | K30: c-i-c | L30: c-i-c | M30: c-i-c | N30: c-i-c | P30: 0
E32: =E15 -> Dollars | F32: Real $2018 | G32: End_Year | H32: =SUM(H15:H30) -> 0 | I32: =SUM(I15:I30) -> 0 | J32: 0 | K32: 0 | L32: 0 | M32: 0 | N32: 0 | P32: 0
B34: End

Sheet BNI 28
B1: =MID(CELL("filename",A1),FIND("]",CELL("filename",A1))+1,255)&" Capital Expenditure" -> BNI 28 Capital Expenditure | G1: COMMERCIAL IN CONFIDENCE
B3: Direct Capex Forecasts
C5: BNI Description
D7: Requirement | E7: Description
D8: Expenditure category | E8: Distribution Lines
D9: Project / program number | E9: NMF
D10: Project / program description | E10: All Regions Poorly Performing Feeder Improvement Program (REPEX Component)
C12: Direct Costs (Excluding Capitalised Overheads and Cost Escalation)
C14: Ref. | D14: Regulatory Asset Class | E14: Unit | F14: Basis | G14: Timing | H14: RY18 | I14: RY19 | J14: RY20 | K14: RY21 | L14: RY22 | M14: RY23 | N14: RY24 | P14: Total FY20 to FY24
C15: =N(C14)+1 -> 1 | D15: Substations | E15: Dollars | F15: Real $2018 | G15: End_Year | H15: c-i-c | I15: c-i-c | J15: c-i-c | K15: c-i-c | L15: c-i-c | M15: c-i-c | N15: c-i-c | P15: =SUM(J15:N15) -> 0
C16: =N(C15)+1 -> 2 | D16: Distribution Lines | E16: Dollars | F16: Real $2018 | G16: End_Year | H16: c-i-c | I16: c-i-c | J16: c-i-c | K16: c-i-c | L16: c-i-c | M16: c-i-c | N16: c-i-c | P16: 0
C17: 3 | D17: Transmission Lines | E17: Dollars | F17: Real $2018 | G17: End_Year | H17: c-i-c | I17: c-i-c | J17: c-i-c | K17: c-i-c | L17: c-i-c | M17: c-i-c | N17: c-i-c | P17: 0
C18: 4 | D18: LV Services | E18: Dollars | F18: Real $2018 | G18: End_Year | H18: c-i-c | I18: c-i-c | J18: c-i-c | K18: c-i-c | L18: c-i-c | M18: c-i-c | N18: c-i-c | P18: 0
C19: 5 | D19: Distribution Substations | E19: Dollars | F19: Real $2018 | G19: End_Year | H19: c-i-c | I19: c-i-c | J19: c-i-c | K19: c-i-c | L19: c-i-c | M19: c-i-c | N19: c-i-c | P19: 0
C20: 6 | D20: Distribution Switchgear | E20: Dollars | F20: Real $2018 | G20: End_Year | H20: c-i-c | I20: c-i-c | J20: c-i-c | K20: c-i-c | L20: c-i-c | M20: c-i-c | N20: c-i-c | P20: 0
C21: 7 | D21: Protection | E21: Dollars | F21: Real $2018 | G21: End_Year | H21: c-i-c | I21: c-i-c | J21: c-i-c | K21: c-i-c | L21: c-i-c | M21: c-i-c | N21: c-i-c | P21: 0
C22: 8 | D22: SCADA | E22: Dollars | F22: Real $2018 | G22: End_Year | H22: c-i-c | I22: c-i-c | J22: c-i-c | K22: c-i-c | L22: c-i-c | M22: c-i-c | N22: c-i-c | P22: 0
C23: 9 | D23: Communications | E23: Dollars | F23: Real $2018 | G23: End_Year | H23: c-i-c | I23: c-i-c | J23: c-i-c | K23: c-i-c | L23: c-i-c | M23: c-i-c | N23: c-i-c | P23: 0
C24: 10 | D24: Land and Easements | E24: Dollars | F24: Real $2018 | G24: End_Year | H24: c-i-c | I24: c-i-c | J24: c-i-c | K24: c-i-c | L24: c-i-c | M24: c-i-c | N24: c-i-c | P24: 0
C25: 11 | D25: Property | E25: Dollars | F25: Real $2018 | G25: End_Year | H25: c-i-c | I25: c-i-c | J25: c-i-c | K25: c-i-c | L25: c-i-c | M25: c-i-c | N25: c-i-c | P25: 0
C26: 12 | D26: IT and Communications | E26: Dollars | F26: Real $2018 | G26: End_Year | H26: c-i-c | I26: c-i-c | J26: c-i-c | K26: c-i-c | L26: c-i-c | M26: c-i-c | N26: c-i-c | P26: 0
C27: 13 | D27: Motor Vehicles | E27: Dollars | F27: Real $2018 | G27: End_Year | H27: c-i-c | I27: c-i-c | J27: c-i-c | K27: c-i-c | L27: c-i-c | M27: c-i-c | N27: c-i-c | P27: 0
C28: 14 | D28: Plant and Equipment | E28: Dollars | F28: Real $2018 | G28: End_Year | H28: c-i-c | I28: c-i-c | J28: c-i-c | K28: c-i-c | L28: c-i-c | M28: c-i-c | N28: c-i-c | P28: 0
C29: 15 | D29: Property Leases | E29: Dollars | F29: Real $2018 | G29: End_Year | H29: c-i-c | I29: c-i-c | J29: c-i-c | K29: c-i-c | L29: c-i-c | M29: c-i-c | N29: c-i-c | P29: =SUM(J29:N29) -> 0
C30: 16 | D30: Fleet Leases | E30: Dollars | F30: Real $2018 | G30: End_Year | H30: c-i-c | I30: c-i-c | J30: c-i-c | K30: c-i-c | L30: c-i-c | M30: c-i-c | N30: c-i-c | P30: 0
E32: =E15 -> Dollars | F32: Real $2018 | G32: End_Year | H32: =SUM(H15:H30) -> 0 | I32: =SUM(I15:I30) -> 0 | J32: 0 | K32: 0 | L32: 0 | M32: 0 | N32: 0 | P32: 0
B34: End

Sheet BNI 29
B1: =MID(CELL("filename",A1),FIND("]",CELL("filename",A1))+1,255)&" Capital Expenditure" -> BNI 29 Capital Expenditure | G1: COMMERCIAL IN CONFIDENCE
B3: Direct Capex Forecasts
C5: BNI Description
D7: Requirement | E7: Description
D8: Expenditure category
D9: Project / program number
D10: Project / program description | E10: [deleted]
C12: Direct Costs (Excluding Capitalised Overheads and Cost Escalation)
C14: Ref. | D14: Regulatory Asset Class | E14: Unit | F14: Basis | G14: Timing | H14: RY18 | I14: RY19 | J14: RY20 | K14: RY21 | L14: RY22 | M14: RY23 | N14: RY24 | P14: Total FY20 to FY24
C15: =N(C14)+1 -> 1 | D15: Substations | E15: Dollars | F15: Real $2018 | G15: End_Year | H15: c-i-c | I15: c-i-c | J15: c-i-c | K15: c-i-c | L15: c-i-c | M15: c-i-c | N15: c-i-c | P15: =SUM(J15:N15) -> 0
C16: =N(C15)+1 -> 2 | D16: Distribution Lines | E16: Dollars | F16: Real $2018 | G16: End_Year | H16: c-i-c | I16: c-i-c | J16: c-i-c | K16: c-i-c | L16: c-i-c | M16: c-i-c | N16: c-i-c | P16: 0
C17: 3 | D17: Transmission Lines | E17: Dollars | F17: Real $2018 | G17: End_Year | H17: c-i-c | I17: c-i-c | J17: c-i-c | K17: c-i-c | L17: c-i-c | M17: c-i-c | N17: c-i-c | P17: 0
C18: 4 | D18: LV Services | E18: Dollars | F18: Real $2018 | G18: End_Year | H18: c-i-c | I18: c-i-c | J18: c-i-c | K18: c-i-c | L18: c-i-c | M18: c-i-c | N18: c-i-c | P18: 0
C19: 5 | D19: Distribution Substations | E19: Dollars | F19: Real $2018 | G19: End_Year | H19: c-i-c | I19: c-i-c | J19: c-i-c | K19: c-i-c | L19: c-i-c | M19: c-i-c | N19: c-i-c | P19: 0
C20: 6 | D20: Distribution Switchgear | E20: Dollars | F20: Real $2018 | G20: End_Year | H20: c-i-c | I20: c-i-c | J20: c-i-c | K20: c-i-c | L20: c-i-c | M20: c-i-c | N20: c-i-c | P20: 0
C21: 7 | D21: Protection | E21: Dollars | F21: Real $2018 | G21: End_Year | H21: c-i-c | I21: c-i-c | J21: c-i-c | K21: c-i-c | L21: c-i-c | M21: c-i-c | N21: c-i-c | P21: 0
C22: 8 | D22: SCADA | E22: Dollars | F22: Real $2018 | G22: End_Year | H22: c-i-c | I22: c-i-c | J22: c-i-c | K22: c-i-c | L22: c-i-c | M22: c-i-c | N22: c-i-c | P22: 0
C23: 9 | D23: Communications | E23: Dollars | F23: Real $2018 | G23: End_Year | H23: c-i-c | I23: c-i-c | J23: c-i-c | K23: c-i-c | L23: c-i-c | M23: c-i-c | N23: c-i-c | P23: 0
C24: 10 | D24: Land and Easements | E24: Dollars | F24: Real $2018 | G24: End_Year | H24: c-i-c | I24: c-i-c | J24: c-i-c | K24: c-i-c | L24: c-i-c | M24: c-i-c | N24: c-i-c | P24: 0
C25: 11 | D25: Property | E25: Dollars | F25: Real $2018 | G25: End_Year | H25: c-i-c | I25: c-i-c | J25: c-i-c | K25: c-i-c | L25: c-i-c | M25: c-i-c | N25: c-i-c | P25: 0
C26: 12 | D26: IT and Communications | E26: Dollars | F26: Real $2018 | G26: End_Year | H26: c-i-c | I26: c-i-c | J26: c-i-c | K26: c-i-c | L26: c-i-c | M26: c-i-c | N26: c-i-c | P26: 0
C27: 13 | D27: Motor Vehicles | E27: Dollars | F27: Real $2018 | G27: End_Year | H27: c-i-c | I27: c-i-c | J27: c-i-c | K27: c-i-c | L27: c-i-c | M27: c-i-c | N27: c-i-c | P27: 0
C28: 14 | D28: Plant and Equipment | E28: Dollars | F28: Real $2018 | G28: End_Year | H28: c-i-c | I28: c-i-c | J28: c-i-c | K28: c-i-c | L28: c-i-c | M28: c-i-c | N28: c-i-c | P28: 0
C29: 15 | D29: Property Leases | E29: Dollars | F29: Real $2018 | G29: End_Year | H29: c-i-c | I29: c-i-c | J29: c-i-c | K29: c-i-c | L29: c-i-c | M29: c-i-c | N29: c-i-c | P29: =SUM(J29:N29) -> 0
C30: 16 | D30: Fleet Leases | E30: Dollars | F30: Real $2018 | G30: End_Year | H30: c-i-c | I30: c-i-c | J30: c-i-c | K30: c-i-c | L30: c-i-c | M30: c-i-c | N30: c-i-c | P30: 0
E32: =E15 -> Dollars | F32: Real $2018 | G32: End_Year | H32: =SUM(H15:H30) -> 0 | I32: =SUM(I15:I30) -> 0 | J32: 0 | K32: 0 | L32: 0 | M32: 0 | N32: 0 | P32: 0
B34: End

Sheet BNI 30
B1: =MID(CELL("filename",A1),FIND("]",CELL("filename",A1))+1,255)&" Capital Expenditure" -> BNI 30 Capital Expenditure | G1: COMMERCIAL IN CONFIDENCE
B3: Direct Capex Forecasts
C5: BNI Description
D7: Requirement | E7: Description
D8: Expenditure category | E8: All
D9: Project / program number | E9: Budget/SCI
D10: Project / program description | E10: FY18 budget and FY19 budget for Repex
C12: Direct Costs (Excluding Capitalised Overheads and Cost Escalation)
C14: Ref. | D14: Regulatory Asset Class | E14: Unit | F14: Basis | G14: Timing | H14: RY18 | I14: RY19 | J14: RY20 | K14: RY21 | L14: RY22 | M14: RY23 | N14: RY24 | P14: Total FY20 to FY24
C15: =N(C14)+1 -> 1 | D15: Substations | E15: Dollars | F15: Real $2018 | G15: End_Year | H15: c-i-c | I15: c-i-c | J15: c-i-c | K15: c-i-c | L15: c-i-c | M15: c-i-c | N15: c-i-c | P15: =SUM(J15:N15) -> 0
C16: =N(C15)+1 -> 2 | D16: Distribution Lines | E16: Dollars | F16: Real $2018 | G16: End_Year | H16: c-i-c | I16: c-i-c | J16: c-i-c | K16: c-i-c | L16: c-i-c | M16: c-i-c | N16: c-i-c | P16: 0
C17: 3 | D17: Transmission Lines | E17: Dollars | F17: Real $2018 | G17: End_Year | H17: c-i-c | I17: c-i-c | J17: c-i-c | K17: c-i-c | L17: c-i-c | M17: c-i-c | N17: c-i-c | P17: 0
C18: 4 | D18: LV Services | E18: Dollars | F18: Real $2018 | G18: End_Year | H18: c-i-c | I18: c-i-c | J18: c-i-c | K18: c-i-c | L18: c-i-c | M18: c-i-c | N18: c-i-c | P18: 0
C19: 5 | D19: Distribution Substations | E19: Dollars | F19: Real $2018 | G19: End_Year | H19: c-i-c | I19: c-i-c | J19: c-i-c | K19: c-i-c | L19: c-i-c | M19: c-i-c | N19: c-i-c | P19: 0
C20: 6 | D20: Distribution Switchgear | E20: Dollars | F20: Real $2018 | G20: End_Year | H20: c-i-c | I20: c-i-c | J20: c-i-c | K20: c-i-c | L20: c-i-c | M20: c-i-c | N20: c-i-c | P20: 0
C21: 7 | D21: Protection | E21: Dollars | F21: Real $2018 | G21: End_Year | H21: c-i-c | I21: c-i-c | J21: c-i-c | K21: c-i-c | L21: c-i-c | M21: c-i-c | N21: c-i-c | P21: 0
C22: 8 | D22: SCADA | E22: Dollars | F22: Real $2018 | G22: End_Year | H22: c-i-c | I22: c-i-c | J22: c-i-c | K22: c-i-c | L22: c-i-c | M22: c-i-c | N22: c-i-c | P22: 0
C23: 9 | D23: Communications | E23: Dollars | F23: Real $2018 | G23: End_Year | H23: c-i-c | I23: c-i-c | J23: c-i-c | K23: c-i-c | L23: c-i-c | M23: c-i-c | N23: c-i-c | P23: 0
C24: 10 | D24: Land and Easements | E24: Dollars | F24: Real $2018 | G24: End_Year | H24: c-i-c | I24: c-i-c | J24: c-i-c | K24: c-i-c | L24: c-i-c | M24: c-i-c | N24: c-i-c | P24: 0
C25: 11 | D25: Property | E25: Dollars | F25: Real $2018 | G25: End_Year | H25: c-i-c | I25: c-i-c | J25: c-i-c | K25: c-i-c | L25: c-i-c | M25: c-i-c | N25: c-i-c | P25: 0
C26: 12 | D26: IT and Communications | E26: Dollars | F26: Real $2018 | G26: End_Year | H26: c-i-c | I26: c-i-c | J26: c-i-c | K26: c-i-c | L26: c-i-c | M26: c-i-c | N26: c-i-c | P26: 0
C27: 13 | D27: Motor Vehicles | E27: Dollars | F27: Real $2018 | G27: End_Year | H27: c-i-c | I27: c-i-c | J27: c-i-c | K27: c-i-c | L27: c-i-c | M27: c-i-c | N27: c-i-c | P27: 0
C28: 14 | D28: Plant and Equipment | E28: Dollars | F28: Real $2018 | G28: End_Year | H28: c-i-c | I28: c-i-c | J28: c-i-c | K28: c-i-c | L28: c-i-c | M28: c-i-c | N28: c-i-c | P28: 0
C29: 15 | D29: Property Leases | E29: Dollars | F29: Real $2018 | G29: End_Year | H29: c-i-c | I29: c-i-c | J29: c-i-c | K29: c-i-c | L29: c-i-c | M29: c-i-c | N29: c-i-c | P29: =SUM(J29:N29) -> 0
C30: 16 | D30: Fleet Leases | E30: Dollars | F30: Real $2018 | G30: End_Year | H30: c-i-c | I30: c-i-c | J30: c-i-c | K30: c-i-c | L30: c-i-c | M30: c-i-c | N30: c-i-c | P30: 0
E32: =E15 -> Dollars | F32: Real $2018 | G32: End_Year | H32: =SUM(H15:H30) -> 0 | I32: =SUM(I15:I30) -> 0 | J32: 0 | K32: 0 | L32: 0 | M32: 0 | N32: 0 | P32: 0
B34: End

Sheet BNI 31
B1: =MID(CELL("filename",A1),FIND("]",CELL("filename",A1))+1,255)&" Capital Expenditure" -> BNI 31 Capital Expenditure | G1: COMMERCIAL IN CONFIDENCE
B3: Direct Capex Forecasts
C5: BNI Description
D7: Requirement | E7: Description
D8: Expenditure category | E8: Transmission Lines
D9: Project / program number | E9: NMP20
D10: Project / program description | E10: Transmission Line Pole Top Corrosion Replacement Program
C12: Direct Costs (Excluding Capitalised Overheads and Cost Escalation)
C14: Ref. | D14: Regulatory Asset Class | E14: Unit | F14: Basis | G14: Timing | H14: RY18 | I14: RY19 | J14: RY20 | K14: RY21 | L14: RY22 | M14: RY23 | N14: RY24 | P14: Total FY20 to FY24
C15: =N(C14)+1 -> 1 | D15: Substations | E15: Dollars | F15: Real $2018 | G15: End_Year | H15: c-i-c | I15: c-i-c | J15: c-i-c | K15: c-i-c | L15: c-i-c | M15: c-i-c | N15: c-i-c | P15: =SUM(J15:N15) -> 0
C16: =N(C15)+1 -> 2 | D16: Distribution Lines | E16: Dollars | F16: Real $2018 | G16: End_Year | H16: c-i-c | I16: c-i-c | J16: c-i-c | K16: c-i-c | L16: c-i-c | M16: c-i-c | N16: c-i-c | P16: 0
C17: 3 | D17: Transmission Lines | E17: Dollars | F17: Real $2018 | G17: End_Year | H17: c-i-c | I17: c-i-c | J17: c-i-c | K17: c-i-c | L17: c-i-c | M17: c-i-c | N17: c-i-c | P17: 0
C18: 4 | D18: LV Services | E18: Dollars | F18: Real $2018 | G18: End_Year | H18: c-i-c | I18: c-i-c | J18: c-i-c | K18: c-i-c | L18: c-i-c | M18: c-i-c | N18: c-i-c | P18: 0
C19: 5 | D19: Distribution Substations | E19: Dollars | F19: Real $2018 | G19: End_Year | H19: c-i-c | I19: c-i-c | J19: c-i-c | K19: c-i-c | L19: c-i-c | M19: c-i-c | N19: c-i-c | P19: 0
C20: 6 | D20: Distribution Switchgear | E20: Dollars | F20: Real $2018 | G20: End_Year | H20: c-i-c | I20: c-i-c | J20: c-i-c | K20: c-i-c | L20: c-i-c | M20: c-i-c | N20: c-i-c | P20: 0
C21: 7 | D21: Protection | E21: Dollars | F21: Real $2018 | G21: End_Year | H21: c-i-c | I21: c-i-c | J21: c-i-c | K21: c-i-c | L21: c-i-c | M21: c-i-c | N21: c-i-c | P21: 0
C22: 8 | D22: SCADA | E22: Dollars | F22: Real $2018 | G22: End_Year | H22: c-i-c | I22: c-i-c | J22: c-i-c | K22: c-i-c | L22: c-i-c | M22: c-i-c | N22: c-i-c | P22: 0
C23: 9 | D23: Communications | E23: Dollars | F23: Real $2018 | G23: End_Year | H23: c-i-c | I23: c-i-c | J23: c-i-c | K23: c-i-c | L23: c-i-c | M23: c-i-c | N23: c-i-c | P23: 0
C24: 10 | D24: Land and Easements | E24: Dollars | F24: Real $2018 | G24: End_Year | H24: c-i-c | I24: c-i-c | J24: c-i-c | K24: c-i-c | L24: c-i-c | M24: c-i-c | N24: c-i-c | P24: 0
C25: 11 | D25: Property | E25: Dollars | F25: Real $2018 | G25: End_Year | H25: c-i-c | I25: c-i-c | J25: c-i-c | K25: c-i-c | L25: c-i-c | M25: c-i-c | N25: c-i-c | P25: 0
C26: 12 | D26: IT and Communications | E26: Dollars | F26: Real $2018 | G26: End_Year | H26: c-i-c | I26: c-i-c | J26: c-i-c | K26: c-i-c | L26: c-i-c | M26: c-i-c | N26: c-i-c | P26: 0
C27: 13 | D27: Motor Vehicles | E27: Dollars | F27: Real $2018 | G27: End_Year | H27: c-i-c | I27: c-i-c | J27: c-i-c | K27: c-i-c | L27: c-i-c | M27: c-i-c | N27: c-i-c | P27: 0
C28: 14 | D28: Plant and Equipment | E28: Dollars | F28: Real $2018 | G28: End_Year | H28: c-i-c | I28: c-i-c | J28: c-i-c | K28: c-i-c | L28: c-i-c | M28: c-i-c | N28: c-i-c | P28: 0
C29: 15 | D29: Property Leases | E29: Dollars | F29: Real $2018 | G29: End_Year | H29: c-i-c | I29: c-i-c | J29: c-i-c | K29: c-i-c | L29: c-i-c | M29: c-i-c | N29: c-i-c | P29: =SUM(J29:N29) -> 0
C30: 16 | D30: Fleet Leases | E30: Dollars | F30: Real $2018 | G30: End_Year | H30: c-i-c | I30: c-i-c | J30: c-i-c | K30: c-i-c | L30: c-i-c | M30: c-i-c | N30: c-i-c | P30: 0
E32: =E15 -> Dollars | F32: Real $2018 | G32: End_Year | H32: =SUM(H15:H30) -> 0 | I32: =SUM(I15:I30) -> 0 | J32: 0 | K32: 0 | L32: 0 | M32: 0 | N32: 0 | P32: 0
B34: End

Sheet BNI 32
B1: =MID(CELL("filename",A1),FIND("]",CELL("filename",A1))+1,255)&" Capital Expenditure" -> BNI 32 Capital Expenditure | G1: COMMERCIAL IN CONFIDENCE
B3: Direct Capex Forecasts
C5: BNI Description
D7: Requirement | E7: Description
D8: Expenditure category | E8: Transmission Lines
D9: Project / program number | E9: NMP11
D10: Project / program description | E10: Transmission Tower Earthing System Refurbishment Program
C12: Direct Costs (Excluding Capitalised Overheads and Cost Escalation)
C14: Ref. | D14: Regulatory Asset Class | E14: Unit | F14: Basis | G14: Timing | H14: RY18 | I14: RY19 | J14: RY20 | K14: RY21 | L14: RY22 | M14: RY23 | N14: RY24 | P14: Total FY20 to FY24
C15: =N(C14)+1 -> 1 | D15: Substations | E15: Dollars | F15: Real $2018 | G15: End_Year | H15: c-i-c | I15: c-i-c | J15: c-i-c | K15: c-i-c | L15: c-i-c | M15: c-i-c | N15: c-i-c | P15: =SUM(J15:N15) -> 0
C16: =N(C15)+1 -> 2 | D16: Distribution Lines | E16: Dollars | F16: Real $2018 | G16: End_Year | H16: c-i-c | I16: c-i-c | J16: c-i-c | K16: c-i-c | L16: c-i-c | M16: c-i-c | N16: c-i-c | P16: 0
C17: 3 | D17: Transmission Lines | E17: Dollars | F17: Real $2018 | G17: End_Year | H17: c-i-c | I17: c-i-c | J17: c-i-c | K17: c-i-c | L17: c-i-c | M17: c-i-c | N17: c-i-c | P17: 0
C18: 4 | D18: LV Services | E18: Dollars | F18: Real $2018 | G18: End_Year | H18: c-i-c | I18: c-i-c | J18: c-i-c | K18: c-i-c | L18: c-i-c | M18: c-i-c | N18: c-i-c | P18: 0
C19: 5 | D19: Distribution Substations | E19: Dollars | F19: Real $2018 | G19: End_Year | H19: c-i-c | I19: c-i-c | J19: c-i-c | K19: c-i-c | L19: c-i-c | M19: c-i-c | N19: c-i-c | P19: 0
C20: 6 | D20: Distribution Switchgear | E20: Dollars | F20: Real $2018 | G20: End_Year | H20: c-i-c | I20: c-i-c | J20: c-i-c | K20: c-i-c | L20: c-i-c | M20: c-i-c | N20: c-i-c | P20: 0
C21: 7 | D21: Protection | E21: Dollars | F21: Real $2018 | G21: End_Year | H21: c-i-c | I21: c-i-c | J21: c-i-c | K21: c-i-c | L21: c-i-c | M21: c-i-c | N21: c-i-c | P21: 0
C22: 8 | D22: SCADA | E22: Dollars | F22: Real $2018 | G22: End_Year | H22: c-i-c | I22: c-i-c | J22: c-i-c | K22: c-i-c | L22: c-i-c | M22: c-i-c | N22: c-i-c | P22: 0
C23: 9 | D23: Communications | E23: Dollars | F23: Real $2018 | G23: End_Year | H23: c-i-c | I23: c-i-c | J23: c-i-c | K23: c-i-c | L23: c-i-c | M23: c-i-c | N23: c-i-c | P23: 0
C24: 10 | D24: Land and Easements | E24: Dollars | F24: Real $2018 | G24: End_Year | H24: c-i-c | I24: c-i-c | J24: c-i-c | K24: c-i-c | L24: c-i-c | M24: c-i-c | N24: c-i-c | P24: 0
C25: 11 | D25: Property | E25: Dollars | F25: Real $2018 | G25: End_Year | H25: c-i-c | I25: c-i-c | J25: c-i-c | K25: c-i-c | L25: c-i-c | M25: c-i-c | N25: c-i-c | P25: 0
C26: 12 | D26: IT and Communications | E26: Dollars | F26: Real $2018 | G26: End_Year | H26: c-i-c | I26: c-i-c | J26: c-i-c | K26: c-i-c | L26: c-i-c | M26: c-i-c | N26: c-i-c | P26: 0
C27: 13 | D27: Motor Vehicles | E27: Dollars | F27: Real $2018 | G27: End_Year | H27: c-i-c | I27: c-i-c | J27: c-i-c | K27: c-i-c | L27: c-i-c | M27: c-i-c | N27: c-i-c | P27: 0
C28: 14 | D28: Plant and Equipment | E28: Dollars | F28: Real $2018 | G28: End_Year | H28: c-i-c | I28: c-i-c | J28: c-i-c | K28: c-i-c | L28: c-i-c | M28: c-i-c | N28: c-i-c | P28: 0
C29: 15 | D29: Property Leases | E29: Dollars | F29: Real $2018 | G29: End_Year | H29: c-i-c | I29: c-i-c | J29: c-i-c | K29: c-i-c | L29: c-i-c | M29: c-i-c | N29: c-i-c | P29: =SUM(J29:N29) -> 0
C30: 16 | D30: Fleet Leases | E30: Dollars | F30: Real $2018 | G30: End_Year | H30: c-i-c | I30: c-i-c | J30: c-i-c | K30: c-i-c | L30: c-i-c | M30: c-i-c | N30: c-i-c | P30: 0
E32: =E15 -> Dollars | F32: Real $2018 | G32: End_Year | H32: =SUM(H15:H30) -> 0 | I32: =SUM(I15:I30) -> 0 | J32: 0 | K32: 0 | L32: 0 | M32: 0 | N32: 0 | P32: 0
B34: End

Sheet BNI 33
B1: =MID(CELL("filename",A1),FIND("]",CELL("filename",A1))+1,255)&" Capital Expenditure" -> BNI 33 Capital Expenditure | G1: COMMERCIAL IN CONFIDENCE
B3: Direct Capex Forecasts
C5: BNI Description
D7: Requirement | E7: Description
D8: Expenditure category | E8: Substations
D9: Project / program number | E9: PRK31580
D10: Project / program description | E10: Pine Creek 132kV Transformer Replacement
C12: Direct Costs (Excluding Capitalised Overheads and Cost Escalation)
C14: Ref. | D14: Regulatory Asset Class | E14: Unit | F14: Basis | G14: Timing | H14: RY18 | I14: RY19 | J14: RY20 | K14: RY21 | L14: RY22 | M14: RY23 | N14: RY24 | P14: Total FY20 to FY24
C15: =N(C14)+1 -> 1 | D15: Substations | E15: Dollars | F15: Real $2018 | G15: End_Year | H15: c-i-c | I15: c-i-c | J15: c-i-c | K15: c-i-c | L15: c-i-c | M15: c-i-c | N15: c-i-c | P15: =SUM(J15:N15) -> 0
C16: =N(C15)+1 -> 2 | D16: Distribution Lines | E16: Dollars | F16: Real $2018 | G16: End_Year | H16: c-i-c | I16: c-i-c | J16: c-i-c | K16: c-i-c | L16: c-i-c | M16: c-i-c | N16: c-i-c | P16: 0
C17: 3 | D17: Transmission Lines | E17: Dollars | F17: Real $2018 | G17: End_Year | H17: c-i-c | I17: c-i-c | J17: c-i-c | K17: c-i-c | L17: c-i-c | M17: c-i-c | N17: c-i-c | P17: 0
C18: 4 | D18: LV Services | E18: Dollars | F18: Real $2018 | G18: End_Year | H18: c-i-c | I18: c-i-c | J18: c-i-c | K18: c-i-c | L18: c-i-c | M18: c-i-c | N18: c-i-c | P18: 0
C19: 5 | D19: Distribution Substations | E19: Dollars | F19: Real $2018 | G19: End_Year | H19: c-i-c | I19: c-i-c | J19: c-i-c | K19: c-i-c | L19: c-i-c | M19: c-i-c | N19: c-i-c | P19: 0
C20: 6 | D20: Distribution Switchgear | E20: Dollars | F20: Real $2018 | G20: End_Year | H20: c-i-c | I20: c-i-c | J20: c-i-c | K20: c-i-c | L20: c-i-c | M20: c-i-c | N20: c-i-c | P20: 0
C21: 7 | D21: Protection | E21: Dollars | F21: Real $2018 | G21: End_Year | H21: c-i-c | I21: c-i-c | J21: c-i-c | K21: c-i-c | L21: c-i-c | M21: c-i-c | N21: c-i-c | P21: 0
C22: 8 | D22: SCADA | E22: Dollars | F22: Real $2018 | G22: End_Year | H22: c-i-c | I22: c-i-c | J22: c-i-c | K22: c-i-c | L22: c-i-c | M22: c-i-c | N22: c-i-c | P22: 0
C23: 9 | D23: Communications | E23: Dollars | F23: Real $2018 | G23: End_Year | H23: c-i-c | I23: c-i-c | J23: c-i-c | K23: c-i-c | L23: c-i-c | M23: c-i-c | N23: c-i-c | P23: 0
C24: 10 | D24: Land and Easements | E24: Dollars | F24: Real $2018 | G24: End_Year | H24: c-i-c | I24: c-i-c | J24: c-i-c | K24: c-i-c | L24: c-i-c | M24: c-i-c | N24: c-i-c | P24: 0
C25: 11 | D25: Property | E25: Dollars | F25: Real $2018 | G25: End_Year | H25: c-i-c | I25: c-i-c | J25: c-i-c | K25: c-i-c | L25: c-i-c | M25: c-i-c | N25: c-i-c | P25: 0
C26: 12 | D26: IT and Communications | E26: Dollars | F26: Real $2018 | G26: End_Year | H26: c-i-c | I26: c-i-c | J26: c-i-c | K26: c-i-c | L26: c-i-c | M26: c-i-c | N26: c-i-c | P26: 0
C27: 13 | D27: Motor Vehicles | E27: Dollars | F27: Real $2018 | G27: End_Year | H27: c-i-c | I27: c-i-c | J27: c-i-c | K27: c-i-c | L27: c-i-c | M27: c-i-c | N27: c-i-c | P27: 0
C28: 14 | D28: Plant and Equipment | E28: Dollars | F28: Real $2018 | G28: End_Year | H28: c-i-c | I28: c-i-c | J28: c-i-c | K28: c-i-c | L28: c-i-c | M28: c-i-c | N28: c-i-c | P28: 0
C29: 15 | D29: Property Leases | E29: Dollars | F29: Real $2018 | G29: End_Year | H29: c-i-c | I29: c-i-c | J29: c-i-c | K29: c-i-c | L29: c-i-c | M29: c-i-c | N29: c-i-c | P29: =SUM(J29:N29) -> 0
C30: 16 | D30: Fleet Leases | E30: Dollars | F30: Real $2018 | G30: End_Year | H30: c-i-c | I30: c-i-c | J30: c-i-c | K30: c-i-c | L30: c-i-c | M30: c-i-c | N30: c-i-c | P30: 0
E32: =E15 -> Dollars | F32: Real $2018 | G32: End_Year | H32: =SUM(H15:H30) -> 0 | I32: =SUM(I15:I30) -> 0 | J32: 0 | K32: 0 | L32: 0 | M32: 0 | N32: 0 | P32: 0
B34: End

Sheet BNI 34
B1: =MID(CELL("filename",A1),FIND("]",CELL("filename",A1))+1,255)&" Capital Expenditure" -> BNI 34 Capital Expenditure | G1: COMMERCIAL IN CONFIDENCE
B3: Direct Capex Forecasts
C5: BNI Description
D7: Requirement | E7: Description
D8: Expenditure category
D9: Project / program number
D10: Project / program description | E10: [deleted]
C12: Direct Costs (Excluding Capitalised Overheads and Cost Escalation)
C14: Ref. | D14: Regulatory Asset Class | E14: Unit | F14: Basis | G14: Timing | H14: RY18 | I14: RY19 | J14: RY20 | K14: RY21 | L14: RY22 | M14: RY23 | N14: RY24 | P14: Total FY20 to FY24
C15: =N(C14)+1 -> 1 | D15: Substations | E15: Dollars | F15: Real $2018 | G15: End_Year | H15: c-i-c | I15: c-i-c | J15: c-i-c | K15: c-i-c | L15: c-i-c | M15: c-i-c | N15: c-i-c | P15: =SUM(J15:N15) -> 0
C16: =N(C15)+1 -> 2 | D16: Distribution Lines | E16: Dollars | F16: Real $2018 | G16: End_Year | H16: c-i-c | I16: c-i-c | J16: c-i-c | K16: c-i-c | L16: c-i-c | M16: c-i-c | N16: c-i-c | P16: 0
C17: 3 | D17: Transmission Lines | E17: Dollars | F17: Real $2018 | G17: End_Year | H17: c-i-c | I17: c-i-c | J17: c-i-c | K17: c-i-c | L17: c-i-c | M17: c-i-c | N17: c-i-c | P17: 0
C18: 4 | D18: LV Services | E18: Dollars | F18: Real $2018 | G18: End_Year | H18: c-i-c | I18: c-i-c | J18: c-i-c | K18: c-i-c | L18: c-i-c | M18: c-i-c | N18: c-i-c | P18: 0
C19: 5 | D19: Distribution Substations | E19: Dollars | F19: Real $2018 | G19: End_Year | H19: c-i-c | I19: c-i-c | J19: c-i-c | K19: c-i-c | L19: c-i-c | M19: c-i-c | N19: c-i-c | P19: 0
C20: 6 | D20: Distribution Switchgear | E20: Dollars | F20: Real $2018 | G20: End_Year | H20: c-i-c | I20: c-i-c | J20: c-i-c | K20: c-i-c | L20: c-i-c | M20: c-i-c | N20: c-i-c | P20: 0
C21: 7 | D21: Protection | E21: Dollars | F21: Real $2018 | G21: End_Year | H21: c-i-c | I21: c-i-c | J21: c-i-c | K21: c-i-c | L21: c-i-c | M21: c-i-c | N21: c-i-c | P21: 0
C22: 8 | D22: SCADA | E22: Dollars | F22: Real $2018 | G22: End_Year | H22: c-i-c | I22: c-i-c | J22: c-i-c | K22: c-i-c | L22: c-i-c | M22: c-i-c | N22: c-i-c | P22: 0
C23: 9 | D23: Communications | E23: Dollars | F23: Real $2018 | G23: End_Year | H23: c-i-c | I23: c-i-c | J23: c-i-c | K23: c-i-c | L23: c-i-c | M23: c-i-c | N23: c-i-c | P23: 0
C24: 10 | D24: Land and Easements | E24: Dollars | F24: Real $2018 | G24: End_Year | H24: c-i-c | I24: c-i-c | J24: c-i-c | K24: c-i-c | L24: c-i-c | M24: c-i-c | N24: c-i-c | P24: 0
C25: 11 | D25: Property | E25: Dollars | F25: Real $2018 | G25: End_Year | H25: c-i-c | I25: c-i-c | J25: c-i-c | K25: c-i-c | L25: c-i-c | M25: c-i-c | N25: c-i-c | P25: 0
C26: 12 | D26: IT and Communications | E26: Dollars | F26: Real $2018 | G26: End_Year | H26: c-i-c | I26: c-i-c | J26: c-i-c | K26: c-i-c | L26: c-i-c | M26: c-i-c | N26: c-i-c | P26: 0
C27: 13 | D27: Motor Vehicles | E27: Dollars | F27: Real $2018 | G27: End_Year | H27: c-i-c | I27: c-i-c | J27: c-i-c | K27: c-i-c | L27: c-i-c | M27: c-i-c | N27: c-i-c | P27: 0
C28: 14 | D28: Plant and Equipment | E28: Dollars | F28: Real $2018 | G28: End_Year | H28: c-i-c | I28: c-i-c | J28: c-i-c | K28: c-i-c | L28: c-i-c | M28: c-i-c | N28: c-i-c | P28: 0
C29: 15 | D29: Property Leases | E29: Dollars | F29: Real $2018 | G29: End_Year | H29: c-i-c | I29: c-i-c | J29: c-i-c | K29: c-i-c | L29: c-i-c | M29: c-i-c | N29: c-i-c | P29: =SUM(J29:N29) -> 0
C30: 16 | D30: Fleet Leases | E30: Dollars | F30: Real $2018 | G30: End_Year | H30: c-i-c | I30: c-i-c | J30: c-i-c | K30: c-i-c | L30: c-i-c | M30: c-i-c | N30: c-i-c | P30: 0
E32: =E15 -> Dollars | F32: Real $2018 | G32: End_Year | H32: =SUM(H15:H30) -> 0 | I32: =SUM(I15:I30) -> 0 | J32: 0 | K32: 0 | L32: 0 | M32: 0 | N32: 0 | P32: 0
B34: End

Sheet BNI 35
B1: =MID(CELL("filename",A1),FIND("]",CELL("filename",A1))+1,255)&" Capital Expenditure" -> BNI 35 Capital Expenditure | G1: COMMERCIAL IN CONFIDENCE
B3: Direct Capex Forecasts
C5: BNI Description
D7: Requirement | E7: Description
D8: Expenditure category | E8: Transmission Lines
D9: Project / program number | E9: NMP9
D10: Project / program description | E10: Transmission Tower Corrosion Protection Life Extension Program
C12: Direct Costs (Excluding Capitalised Overheads and Cost Escalation)
C14: Ref. | D14: Regulatory Asset Class | E14: Unit | F14: Basis | G14: Timing | H14: RY18 | I14: RY19 | J14: RY20 | K14: RY21 | L14: RY22 | M14: RY23 | N14: RY24 | P14: Total FY20 to FY24
C15: =N(C14)+1 -> 1 | D15: Substations | E15: Dollars | F15: Real $2018 | G15: End_Year | H15: c-i-c | I15: c-i-c | J15: c-i-c | K15: c-i-c | L15: c-i-c | M15: c-i-c | N15: c-i-c | P15: =SUM(J15:N15) -> 0
C16: =N(C15)+1 -> 2 | D16: Distribution Lines | E16: Dollars | F16: Real $2018 | G16: End_Year | H16: c-i-c | I16: c-i-c | J16: c-i-c | K16: c-i-c | L16: c-i-c | M16: c-i-c | N16: c-i-c | P16: 0
C17: 3 | D17: Transmission Lines | E17: Dollars | F17: Real $2018 | G17: End_Year | H17: c-i-c | I17: c-i-c | J17: c-i-c | K17: c-i-c | L17: c-i-c | M17: c-i-c | N17: c-i-c | P17: 0
C18: 4 | D18: LV Services | E18: Dollars | F18: Real $2018 | G18: End_Year | H18: c-i-c | I18: c-i-c | J18: c-i-c | K18: c-i-c | L18: c-i-c | M18: c-i-c | N18: c-i-c | P18: 0
C19: 5 | D19: Distribution Substations | E19: Dollars | F19: Real $2018 | G19: End_Year | H19: c-i-c | I19: c-i-c | J19: c-i-c | K19: c-i-c | L19: c-i-c | M19: c-i-c | N19: c-i-c | P19: 0
C20: 6 | D20: Distribution Switchgear | E20: Dollars | F20: Real $2018 | G20: End_Year | H20: c-i-c | I20: c-i-c | J20: c-i-c | K20: c-i-c | L20: c-i-c | M20: c-i-c | N20: c-i-c | P20: 0
C21: 7 | D21: Protection | E21: Dollars | F21: Real $2018 | G21: End_Year | H21: c-i-c | I21: c-i-c | J21: c-i-c | K21: c-i-c | L21: c-i-c | M21: c-i-c | N21: c-i-c | P21: 0
C22: 8 | D22: SCADA | E22: Dollars | F22: Real $2018 | G22: End_Year | H22: c-i-c | I22: c-i-c | J22: c-i-c | K22: c-i-c | L22: c-i-c | M22: c-i-c | N22: c-i-c | P22: 0
C23: 9 | D23: Communications | E23: Dollars | F23: Real $2018 | G23: End_Year | H23: c-i-c | I23: c-i-c | J23: c-i-c | K23: c-i-c | L23: c-i-c | M23: c-i-c | N23: c-i-c | P23: 0
C24: 10 | D24: Land and Easements | E24: Dollars | F24: Real $2018 | G24: End_Year | H24: c-i-c | I24: c-i-c | J24: c-i-c | K24: c-i-c | L24: c-i-c | M24: c-i-c | N24: c-i-c | P24: 0
C25: 11 | D25: Property | E25: Dollars | F25: Real $2018 | G25: End_Year | H25: c-i-c | I25: c-i-c | J25: c-i-c | K25: c-i-c | L25: c-i-c | M25: c-i-c | N25: c-i-c | P25: 0
C26: 12 | D26: IT and Communications | E26: Dollars | F26: Real $2018 | G26: End_Year | H26: c-i-c | I26: c-i-c | J26: c-i-c | K26: c-i-c | L26: c-i-c | M26: c-i-c | N26: c-i-c | P26: 0
C27: 13 | D27: Motor Vehicles | E27: Dollars | F27: Real $2018 | G27: End_Year | H27: c-i-c | I27: c-i-c | J27: c-i-c | K27: c-i-c | L27: c-i-c | M27: c-i-c | N27: c-i-c | P27: 0
C28: 14 | D28: Plant and Equipment | E28: Dollars | F28: Real $2018 | G28: End_Year | H28: c-i-c | I28: c-i-c | J28: c-i-c | K28: c-i-c | L28: c-i-c | M28: c-i-c | N28: c-i-c | P28: 0
C29: 15 | D29: Property Leases | E29: Dollars | F29: Real $2018 | G29: End_Year | H29: c-i-c | I29: c-i-c | J29: c-i-c | K29: c-i-c | L29: c-i-c | M29: c-i-c | N29: c-i-c | P29: =SUM(J29:N29) -> 0
C30: 16 | D30: Fleet Leases | E30: Dollars | F30: Real $2018 | G30: End_Year | H30: c-i-c | I30: c-i-c | J30: c-i-c | K30: c-i-c | L30: c-i-c | M30: c-i-c | N30: c-i-c | P30: 0
E32: =E15 -> Dollars | F32: Real $2018 | G32: End_Year | H32: =SUM(H15:H30) -> 0 | I32: =SUM(I15:I30) -> 0 | J32: 0 | K32: 0 | L32: 0 | M32: 0 | N32: 0 | P32: 0
B34: End

Sheet Augex -->
B8: Augex

Sheet A-BNI 1
B1: =MID(CELL("filename",A1),FIND("]",CELL("filename",A1))+1,255)&" Capital Expenditure" -> A-BNI 1 Capital Expenditure | G1: COMMERCIAL IN CONFIDENCE
B3: Direct Capex Forecasts
C5: BNI Description
D7: Requirement | E7: Description
D8: Expenditure category | E8: Substations
D9: Project / program number | E9: PRD33001
D10: Project / program description | E10: Darwin - Construct Wishart Zone Substation
C12: Direct Costs (Excluding Capitalised Overheads and Cost Escalation)
C14: Ref. | D14: Regulatory Asset Class | E14: Unit | F14: Basis | G14: Timing | H14: RY18 | I14: RY19 | J14: RY20 | K14: RY21 | L14: RY22 | M14: RY23 | N14: RY24 | P14: Total FY20 to FY24
C15: =N(C14)+1 -> 1 | D15: Substations | E15: Dollars | F15: Real $2018 | G15: End_Year | H15: c-i-c | I15: c-i-c | J15: c-i-c | K15: c-i-c | L15: c-i-c | M15: c-i-c | N15: c-i-c | P15: =SUM(J15:N15) -> 0
C16: =N(C15)+1 -> 2 | D16: Distribution Lines | E16: Dollars | F16: Real $2018 | G16: End_Year | H16: c-i-c | I16: c-i-c | J16: c-i-c | K16: c-i-c | L16: c-i-c | M16: c-i-c | N16: c-i-c | P16: 0
C17: 3 | D17: Transmission Lines | E17: Dollars | F17: Real $2018 | G17: End_Year | H17: c-i-c | I17: c-i-c | J17: c-i-c | K17: c-i-c | L17: c-i-c | M17: c-i-c | N17: c-i-c | P17: 0
C18: 4 | D18: LV Services | E18: Dollars | F18: Real $2018 | G18: End_Year | H18: c-i-c | I18: c-i-c | J18: c-i-c | K18: c-i-c | L18: c-i-c | M18: c-i-c | N18: c-i-c | P18: 0
C19: 5 | D19: Distribution Substations | E19: Dollars | F19: Real $2018 | G19: End_Year | H19: c-i-c | I19: c-i-c | J19: c-i-c | K19: c-i-c | L19: c-i-c | M19: c-i-c | N19: c-i-c | P19: 0
C20: 6 | D20: Distribution Switchgear | E20: Dollars | F20: Real $2018 | G20: End_Year | H20: c-i-c | I20: c-i-c | J20: c-i-c | K20: c-i-c | L20: c-i-c | M20: c-i-c | N20: c-i-c | P20: 0
C21: 7 | D21: Protection | E21: Dollars | F21: Real $2018 | G21: End_Year | H21: c-i-c | I21: c-i-c | J21: c-i-c | K21: c-i-c | L21: c-i-c | M21: c-i-c | N21: c-i-c | P21: 0
C22: 8 | D22: SCADA | E22: Dollars | F22: Real $2018 | G22: End_Year | H22: c-i-c | I22: c-i-c | J22: c-i-c | K22: c-i-c | L22: c-i-c | M22: c-i-c | N22: c-i-c | P22: 0
C23: 9 | D23: Communications | E23: Dollars | F23: Real $2018 | G23: End_Year | H23: c-i-c | I23: c-i-c | J23: c-i-c | K23: c-i-c | L23: c-i-c | M23: c-i-c | N23: c-i-c | P23: 0
C24: 10 | D24: Land and Easements | E24: Dollars | F24: Real $2018 | G24: End_Year | H24: c-i-c | I24: c-i-c | J24: c-i-c | K24: c-i-c | L24: c-i-c | M24: c-i-c | N24: c-i-c | P24: 0
C25: 11 | D25: Property | E25: Dollars | F25: Real $2018 | G25: End_Year | H25: c-i-c | I25: c-i-c | J25: c-i-c | K25: c-i-c | L25: c-i-c | M25: c-i-c | N25: c-i-c | P25: 0
C26: 12 | D26: IT and Communications | E26: Dollars | F26: Real $2018 | G26: End_Year | H26: c-i-c | I26: c-i-c | J26: c-i-c | K26: c-i-c | L26: c-i-c | M26: c-i-c | N26: c-i-c | P26: 0
C27: 13 | D27: Motor Vehicles | E27: Dollars | F27: Real $2018 | G27: End_Year | H27: c-i-c | I27: c-i-c | J27: c-i-c | K27: c-i-c | L27: c-i-c | M27: c-i-c | N27: c-i-c | P27: 0
C28: 14 | D28: Plant and Equipment | E28: Dollars | F28: Real $2018 | G28: End_Year | H28: c-i-c | I28: c-i-c | J28: c-i-c | K28: c-i-c | L28: c-i-c | M28: c-i-c | N28: c-i-c | P28: 0
C29: 15 | D29: Property Leases | E29: Dollars | F29: Real $2018 | G29: End_Year | H29: c-i-c | I29: c-i-c | J29: c-i-c | K29: c-i-c | L29: c-i-c | M29: c-i-c | N29: c-i-c | P29: =SUM(J29:N29) -> 0
C30: 16 | D30: Fleet Leases | E30: Dollars | F30: Real $2018 | G30: End_Year | H30: c-i-c | I30: c-i-c | J30: c-i-c | K30: c-i-c | L30: c-i-c | M30: c-i-c | N30: c-i-c | P30: 0
E32: =E15 -> Dollars | F32: Real $2018 | G32: End_Year | H32: =SUM(H15:H30) -> 0 | I32: =SUM(I15:I30) -> 0 | J32: 0 | K32: 0 | L32: 0 | M32: 0 | N32: 0 | P32: 0
B34: End

Sheet A-BNI 2
B1: =MID(CELL("filename",A1),FIND("]",CELL("filename",A1))+1,255)&" Capital Expenditure" -> A-BNI 2 Capital Expenditure | G1: COMMERCIAL IN CONFIDENCE
B3: Direct Capex Forecasts
C5: BNI Description
D7: Requirement | E7: Description
D8: Expenditure category | E8: Substations
D9: Project / program number | E9: PRD33002
D10: Project / program description | E10: Darwin - Archer ZSS Augmentation
C12: Direct Costs (Excluding Capitalised Overheads and Cost Escalation)
C14: Ref. | D14: Regulatory Asset Class | E14: Unit | F14: Basis | G14: Timing | H14: RY18 | I14: RY19 | J14: RY20 | K14: RY21 | L14: RY22 | M14: RY23 | N14: RY24 | P14: Total FY20 to FY24
C15: =N(C14)+1 -> 1 | D15: Substations | E15: Dollars | F15: Real $2018 | G15: End_Year | H15: c-i-c | I15: c-i-c | J15: c-i-c | K15: c-i-c | L15: c-i-c | M15: c-i-c | N15: c-i-c | P15: =SUM(J15:N15) -> 0
C16: =N(C15)+1 -> 2 | D16: Distribution Lines | E16: Dollars | F16: Real $2018 | G16: End_Year | H16: c-i-c | I16: c-i-c | J16: c-i-c | K16: c-i-c | L16: c-i-c | M16: c-i-c | N16: c-i-c | P16: 0
C17: 3 | D17: Transmission Lines | E17: Dollars | F17: Real $2018 | G17: End_Year | H17: c-i-c | I17: c-i-c | J17: c-i-c | K17: c-i-c | L17: c-i-c | M17: c-i-c | N17: c-i-c | P17: 0
C18: 4 | D18: LV Services | E18: Dollars | F18: Real $2018 | G18: End_Year | H18: c-i-c | I18: c-i-c | J18: c-i-c | K18: c-i-c | L18: c-i-c | M18: c-i-c | N18: c-i-c | P18: 0
C19: 5 | D19: Distribution Substations | E19: Dollars | F19: Real $2018 | G19: End_Year | H19: c-i-c | I19: c-i-c | J19: c-i-c | K19: c-i-c | L19: c-i-c | M19: c-i-c | N19: c-i-c | P19: 0
C20: 6 | D20: Distribution Switchgear | E20: Dollars | F20: Real $2018 | G20: End_Year | H20: c-i-c | I20: c-i-c | J20: c-i-c | K20: c-i-c | L20: c-i-c | M20: c-i-c | N20: c-i-c | P20: 0
C21: 7 | D21: Protection | E21: Dollars | F21: Real $2018 | G21: End_Year | H21: c-i-c | I21: c-i-c | J21: c-i-c | K21: c-i-c | L21: c-i-c | M21: c-i-c | N21: c-i-c | P21: 0
C22: 8 | D22: SCADA | E22: Dollars | F22: Real $2018 | G22: End_Year | H22: c-i-c | I22: c-i-c | J22: c-i-c | K22: c-i-c | L22: c-i-c | M22: c-i-c | N22: c-i-c | P22: 0
C23: 9 | D23: Communications | E23: Dollars | F23: Real $2018 | G23: End_Year | H23: c-i-c | I23: c-i-c | J23: c-i-c | K23: c-i-c | L23: c-i-c | M23: c-i-c | N23: c-i-c | P23: 0
C24: 10 | D24: Land and Easements | E24: Dollars | F24: Real $2018 | G24: End_Year | H24: c-i-c | I24: c-i-c | J24: c-i-c | K24: c-i-c | L24: c-i-c | M24: c-i-c | N24: c-i-c | P24: 0
C25: 11 | D25: Property | E25: Dollars | F25: Real $2018 | G25: End_Year | H25: c-i-c | I25: c-i-c | J25: c-i-c | K25: c-i-c | L25: c-i-c | M25: c-i-c | N25: c-i-c | P25: 0
C26: 12 | D26: IT and Communications | E26: Dollars | F26: Real $2018 | G26: End_Year | H26: c-i-c | I26: c-i-c | J26: c-i-c | K26: c-i-c | L26: c-i-c | M26: c-i-c | N26: c-i-c | P26: 0
C27: 13 | D27: Motor Vehicles | E27: Dollars | F27: Real $2018 | G27: End_Year | H27: c-i-c | I27: c-i-c | J27: c-i-c | K27: c-i-c | L27: c-i-c | M27: c-i-c | N27: c-i-c | P27: 0
C28: 14 | D28: Plant and Equipment | E28: Dollars | F28: Real $2018 | G28: End_Year | H28: c-i-c | I28: c-i-c | J28: c-i-c | K28: c-i-c | L28: c-i-c | M28: c-i-c | N28: c-i-c | P28: 0
C29: 15 | D29: Property Leases | E29: Dollars | F29: Real $2018 | G29: End_Year | H29: c-i-c | I29: c-i-c | J29: c-i-c | K29: c-i-c | L29: c-i-c | M29: c-i-c | N29: c-i-c | P29: =SUM(J29:N29) -> 0
C30: 16 | D30: Fleet Leases | E30: Dollars | F30: Real $2018 | G30: End_Year | H30: c-i-c | I30: c-i-c | J30: c-i-c | K30: c-i-c | L30: c-i-c | M30: c-i-c | N30: c-i-c | P30: 0
E32: =E15 -> Dollars | F32: Real $2018 | G32: End_Year | H32: =SUM(H15:H30) -> 0 | I32: =SUM(I15:I30) -> 0 | J32: 0 | K32: 0 | L32: 0 | M32: 0 | N32: 0 | P32: 0
B34: End

Sheet A-BNI 3
B1: =MID(CELL("filename",A1),FIND("]",CELL("filename",A1))+1,255)&" Capital Expenditure" -> A-BNI 3 Capital Expenditure | G1: COMMERCIAL IN CONFIDENCE
B3: Direct Capex Forecasts
C5: BNI Description
D7: Requirement | E7: Description
D8: Expenditure category | E8: Substations
D9: Project / program number | E9: PRK31430
D10: Project / program description | E10: Katherine Voltage Rectification
C12: Direct Costs (Excluding Capitalised Overheads and Cost Escalation)
C14: Ref. | D14: Regulatory Asset Class | E14: Unit | F14: Basis | G14: Timing | H14: RY18 | I14: RY19 | J14: RY20 | K14: RY21 | L14: RY22 | M14: RY23 | N14: RY24 | P14: Total FY20 to FY24
C15: =N(C14)+1 -> 1 | D15: Substations | E15: Dollars | F15: Real $2018 | G15: End_Year | H15: c-i-c | I15: c-i-c | J15: c-i-c | K15: c-i-c | L15: c-i-c | M15: c-i-c | N15: c-i-c | P15: =SUM(J15:N15) -> 0
C16: =N(C15)+1 -> 2 | D16: Distribution Lines | E16: Dollars | F16: Real $2018 | G16: End_Year | H16: c-i-c | I16: c-i-c | J16: c-i-c | K16: c-i-c | L16: c-i-c | M16: c-i-c | N16: c-i-c | P16: 0
C17: 3 | D17: Transmission Lines | E17: Dollars | F17: Real $2018 | G17: End_Year | H17: c-i-c | I17: c-i-c | J17: c-i-c | K17: c-i-c | L17: c-i-c | M17: c-i-c | N17: c-i-c | P17: 0
C18: 4 | D18: LV Services | E18: Dollars | F18: Real $2018 | G18: End_Year | H18: c-i-c | I18: c-i-c | J18: c-i-c | K18: c-i-c | L18: c-i-c | M18: c-i-c | N18: c-i-c | P18: 0
C19: 5 | D19: Distribution Substations | E19: Dollars | F19: Real $2018 | G19: End_Year | H19: c-i-c | I19: c-i-c | J19: c-i-c | K19: c-i-c | L19: c-i-c | M19: c-i-c | N19: c-i-c | P19: 0
C20: 6 | D20: Distribution Switchgear | E20: Dollars | F20: Real $2018 | G20: End_Year | H20: c-i-c | I20: c-i-c | J20: c-i-c | K20: c-i-c | L20: c-i-c | M20: c-i-c | N20: c-i-c | P20: 0
C21: 7 | D21: Protection | E21: Dollars | F21: Real $2018 | G21: End_Year | H21: c-i-c | I21: c-i-c | J21: c-i-c | K21: c-i-c | L21: c-i-c | M21: c-i-c | N21: c-i-c | P21: 0
C22: 8 | D22: SCADA | E22: Dollars | F22: Real $2018 | G22: End_Year | H22: c-i-c | I22: c-i-c | J22: c-i-c | K22: c-i-c | L22: c-i-c | M22: c-i-c | N22: c-i-c | P22: 0
C23: 9 | D23: Communications | E23: Dollars | F23: Real $2018 | G23: End_Year | H23: c-i-c | I23: c-i-c | J23: c-i-c | K23: c-i-c | L23: c-i-c | M23: c-i-c | N23: c-i-c | P23: 0
C24: 10 | D24: Land and Easements | E24: Dollars | F24: Real $2018 | G24: End_Year | H24: c-i-c | I24: c-i-c | J24: c-i-c | K24: c-i-c | L24: c-i-c | M24: c-i-c | N24: c-i-c | P24: 0
C25: 11 | D25: Property | E25: Dollars | F25: Real $2018 | G25: End_Year | H25: c-i-c | I25: c-i-c | J25: c-i-c | K25: c-i-c | L25: c-i-c | M25: c-i-c | N25: c-i-c | P25: 0
C26: 12 | D26: IT and Communications | E26: Dollars | F26: Real $2018 | G26: End_Year | H26: c-i-c | I26: c-i-c | J26: c-i-c | K26: c-i-c | L26: c-i-c | M26: c-i-c | N26: c-i-c | P26: 0
C27: 13 | D27: Motor Vehicles | E27: Dollars | F27: Real $2018 | G27: End_Year | H27: c-i-c | I27: c-i-c | J27: c-i-c | K27: c-i-c | L27: c-i-c | M27: c-i-c | N27: c-i-c | P27: 0
C28: 14 | D28: Plant and Equipment | E28: Dollars | F28: Real $2018 | G28: End_Year | H28: c-i-c | I28: c-i-c | J28: c-i-c | K28: c-i-c | L28: c-i-c | M28: c-i-c | N28: c-i-c | P28: 0
C29: 15 | D29: Property Leases | E29: Dollars | F29: Real $2018 | G29: End_Year | H29: c-i-c | I29: c-i-c | J29: c-i-c | K29: c-i-c | L29: c-i-c | M29: c-i-c | N29: c-i-c | P29: =SUM(J29:N29) -> 0
C30: 16 | D30: Fleet Leases | E30: Dollars | F30: Real $2018 | G30: End_Year | H30: c-i-c | I30: c-i-c | J30: c-i-c | K30: c-i-c | L30: c-i-c | M30: c-i-c | N30: c-i-c | P30: 0
E32: =E15 -> Dollars | F32: Real $2018 | G32: End_Year | H32: =SUM(H15:H30) -> 0 | I32: =SUM(I15:I30) -> 0 | J32: 0 | K32: 0 | L32: 0 | M32: 0 | N32: 0 | P32: 0
B34: End

Sheet A-BNI 4
B1: =MID(CELL("filename",A1),FIND("]",CELL("filename",A1))+1,255)&" Capital Expenditure" -> A-BNI 4 Capital Expenditure | G1: COMMERCIAL IN CONFIDENCE
B3: Direct Capex Forecasts
C5: BNI Description
D7: Requirement | E7: Description
D8: Expenditure category | E8: Transmission Lines
D9: Project / program number | E9: PRD33005
D10: Project / program description | E10: Darwin - Transmission Line Uprating
C12: Direct Costs (Excluding Capitalised Overheads and Cost Escalation)
C14: Ref. | D14: Regulatory Asset Class | E14: Unit | F14: Basis | G14: Timing | H14: RY18 | I14: RY19 | J14: RY20 | K14: RY21 | L14: RY22 | M14: RY23 | N14: RY24 | P14: Total FY20 to FY24
C15: =N(C14)+1 -> 1 | D15: Substations | E15: Dollars | F15: Real $2018 | G15: End_Year | H15: c-i-c | I15: c-i-c | J15: c-i-c | K15: c-i-c | L15: c-i-c | M15: c-i-c | N15: c-i-c | P15: =SUM(J15:N15) -> 0
C16: =N(C15)+1 -> 2 | D16: Distribution Lines | E16: Dollars | F16: Real $2018 | G16: End_Year | H16: c-i-c | I16: c-i-c | J16: c-i-c | K16: c-i-c | L16: c-i-c | M16: c-i-c | N16: c-i-c | P16: 0
C17: 3 | D17: Transmission Lines | E17: Dollars | F17: Real $2018 | G17: End_Year | H17: c-i-c | I17: c-i-c | J17: c-i-c | K17: c-i-c | L17: c-i-c | M17: c-i-c | N17: c-i-c | P17: 0
C18: 4 | D18: LV Services | E18: Dollars | F18: Real $2018 | G18: End_Year | H18: c-i-c | I18: c-i-c | J18: c-i-c | K18: c-i-c | L18: c-i-c | M18: c-i-c | N18: c-i-c | P18: 0
C19: 5 | D19: Distribution Substations | E19: Dollars | F19: Real $2018 | G19: End_Year | H19: c-i-c | I19: c-i-c | J19: c-i-c | K19: c-i-c | L19: c-i-c | M19: c-i-c | N19: c-i-c | P19: 0
C20: 6 | D20: Distribution Switchgear | E20: Dollars | F20: Real $2018 | G20: End_Year | H20: c-i-c | I20: c-i-c | J20: c-i-c | K20: c-i-c | L20: c-i-c | M20: c-i-c | N20: c-i-c | P20: 0
C21: 7 | D21: Protection | E21: Dollars | F21: Real $2018 | G21: End_Year | H21: c-i-c | I21: c-i-c | J21: c-i-c | K21: c-i-c | L21: c-i-c | M21: c-i-c | N21: c-i-c | P21: 0
C22: 8 | D22: SCADA | E22: Dollars | F22: Real $2018 | G22: End_Year | H22: c-i-c | I22: c-i-c | J22: c-i-c | K22: c-i-c | L22: c-i-c | M22: c-i-c | N22: c-i-c | P22: 0
C23: 9 | D23: Communications | E23: Dollars | F23: Real $2018 | G23: End_Year | H23: c-i-c | I23: c-i-c | J23: c-i-c | K23: c-i-c | L23: c-i-c | M23: c-i-c | N23: c-i-c | P23: 0
C24: 10 | D24: Land and Easements | E24: Dollars | F24: Real $2018 | G24: End_Year | H24: c-i-c | I24: c-i-c | J24: c-i-c | K24: c-i-c | L24: c-i-c | M24: c-i-c | N24: c-i-c | P24: 0
C25: 11 | D25: Property | E25: Dollars | F25: Real $2018 | G25: End_Year | H25: c-i-c | I25: c-i-c | J25: c-i-c | K25: c-i-c | L25: c-i-c | M25: c-i-c | N25: c-i-c | P25: 0
C26: 12 | D26: IT and Communications | E26: Dollars | F26: Real $2018 | G26: End_Year | H26: c-i-c | I26: c-i-c | J26: c-i-c | K26: c-i-c | L26: c-i-c | M26: c-i-c | N26: c-i-c | P26: 0
C27: 13 | D27: Motor Vehicles | E27: Dollars | F27: Real $2018 | G27: End_Year | H27: c-i-c | I27: c-i-c | J27: c-i-c | K27: c-i-c | L27: c-i-c | M27: c-i-c | N27: c-i-c | P27: 0
C28: 14 | D28: Plant and Equipment | E28: Dollars | F28: Real $2018 | G28: End_Year | H28: c-i-c | I28: c-i-c | J28: c-i-c | K28: c-i-c | L28: c-i-c | M28: c-i-c | N28: c-i-c | P28: 0
C29: 15 | D29: Property Leases | E29: Dollars | F29: Real $2018 | G29: End_Year | H29: c-i-c | I29: c-i-c | J29: c-i-c | K29: c-i-c | L29: c-i-c | M29: c-i-c | N29: c-i-c | P29: =SUM(J29:N29) -> 0
C30: 16 | D30: Fleet Leases | E30: Dollars | F30: Real $2018 | G30: End_Year | H30: c-i-c | I30: c-i-c | J30: c-i-c | K30: c-i-c | L30: c-i-c | M30: c-i-c | N30: c-i-c | P30: 0
E32: =E15 -> Dollars | F32: Real $2018 | G32: End_Year | H32: =SUM(H15:H30) -> 0 | I32: =SUM(I15:I30) -> 0 | J32: 0 | K32: 0 | L32: 0 | M32: 0 | N32: 0 | P32: 0
B34: End

Sheet A-BNI 5
B1: =MID(CELL("filename",A1),FIND("]",CELL("filename",A1))+1,255)&" Capital Expenditure" -> A-BNI 5 Capital Expenditure | G1: COMMERCIAL IN CONFIDENCE
B3: Direct Capex Forecasts
C5: BNI Description
D7: Requirement | E7: Description
D8: Expenditure category | E8: Substations
D9: Project / program number | E9: NPQ
D10: Project / program description | E10: Power quality compliance program
C12: Direct Costs (Excluding Capitalised Overheads and Cost Escalation)
C14: Ref. | D14: Regulatory Asset Class | E14: Unit | F14: Basis | G14: Timing | H14: RY18 | I14: RY19 | J14: RY20 | K14: RY21 | L14: RY22 | M14: RY23 | N14: RY24 | P14: Total FY20 to FY24
C15: =N(C14)+1 -> 1 | D15: Substations | E15: Dollars | F15: Real $2018 | G15: End_Year | H15: c-i-c | I15: c-i-c | J15: c-i-c | K15: c-i-c | L15: c-i-c | M15: c-i-c | N15: c-i-c | P15: =SUM(J15:N15) -> 0
C16: =N(C15)+1 -> 2 | D16: Distribution Lines | E16: Dollars | F16: Real $2018 | G16: End_Year | H16: c-i-c | I16: c-i-c | J16: c-i-c | K16: c-i-c | L16: c-i-c | M16: c-i-c | N16: c-i-c | P16: 0
C17: 3 | D17: Transmission Lines | E17: Dollars | F17: Real $2018 | G17: End_Year | H17: c-i-c | I17: c-i-c | J17: c-i-c | K17: c-i-c | L17: c-i-c | M17: c-i-c | N17: c-i-c | P17: 0
C18: 4 | D18: LV Services | E18: Dollars | F18: Real $2018 | G18: End_Year | H18: c-i-c | I18: c-i-c | J18: c-i-c | K18: c-i-c | L18: c-i-c | M18: c-i-c | N18: c-i-c | P18: 0
C19: 5 | D19: Distribution Substations | E19: Dollars | F19: Real $2018 | G19: End_Year | H19: c-i-c | I19: c-i-c | J19: c-i-c | K19: c-i-c | L19: c-i-c | M19: c-i-c | N19: c-i-c | P19: 0
C20: 6 | D20: Distribution Switchgear | E20: Dollars | F20: Real $2018 | G20: End_Year | H20: c-i-c | I20: c-i-c | J20: c-i-c | K20: c-i-c | L20: c-i-c | M20: c-i-c | N20: c-i-c | P20: 0
C21: 7 | D21: Protection | E21: Dollars | F21: Real $2018 | G21: End_Year | H21: c-i-c | I21: c-i-c | J21: c-i-c | K21: c-i-c | L21: c-i-c | M21: c-i-c | N21: c-i-c | P21: 0
C22: 8 | D22: SCADA | E22: Dollars | F22: Real $2018 | G22: End_Year | H22: c-i-c | I22: c-i-c | J22: c-i-c | K22: c-i-c | L22: c-i-c | M22: c-i-c | N22: c-i-c | P22: 0
C23: 9 | D23: Communications | E23: Dollars | F23: Real $2018 | G23: End_Year | H23: c-i-c | I23: c-i-c | J23: c-i-c | K23: c-i-c | L23: c-i-c | M23: c-i-c | N23: c-i-c | P23: 0
C24: 10 | D24: Land and Easements | E24: Dollars | F24: Real $2018 | G24: End_Year | H24: c-i-c | I24: c-i-c | J24: c-i-c | K24: c-i-c | L24: c-i-c | M24: c-i-c | N24: c-i-c | P24: 0
C25: 11 | D25: Property | E25: Dollars | F25: Real $2018 | G25: End_Year | H25: c-i-c | I25: c-i-c | J25: c-i-c | K25: c-i-c | L25: c-i-c | M25: c-i-c | N25: c-i-c | P25: 0
C26: 12 | D26: IT and Communications | E26: Dollars | F26: Real $2018 | G26: End_Year | H26: c-i-c | I26: c-i-c | J26: c-i-c | K26: c-i-c | L26: c-i-c | M26: c-i-c | N26: c-i-c | P26: 0
C27: 13 | D27: Motor Vehicles | E27: Dollars | F27: Real $2018 | G27: End_Year | H27: c-i-c | I27: c-i-c | J27: c-i-c | K27: c-i-c | L27: c-i-c | M27: c-i-c | N27: c-i-c | P27: 0
C28: 14 | D28: Plant and Equipment | E28: Dollars | F28: Real $2018 | G28: End_Year | H28: c-i-c | I28: c-i-c | J28: c-i-c | K28: c-i-c | L28: c-i-c | M28: c-i-c | N28: c-i-c | P28: 0
C29: 15 | D29: Property Leases | E29: Dollars | F29: Real $2018 | G29: End_Year | H29: c-i-c | I29: c-i-c | J29: c-i-c | K29: c-i-c | L29: c-i-c | M29: c-i-c | N29: c-i-c | P29: =SUM(J29:N29) -> 0
C30: 16 | D30: Fleet Leases | E30: Dollars | F30: Real $2018 | G30: End_Year | H30: c-i-c | I30: c-i-c | J30: c-i-c | K30: c-i-c | L30: c-i-c | M30: c-i-c | N30: c-i-c | P30: 0
E32: =E15 -> Dollars | F32: Real $2018 | G32: End_Year | H32: =SUM(H15:H30) -> 0 | I32: =SUM(I15:I30) -> 0 | J32: 0 | K32: 0 | L32: 0 | M32: 0 | N32: 0 | P32: 0
B34: End

Sheet A-BNI 6
B1: =MID(CELL("filename",A1),FIND("]",CELL("filename",A1))+1,255)&" Capital Expenditure" -> A-BNI 6 Capital Expenditure | G1: COMMERCIAL IN CONFIDENCE
B3: Direct Capex Forecasts
C5: BNI Description
D7: Requirement | E7: Description
D8: Expenditure category
D9: Project / program number
D10: Project / program description | E10: [deleted]
C12: Direct Costs (Excluding Capitalised Overheads and Cost Escalation)
C14: Ref. | D14: Regulatory Asset Class | E14: Unit | F14: Basis | G14: Timing | H14: RY18 | I14: RY19 | J14: RY20 | K14: RY21 | L14: RY22 | M14: RY23 | N14: RY24 | P14: Total FY20 to FY24
C15: =N(C14)+1 -> 1 | D15: Substations | E15: Dollars | F15: Real $2018 | G15: End_Year | H15: c-i-c | I15: c-i-c | J15: c-i-c | K15: c-i-c | L15: c-i-c | M15: c-i-c | N15: c-i-c | P15: =SUM(J15:N15) -> 0
C16: =N(C15)+1 -> 2 | D16: Distribution Lines | E16: Dollars | F16: Real $2018 | G16: End_Year | H16: c-i-c | I16: c-i-c | J16: c-i-c | K16: c-i-c | L16: c-i-c | M16: c-i-c | N16: c-i-c | P16: 0
C17: 3 | D17: Transmission Lines | E17: Dollars | F17: Real $2018 | G17: End_Year | H17: c-i-c | I17: c-i-c | J17: c-i-c | K17: c-i-c | L17: c-i-c | M17: c-i-c | N17: c-i-c | P17: 0
C18: 4 | D18: LV Services | E18: Dollars | F18: Real $2018 | G18: End_Year | H18: c-i-c | I18: c-i-c | J18: c-i-c | K18: c-i-c | L18: c-i-c | M18: c-i-c | N18: c-i-c | P18: 0
C19: 5 | D19: Distribution Substations | E19: Dollars | F19: Real $2018 | G19: End_Year | H19: c-i-c | I19: c-i-c | J19: c-i-c | K19: c-i-c | L19: c-i-c | M19: c-i-c | N19: c-i-c | P19: 0
C20: 6 | D20: Distribution Switchgear | E20: Dollars | F20: Real $2018 | G20: End_Year | H20: c-i-c | I20: c-i-c | J20: c-i-c | K20: c-i-c | L20: c-i-c | M20: c-i-c | N20: c-i-c | P20: 0
C21: 7 | D21: Protection | E21: Dollars | F21: Real $2018 | G21: End_Year | H21: c-i-c | I21: c-i-c | J21: c-i-c | K21: c-i-c | L21: c-i-c | M21: c-i-c | N21: c-i-c | P21: 0
C22: 8 | D22: SCADA | E22: Dollars | F22: Real $2018 | G22: End_Year | H22: c-i-c | I22: c-i-c | J22: c-i-c | K22: c-i-c | L22: c-i-c | M22: c-i-c | N22: c-i-c | P22: 0
C23: 9 | D23: Communications | E23: Dollars | F23: Real $2018 | G23: End_Year | H23: c-i-c | I23: c-i-c | J23: c-i-c | K23: c-i-c | L23: c-i-c | M23: c-i-c | N23: c-i-c | P23: 0
C24: 10 | D24: Land and Easements | E24: Dollars | F24: Real $2018 | G24: End_Year | H24: c-i-c | I24: c-i-c | J24: c-i-c | K24: c-i-c | L24: c-i-c | M24: c-i-c | N24: c-i-c | P24: 0
C25: 11 | D25: Property | E25: Dollars | F25: Real $2018 | G25: End_Year | H25: c-i-c | I25: c-i-c | J25: c-i-c | K25: c-i-c | L25: c-i-c | M25: c-i-c | N25: c-i-c | P25: 0
